Workbook

Sheet CAPA
B2: mort@lidades.infantil

Sheet PagIn
B2: mort@lidades.infantil
B4: Página Inicial
B7: Consulta de Indicadores (Anual) | D7: Análise por Indicador
D9: Selecione o Indicador
B11: Permite consultar o valor anual (1996-2016) por indicador ou por local de residência. | D11: Permite observar a evolução de um determinado indicador para o Continente, para a região Alentejo e, caso pretenda, para um determinado ACeS. Para um determinado triénio (ou ano) podem observar-se, também, os valores do respetivo indicador ordenados por ACeS através de um gráfico de barras e o seu mapeamento.
B13: Análise por ACeS | D13: Análise da Razão R por Indicador
D15: Selecione o Indicador
B17: Permite visualizar a evolução de vários indicadores num determinado ACeS, comparativamente com o Continente e a região Alentejo, numa única página. | D17: Permite evidenciar variações geográficas com recurso à razão entre o número de acontecimentos observados e o número de acontecimentos esperados nos ACeS, caso fossem observadas as distribuições do indicador para o Continente ou para a região Alentejo.

Sheet BASE (hidden)
A1: Icod | B1: Indicador | C1: cod_Res | D1: Rcod | E1: Local_Residencia | F1: Local_Residencia2 | G1: cod_IndRes | H1: A96 | I1: A97 | J1: A98 | K1: A99 | L1: A00 | M1: A01 | N1: A02 | O1: A03 | P1: A04 | Q1: A05 | R1: A06 | S1: A07 | T1: A08 | U1: A09 | V1: A10 | W1: A11 | X1: A12 | Y1: A13 | Z1: A14 | AA1: A15 | AB1: A16 | AC1: T01 | AD1: T02 | AE1: T03 | AF1: T04 | AG1: T05 | AH1: T06 | AI1: T07 | AJ1: T08 | AK1: T09 | AL1: T10 | AM1: T11 | AN1: T12 | AO1: T13 | AP1: T14 | AQ1: T15 | AR1: T16 | AS1: T17 | AT1: T18 | AU1: T19 | AV1: Q01 | AW1: Q02 | AX1: Q03 | AY1: Q04 | AZ1: Q05
A2: I27 | B2: População Média | C2: CT | D2: R01 | E2: CONTINENTE | F2: Continente | G2: I27R01 | H2: 9580149 | I2: 9626139.5 | J2: 9677652 | K2: 9734757 | L2: 9805338.5 | M2: 9874675 | N2: 9927082 | O2: 9962630 | P2: 9984537 | Q2: 10001053.5 | R2: 10017040 | S2: 10034679 | T2: 10047363 | U2: 10055535 | V2: 10058931.5 | W2: 10044483.5 | X2: 10003808.5 | Y2: 9947598.5 | Z2: 9894165.5 | AA2: 9854461.5 | AB2: 9824277 | AC2: 28878418.5 | AD2: 29032956 | AE2: 29204271 | AF2: 29416015.5 | AG2: 29624025 | AH2: 29781246 | AI2: 29887890 | AJ2: 29953611 | AK2: 30003160.5 | AL2: 30051120 | AM2: 30104037 | AN2: 30142089 | AO2: 30166605 | AP2: 30176794.5 | AQ2: 30133450.5
A3: I27 | B3: População Média | C3: RA | D3: R02 | E3: REGIÃO ALENTEJO | F3: Região Alentejo | G3: I27R02 | H3: 541081.5 | I3: 539294 | J3: 537854.5 | K3: 536530.5 | L3: 535732.5 | M3: 535051.5 | N3: 533745 | O3: 531694 | P3: 529452.5 | Q3: 527028 | R3: 524418 | S3: 521978 | T3: 519076.5 | U3: 515940 | V3: 512685.5 | W3: 508862.5 | X3: 504272.5 | Y3: 499417 | Z3: 493418.5 | AA3: 486366.5 | AB3: 480546.5 | AC3: 1617882 | AD3: 1613563.5 | AE3: 1609591.5 | AF3: 1607197.5 | AG3: 1605154.5 | AH3: 1601235 | AI3: 1595082 | AJ3: 1588357.5 | AK3: 1581084 | AL3: 1573254 | AM3: 1565934 | AN3: 1557229.5 | AO3: 1547820 | AP3: 1538056.5 | AQ3: 1526587.5
A4: I27 | B4: População Média | C4: A101 | D4: R03 | E4: ALENTEJO CENTRAL | F4: ACeS Alentejo Central | G4: I27R03 | H4: 173455 | I4: 173360.5 | J4: 173310 | K4: 173294 | L4: 173455.5 | M4: 173497 | N4: 173221.5 | O4: 172754.5 | P4: 172268 | Q4: 171686 | R4: 171012.5 | S4: 170374 | T4: 169531.5 | U4: 168567.5 | V4: 167546 | W4: 166341.5 | X4: 164834 | Y4: 163151 | Z4: 161091.5 | AA4: 158803.5 | AB4: 156976.5 | AC4: 520081.5 | AD4: 519930 | AE4: 519882 | AF4: 520366.5 | AG4: 520491 | AH4: 519664.5 | AI4: 518263.5 | AJ4: 516804 | AK4: 515058 | AL4: 513037.5 | AM4: 511122 | AN4: 508594.5 | AO4: 505702.5 | AP4: 502638 | AQ4: 499024.5
A5: I27 | B5: População Média | C5: A102 | D5: R04 | E5: ALTO ALENTEJO | F5: ULS Norte Alentejano | G5: I27R04 | H5: 130187.5 | I5: 129343.5 | J5: 128609 | K5: 127931 | L5: 127354.5 | M5: 126827 | N5: 126254 | O5: 125527.5 | P5: 124733.5 | Q5: 123917 | R5: 123065.5 | S5: 122223 | T5: 121307.5 | U5: 120368.5 | V5: 119379 | W5: 118107.5 | X5: 116510 | Y5: 114900 | Z5: 113110.5 | AA5: 111159.5 | AB5: 109411.5 | AC5: 388030.5 | AD5: 385827 | AE5: 383793 | AF5: 382063.5 | AG5: 380481 | AH5: 378762 | AI5: 376582.5 | AJ5: 374200.5 | AK5: 371751 | AL5: 369196.5 | AM5: 366669 | AN5: 363922.5 | AO5: 361105.5 | AP5: 358137 | AQ5: 354322.5
A6: I27 | B6: População Média | C6: A103 | D6: R05 | E6: BAIXO ALENTEJO | F6: ULS Baixo Alentejo | G6: I27R05 | H6: 138154 | I6: 137275 | J6: 136557 | K6: 135821.5 | L6: 135244.5 | M6: 134831.5 | N6: 134249.5 | O6: 133456.5 | P6: 132666 | Q6: 131886.5 | R6: 131071 | S6: 130305 | T6: 129409 | U6: 128453.5 | V6: 127492.5 | W6: 126418.5 | X6: 125282.5 | Y6: 124144 | Z6: 122728.5 | AA6: 120993.5 | AB6: 119576 | AC6: 411825 | AD6: 409671 | AE6: 407464.5 | AF6: 405733.5 | AG6: 404494.5 | AH6: 402748.5 | AI6: 400369.5 | AJ6: 397998 | AK6: 395659.5 | AL6: 393213 | AM6: 390915 | AN6: 388227 | AO6: 385360.5 | AP6: 382477.5 | AQ6: 379255.5
A7: I27 | B7: População Média | C7: A104 | D7: R06 | E7: ALENTEJO LITORAL | F7: ULS Litoral Alentejano | G7: I27R06 | H7: 99285 | I7: 99315 | J7: 99378.5 | K7: 99484 | L7: 99678 | M7: 99896 | N7: 100020 | O7: 99955.5 | P7: 99785 | Q7: 99538.5 | R7: 99269 | S7: 99076 | T7: 98828.5 | U7: 98550.5 | V7: 98268 | W7: 97995 | X7: 97646 | Y7: 97222 | Z7: 96488 | AA7: 95410 | AB7: 94582.5 | AC7: 297945 | AD7: 298135.5 | AE7: 298452 | AF7: 299034 | AG7: 299688 | AH7: 300060 | AI7: 299866.5 | AJ7: 299355 | AK7: 298615.5 | AL7: 297807 | AM7: 297228 | AN7: 296485.5 | AO7: 295651.5 | AP7: 294804 | AQ7: 293985
A8: I01 | B8: Nados Vivos | C8: CT | D8: R01 | E8: CONTINENTE | F8: Continente | G8: I01R01 | H8: 103668 | I8: 106299 | J8: 106857 | K8: 109381 | L8: 113318 | M8: 106479 | N8: 108192 | O8: 106232 | P8: 103309 | Q8: 103420 | R8: 99713 | S8: 96925 | T8: 99057 | U8: 94324 | V8: 96133 | W8: 91700 | X8: 85306 | Y8: 78606 | Z8: 78312 | AA8: 81292 | AB8: 83005 | AC8: 316824 | AD8: 322537 | AE8: 329556 | AF8: 329178 | AG8: 327989 | AH8: 320903 | AI8: 317733 | AJ8: 312961 | AK8: 306442 | AL8: 300058 | AM8: 295695 | AN8: 290306 | AO8: 289514 | AP8: 282158 | AQ8: 273140 | AV8: 539523 | AW8: 527632 | AX8: 486152 | AY8: =W8+X8+Y8+Z8+AA8 -> 415216 | AZ8: =X8+Y8+Z8+AA8+AB8 -> 406521
A9: I01 | B9: Nados Vivos | C9: RA | D9: R02 | E9: REGIÃO ALENTEJO | F9: Região Alentejo | G9: I01R02 | H9: 4393 | I9: 4673 | J9: 4653 | K9: 4688 | L9: 4778 | M9: 4423 | N9: 4543 | O9: 4597 | P9: 4582 | Q9: 4480 | R9: 4102 | S9: 3999 | T9: 4188 | U9: 4038 | V9: 4145 | W9: 4090 | X9: 3937 | Y9: 3532 | Z9: 3397 | AA9: 3612 | AB9: 3659 | AC9: 13719 | AD9: 14014 | AE9: 14119 | AF9: 13889 | AG9: 13744 | AH9: 13563 | AI9: 13722 | AJ9: 13659 | AK9: 13164 | AL9: 12581 | AM9: 12289 | AN9: 12225 | AO9: 12371 | AP9: 12274 | AQ9: 12173 | AV9: 23185 | AW9: 22625 | AX9: 20472 | AY9: =W9+X9+Y9+Z9+AA9 -> 18568 | AZ9: =X9+Y9+Z9+AA9+AB9 -> 18137
A10: I01 | B10: Nados Vivos | C10: A101 | D10: R03 | E10: ALENTEJO CENTRAL | F10: ACeS Alentejo Central | G10: I01R03 | H10: 1486 | I10: 1605 | J10: 1545 | K10: 1568 | L10: 1592 | M10: 1482 | N10: 1532 | O10: 1571 | P10: 1559 | Q10: 1462 | R10: 1462 | S10: 1356 | T10: 1412 | U10: 1307 | V10: 1320 | W10: 1364 | X10: 1289 | Y10: 1152 | Z10: 1102 | AA10: 1184 | AB10: 1228 | AC10: 4636 | AD10: 4718 | AE10: 4705 | AF10: 4642 | AG10: 4606 | AH10: 4585 | AI10: 4662 | AJ10: 4592 | AK10: 4483 | AL10: 4280 | AM10: 4230 | AN10: 4075 | AO10: 4039 | AP10: 3991 | AQ10: 3973 | AV10: 7796 | AW10: 7606 | AX10: 6857 | AY10: 6091 | AZ10: 5955
A11: I01 | B11: Nados Vivos | C11: A102 | D11: R04 | E11: ALTO ALENTEJO | F11: ULS Norte Alentejano | G11: I01R04 | H11: 1056 | I11: 1108 | J11: 1075 | K11: 1154 | L11: 1147 | M11: 1035 | N11: 1052 | O11: 1015 | P11: 979 | Q11: 999 | R11: 851 | S11: 802 | T11: 896 | U11: 879 | V11: 914 | W11: 877 | X11: 820 | Y11: 793 | Z11: 715 | AA11: 779 | AB11: 731 | AC11: 3239 | AD11: 3337 | AE11: 3376 | AF11: 3336 | AG11: 3234 | AH11: 3102 | AI11: 3046 | AJ11: 2993 | AK11: 2829 | AL11: 2652 | AM11: 2549 | AN11: 2577 | AO11: 2689 | AP11: 2671 | AQ11: 2612 | AV11: 5540 | AW11: 5080 | AX11: 4342 | AY11: 3984 | AZ11: 3838
A12: I01 | B12: Nados Vivos | C12: A103 | D12: R05 | E12: BAIXO ALENTEJO | F12: ULS Baixo Alentejo | G12: I01R05 | H12: 1108 | I12: 1180 | J12: 1255 | K12: 1136 | L12: 1236 | M12: 1121 | N12: 1164 | O12: 1178 | P12: 1182 | Q12: 1198 | R12: 1041 | S12: 1091 | T12: 1065 | U12: 1063 | V12: 1087 | W12: 1016 | X12: 1058 | Y12: 921 | Z12: 937 | AA12: 948 | AB12: 1020 | AC12: 3543 | AD12: 3571 | AE12: 3627 | AF12: 3493 | AG12: 3521 | AH12: 3463 | AI12: 3524 | AJ12: 3558 | AK12: 3421 | AL12: 3330 | AM12: 3197 | AN12: 3219 | AO12: 3215 | AP12: 3166 | AQ12: 3161 | AV12: 5915 | AW12: 5843 | AX12: 5347 | AY12: 4880 | AZ12: 4884
A13: I01 | B13: Nados Vivos | C13: A104 | D13: R06 | E13: ALENTEJO LITORAL | F13: ULS Litoral Alentejano | G13: I01R06 | H13: 743 | I13: 780 | J13: 778 | K13: 830 | L13: 803 | M13: 785 | N13: 795 | O13: 833 | P13: 862 | Q13: 821 | R13: 748 | S13: 750 | T13: 815 | U13: 789 | V13: 824 | W13: 833 | X13: 770 | Y13: 666 | Z13: 643 | AA13: 701 | AB13: 680 | AC13: 2301 | AD13: 2388 | AE13: 2411 | AF13: 2418 | AG13: 2383 | AH13: 2413 | AI13: 2490 | AJ13: 2516 | AK13: 2431 | AL13: 2319 | AM13: 2313 | AN13: 2354 | AO13: 2428 | AP13: 2446 | AQ13: 2427 | AV13: 3934 | AW13: 4096 | AX13: 3926 | AY13: 3613 | AZ13: 3460
A14: I02 | B14: Taxa Bruta de Natalidade | C14: CT | D14: R01 | E14: CONTINENTE | F14: Continente | G14: I02R01 | H14: 10.82112606 | I14: 11.0427446 | J14: 11.04162456 | K14: 11.2361305 | L14: 11.55676574 | M14: 10.78303843 | N14: 10.89867093 | O14: 10.66304781 | P14: 10.34689941 | Q14: 10.34091059 | R14: 9.954337808 | S14: 9.659003542 | T14: 9.859004796 | U14: 9.380306468 | V14: 9.556979288 | W14: 9.129389281 | X14: 8.527352358 | Y14: 7.902007706 | Z14: 7.914967665 | AA14: 8.24925847 | AB14: 8.448967797
A15: I02 | B15: Taxa Bruta de Natalidade | C15: RA | D15: R02 | E15: REGIÃO ALENTEJO | F15: Região Alentejo | G15: I02R02 | H15: 8.118924783 | I15: 8.665032431 | J15: 8.651038524 | K15: 8.737620694 | L15: 8.9186301 | M15: 8.266493973 | N15: 8.511555143 | O15: 8.64595049 | P15: 8.654222995 | Q15: 8.500497127 | R15: 7.822004584 | S15: 7.661242428 | T15: 8.068174922 | U15: 7.826491452 | V15: 8.084878546 | W15: 8.037534697 | X15: 7.807286735 | Y15: 7.072246239 | Z15: 6.884622283 | AA15: 7.42649833 | AB15: 7.614247529
A16: I02 | B16: Taxa Bruta de Natalidade | C16: A101 | D16: R03 | E16: ALENTEJO CENTRAL | F16: ACeS Alentejo Central | G16: I02R03 | H16: 8.567063504 | I16: 9.258164345 | J16: 8.914661589 | K16: 9.048207093 | L16: 9.178146556 | M16: 8.541934443 | N16: 8.844167727 | O16: 9.093829683 | P16: 9.049852555 | Q16: 8.515545822 | R16: 8.549082669 | S16: 7.958960874 | T16: 8.328835644 | U16: 7.753570528 | V16: 7.878433385 | W16: 8.199998196 | X16: 7.819988595 | Y16: 7.060943543 | Z16: 6.840832694 | AA16: 7.455755068 | AB16: 7.822826984
A17: I02 | B17: Taxa Bruta de Natalidade | C17: A102 | D17: R04 | E17: ALTO ALENTEJO | F17: ULS Norte Alentejano | G17: I02R04 | H17: 8.11137782 | I17: 8.566336925 | J17: 8.358668522 | K17: 9.020487607 | L17: 9.006356273 | M17: 8.160722874 | N17: 8.33240927 | O17: 8.085877597 | P17: 7.8487335 | Q17: 8.06184785 | R17: 6.9150168 | S17: 6.561776425 | T17: 7.386187993 | U17: 7.302575009 | V17: 7.656287957 | W17: 7.425438689 | X17: 7.038022487 | Y17: 6.901653612 | Z17: 6.321252227 | AA17: 7.007948039 | AB17: 6.68119896
A18: I02 | B18: Taxa Bruta de Natalidade | C18: A103 | D18: R05 | E18: BAIXO ALENTEJO | F18: ULS Baixo Alentejo | G18: I02R05 | H18: 8.020035612 | I18: 8.595884174 | J18: 9.190301486 | K18: 8.36391882 | L18: 9.139003804 | M18: 8.314080908 | N18: 8.670423354 | O18: 8.826846201 | P18: 8.909592511 | Q18: 9.083568068 | R18: 7.942260302 | S18: 8.372664134 | T18: 8.229721271 | U18: 8.275368129 | V18: 8.525991725 | W18: 8.036798412 | X18: 8.444914493 | Y18: 7.41880397 | Z18: 7.634738467 | AA18: 7.835131639 | AB18: 8.530139827
A19: I02 | B19: Taxa Bruta de Natalidade | C19: A104 | D19: R06 | E19: ALENTEJO LITORAL | F19: ULS Litoral Alentejano | G19: I02R06 | H19: 7.483507076 | I19: 7.85379852 | J19: 7.828655091 | K19: 8.343050139 | L19: 8.055940127 | M19: 7.858172499 | N19: 7.948410318 | O19: 8.3337085 | P19: 8.638572932 | Q19: 8.248064819 | R19: 7.535081445 | S19: 7.569946304 | T19: 8.246609025 | U19: 8.006047661 | V19: 8.385232222 | W19: 8.500433696 | X19: 7.885627675 | Y19: 6.850301372 | Z19: 6.664041124 | AA19: 7.347238235 | AB19: 7.189490656
A20: I03 | B20: NV <20 anos | C20: CT | D20: R01 | E20: CONTINENTE | F20: Continente | G20: I03R01 | H20: 7165 | I20: 6970 | J20: 6777 | K20: 6701 | L20: 6813 | M20: 6236 | N20: 6101 | O20: 5551 | P20: 5264 | Q20: 4983 | R20: 4438 | S20: 4369 | T20: 4132 | U20: 3927 | V20: 3726 | W20: 3331 | X20: 3051 | Y20: 2587 | Z20: 2282 | AA20: 2114 | AB20: 2024 | AC20: 20912 | AD20: 20448 | AE20: 20291 | AF20: 19750 | AG20: 19150 | AH20: 17888 | AI20: 16916 | AJ20: 15798 | AK20: 14685 | AL20: 13790 | AM20: 12939 | AN20: 12428 | AO20: 11785 | AP20: 10984 | AQ20: 10108 | AV20: 34426 | AW20: 28135 | AX20: 20592 | AY20: =W20+X20+Y20+Z20+AA20 -> 13365 | AZ20: =X20+Y20+Z20+AA20+AB20 -> 12058
A21: I03 | B21: NV <20 anos | C21: RA | D21: R02 | E21: REGIÃO ALENTEJO | F21: Região Alentejo | G21: I03R02 | H21: 497 | I21: 496 | J21: 426 | K21: 429 | L21: 419 | M21: 380 | N21: 388 | O21: 362 | P21: 329 | Q21: 296 | R21: 257 | S21: 255 | T21: 223 | U21: 212 | V21: 226 | W21: 220 | X21: 200 | Y21: 174 | Z21: 177 | AA21: 154 | AB21: 150 | AC21: 1419 | AD21: 1351 | AE21: 1274 | AF21: 1228 | AG21: 1187 | AH21: 1130 | AI21: 1079 | AJ21: 987 | AK21: 882 | AL21: 808 | AM21: 735 | AN21: 690 | AO21: 661 | AP21: 658 | AQ21: 646 | AV21: 2267 | AW21: 1755 | AX21: 1173 | AY21: =W21+X21+Y21+Z21+AA21 -> 925 | AZ21: =X21+Y21+Z21+AA21+AB21 -> 855
A22: I03 | B22: NV <20 anos | C22: A101 | D22: R03 | E22: ALENTEJO CENTRAL | F22: ACeS Alentejo Central | G22: I03R03 | H22: 150 | I22: 152 | J22: 120 | K22: 130 | L22: 127 | M22: 128 | N22: 107 | O22: 114 | P22: 98 | Q22: 85 | R22: 87 | S22: 80 | T22: 57 | U22: 51 | V22: 51 | W22: 58 | X22: 48 | Y22: 47 | Z22: 39 | AA22: 34 | AB22: 38 | AC22: 422 | AD22: 402 | AE22: 377 | AF22: 385 | AG22: 362 | AH22: 349 | AI22: 319 | AJ22: 297 | AK22: 270 | AL22: 252 | AM22: 224 | AN22: 188 | AO22: 159 | AP22: 160 | AQ22: 157 | AV22: 679 | AW22: 532 | AX22: 326 | AY22: 226 | AZ22: 206
A23: I03 | B23: NV <20 anos | C23: A102 | D23: R04 | E23: ALTO ALENTEJO | F23: ULS Norte Alentejano | G23: I03R04 | H23: 104 | I23: 108 | J23: 98 | K23: 97 | L23: 113 | M23: 92 | N23: 106 | O23: 88 | P23: 67 | Q23: 72 | R23: 62 | S23: 53 | T23: 47 | U23: 54 | V23: 60 | W23: 41 | X23: 51 | Y23: 39 | Z23: 50 | AA23: 40 | AB23: 36 | AC23: 310 | AD23: 303 | AE23: 308 | AF23: 302 | AG23: 311 | AH23: 286 | AI23: 261 | AJ23: 227 | AK23: 201 | AL23: 187 | AM23: 162 | AN23: 154 | AO23: 161 | AP23: 155 | AQ23: 152 | AV23: 520 | AW23: 425 | AX23: 276 | AY23: 221 | AZ23: 216
A24: I03 | B24: NV <20 anos | C24: A103 | D24: R05 | E24: BAIXO ALENTEJO | F24: ULS Baixo Alentejo | G24: I03R05 | H24: 147 | I24: 161 | J24: 126 | K24: 134 | L24: 117 | M24: 104 | N24: 106 | O24: 101 | P24: 102 | Q24: 89 | R24: 74 | S24: 85 | T24: 87 | U24: 72 | V24: 73 | W24: 84 | X24: 73 | Y24: 55 | Z24: 71 | AA24: 63 | AB24: 61 | AC24: 434 | AD24: 421 | AE24: 377 | AF24: 355 | AG24: 327 | AH24: 311 | AI24: 309 | AJ24: 292 | AK24: 265 | AL24: 248 | AM24: 246 | AN24: 244 | AO24: 232 | AP24: 229 | AQ24: 230 | AV24: 685 | AW24: 502 | AX24: 391 | AY24: 346 | AZ24: 323
A25: I03 | B25: NV <20 anos | C25: A104 | D25: R06 | E25: ALENTEJO LITORAL | F25: ULS Litoral Alentejano | G25: I03R06 | H25: 96 | I25: 75 | J25: 82 | K25: 68 | L25: 62 | M25: 56 | N25: 69 | O25: 59 | P25: 62 | Q25: 50 | R25: 34 | S25: 37 | T25: 32 | U25: 35 | V25: 42 | W25: 37 | X25: 28 | Y25: 33 | Z25: 17 | AA25: 17 | AB25: 15 | AC25: 253 | AD25: 225 | AE25: 212 | AF25: 186 | AG25: 187 | AH25: 184 | AI25: 190 | AJ25: 171 | AK25: 146 | AL25: 121 | AM25: 103 | AN25: 104 | AO25: 109 | AP25: 114 | AQ25: 107 | AV25: 383 | AW25: 296 | AX25: 180 | AY25: 132 | AZ25: 110
A26: I04 | B26: Proporção NV <20 anos | C26: CT | D26: R01 | E26: CONTINENTE | F26: Continente | G26: I04R01 | H26: 6.911486669 | I26: 6.556976077 | J26: 6.342120778 | K26: 6.126292501 | L26: 6.012284015 | M26: 5.856553874 | N26: 5.639049098 | O26: 5.225355825 | P26: 5.095393431 | Q26: 4.818216979 | R26: 4.450773721 | S26: 4.507608976 | T26: 4.171335696 | U26: 4.163309444 | V26: 3.875880291 | W26: 3.632497274 | X26: 3.576536234 | Y26: 3.291097372 | Z26: 2.913985085 | AA26: 2.600501894 | AB26: 2.438407325 | AC26: 6.600510062 | AD26: 6.339737767 | AE26: 6.157071939 | AF26: 5.999793425 | AG26: 5.838610441 | AH26: 5.574270107 | AI26: 5.323966979 | AJ26: 5.047913318 | AK26: 4.792097689 | AL26: 4.59577815 | AM26: 4.375792624 | AN26: 4.281000048 | AO26: 4.070614893 | AP26: 3.892868155 | AQ26: 3.700679874 | AR26: 3.508833701 | AS26: 3.269700773 | AT26: 2.931447043 | AU26: 2.646233239
A27: I04 | B27: Proporção NV <20 anos | C27: RA | D27: R02 | E27: REGIÃO ALENTEJO | F27: Região Alentejo | G27: I04R02 | H27: 11.31345322 | I27: 10.61416649 | J27: 9.155383623 | K27: 9.151023891 | L27: 8.769359565 | M27: 8.591453764 | N27: 8.54061193 | O27: 7.874700892 | P27: 7.180270624 | Q27: 6.607142857 | R27: 6.26523647 | S27: 6.376594149 | T27: 5.324737345 | U27: 5.250123824 | V27: 5.452352232 | W27: 5.378973105 | X27: 5.08001016 | Y27: 4.926387316 | Z27: 5.210479835 | AA27: 4.263565891 | AB27: 4.099480732 | AC27: 10.34331948 | AD27: 9.64035964 | AE27: 9.023301934 | AF27: 8.841529268 | AG27: 8.636495925 | AH27: 8.331490083 | AI27: 7.863285235 | AJ27: 7.226004832 | AK27: 6.700091158 | AL27: 6.422382958 | AM27: 5.980958581 | AN27: 5.644171779 | AO27: 5.343141217 | AP27: 5.36136234 | AQ27: 5.30726257 | AR27: 5.138852842 | AS27: 5.070863243 | AT27: 4.790816811 | AU27: 4.508811399
A28: I04 | B28: Proporção NV <20 anos | C28: A101 | D28: R03 | E28: ALENTEJO CENTRAL | F28: ACeS Alentejo Central | G28: I04R03 | H28: 10.09421265 | I28: 9.470404984 | J28: 7.766990291 | K28: 8.290816327 | L28: 7.977386935 | M28: 8.636977058 | N28: 6.984334204 | O28: 7.256524507 | P28: 6.286080821 | Q28: 5.813953488 | R28: 5.950752394 | S28: 5.899705015 | T28: 4.036827195 | U28: 3.9020658 | V28: 3.863636364 | W28: 4.252199413 | X28: 3.723816912 | Y28: 4.079861111 | Z28: 3.539019964 | AA28: 2.871621622 | AB28: 3.094462541 | AC28: 9.10267472 | AD28: 8.520559559 | AE28: 8.012752391 | AF28: 8.293838863 | AG28: 7.859313938 | AH28: 7.611777535 | AI28: 6.842556843 | AJ28: 6.467770035 | AK28: 6.022752621 | AL28: 5.887850467 | AM28: 5.295508274 | AN28: 4.613496933 | AO28: 3.936617975 | AP28: 4.009020296 | AQ28: 3.951673798 | AR28: 4.021024967 | AS28: 3.78210556 | AT28: 3.490401396 | AU28: 3.158793398
A29: I04 | B29: Proporção NV <20 anos | C29: A102 | D29: R04 | E29: ALTO ALENTEJO | F29: ULS Norte Alentejano | G29: I04R04 | H29: 9.848484848 | I29: 9.747292419 | J29: 9.11627907 | K29: 8.405545927 | L29: 9.851787271 | M29: 8.888888889 | N29: 10.07604563 | O29: 8.669950739 | P29: 6.84371808 | Q29: 7.207207207 | R29: 7.285546416 | S29: 6.608478803 | T29: 5.245535714 | U29: 6.14334471 | V29: 6.564551422 | W29: 4.675028506 | X29: 6.219512195 | Y29: 4.918032787 | Z29: 6.993006993 | AA29: 5.13478819 | AB29: 4.924760602 | AC29: 9.570855202 | AD29: 9.080011987 | AE29: 9.123222749 | AF29: 9.052757794 | AG29: 9.616573902 | AH29: 9.219858156 | AI29: 8.568614576 | AJ29: 7.584363515 | AK29: 7.104984093 | AL29: 7.051282051 | AM29: 6.355433503 | AN29: 5.975941017 | AO29: 5.987355894 | AP29: 5.805243446 | AQ29: 5.82152432 | AR29: 5.261044177 | AS29: 6.013745704 | AT29: 5.640577175 | AU29: 5.662921348
A30: I04 | B30: Proporção NV <20 anos | C30: A103 | D30: R05 | E30: BAIXO ALENTEJO | F30: ULS Baixo Alentejo | G30: I04R05 | H30: 13.26714801 | I30: 13.6440678 | J30: 10.03984064 | K30: 11.79577465 | L30: 9.466019417 | M30: 9.277430865 | N30: 9.10652921 | O30: 8.57385399 | P30: 8.629441624 | Q30: 7.429048414 | R30: 7.108549472 | S30: 7.791017415 | T30: 8.169014085 | U30: 6.773283161 | V30: 6.715731371 | W30: 8.267716535 | X30: 6.899810964 | Y30: 5.971769815 | Z30: 7.5773746 | AA30: 6.64556962 | AB30: 5.980392157 | AC30: 12.24950607 | AD30: 11.78941473 | AE30: 10.39426523 | AF30: 10.16318351 | AG30: 9.287134337 | AH30: 8.980652613 | AI30: 8.768444949 | AJ30: 8.206857785 | AK30: 7.74627302 | AL30: 7.447447447 | AM30: 7.694713794 | AN30: 7.579993787 | AO30: 7.216174184 | AP30: 7.233101706 | AQ30: 7.276178425 | AR30: 7.078464107 | AS30: 6.82441701 | AT30: 6.735566643 | AU30: 6.712564544
A31: I04 | B31: Proporção NV <20 anos | C31: A104 | D31: R06 | E31: ALENTEJO LITORAL | F31: ULS Litoral Alentejano | G31: I04R06 | H31: 12.92059219 | I31: 9.615384615 | J31: 10.53984576 | K31: 8.192771084 | L31: 7.721046077 | M31: 7.133757962 | N31: 8.679245283 | O31: 7.082833133 | P31: 7.192575406 | Q31: 6.090133983 | R31: 4.545454545 | S31: 4.933333333 | T31: 3.926380368 | U31: 4.43599493 | V31: 5.097087379 | W31: 4.441776711 | X31: 3.636363636 | Y31: 4.954954955 | Z31: 2.643856921 | AA31: 2.42510699 | AB31: 2.205882353 | AC31: 10.99521947 | AD31: 9.422110553 | AE31: 8.793031937 | AF31: 7.692307692 | AG31: 7.847251364 | AH31: 7.625362619 | AI31: 7.630522088 | AJ31: 6.796502385 | AK31: 6.005758947 | AL31: 5.217766279 | AM31: 4.453091224 | AN31: 4.418011895 | AO31: 4.489291598 | AP31: 4.660670482 | AQ31: 4.408735064 | AR31: 4.319083297 | AS31: 3.751803752 | AT31: 3.333333333 | AU31: 2.420948617
A32: I05 | B32: NV >=35 anos | C32: CT | D32: R01 | E32: CONTINENTE | F32: Continente | G32: I05R01 | H32: 10786 | I32: 11696 | J32: 12459 | K32: 13900 | L32: 14974 | M32: 14861 | N32: 15577 | O32: 15961 | P32: 16244 | Q32: 16965 | R32: 17413 | S32: 17905 | T32: 19094 | U32: 19415 | V32: 21147 | W32: 22106 | X32: 21344 | Y32: 20863 | Z32: 22393 | AA32: 24200 | AB32: 26268 | AC32: 34941 | AD32: 38055 | AE32: 41333 | AF32: 43735 | AG32: 45412 | AH32: 46399 | AI32: 47782 | AJ32: 49170 | AK32: 50622 | AL32: 52283 | AM32: 54412 | AN32: 56414 | AO32: 59656 | AP32: 62669 | AQ32: 64598 | AV32: 63815 | AW32: 79608 | AX32: 94974 | AY32: =W32+X32+Y32+Z32+AA32 -> 110906 | AZ32: =X32+Y32+Z32+AA32+AB32 -> 115068
A33: I05 | B33: NV >=35 anos | C33: RA | D33: R02 | E33: REGIÃO ALENTEJO | F33: Região Alentejo | G33: I05R02 | H33: 407 | I33: 462 | J33: 476 | K33: 529 | L33: 610 | M33: 579 | N33: 549 | O33: 637 | P33: 665 | Q33: 648 | R33: 648 | S33: 633 | T33: 738 | U33: 740 | V33: 806 | W33: 862 | X33: 892 | Y33: 832 | Z33: 802 | AA33: 949 | AB33: 1057 | AC33: 1345 | AD33: 1467 | AE33: 1615 | AF33: 1718 | AG33: 1738 | AH33: 1765 | AI33: 1851 | AJ33: 1950 | AK33: 1961 | AL33: 1929 | AM33: 2019 | AN33: 2111 | AO33: 2284 | AP33: 2409 | AQ33: 2561 | AV33: 2484 | AW33: 3078 | AX33: 3565 | AY33: =W33+X33+Y33+Z33+AA33 -> 4337 | AZ33: =X33+Y33+Z33+AA33+AB33 -> 4532
A34: I05 | B34: NV >=35 anos | C34: A101 | D34: R03 | E34: ALENTEJO CENTRAL | F34: ACeS Alentejo Central | G34: I05R03 | H34: 124 | I34: 164 | J34: 135 | K34: 182 | L34: 181 | M34: 186 | N34: 172 | O34: 193 | P34: 213 | Q34: 200 | R34: 215 | S34: 198 | T34: 254 | U34: 259 | V34: 290 | W34: 301 | X34: 313 | Y34: 285 | Z34: 279 | AA34: 337 | AB34: 373 | AC34: 423 | AD34: 481 | AE34: 498 | AF34: 549 | AG34: 539 | AH34: 551 | AI34: 578 | AJ34: 606 | AK34: 628 | AL34: 613 | AM34: 667 | AN34: 711 | AO34: 803 | AP34: 850 | AQ34: 904 | AV34: 786 | AW34: 964 | AX34: 1216 | AY34: 1515 | AZ34: 1587
A35: I05 | B35: NV >=35 anos | C35: A102 | D35: R04 | E35: ALTO ALENTEJO | F35: ULS Norte Alentejano | G35: I05R04 | H35: 104 | I35: 102 | J35: 104 | K35: 117 | L35: 156 | M35: 133 | N35: 126 | O35: 126 | P35: 143 | Q35: 145 | R35: 127 | S35: 138 | T35: 150 | U35: 167 | V35: 145 | W35: 186 | X35: 173 | Y35: 191 | Z35: 160 | AA35: 196 | AB35: 212 | AC35: 310 | AD35: 323 | AE35: 377 | AF35: 406 | AG35: 415 | AH35: 385 | AI35: 395 | AJ35: 414 | AK35: 415 | AL35: 410 | AM35: 415 | AN35: 455 | AO35: 462 | AP35: 499 | AQ35: 505 | AV35: 583 | AW35: 673 | AX35: 727 | AY35: 906 | AZ35: 932
A36: I05 | B36: NV >=35 anos | C36: A103 | D36: R05 | E36: BAIXO ALENTEJO | F36: ULS Baixo Alentejo | G36: I05R05 | H36: 96 | I36: 105 | J36: 142 | K36: 111 | L36: 158 | M36: 146 | N36: 142 | O36: 185 | P36: 159 | Q36: 195 | R36: 185 | S36: 185 | T36: 186 | U36: 190 | V36: 216 | W36: 201 | X36: 240 | Y36: 207 | Z36: 195 | AA36: 232 | AB36: 279 | AC36: 343 | AD36: 358 | AE36: 411 | AF36: 415 | AG36: 446 | AH36: 473 | AI36: 486 | AJ36: 539 | AK36: 539 | AL36: 565 | AM36: 556 | AN36: 561 | AO36: 592 | AP36: 607 | AQ36: 657 | AV36: 612 | AW36: 827 | AX36: 962 | AY36: 1075 | AZ36: 1153
A37: I05 | B37: NV >=35 anos | C37: A104 | D37: R06 | E37: ALENTEJO LITORAL | F37: ULS Litoral Alentejano | G37: I05R06 | H37: 83 | I37: 91 | J37: 95 | K37: 119 | L37: 115 | M37: 114 | N37: 109 | O37: 133 | P37: 150 | Q37: 108 | R37: 121 | S37: 112 | T37: 148 | U37: 124 | V37: 155 | W37: 174 | X37: 166 | Y37: 149 | Z37: 168 | AA37: 184 | AB37: 193 | AC37: 269 | AD37: 305 | AE37: 329 | AF37: 348 | AG37: 338 | AH37: 356 | AI37: 392 | AJ37: 391 | AK37: 379 | AL37: 341 | AM37: 381 | AN37: 384 | AO37: 427 | AP37: 453 | AQ37: 495 | AV37: 503 | AW37: 614 | AX37: 660 | AY37: 841 | AZ37: 860
A38: I06 | B38: Proporção NV >=35 anos | C38: CT | D38: R01 | E38: CONTINENTE | F38: Continente | G38: I06R01 | H38: 10.40436779 | I38: 11.00292571 | J38: 11.65950757 | K38: 12.70787431 | L38: 13.21414074 | M38: 13.95674264 | N38: 14.3975525 | O38: 15.024663 | P38: 15.72370268 | Q38: 16.40398376 | R38: 17.46311915 | S38: 18.47304617 | T38: 19.27577052 | U38: 20.5833086 | V38: 21.99764909 | W38: 24.10687023 | X38: 25.02051438 | Y38: 26.54123095 | Z38: 28.59459598 | AA38: 29.76922698 | AB38: 31.64628637 | AC38: 11.02852057 | AD38: 11.79864636 | AE38: 12.54202624 | AF38: 13.28612483 | AG38: 13.84558628 | AH38: 14.45888633 | AI38: 15.03841276 | AJ38: 15.7112228 | AK38: 16.51927608 | AL38: 17.42429797 | AM38: 18.40139333 | AN38: 19.43259871 | AO38: 20.60556657 | AP38: 22.21032971 | AQ38: 23.64986326 | AR38: 25.16039936 | AS38: 26.66952903 | AT38: 28.31787079 | AU38: 30.03227415
A39: I06 | B39: Proporção NV >=35 anos | C39: RA | D39: R02 | E39: REGIÃO ALENTEJO | F39: Região Alentejo | G39: I06R02 | H39: 9.264739358 | I39: 9.886582495 | J39: 10.22995917 | K39: 11.28412969 | L39: 12.76684805 | M39: 13.09066245 | N39: 12.08452564 | O39: 13.85686317 | P39: 14.51331296 | Q39: 14.46428571 | R39: 15.79717211 | S39: 15.82895724 | T39: 17.6217765 | U39: 18.32590391 | V39: 19.4451146 | W39: 21.07579462 | X39: 22.65684531 | Y39: 23.55605889 | Z39: 23.60906682 | AA39: 26.27353267 | AB39: 28.88767423 | AC39: 9.803921569 | AD39: 10.46810333 | AE39: 11.43848714 | AF39: 12.36950104 | AG39: 12.64551804 | AH39: 13.01334513 | AI39: 13.48928728 | AJ39: 14.27630134 | AK39: 14.89668794 | AL39: 15.33264446 | AM39: 16.42932704 | AN39: 17.26789366 | AO39: 18.46253334 | AP39: 19.62030473 | AQ39: 21.03187644 | AR39: 22.37217752 | AS39: 23.24682496 | AT39: 24.50431648 | AU39: 26.32170979
A40: I06 | B40: Proporção NV >=35 anos | C40: A101 | D40: R03 | E40: ALENTEJO CENTRAL | F40: ACeS Alentejo Central | G40: I06R03 | H40: 8.344549125 | I40: 10.21806854 | J40: 8.737864078 | K40: 11.60714286 | L40: 11.36934673 | M40: 12.55060729 | N40: 11.22715405 | O40: 12.28516868 | P40: 13.66260423 | Q40: 13.67989056 | R40: 14.70588235 | S40: 14.60176991 | T40: 17.98866856 | U40: 19.81637337 | V40: 21.96969697 | W40: 22.06744868 | X40: 24.28238945 | Y40: 24.73958333 | Z40: 25.31760436 | AA40: 28.46283784 | AB40: 30.37459283 | AC40: 9.124245039 | AD40: 10.19499788 | AE40: 10.58448459 | AF40: 11.82679879 | AG40: 11.70212766 | AH40: 12.0174482 | AI40: 12.3981124 | AJ40: 13.19686411 | AK40: 14.00847647 | AL40: 14.32242991 | AM40: 15.76832151 | AN40: 17.44785276 | AO40: 19.8811587 | AP40: 21.29792032 | AQ40: 22.75358671 | AR40: 23.62680683 | AS40: 24.75303415 | AT40: 26.20709715 | AU40: 28.1445646
A41: I06 | B41: Proporção NV >=35 anos | C41: A102 | D41: R04 | E41: ALTO ALENTEJO | F41: ULS Norte Alentejano | G41: I06R04 | H41: 9.848484848 | I41: 9.205776173 | J41: 9.674418605 | K41: 10.13864818 | L41: 13.60069747 | M41: 12.85024155 | N41: 11.97718631 | O41: 12.4137931 | P41: 14.60674157 | Q41: 14.51451451 | R41: 14.92361927 | S41: 17.20698254 | T41: 16.74107143 | U41: 18.99886234 | V41: 15.8643326 | W41: 21.20866591 | X41: 21.09756098 | Y41: 24.08575032 | Z41: 22.37762238 | AA41: 25.16046213 | AB41: 29.00136799 | AC41: 9.570855202 | AD41: 9.679352712 | AE41: 11.16706161 | AF41: 12.17026379 | AG41: 12.83240569 | AH41: 12.41134752 | AI41: 12.96782666 | AJ41: 13.83227531 | AK41: 14.66949452 | AL41: 15.46003017 | AM41: 16.28089447 | AN41: 17.65618937 | AO41: 17.18110822 | AP41: 18.65168539 | AQ41: 19.30294906 | AR41: 22.08835341 | AS41: 22.50859107 | AT41: 23.91779624 | AU41: 25.52808989
A42: I06 | B42: Proporção NV >=35 anos | C42: A103 | D42: R05 | E42: BAIXO ALENTEJO | F42: ULS Baixo Alentejo | G42: I06R05 | H42: 8.664259928 | I42: 8.898305085 | J42: 11.31474104 | K42: 9.771126761 | L42: 12.78317152 | M42: 13.02408564 | N42: 12.19931271 | O42: 15.70458404 | P42: 13.45177665 | Q42: 16.27712855 | R42: 17.77137368 | S42: 16.95692026 | T42: 17.46478873 | U42: 17.87394167 | V42: 19.87120515 | W42: 19.78346457 | X42: 22.68431002 | Y42: 22.47557003 | Z42: 20.81109925 | AA42: 24.47257384 | AB42: 27.35294118 | AC42: 9.681061248 | AD42: 10.02520302 | AE42: 11.33167907 | AF42: 11.88090467 | AG42: 12.66685601 | AH42: 13.65867745 | AI42: 13.79114642 | AJ42: 15.14896009 | AK42: 15.75562701 | AL42: 16.96696697 | AM42: 17.39130435 | AN42: 17.4277726 | AO42: 18.41368585 | AP42: 19.17245736 | AQ42: 20.78456185 | AR42: 21.6360601 | AS42: 22.01646091 | AT42: 22.59444048 | AU42: 24.30292599
A43: I06 | B43: Proporção NV >=35 anos | C43: A104 | D43: R06 | E43: ALENTEJO LITORAL | F43: ULS Litoral Alentejano | G43: I06R06 | H43: 11.17092867 | I43: 11.66666667 | J43: 12.21079692 | K43: 14.3373494 | L43: 14.32129514 | M43: 14.52229299 | N43: 13.71069182 | O43: 15.96638655 | P43: 17.40139211 | Q43: 13.1546894 | R43: 16.17647059 | S43: 14.93333333 | T43: 18.1595092 | U43: 15.71609632 | V43: 18.81067961 | W43: 20.88835534 | X43: 21.55844156 | Y43: 22.37237237 | Z43: 26.12752722 | AA43: 26.24821683 | AB43: 28.38235294 | AC43: 11.69056932 | AD43: 12.7721943 | AE43: 13.64579013 | AF43: 14.39205955 | AG43: 14.18380193 | AH43: 14.75341898 | AI43: 15.74297189 | AJ43: 15.54054054 | AK43: 15.59029206 | AL43: 14.70461406 | AM43: 16.47211414 | AN43: 16.3126593 | AO43: 17.58649094 | AP43: 18.52003271 | AQ43: 20.39555006 | AR43: 21.5513442 | AS43: 23.23232323 | AT43: 24.92537313 | AU43: 26.92687747
A44: I07 | B44: Nascimentos pré-termo | C44: CT | D44: R01 | E44: CONTINENTE | F44: Continente | G44: I07R01 | H44: na | I44: na | J44: na | K44: na | L44: 6726 | M44: 6041 | N44: 7001 | O44: 7347 | P44: 7050 | Q44: 6814 | R44: 7900 | S44: 8801 | T44: 8922 | U44: 8289 | V44: 7452 | W44: 6890 | X44: 6678 | Y44: 6225 | Z44: 6115 | AA44: 6520 | AB44: 6525 | AG44: 19768 | AH44: 20389 | AI44: 21398 | AJ44: 21211 | AK44: 21764 | AL44: 23515 | AM44: 25623 | AN44: 26012 | AO44: 24663 | AP44: 22631 | AQ44: 21020 | AW44: 34253 | AX44: 41364 | AY44: =W44+X44+Y44+Z44+AA44 -> 32428 | AZ44: =X44+Y44+Z44+AA44+AB44 -> 32063
A45: I07 | B45: Nascimentos pré-termo | C45: RA | D45: R02 | E45: REGIÃO ALENTEJO | F45: Região Alentejo | G45: I07R02 | H45: na | I45: na | J45: na | K45: na | L45: 295 | M45: 258 | N45: 307 | O45: 308 | P45: 306 | Q45: 322 | R45: 303 | S45: 396 | T45: 354 | U45: 326 | V45: 324 | W45: 266 | X45: 273 | Y45: 264 | Z45: 233 | AA45: 272 | AB45: 273 | AG45: 860 | AH45: 873 | AI45: 921 | AJ45: 936 | AK45: 931 | AL45: 1021 | AM45: 1053 | AN45: 1076 | AO45: 1004 | AP45: 916 | AQ45: 863 | AW45: 1501 | AX45: 1703 | AY45: =W45+X45+Y45+Z45+AA45 -> 1308 | AZ45: =X45+Y45+Z45+AA45+AB45 -> 1315
A46: I07 | B46: Nascimentos pré-termo | C46: A101 | D46: R03 | E46: ALENTEJO CENTRAL | F46: ACeS Alentejo Central | G46: I07R03 | H46: na | I46: na | J46: na | K46: na | L46: 85 | M46: 99 | N46: 121 | O46: 99 | P46: 99 | Q46: 107 | R46: 94 | S46: 131 | T46: 119 | U46: 104 | V46: 102 | W46: 80 | X46: 94 | Y46: 79 | Z46: 89 | AA46: 98 | AB46: 97 | AG46: 305 | AH46: 319 | AI46: 319 | AJ46: 305 | AK46: 300 | AL46: 332 | AM46: 344 | AN46: 354 | AO46: 325 | AP46: 286 | AQ46: 276 | AW46: 525 | AX46: 550 | AY46: 440 | AZ46: 457
A47: I07 | B47: Nascimentos pré-termo | C47: A102 | D47: R04 | E47: ALTO ALENTEJO | F47: ULS Norte Alentejano | G47: I07R04 | H47: na | I47: na | J47: na | K47: na | L47: 76 | M47: 54 | N47: 59 | O47: 70 | P47: 54 | Q47: 70 | R47: 61 | S47: 82 | T47: 57 | U47: 67 | V47: 62 | W47: 61 | X47: 56 | Y47: 61 | Z47: 48 | AA47: 41 | AB47: 46 | AG47: 189 | AH47: 183 | AI47: 183 | AJ47: 194 | AK47: 185 | AL47: 213 | AM47: 200 | AN47: 206 | AO47: 186 | AP47: 190 | AQ47: 179 | AW47: 307 | AX47: 329 | AY47: 267 | AZ47: 252
A48: I07 | B48: Nascimentos pré-termo | C48: A103 | D48: R05 | E48: BAIXO ALENTEJO | F48: ULS Baixo Alentejo | G48: I07R05 | H48: na | I48: na | J48: na | K48: na | L48: 90 | M48: 65 | N48: 80 | O48: 85 | P48: 78 | Q48: 91 | R48: 70 | S48: 111 | T48: 108 | U48: 93 | V48: 97 | W48: 69 | X48: 68 | Y48: 75 | Z48: 59 | AA48: 70 | AB48: 82 | AG48: 235 | AH48: 230 | AI48: 243 | AJ48: 254 | AK48: 239 | AL48: 272 | AM48: 289 | AN48: 312 | AO48: 298 | AP48: 259 | AQ48: 234 | AW48: 399 | AX48: 479 | AY48: 341 | AZ48: 354
A49: I07 | B49: Nascimentos pré-termo | C49: A104 | D49: R06 | E49: ALENTEJO LITORAL | F49: ULS Litoral Alentejano | G49: I07R06 | H49: na | I49: na | J49: na | K49: na | L49: 44 | M49: 40 | N49: 47 | O49: 54 | P49: 75 | Q49: 54 | R49: 78 | S49: 72 | T49: 70 | U49: 62 | V49: 63 | W49: 56 | X49: 55 | Y49: 49 | Z49: 37 | AA49: 63 | AB49: 48 | AG49: 131 | AH49: 141 | AI49: 176 | AJ49: 183 | AK49: 207 | AL49: 204 | AM49: 220 | AN49: 204 | AO49: 195 | AP49: 181 | AQ49: 174 | AW49: 270 | AX49: 345 | AY49: 260 | AZ49: 252
A50: I08 | B50: Proporção nascimentos pré-termo | C50: CT | D50: R01 | E50: CONTINENTE | F50: Continente | G50: I08R01 | H50: na | I50: na | J50: na | K50: na | L50: 5.935508922 | M50: 5.673419172 | N50: 6.470903579 | O50: 6.91599518 | P50: 6.824187631 | Q50: 6.588667569 | R50: 7.922738259 | S50: 9.080216662 | T50: 9.006935401 | U50: 8.787795259 | V50: 7.751760582 | W50: 7.513631407 | X50: 7.828288749 | Y50: 7.919242806 | Z50: 7.808509552 | AA50: 8.020469419 | AB50: 7.860972231 | AG50: 6.027031394 | AH50: 6.353633341 | AI50: 6.734585328 | AJ50: 6.7775218 | AK50: 7.102159626 | AL50: 7.836818215 | AM50: 8.66534774 | AN50: 8.960200616 | AO50: 8.518759024 | AP50: 8.020711873 | AQ50: 7.695715368 | AR50: 7.74337668 | AS50: 7.851410265 | AT50: 7.917383821 | AU50: 7.897481132
A51: I08 | B51: Proporção nascimentos pré-termo | C51: RA | D51: R02 | E51: REGIÃO ALENTEJO | F51: Região Alentejo | G51: I08R02 | H51: na | I51: na | J51: na | K51: na | L51: 6.174131436 | M51: 5.833144924 | N51: 6.757649131 | O51: 6.700021753 | P51: 6.678306416 | Q51: 7.1875 | R51: 7.386640663 | S51: 9.902475619 | T51: 8.452722063 | U51: 8.073303616 | V51: 7.816646562 | W51: 6.503667482 | X51: 6.934213868 | Y51: 7.474518686 | Z51: 6.858993229 | AA51: 7.530454042 | AB51: 7.461054933 | AG51: 6.257275902 | AH51: 6.436629064 | AI51: 6.711849585 | AJ51: 6.852624643 | AK51: 7.072318444 | AL51: 8.115412129 | AM51: 8.56863862 | AN51: 8.801635992 | AO51: 8.115754587 | AP51: 7.463537847 | AQ51: 7.090042721 | AR51: 6.946967731 | AS51: 7.086324314 | AT51: 7.295323024 | AU51: 7.292838395
A52: I08 | B52: Proporção nascimentos pré-termo | C52: A101 | D52: R03 | E52: ALENTEJO CENTRAL | F52: ACeS Alentejo Central | G52: I08R03 | H52: na | I52: na | J52: na | K52: na | L52: 5.33919598 | M52: 6.680161943 | N52: 7.898172324 | O52: 6.301718651 | P52: 6.350224503 | Q52: 7.31874145 | R52: 6.429548564 | S52: 9.660766962 | T52: 8.42776204 | U52: 7.957153787 | V52: 7.727272727 | W52: 5.865102639 | X52: 7.292474787 | Y52: 6.857638889 | Z52: 8.076225045 | AA52: 8.277027027 | AB52: 7.899022801 | AG52: 6.621797655 | AH52: 6.957470011 | AI52: 6.842556843 | AJ52: 6.641986063 | AK52: 6.691947357 | AL52: 7.757009346 | AM52: 8.132387707 | AN52: 8.687116564 | AO52: 8.046546175 | AP52: 7.166123779 | AQ52: 6.946891518 | AR52: 6.649145861 | AS52: 7.39486311 | AT52: 7.737056428 | AU52: 8.081957883
A53: I08 | B53: Proporção nascimentos pré-termo | C53: A102 | D53: R04 | E53: ALTO ALENTEJO | F53: ULS Norte Alentejano | G53: I08R04 | H53: na | I53: na | J53: na | K53: na | L53: 6.62598082 | M53: 5.217391304 | N53: 5.608365019 | O53: 6.896551724 | P53: 5.515832482 | Q53: 7.007007007 | R53: 7.168037603 | S53: 10.2244389 | T53: 6.361607143 | U53: 7.622298066 | V53: 6.783369803 | W53: 6.955530217 | X53: 6.829268293 | Y53: 7.692307692 | Z53: 6.713286713 | AA53: 5.263157895 | AB53: 6.292749658 | AG53: 5.844155844 | AH53: 5.899419729 | AI53: 6.007879186 | AJ53: 6.481790845 | AK53: 6.53941322 | AL53: 8.031674208 | AM53: 7.846214202 | AN53: 7.99379123 | AO53: 6.917069543 | AP53: 7.116104869 | AQ53: 6.855610877 | AR53: 7.148594378 | AS53: 7.087628866 | AT53: 6.558810669 | AU53: 6.06741573
A54: I08 | B54: Proporção nascimentos pré-termo | C54: A103 | D54: R05 | E54: BAIXO ALENTEJO | F54: ULS Baixo Alentejo | G54: I08R05 | H54: na | I54: na | J54: na | K54: na | L54: 7.281553398 | M54: 5.798394291 | N54: 6.872852234 | O54: 7.215619694 | P54: 6.598984772 | Q54: 7.595993322 | R54: 6.724303554 | S54: 10.17415215 | T54: 10.14084507 | U54: 8.748824083 | V54: 8.923643054 | W54: 6.791338583 | X54: 6.427221172 | Y54: 8.143322476 | Z54: 6.296691569 | AA54: 7.383966245 | AB54: 8.039215686 | AG54: 6.674240273 | AH54: 6.641640196 | AI54: 6.895573212 | AJ54: 7.138842046 | AK54: 6.986261327 | AL54: 8.168168168 | AM54: 9.039724742 | AN54: 9.692451072 | AO54: 9.269051322 | AP54: 8.180669615 | AQ54: 7.402720658 | AR54: 7.078464107 | AS54: 6.927297668 | AT54: 7.270135424 | AU54: 7.263339071
A55: I08 | B55: Proporção nascimentos pré-termo | C55: A104 | D55: R06 | E55: ALENTEJO LITORAL | F55: ULS Litoral Alentejano | G55: I08R06 | H55: na | I55: na | J55: na | K55: na | L55: 5.479452055 | M55: 5.095541401 | N55: 5.911949686 | O55: 6.482593037 | P55: 8.700696056 | Q55: 6.577344702 | R55: 10.42780749 | S55: 9.6 | T55: 8.588957055 | U55: 7.858048162 | V55: 7.645631068 | W55: 6.722689076 | X55: 7.142857143 | Y55: 7.357357357 | Z55: 5.754276827 | AA55: 8.987161198 | AB55: 7.058823529 | AG55: 5.497272346 | AH55: 5.843348529 | AI55: 7.068273092 | AJ55: 7.273449921 | AK55: 8.515014397 | AL55: 8.796895213 | AM55: 9.511456982 | AN55: 8.666100255 | AO55: 8.031301483 | AP55: 7.399836468 | AQ55: 7.16934487 | AR55: 7.051564566 | AS55: 6.782106782 | AT55: 7.412935323 | AU55: 7.312252964
A56: I09 | B56: Baixo Peso à Nascença | C56: CT | D56: R01 | E56: CONTINENTE | F56: Continente | G56: I09R01 | H56: 6600 | I56: 6923 | J56: 7148 | K56: 8127 | L56: 8031 | M56: 7645 | N56: 7937 | O56: 7862 | P56: 7850 | Q56: 7779 | R56: 7547 | S56: 7623 | T56: 7640 | U56: 7724 | V56: 8035 | W56: 7733 | X56: 7286 | Y56: 6849 | Z56: 6859 | AA56: 7225 | AB56: 7173 | AC56: 20671 | AD56: 22198 | AE56: 23306 | AF56: 23803 | AG56: 23613 | AH56: 23444 | AI56: 23649 | AJ56: 23491 | AK56: 23176 | AL56: 22949 | AM56: 22810 | AN56: 22987 | AO56: 23399 | AP56: 23492 | AQ56: 23054 | AV56: 36829 | AW56: 39073 | AX56: 38569 | AY56: =W56+X56+Y56+Z56+AA56 -> 35952 | AZ56: =X56+Y56+Z56+AA56+AB56 -> 35392
A57: I09 | B57: Baixo Peso à Nascença | C57: RA | D57: R02 | E57: REGIÃO ALENTEJO | F57: Região Alentejo | G57: I09R02 | H57: 283 | I57: 320 | J57: 335 | K57: 371 | L57: 369 | M57: 339 | N57: 327 | O57: 332 | P57: 375 | Q57: 345 | R57: 361 | S57: 325 | T57: 359 | U57: 347 | V57: 390 | W57: 346 | X57: 324 | Y57: 324 | Z57: 278 | AA57: 328 | AB57: 336 | AC57: 938 | AD57: 1026 | AE57: 1075 | AF57: 1079 | AG57: 1035 | AH57: 998 | AI57: 1034 | AJ57: 1052 | AK57: 1081 | AL57: 1031 | AM57: 1045 | AN57: 1031 | AO57: 1096 | AP57: 1083 | AQ57: 1060 | AV57: 1678 | AW57: 1718 | AX57: 1782 | AY57: =W57+X57+Y57+Z57+AA57 -> 1600 | AZ57: =X57+Y57+Z57+AA57+AB57 -> 1590
A58: I09 | B58: Baixo Peso à Nascença | C58: A101 | D58: R03 | E58: ALENTEJO CENTRAL | F58: ACeS Alentejo Central | G58: I09R03 | H58: 86 | I58: 108 | J58: 113 | K58: 128 | L58: 103 | M58: 127 | N58: 119 | O58: 123 | P58: 147 | Q58: 117 | R58: 130 | S58: 117 | T58: 134 | U58: 104 | V58: 126 | W58: 122 | X58: 123 | Y58: 90 | Z58: 111 | AA58: 110 | AB58: 126 | AC58: 307 | AD58: 349 | AE58: 344 | AF58: 358 | AG58: 349 | AH58: 369 | AI58: 389 | AJ58: 387 | AK58: 394 | AL58: 364 | AM58: 381 | AN58: 355 | AO58: 364 | AP58: 352 | AQ58: 371 | AV58: 538 | AW58: 633 | AX58: 611 | AY58: 556 | AZ58: 560
A59: I09 | B59: Baixo Peso à Nascença | C59: A102 | D59: R04 | E59: ALTO ALENTEJO | F59: ULS Norte Alentejano | G59: I09R04 | H59: 72 | I59: 90 | J59: 85 | K59: 97 | L59: 98 | M59: 81 | N59: 66 | O59: 77 | P59: 62 | Q59: 76 | R59: 78 | S59: 57 | T59: 57 | U59: 79 | V59: 76 | W59: 70 | X59: 66 | Y59: 77 | Z59: 51 | AA59: 58 | AB59: 55 | AC59: 247 | AD59: 272 | AE59: 280 | AF59: 276 | AG59: 245 | AH59: 224 | AI59: 205 | AJ59: 215 | AK59: 216 | AL59: 211 | AM59: 192 | AN59: 193 | AO59: 212 | AP59: 225 | AQ59: 212 | AV59: 442 | AW59: 362 | AX59: 347 | AY59: 322 | AZ59: 307
A60: I09 | B60: Baixo Peso à Nascença | C60: A103 | D60: R05 | E60: BAIXO ALENTEJO | F60: ULS Baixo Alentejo | G60: I09R05 | H60: 69 | I60: 71 | J60: 80 | K60: 91 | L60: 108 | M60: 71 | N60: 76 | O60: 71 | P60: 88 | Q60: 87 | R60: 79 | S60: 89 | T60: 100 | U60: 99 | V60: 112 | W60: 80 | X60: 77 | Y60: 91 | Z60: 58 | AA60: 82 | AB60: 105 | AC60: 220 | AD60: 242 | AE60: 279 | AF60: 270 | AG60: 255 | AH60: 218 | AI60: 235 | AJ60: 246 | AK60: 254 | AL60: 255 | AM60: 268 | AN60: 288 | AO60: 311 | AP60: 291 | AQ60: 269 | AV60: 419 | AW60: 393 | AX60: 479 | AY60: 388 | AZ60: 413
A61: I09 | B61: Baixo Peso à Nascença | C61: A104 | D61: R06 | E61: ALENTEJO LITORAL | F61: ULS Litoral Alentejano | G61: I09R06 | H61: 56 | I61: 51 | J61: 57 | K61: 55 | L61: 60 | M61: 60 | N61: 66 | O61: 61 | P61: 78 | Q61: 65 | R61: 74 | S61: 62 | T61: 68 | U61: 65 | V61: 76 | W61: 74 | X61: 58 | Y61: 66 | Z61: 58 | AA61: 78 | AB61: 50 | AC61: 164 | AD61: 163 | AE61: 172 | AF61: 175 | AG61: 186 | AH61: 187 | AI61: 205 | AJ61: 204 | AK61: 217 | AL61: 201 | AM61: 204 | AN61: 195 | AO61: 209 | AP61: 215 | AQ61: 208 | AV61: 279 | AW61: 330 | AX61: 345 | AY61: 334 | AZ61: 310
A62: I10 | B62: Proporção de Baixo Peso à Nascença | C62: CT | D62: R01 | E62: CONTINENTE | F62: Continente | G62: I10R01 | H62: 6.366477602 | I62: 6.512761174 | J62: 6.689313756 | K62: 7.429992412 | L62: 7.087135318 | M62: 7.179819495 | N62: 7.336032239 | O62: 7.400783192 | P62: 7.598563533 | Q62: 7.521755947 | R62: 7.568722233 | S62: 7.864843952 | T62: 7.712731054 | U62: 8.188796065 | V62: 8.35821206 | W62: 8.432933479 | X62: 8.541017045 | Y62: 8.713075338 | Z62: 8.758555522 | AA62: 8.887713428 | AB62: 8.641648093 | AC62: 6.524442593 | AD62: 6.882311177 | AE62: 7.071939215 | AF62: 7.231042172 | AG62: 7.199326807 | AH62: 7.305634413 | AI62: 7.443041799 | AJ62: 7.506047079 | AK62: 7.562931974 | AL62: 7.648188017 | AM62: 7.714029659 | AN62: 7.918196661 | AO62: 8.082165284 | AP62: 8.325861134 | AQ62: 8.440391156 | AR62: 8.555153905 | AS62: 8.667184094 | AT62: 8.787624365 | AU62: 8.761834887
A63: I10 | B63: Proporção de Baixo Peso à Nascença | C63: RA | D63: R02 | E63: REGIÃO ALENTEJO | F63: Região Alentejo | G63: I10R02 | H63: 6.442066925 | I63: 6.847849347 | J63: 7.199656136 | K63: 7.913822526 | L63: 7.722896609 | M63: 7.664481121 | N63: 7.197886859 | O63: 7.22210137 | P63: 8.18419904 | Q63: 7.700892857 | R63: 8.80058508 | S63: 8.127031758 | T63: 8.572110793 | U63: 8.593363051 | V63: 9.408926417 | W63: 8.459657702 | X63: 8.229616459 | Y63: 9.173272933 | Z63: 8.183691492 | AA63: 9.080841639 | AB63: 9.182836841 | AC63: 6.837233034 | AD63: 7.321250178 | AE63: 7.613853672 | AF63: 7.76873785 | AG63: 7.530558789 | AH63: 7.358254074 | AI63: 7.535344702 | AJ63: 7.701881543 | AK63: 8.21178973 | AL63: 8.194897067 | AM63: 8.503539751 | AN63: 8.433537832 | AO63: 8.85942931 | AP63: 8.82424835 | AQ63: 8.708511337 | AR63: 8.599359806 | AS63: 8.521995214 | AT63: 8.822692344 | AU63: 8.830146232
A64: I10 | B64: Proporção de Baixo Peso à Nascença | C64: A101 | D64: R03 | E64: ALENTEJO CENTRAL | F64: ACeS Alentejo Central | G64: I10R03 | H64: 5.787348587 | I64: 6.728971963 | J64: 7.313915858 | K64: 8.163265306 | L64: 6.469849246 | M64: 8.569500675 | N64: 7.767624021 | O64: 7.82940802 | P64: 9.429121232 | Q64: 8.002735978 | R64: 8.891928865 | S64: 8.628318584 | T64: 9.490084986 | U64: 7.957153787 | V64: 9.545454545 | W64: 8.944281525 | X64: 9.542280838 | Y64: 7.8125 | Z64: 10.07259528 | AA64: 9.290540541 | AB64: 10.26058632 | AC64: 6.622088007 | AD64: 7.397202204 | AE64: 7.311370882 | AF64: 7.71219302 | AG64: 7.577073383 | AH64: 8.047982552 | AI64: 8.344058344 | AJ64: 8.427700348 | AK64: 8.788757528 | AL64: 8.504672897 | AM64: 9.007092199 | AN64: 8.711656442 | AO64: 9.012131716 | AP64: 8.81984465 | AQ64: 9.338031714 | AR64: 8.804204993 | AS64: 9.144792549 | AT64: 9.045956952 | AU64: 9.874786568
A65: I10 | B65: Proporção de Baixo Peso à Nascença | C65: A102 | D65: R04 | E65: ALTO ALENTEJO | F65: ULS Norte Alentejano | G65: I10R04 | H65: 6.818181818 | I65: 8.122743682 | J65: 7.906976744 | K65: 8.405545927 | L65: 8.544027899 | M65: 7.826086957 | N65: 6.273764259 | O65: 7.586206897 | P65: 6.33299285 | Q65: 7.607607608 | R65: 9.165687427 | S65: 7.10723192 | T65: 6.361607143 | U65: 8.987485779 | V65: 8.315098468 | W65: 7.981755986 | X65: 8.048780488 | Y65: 9.709962169 | Z65: 7.132867133 | AA65: 7.445442875 | AB65: 7.523939808 | AC65: 7.625810435 | AD65: 8.151033863 | AE65: 8.293838863 | AF65: 8.273381295 | AG65: 7.575757576 | AH65: 7.221147647 | AI65: 6.730137886 | AJ65: 7.183427999 | AK65: 7.635206787 | AL65: 7.956259427 | AM65: 7.532365634 | AN65: 7.489328677 | AO65: 7.883971737 | AP65: 8.426966292 | AQ65: 8.119494447 | AR65: 8.554216867 | AS65: 8.333333333 | AT65: 8.13292523 | AU65: 7.370786517
A66: I10 | B66: Proporção de Baixo Peso à Nascença | C66: A103 | D66: R05 | E66: BAIXO ALENTEJO | F66: ULS Baixo Alentejo | G66: I10R05 | H66: 6.227436823 | I66: 6.016949153 | J66: 6.374501992 | K66: 8.01056338 | L66: 8.737864078 | M66: 6.333630687 | N66: 6.529209622 | O66: 6.027164686 | P66: 7.44500846 | Q66: 7.262103506 | R66: 7.588856868 | S66: 8.157653529 | T66: 9.389671362 | U66: 9.313264346 | V66: 10.30358786 | W66: 7.874015748 | X66: 7.277882798 | Y66: 9.880564604 | Z66: 6.189967983 | AA66: 8.64978903 | AB66: 10.29411765 | AC66: 6.209427039 | AD66: 6.776813218 | AE66: 7.692307692 | AF66: 7.729745205 | AG66: 7.242260721 | AH66: 6.295119838 | AI66: 6.668558456 | AJ66: 6.913996627 | AK66: 7.424729611 | AL66: 7.657657658 | AM66: 8.38285893 | AN66: 8.946877912 | AO66: 9.67340591 | AP66: 9.191408718 | AQ66: 8.509965201 | AR66: 8.280467446 | AS66: 7.750342936 | AT66: 8.23235923 | AU66: 8.43373494
A67: I10 | B67: Proporção de Baixo Peso à Nascença | C67: A104 | D67: R06 | E67: ALENTEJO LITORAL | F67: ULS Litoral Alentejano | G67: I10R06 | H67: 7.537012113 | I67: 6.538461538 | J67: 7.326478149 | K67: 6.626506024 | L67: 7.471980075 | M67: 7.643312102 | N67: 8.301886792 | O67: 7.322929172 | P67: 9.048723898 | Q67: 7.917174178 | R67: 9.893048128 | S67: 8.266666667 | T67: 8.343558282 | U67: 8.238276299 | V67: 9.223300971 | W67: 8.883553421 | X67: 7.532467532 | Y67: 9.90990991 | Z67: 9.020217729 | AA67: 11.12696148 | AB67: 7.352941176 | AC67: 7.127335941 | AD67: 6.825795645 | AE67: 7.133969307 | AF67: 7.23738627 | AG67: 7.805287453 | AH67: 7.749689184 | AI67: 8.232931727 | AJ67: 8.108108108 | AK67: 8.92636775 | AL67: 8.667529107 | AM67: 8.819714656 | AN67: 8.283772302 | AO67: 8.607907743 | AP67: 8.789860998 | AQ67: 8.570251339 | AR67: 8.72631115 | AS67: 8.754208754 | AT67: 10.04975124 | AU67: 9.18972332
A68: I11 | B68: Índice sintético de fecundidade (ISF) | C68: CT | D68: R01 | E68: CONTINENTE | F68: Continente | G68: I11R01 | H68: 1.432737641 | I68: 1.461101304 | J68: 1.463702153 | K68: 1.493889655 | L68: 1.542609788 | M68: 1.444220492 | N68: 1.462444437 | O68: 1.435101915 | P68: 1.40233609 | Q68: 1.413564814 | R68: 1.374262117 | S68: 1.350231688 | T68: 1.382780926 | U68: 1.347474588 | V68: 1.39423694 | W68: 1.349875407 | X68: 1.287706236 | Y68: 1.214643884 | Z68: 1.248732197 | AA68: 1.309224162 | AB68: 1.367141457
A69: I11 | B69: Índice sintético de fecundidade (ISF) | C69: RA | D69: R02 | E69: REGIÃO ALENTEJO | F69: Região Alentejo | G69: I11R02 | H69: 1.285959615 | I69: 1.372540747 | J69: 1.373741706 | K69: 1.392873606 | L69: 1.427098235 | M69: 1.323747173 | N69: 1.35772972 | O69: 1.376289363 | P69: 1.379975525 | Q69: 1.36056295 | R69: 1.257385165 | S69: 1.241071836 | T69: 1.301894776 | U69: 1.29066709 | V69: 1.352616715 | W69: 1.361277305 | X69: 1.341117222 | Y69: 1.230931478 | Z69: 1.265618299 | AA69: 1.32904414 | AB69: 1.387503262
A70: I11 | B70: Índice sintético de fecundidade (ISF) | C70: A101 | D70: R03 | E70: ALENTEJO CENTRAL | F70: ACeS Alentejo Central | G70: I11R03 | H70: 1.299467563 | I70: 1.400096157 | J70: 1.34858082 | K70: 1.368944813 | L70: 1.387621001 | M70: 1.295915634 | N70: 1.333355003 | O70: 1.377358969 | P70: 1.371583592 | Q70: 1.293929398 | R70: 1.311474795 | S70: 1.229968415 | T70: 1.2819984 | U70: 1.223425985 | V70: 1.250501256 | W70: 1.32760188 | X70: 1.289836311 | Y70: 1.191084043 | Z70: 1.175927954 | AA70: 1.303470374 | AB70: 1.398215377
A71: I11 | B71: Índice sintético de fecundidade (ISF) | C71: A102 | D71: R04 | E71: ALTO ALENTEJO | F71: ULS Norte Alentejano | G71: I11R04 | H71: 1.315382477 | I71: 1.390570112 | J71: 1.364251263 | K71: 1.482441133 | L71: 1.48861778 | M71: 1.348629542 | N71: 1.370427995 | O71: 1.327785098 | P71: 1.289291163 | Q71: 1.329817913 | R71: 1.145606023 | S71: 1.09633209 | T71: 1.223041298 | U71: 1.239181555 | V71: 1.323842747 | W71: 1.283887771 | X71: 1.243373764 | Y71: 1.219698605 | Z71: 1.147314027 | AA71: 1.271388974 | AB71: 1.237728079
A72: I11 | B72: Índice sintético de fecundidade (ISF) | C72: A103 | D72: R05 | E72: BAIXO ALENTEJO | F72: ULS Baixo Alentejo | G72: I11R05 | H72: 1.293343911 | I72: 1.384823127 | J72: 1.488814058 | K72: 1.363828917 | L72: 1.496637448 | M72: 1.363321381 | N72: 1.415056205 | O72: 1.436714104 | P72: 1.457153465 | Q72: 1.490675412 | R72: 1.310983281 | S72: 1.395839943 | T72: 1.376267009 | U72: 1.4008033 | V72: 1.459152843 | W72: 1.401491018 | X72: 1.484860047 | Y72: 1.321061927 | Z72: 1.380289117 | AA72: 1.422627194 | AB72: 1.561692376
A73: I11 | B73: Índice sintético de fecundidade (ISF) | C73: A104 | D73: R06 | E73: ALENTEJO LITORAL | F73: ULS Litoral Alentejano | G73: I11R06 | H73: 1.204903804 | I73: 1.285437323 | J73: 1.27016817 | K73: 1.359207579 | L73: 1.329822664 | M73: 1.295366703 | N73: 1.307213346 | O73: 1.356134097 | P73: 1.403561514 | Q73: 1.338500276 | R73: 1.223969322 | S73: 1.233358341 | T73: 1.333571676 | U73: 1.325638387 | V73: 1.431541701 | W73: 1.461034236 | X73: 1.357679166 | Y73: 1.197771774 | Z73: 1.167604983 | AA73: 1.311712407 | AB73: 1.318015851
A74: I12 | B74: Óbitos | C74: CT | D74: R01 | E74: CONTINENTE | F74: Continente | G74: I12R01 | H74: 101466 | I74: 99355 | J74: 100844 | K74: 102665 | L74: 100021 | M74: 99706 | N74: 100880 | O74: 103321 | P74: 96946 | Q74: 102323 | R74: 97038 | S74: 98668 | T74: 99401 | U74: 99335 | V74: 100837 | W74: 97962 | X74: 102808 | Y74: 101655 | Z74: 99737 | AA74: 103614 | AB74: 105512 | AC74: 301665 | AD74: 302864 | AE74: 303530 | AF74: 302392 | AG74: 300607 | AH74: 303907 | AI74: 301147 | AJ74: 302590 | AK74: 296307 | AL74: 298029 | AM74: 295107 | AN74: 297404 | AO74: 299573 | AP74: 298134 | AQ74: 301607 | AV74: 504351 | AW74: 503176 | AX74: 495279 | AY74: =X74+Y74+Z74+AA74+AB74 -> 513326 | AZ74: =X74+Y74+Z74+AA74+AB74 -> 513326
A75: I12 | B75: Óbitos | C75: RA | D75: R02 | E75: REGIÃO ALENTEJO | F75: Região Alentejo | G75: I12R02 | H75: 7969 | I75: 7649 | J75: 7838 | K75: 7889 | L75: 7550 | M75: 7455 | N75: 7572 | O75: 7962 | P75: 7074 | Q75: 7894 | R75: 7081 | S75: 7271 | T75: 7538 | U75: 7378 | V75: 7468 | W75: 7217 | X75: 7492 | Y75: 7136 | Z75: 6983 | AA75: 7464 | AB75: 7384 | AC75: 23456 | AD75: 23376 | AE75: 23277 | AF75: 22894 | AG75: 22577 | AH75: 22989 | AI75: 22608 | AJ75: 22930 | AK75: 22049 | AL75: 22246 | AM75: 21890 | AN75: 22187 | AO75: 22384 | AP75: 22063 | AQ75: 22177 | AV75: 38895 | AW75: 37957 | AX75: 36736 | AY75: =X75+Y75+Z75+AA75+AB75 -> 36459 | AZ75: =X75+Y75+Z75+AA75+AB75 -> 36459
A76: I12 | B76: Óbitos | C76: A101 | D76: R03 | E76: ALENTEJO CENTRAL | F76: ACeS Alentejo Central | G76: I12R03 | H76: 2250 | I76: 2223 | J76: 2294 | K76: 2234 | L76: 2170 | M76: 2131 | N76: 2181 | O76: 2302 | P76: 2015 | Q76: 2303 | R76: 2135 | S76: 2171 | T76: 2295 | U76: 2227 | V76: 2238 | W76: 2025 | X76: 2199 | Y76: 2156 | Z76: 2159 | AA76: 2194 | AB76: 2266 | AC76: 6767 | AD76: 6751 | AE76: 6698 | AF76: 6535 | AG76: 6482 | AH76: 6614 | AI76: 6498 | AJ76: 6620 | AK76: 6453 | AL76: 6609 | AM76: 6601 | AN76: 6693 | AO76: 6760 | AP76: 6490 | AQ76: 6462 | AV76: 11171 | AW76: 10932 | AX76: 11066 | AY76: 10974 | AZ76: 10974
A77: I12 | B77: Óbitos | C77: A102 | D77: R04 | E77: ALTO ALENTEJO | F77: ULS Norte Alentejano | G77: I12R04 | H77: 2096 | I77: 1994 | J77: 1979 | K77: 2036 | L77: 1972 | M77: 1993 | N77: 1927 | O77: 2069 | P77: 1830 | Q77: 2044 | R77: 1798 | S77: 1864 | T77: 1852 | U77: 1893 | V77: 1914 | W77: 1887 | X77: 1936 | Y77: 1843 | Z77: 1839 | AA77: 1905 | AB77: 1905 | AC77: 6069 | AD77: 6009 | AE77: 5987 | AF77: 6001 | AG77: 5892 | AH77: 5989 | AI77: 5826 | AJ77: 5943 | AK77: 5672 | AL77: 5706 | AM77: 5514 | AN77: 5609 | AO77: 5659 | AP77: 5694 | AQ77: 5737 | AV77: 10077 | AW77: 9863 | AX77: 9321 | AY77: 9428 | AZ77: 9428
A78: I12 | B78: Óbitos | C78: A103 | D78: R05 | E78: BAIXO ALENTEJO | F78: ULS Baixo Alentejo | G78: I12R05 | H78: 2297 | I78: 2123 | J78: 2252 | K78: 2297 | L78: 2164 | M78: 2060 | N78: 2224 | O78: 2226 | P78: 1985 | Q78: 2135 | R78: 1945 | S78: 1986 | T78: 2097 | U78: 1976 | V78: 2059 | W78: 2006 | X78: 2018 | Y78: 1900 | Z78: 1799 | AA78: 2003 | AB78: 1920 | AC78: 6672 | AD78: 6672 | AE78: 6713 | AF78: 6521 | AG78: 6448 | AH78: 6510 | AI78: 6435 | AJ78: 6346 | AK78: 6065 | AL78: 6066 | AM78: 6028 | AN78: 6059 | AO78: 6132 | AP78: 6041 | AQ78: 6083 | AV78: 11133 | AW78: 10630 | AX78: 10063 | AY78: 9640 | AZ78: 9640
A79: I12 | B79: Óbitos | C79: A104 | D79: R06 | E79: ALENTEJO LITORAL | F79: ULS Litoral Alentejano | G79: I12R06 | H79: 1326 | I79: 1309 | J79: 1313 | K79: 1322 | L79: 1244 | M79: 1271 | N79: 1240 | O79: 1365 | P79: 1244 | Q79: 1412 | R79: 1203 | S79: 1250 | T79: 1294 | U79: 1282 | V79: 1257 | W79: 1299 | X79: 1339 | Y79: 1237 | Z79: 1186 | AA79: 1362 | AB79: 1293 | AC79: 3948 | AD79: 3944 | AE79: 3879 | AF79: 3837 | AG79: 3755 | AH79: 3876 | AI79: 3849 | AJ79: 4021 | AK79: 3859 | AL79: 3865 | AM79: 3747 | AN79: 3826 | AO79: 3833 | AP79: 3838 | AQ79: 3895 | AV79: 6514 | AW79: 6532 | AX79: 6286 | AY79: 6417 | AZ79: 6417
A80: I13 | B80: Taxa Bruta de Mortalidade | C80: CT | D80: R01 | E80: CONTINENTE | G80: I13R01 | H80: 10.59127577 | I80: 10.32137546 | J80: 10.42029616 | K80: 10.54623141 | L80: 10.20066773 | M80: 10.09714244 | N80: 10.1621 | O80: 10.37085589 | P80: 9.709613976 | Q80: 10.23122214 | R80: 9.687292853 | S80: 9.832701176 | T80: 9.893242635 | U80: 9.878638978 | V80: 10.02462339 | W80: 9.752816061 | X80: 10.27688605 | Y80: 10.21904935 | Z80: 10.08038525 | AA80: 10.51442537 | AB80: 10.73992519
A81: I13 | B81: Taxa Bruta de Mortalidade | C81: RA | D81: R02 | E81: REGIÃO ALENTEJO | F81: Região Alentejo | G81: I13R02 | H81: 14.72791068 | I81: 14.18335824 | J81: 14.57271437 | K81: 14.70373073 | L81: 14.09285418 | M81: 13.9332382 | N81: 14.18654976 | O81: 14.97477873 | P81: 13.36097195 | Q81: 14.97833132 | R81: 13.50258763 | S81: 13.92970585 | T81: 14.52194426 | U81: 14.30011242 | V81: 14.56643498 | W81: 14.18261318 | X81: 14.85704654 | Y81: 14.28866058 | Z81: 14.15228655 | AA81: 15.3464517 | AB81: 15.36583869
A82: I13 | B82: Taxa Bruta de Mortalidade | C82: A101 | D82: R03 | E82: ALENTEJO CENTRAL | F82: ACeS Alentejo Central | G82: I13R03 | H82: 12.97166412 | I82: 12.82299024 | J82: 13.23639721 | K82: 12.89138689 | L82: 12.51041333 | M82: 12.28263313 | N82: 12.59081581 | O82: 13.32526794 | P82: 11.69689089 | Q82: 13.41402328 | R82: 12.48446751 | S82: 12.74255462 | T82: 13.53730723 | U82: 13.21132484 | V82: 13.35752569 | W82: 12.17375099 | X82: 13.34069427 | Y82: 13.21475198 | Z82: 13.40232104 | AA82: 13.8158164 | AB82: 14.43528171
A83: I13 | B83: Taxa Bruta de Mortalidade | C83: A102 | D83: R04 | E83: ALTO ALENTEJO | F83: ULS Norte Alentejano | G83: I13R04 | H83: 16.09985598 | I83: 15.41631392 | J83: 15.38772559 | K83: 15.91482909 | L83: 15.48433703 | M83: 15.71431951 | N83: 15.26288276 | O83: 16.48244409 | P83: 14.67127917 | Q83: 16.49491192 | R83: 14.610106 | S83: 15.25081204 | T83: 15.26698679 | U83: 15.72670591 | V83: 16.03297062 | W83: 15.97697013 | X83: 16.61659943 | Y83: 16.04003481 | Z83: 16.25843755 | AA83: 17.1375366 | AB83: 17.41133245
A84: I13 | B84: Taxa Bruta de Mortalidade | C84: A103 | D84: R05 | E84: BAIXO ALENTEJO | F84: ULS Baixo Alentejo | G84: I13R05 | H84: 16.62637347 | I84: 15.46530687 | J84: 16.49128203 | K84: 16.91190275 | L84: 16.00065067 | M84: 15.27832888 | N84: 16.56616971 | O84: 16.67959223 | P84: 14.96238675 | Q84: 16.18816179 | R84: 14.83928558 | S84: 15.24116496 | T84: 16.20443709 | U84: 15.38299852 | V84: 16.14996961 | W84: 15.86793072 | X84: 16.10759683 | Y84: 15.30480732 | Z84: 14.65837193 | AA84: 16.55460831 | AB84: 16.05673379
A85: I13 | B85: Taxa Bruta de Mortalidade | C85: A104 | D85: R06 | E85: ALENTEJO LITORAL | F85: ULS Litoral Alentejano | G85: I13R06 | H85: 13.35549177 | I85: 13.18028495 | J85: 13.21211328 | K85: 13.28856902 | L85: 12.4801862 | M85: 12.72323216 | N85: 12.3975205 | O85: 13.65607695 | P85: 12.46680363 | Q85: 14.18546593 | R85: 12.11858687 | S85: 12.61657717 | T85: 13.09338905 | U85: 13.00855906 | V85: 12.79154964 | W85: 13.25577836 | X85: 13.7127993 | Y85: 12.72345765 | Z85: 12.29168394 | AA85: 14.2752332 | AB85: 13.67060503
A86: I14 | B86: Óbitos Infantis | C86: CT | D86: R01 | E86: CONTINENTE | F86: Continente | G86: I14R01 | H86: 683 | I86: 664 | J86: 624 | K86: 592 | L86: 597 | M86: 514 | N86: 534 | O86: 432 | P86: 388 | Q86: 353 | R86: 326 | S86: 329 | T86: 324 | U86: 338 | V86: 236 | W86: 285 | X86: 283 | Y86: 226 | Z86: 215 | AA86: 233 | AB86: 269 | AC86: 1971 | AD86: 1880 | AE86: 1813 | AF86: 1703 | AG86: 1645 | AH86: 1480 | AI86: 1354 | AJ86: 1173 | AK86: 1067 | AL86: 1008 | AM86: 979 | AN86: 991 | AO86: 898 | AP86: 859 | AQ86: 804 | AV86: 3160 | AW86: 2221 | AX86: 1553 | AY86: =W86+X86+Y86+Z86+AA86 -> 1242 | AZ86: =X86+Y86+Z86+AA86+AB86 -> 1226
A87: I14 | B87: Óbitos Infantis | C87: RA | D87: R02 | E87: REGIÃO ALENTEJO | F87: Região Alentejo | G87: I14R02 | H87: 23 | I87: 24 | J87: 21 | K87: 19 | L87: 25 | M87: 16 | N87: 22 | O87: 25 | P87: 20 | Q87: 16 | R87: 14 | S87: 16 | T87: 17 | U87: 24 | V87: 9 | W87: 8 | X87: 15 | Y87: 10 | Z87: 8 | AA87: 14 | AB87: 5 | AC87: 68 | AD87: 64 | AE87: 65 | AF87: 60 | AG87: 63 | AH87: 63 | AI87: 67 | AJ87: 61 | AK87: 50 | AL87: 46 | AM87: 47 | AN87: 57 | AO87: 50 | AP87: 41 | AQ87: 32 | AV87: 112 | AW87: 99 | AX87: 80 | AY87: =W87+X87+Y87+Z87+AA87 -> 55 | AZ87: =X87+Y87+Z87+AA87+AB87 -> 52
A88: I14 | B88: Óbitos Infantis | C88: A101 | D88: R03 | E88: ALENTEJO CENTRAL | F88: ACeS Alentejo Central | G88: I14R03 | H88: 8 | I88: 13 | J88: 4 | K88: 6 | L88: 6 | M88: 5 | N88: 7 | O88: 8 | P88: 7 | Q88: 4 | R88: 2 | S88: 5 | T88: 1 | U88: 6 | V88: 4 | W88: 2 | X88: 5 | Y88: 3 | Z88: 1 | AA88: 4 | AB88: 1 | AC88: 25 | AD88: 23 | AE88: 16 | AF88: 17 | AG88: 18 | AH88: 20 | AI88: 22 | AJ88: 19 | AK88: 13 | AL88: 11 | AM88: 8 | AN88: 12 | AO88: 11 | AP88: 12 | AQ88: 11 | AV88: 37 | AW88: 31 | AX88: 18 | AY88: 15 | AZ88: 14
A89: I14 | B89: Óbitos Infantis | C89: A102 | D89: R04 | E89: ALTO ALENTEJO | F89: ULS Norte Alentejano | G89: I14R04 | H89: 2 | I89: 4 | J89: 6 | K89: 8 | L89: 4 | M89: 2 | N89: 4 | O89: 3 | P89: 4 | Q89: 5 | R89: 5 | S89: 5 | T89: 5 | U89: 4 | V89: 0 | W89: 2 | X89: 3 | Y89: 1 | Z89: 3 | AA89: 2 | AB89: 0 | AC89: 12 | AD89: 18 | AE89: 18 | AF89: 14 | AG89: 10 | AH89: 9 | AI89: 11 | AJ89: 12 | AK89: 14 | AL89: 15 | AM89: 15 | AN89: 14 | AO89: 9 | AP89: 6 | AQ89: 5 | AV89: 24 | AW89: 18 | AX89: 19 | AY89: 11 | AZ89: 9
A90: I14 | B90: Óbitos Infantis | C90: A103 | D90: R05 | E90: BAIXO ALENTEJO | F90: ULS Baixo Alentejo | G90: I14R05 | H90: 6 | I90: 5 | J90: 6 | K90: 2 | L90: 11 | M90: 3 | N90: 5 | O90: 5 | P90: 7 | Q90: 3 | R90: 5 | S90: 3 | T90: 8 | U90: 8 | V90: 5 | W90: 3 | X90: 3 | Y90: 5 | Z90: 2 | AA90: 6 | AB90: 3 | AC90: 17 | AD90: 13 | AE90: 19 | AF90: 16 | AG90: 19 | AH90: 13 | AI90: 17 | AJ90: 15 | AK90: 15 | AL90: 11 | AM90: 16 | AN90: 19 | AO90: 21 | AP90: 16 | AQ90: 11 | AV90: 30 | AW90: 23 | AX90: 29 | AY90: 19 | AZ90: 19
A91: I14 | B91: Óbitos Infantis | C91: A104 | D91: R06 | E91: ALENTEJO LITORAL | F91: ULS Litoral Alentejano | G91: I14R06 | H91: 7 | I91: 2 | J91: 5 | K91: 3 | L91: 4 | M91: 6 | N91: 6 | O91: 9 | P91: 2 | Q91: 4 | R91: 2 | S91: 3 | T91: 3 | U91: 6 | V91: 0 | W91: 1 | X91: 4 | Y91: 1 | Z91: 2 | AA91: 2 | AB91: 1 | AC91: 14 | AD91: 10 | AE91: 12 | AF91: 13 | AG91: 16 | AH91: 21 | AI91: 17 | AJ91: 15 | AK91: 8 | AL91: 9 | AM91: 8 | AN91: 12 | AO91: 9 | AP91: 7 | AQ91: 5 | AV91: 21 | AW91: 27 | AX91: 14 | AY91: 10 | AZ91: 10
A92: I15 | B92: Taxa de Mortalidade Infantil | C92: CT | D92: R01 | E92: CONTINENTE | F92: Continente | G92: I15R01 | H92: 6.5883397 | I92: 6.246531012 | J92: 5.839579999 | K92: 5.412274527 | L92: 5.268359837 | M92: 4.827242931 | N92: 4.93566992 | O92: 4.066571278 | P92: 3.755723122 | Q92: 3.413266293 | R92: 3.26938313 | S92: 3.394377096 | T92: 3.270844059 | U92: 3.58339341 | V92: 2.454932229 | W92: 3.107960742 | X92: 3.317468877 | Y92: 2.875098593 | Z92: 2.745428542 | AA92: 2.866210697 | AB92: 3.240768628 | AC92: 6.221119612 | AD92: 5.828788635 | AE92: 5.501341198 | AF92: 5.173492761 | AG92: 5.015412102 | AH92: 4.611985553 | AI92: 4.261439636 | AJ92: 3.748070846 | AK92: 3.481898695 | AL92: 3.359350526 | AM92: 3.310843944 | AN92: 3.413639401 | AO92: 3.101749829 | AP92: 3.044404356 | AQ92: 2.943556211 | AR92: 3.106270441 | AS92: 2.988968888 | AT92: 2.829436212 | AU92: 2.955372637
A93: I15 | B93: Taxa de Mortalidade Infantil | C93: RA | D93: R02 | E93: REGIÃO ALENTEJO | F93: Região Alentejo | G93: I15R02 | H93: 5.235602094 | I93: 5.13588701 | J93: 4.513217279 | K93: 4.052901024 | L93: 5.232314776 | M93: 3.617454217 | N93: 4.842615012 | O93: 5.438329345 | P93: 4.364906155 | Q93: 3.571428571 | R93: 3.412969283 | S93: 4.00100025 | T93: 4.05921681 | U93: 5.943536404 | V93: 2.171290712 | W93: 1.95599022 | X93: 3.81000762 | Y93: 2.831257078 | Z93: 2.355019135 | AA93: 3.875968992 | AB93: 1.366493577 | AC93: 4.956629492 | AD93: 4.56686171 | AE93: 4.603725476 | AF93: 4.31996544 | AG93: 4.583818393 | AH93: 4.644990046 | AI93: 4.882670165 | AJ93: 4.465919906 | AK93: 3.798237618 | AL93: 3.65630713 | AM93: 3.824558548 | AN93: 4.662576687 | AO93: 4.041710452 | AP93: 3.340666504 | AQ93: 2.628984555 | AR93: 2.854918246 | AS93: 3.036996135 | AT93: 3.035765108 | AU93: 2.530933633
A94: I15 | B94: Taxa de Mortalidade Infantil | C94: A101 | D94: R03 | E94: ALENTEJO CENTRAL | F94: ACeS Alentejo Central | G94: I15R03 | H94: 5.383580081 | I94: 8.099688474 | J94: 2.588996764 | K94: 3.826530612 | L94: 3.768844221 | M94: 3.373819163 | N94: 4.569190601 | O94: 5.092297899 | P94: 4.490057729 | Q94: 2.735978112 | R94: 1.367989056 | S94: 3.687315634 | T94: 0.7082152975 | U94: 4.590665647 | V94: 3.03030303 | W94: 1.46627566 | X94: 3.87897595 | Y94: 2.604166667 | Z94: 0.9074410163 | AA94: 3.378378378 | AB94: 0.8143322476 | AC94: 5.39257981 | AD94: 4.874947011 | AE94: 3.40063762 | AF94: 3.662214563 | AG94: 3.907946157 | AH94: 4.362050164 | AI94: 4.719004719 | AJ94: 4.137630662 | AK94: 2.899843855 | AL94: 2.570093458 | AM94: 1.891252955 | AN94: 2.944785276 | AO94: 2.723446398 | AP94: 3.006765222 | AQ94: 2.768688648 | AR94: 2.628120894 | AS94: 2.540220152 | AT94: 2.326934264 | AU94: 1.707455891
A95: I15 | B95: Taxa de Mortalidade Infantil | C95: A102 | D95: R04 | E95: ALTO ALENTEJO | F95: ULS Norte Alentejano | G95: I15R04 | H95: 1.893939394 | I95: 3.610108303 | J95: 5.581395349 | K95: 6.932409012 | L95: 3.487358326 | M95: 1.93236715 | N95: 3.802281369 | O95: 2.955665025 | P95: 4.085801839 | Q95: 5.005005005 | R95: 5.875440658 | S95: 6.234413965 | T95: 5.580357143 | U95: 4.550625711 | V95: 0 | W95: 2.28050171 | X95: 3.658536585 | Y95: 1.261034048 | Z95: 4.195804196 | AA95: 2.567394095 | AB95: 0 | AC95: 3.704847175 | AD95: 5.394066527 | AE95: 5.331753555 | AF95: 4.196642686 | AG95: 3.092145949 | AH95: 2.901353965 | AI95: 3.6112935 | AJ95: 4.009355162 | AK95: 4.94874514 | AL95: 5.656108597 | AM95: 5.884660651 | AN95: 5.432673652 | AO95: 3.346969134 | AP95: 2.247191011 | AQ95: 1.914975105 | AR95: 2.409638554 | AS95: 3.006872852 | AT95: 2.623524268 | AU95: 2.247191011
A96: I15 | B96: Taxa de Mortalidade Infantil | C96: A103 | D96: R05 | E96: BAIXO ALENTEJO | F96: ULS Baixo Alentejo | G96: I15R05 | H96: 5.415162455 | I96: 4.237288136 | J96: 4.780876494 | K96: 1.76056338 | L96: 8.899676375 | M96: 2.67618198 | N96: 4.295532646 | O96: 4.244482173 | P96: 5.922165821 | Q96: 2.504173623 | R96: 4.803073967 | S96: 2.749770852 | T96: 7.511737089 | U96: 7.525870179 | V96: 4.599816007 | W96: 2.952755906 | X96: 2.835538752 | Y96: 5.42888165 | Z96: 2.134471718 | AA96: 6.329113924 | AB96: 2.941176471 | AC96: 4.798193621 | AD96: 3.640436852 | AE96: 5.238489109 | AF96: 4.580589751 | AG96: 5.396194263 | AH96: 3.753970546 | AI96: 4.824063564 | AJ96: 4.215851602 | AK96: 4.384682841 | AL96: 3.303303303 | AM96: 5.004691899 | AN96: 5.902454178 | AO96: 6.531881804 | AP96: 5.053695515 | AQ96: 3.47991142 | AR96: 3.67278798 | AS96: 3.429355281 | AT96: 4.632929437 | AU96: 3.786574871
A97: I15 | B97: Taxa de Mortalidade Infantil | C97: A104 | D97: R06 | E97: ALENTEJO LITORAL | F97: ULS Litoral Alentejano | G97: I15R06 | H97: 9.421265141 | I97: 2.564102564 | J97: 6.426735219 | K97: 3.614457831 | L97: 4.98132005 | M97: 7.643312102 | N97: 7.547169811 | O97: 10.80432173 | P97: 2.320185615 | Q97: 4.872107186 | R97: 2.673796791 | S97: 4 | T97: 3.680981595 | U97: 7.604562738 | V97: 0 | W97: 1.200480192 | X97: 5.194805195 | Y97: 1.501501502 | Z97: 3.110419907 | AA97: 2.853067047 | AB97: 1.470588235 | AC97: 6.084311169 | AD97: 4.18760469 | AE97: 4.977187889 | AF97: 5.376344086 | AG97: 6.714225766 | AH97: 8.702859511 | AI97: 6.827309237 | AJ97: 5.961844197 | AK97: 3.29082682 | AL97: 3.880983182 | AM97: 3.45871163 | AN97: 5.097706032 | AO97: 3.70675453 | AP97: 2.861815209 | AQ97: 2.060156572 | AR97: 2.644336712 | AS97: 3.367003367 | AT97: 2.487562189 | AU97: 2.470355731
A98: I16 | B98: Óbitos Neonatais | C98: CT | D98: R01 | E98: CONTINENTE | F98: Continente | G98: I16R01 | H98: 414 | I98: 425 | J98: 389 | K98: 378 | L98: 368 | M98: 300 | N98: 363 | O98: 281 | P98: 256 | Q98: 222 | R98: 211 | S98: 198 | T98: 206 | U98: 228 | V98: 157 | W98: 215 | X98: 188 | Y98: 147 | Z98: 157 | AA98: 163 | AB98: 193 | AC98: 1228 | AD98: 1192 | AE98: 1135 | AF98: 1046 | AG98: 1031 | AH98: 944 | AI98: 900 | AJ98: 759 | AK98: 689 | AL98: 631 | AM98: 615 | AN98: 632 | AO98: 591 | AP98: 600 | AQ98: 560 | AV98: 1974 | AW98: 1422 | AX98: 1000 | AY98: =W98+X98+Y98+Z98+AA98 -> 870 | AZ98: =X98+Y98+Z98+AA98+AB98 -> 848
A99: I16 | B99: Óbitos Neonatais | C99: RA | D99: R02 | E99: REGIÃO ALENTEJO | F99: Região Alentejo | G99: I16R02 | H99: 13 | I99: 19 | J99: 13 | K99: 12 | L99: 12 | M99: 12 | N99: 16 | O99: 15 | P99: 18 | Q99: 11 | R99: 10 | S99: 9 | T99: 8 | U99: 15 | V99: 5 | W99: 7 | X99: 14 | Y99: 5 | Z99: 6 | AA99: 7 | AB99: 3 | AC99: 45 | AD99: 44 | AE99: 37 | AF99: 36 | AG99: 40 | AH99: 43 | AI99: 49 | AJ99: 44 | AK99: 39 | AL99: 30 | AM99: 27 | AN99: 32 | AO99: 28 | AP99: 27 | AQ99: 26 | AV99: 69 | AW99: 72 | AX99: 47 | AY99: =W99+X99+Y99+Z99+AA99 -> 39 | AZ99: =X99+Y99+Z99+AA99+AB99 -> 35
A100: I16 | B100: Óbitos Neonatais | C100: A101 | D100: R03 | E100: ALENTEJO CENTRAL | F100: ACeS Alentejo Central | G100: I16R03 | H100: 4 | I100: 9 | J100: 2 | K100: 4 | L100: 4 | M100: 4 | N100: 4 | O100: 5 | P100: 6 | Q100: 4 | R100: 1 | S100: 4 | T100: 1 | U100: 3 | V100: 2 | W100: 2 | X100: 5 | Y100: 1 | Z100: 1 | AA100: 1 | AB100: 1 | AC100: 15 | AD100: 15 | AE100: 10 | AF100: 12 | AG100: 12 | AH100: 13 | AI100: 15 | AJ100: 15 | AK100: 11 | AL100: 9 | AM100: 6 | AN100: 8 | AO100: 6 | AP100: 7 | AQ100: 9 | AV100: 23 | AW100: 23 | AX100: 11 | AY100: 10 | AZ100: 9
A101: I16 | B101: Óbitos Neonatais | C101: A102 | D101: R04 | E101: ALTO ALENTEJO | F101: ULS Norte Alentejano | G101: I16R04 | H101: 2 | I101: 3 | J101: 4 | K101: 5 | L101: 3 | M101: 2 | N101: 3 | O101: 2 | P101: 4 | Q101: 3 | R101: 4 | S101: 3 | T101: 3 | U101: 3 | V101: 0 | W101: 1 | X101: 2 | Y101: 0 | Z101: 3 | AA101: 2 | AB101: 0 | AC101: 9 | AD101: 12 | AE101: 12 | AF101: 10 | AG101: 8 | AH101: 7 | AI101: 9 | AJ101: 9 | AK101: 11 | AL101: 10 | AM101: 10 | AN101: 9 | AO101: 6 | AP101: 4 | AQ101: 3 | AV101: 17 | AW101: 14 | AX101: 13 | AY101: 8 | AZ101: 7
A102: I16 | B102: Óbitos Neonatais | C102: A103 | D102: R05 | E102: BAIXO ALENTEJO | F102: ULS Baixo Alentejo | G102: I16R05 | H102: 4 | I102: 5 | J102: 4 | K102: 2 | L102: 5 | M102: 1 | N102: 5 | O102: 3 | P102: 6 | Q102: 2 | R102: 3 | S102: 1 | T102: 2 | U102: 6 | V102: 3 | W102: 3 | X102: 3 | Y102: 3 | Z102: 0 | AA102: 4 | AB102: 1 | AC102: 13 | AD102: 11 | AE102: 11 | AF102: 8 | AG102: 11 | AH102: 9 | AI102: 14 | AJ102: 11 | AK102: 11 | AL102: 6 | AM102: 6 | AN102: 9 | AO102: 11 | AP102: 12 | AQ102: 9 | AV102: 20 | AW102: 17 | AX102: 15 | AY102: 13 | AZ102: 11
A103: I16 | B103: Óbitos Neonatais | C103: A104 | D103: R06 | E103: ALENTEJO LITORAL | F103: ULS Litoral Alentejano | G103: I16R06 | H103: 3 | I103: 2 | J103: 3 | K103: 1 | L103: 0 | M103: 5 | N103: 4 | O103: 5 | P103: 2 | Q103: 2 | R103: 2 | S103: 1 | T103: 2 | U103: 3 | V103: 0 | W103: 1 | X103: 4 | Y103: 1 | Z103: 2 | AA103: 0 | AB103: 1 | AC103: 8 | AD103: 6 | AE103: 4 | AF103: 6 | AG103: 9 | AH103: 14 | AI103: 11 | AJ103: 9 | AK103: 6 | AL103: 5 | AM103: 5 | AN103: 6 | AO103: 5 | AP103: 4 | AQ103: 5 | AV103: 9 | AW103: 18 | AX103: 8 | AY103: 8 | AZ103: 8
A104: I17 | B104: Taxa de Mortalidade Neonatal | C104: CT | D104: R01 | E104: CONTINENTE | F104: Continente | G104: I17R01 | H104: 3.993517768 | I104: 3.998156144 | J104: 3.640379198 | K104: 3.455810424 | L104: 3.247498191 | M104: 2.817456963 | N104: 3.355146406 | O104: 2.645154003 | P104: 2.478002885 | Q104: 2.146586734 | R104: 2.11607313 | S104: 2.042816611 | T104: 2.079610729 | U104: 2.417200288 | V104: 1.633154068 | W104: 2.344601963 | X104: 2.203830915 | Y104: 1.870086253 | Z104: 2.004801308 | AA104: 2.005117355 | AB104: 2.325161135 | AC104: 3.875968992 | AD104: 3.695700028 | AE104: 3.444027722 | AF104: 3.177612113 | AG104: 3.143398102 | AH104: 2.941698893 | AI104: 2.832566967 | AJ104: 2.425222312 | AK104: 2.248386318 | AL104: 2.102926767 | AM104: 2.079845787 | AN104: 2.177013221 | AO104: 2.041352059 | AP104: 2.126475686 | AQ104: 2.050238157 | AR104: 2.151698668 | AS104: 2.031177753 | AT104: 1.960455061 | AU104: 2.114513476
A105: I17 | B105: Taxa de Mortalidade Neonatal | C105: RA | D105: R02 | E105: REGIÃO ALENTEJO | F105: Região Alentejo | G105: I17R02 | H105: 2.959253358 | I105: 4.06591055 | J105: 2.793896411 | K105: 2.559726962 | L105: 2.511511093 | M105: 2.713090662 | N105: 3.521901827 | O105: 3.262997607 | P105: 3.928415539 | Q105: 2.455357143 | R105: 2.437835202 | S105: 2.250562641 | T105: 1.910219675 | U105: 3.714710253 | V105: 1.206272618 | W105: 1.711491443 | X105: 3.556007112 | Y105: 1.415628539 | Z105: 1.766264351 | AA105: 1.937984496 | AB105: 0.8198961465 | AC105: 3.280122458 | AD105: 3.139717425 | AE105: 2.620582194 | AF105: 2.591979264 | AG105: 2.910360885 | AH105: 3.170390032 | AI105: 3.570908031 | AJ105: 3.221319277 | AK105: 2.962625342 | AL105: 2.384548128 | AM105: 2.197086826 | AN105: 2.617586912 | AO105: 2.263357853 | AP105: 2.199951112 | AQ105: 2.136049951 | AR105: 2.249329527 | AS105: 2.300754648 | AT105: 1.707617873 | AU105: 1.499812523
A106: I17 | B106: Taxa de Mortalidade Neonatal | C106: A101 | D106: R03 | E106: ALENTEJO CENTRAL | F106: ACeS Alentejo Central | G106: I17R03 | H106: 2.69179004 | I106: 5.607476636 | J106: 1.294498382 | K106: 2.551020408 | L106: 2.512562814 | M106: 2.699055331 | N106: 2.610966057 | O106: 3.182686187 | P106: 3.848620911 | Q106: 2.735978112 | R106: 0.683994528 | S106: 2.949852507 | T106: 0.7082152975 | U106: 2.295332823 | V106: 1.515151515 | W106: 1.46627566 | X106: 3.87897595 | Y106: 0.8680555556 | Z106: 0.9074410163 | AA106: 0.8445945946 | AB106: 0.8143322476 | AC106: 3.235547886 | AD106: 3.179313268 | AE106: 2.125398512 | AF106: 2.585092632 | AG106: 2.605297438 | AH106: 2.835332606 | AI106: 3.217503218 | AJ106: 3.266550523 | AK106: 2.453714031 | AL106: 2.102803738 | AM106: 1.418439716 | AN106: 1.963190184 | AO106: 1.485516217 | AP106: 1.753946379 | AQ106: 2.265290712 | AR106: 2.102496715 | AS106: 1.975726785 | AT106: 0.872600349 | AU106: 0.8537279454
A107: I17 | B107: Taxa de Mortalidade Neonatal | C107: A102 | D107: R04 | E107: ALTO ALENTEJO | F107: ULS Norte Alentejano | G107: I17R04 | H107: 1.893939394 | I107: 2.707581227 | J107: 3.720930233 | K107: 4.332755633 | L107: 2.615518745 | M107: 1.93236715 | N107: 2.851711027 | O107: 1.97044335 | P107: 4.085801839 | Q107: 3.003003003 | R107: 4.700352526 | S107: 3.740648379 | T107: 3.348214286 | U107: 3.412969283 | V107: 0 | W107: 1.140250855 | X107: 2.43902439 | Y107: 0 | Z107: 4.195804196 | AA107: 2.567394095 | AB107: 0 | AC107: 2.778635381 | AD107: 3.596044351 | AE107: 3.55450237 | AF107: 2.997601918 | AG107: 2.473716759 | AH107: 2.25660864 | AI107: 2.954694682 | AJ107: 3.007016372 | AK107: 3.888299753 | AL107: 3.770739065 | AM107: 3.923107101 | AN107: 3.492433062 | AO107: 2.231312756 | AP107: 1.498127341 | AQ107: 1.148985063 | AR107: 1.204819277 | AS107: 2.147766323 | AT107: 2.186270223 | AU107: 2.247191011
A108: I17 | B108: Taxa de Mortalidade Neonatal | C108: A103 | D108: R05 | E108: BAIXO ALENTEJO | F108: ULS Baixo Alentejo | G108: I17R05 | H108: 3.610108303 | I108: 4.237288136 | J108: 3.187250996 | K108: 1.76056338 | L108: 4.045307443 | M108: 0.8920606601 | N108: 4.295532646 | O108: 2.546689304 | P108: 5.076142132 | Q108: 1.669449082 | R108: 2.88184438 | S108: 0.9165902841 | T108: 1.877934272 | U108: 5.644402634 | V108: 2.759889604 | W108: 2.952755906 | X108: 2.835538752 | Y108: 3.25732899 | Z108: 0 | AA108: 4.219409283 | AB108: 0.9803921569 | AC108: 3.669206887 | AD108: 3.080369644 | AE108: 3.032809484 | AF108: 2.290294875 | AG108: 3.124112468 | AH108: 2.598902686 | AI108: 3.972758229 | AJ108: 3.091624508 | AK108: 3.215434084 | AL108: 1.801801802 | AM108: 1.876759462 | AN108: 2.795899348 | AO108: 3.421461897 | AP108: 3.790271636 | AQ108: 2.847200253 | AR108: 3.005008347 | AS108: 2.057613169 | AT108: 2.494654312 | AU108: 1.721170396
A109: I17 | B109: Taxa de Mortalidade Neonatal | C109: A104 | D109: R06 | E109: ALENTEJO LITORAL | F109: ULS Litoral Alentejano | G109: I17R06 | H109: 4.037685061 | I109: 2.564102564 | J109: 3.856041131 | K109: 1.204819277 | L109: 0 | M109: 6.369426752 | N109: 5.031446541 | O109: 6.00240096 | P109: 2.320185615 | Q109: 2.436053593 | R109: 2.673796791 | S109: 1.333333333 | T109: 2.45398773 | U109: 3.802281369 | V109: 0 | W109: 1.200480192 | X109: 5.194805195 | Y109: 1.501501502 | Z109: 3.110419907 | AA109: 0 | AB109: 1.470588235 | AC109: 3.476749239 | AD109: 2.512562814 | AE109: 1.65906263 | AF109: 2.481389578 | AG109: 3.776751993 | AH109: 5.801906341 | AI109: 4.417670683 | AJ109: 3.577106518 | AK109: 2.468120115 | AL109: 2.156101768 | AM109: 2.161694769 | AN109: 2.548853016 | AO109: 2.059308072 | AP109: 1.635322976 | AQ109: 2.060156572 | AR109: 2.644336712 | AS109: 3.367003367 | AT109: 1.492537313 | AU109: 1.482213439
A110: I18 | B110: Óbitos Neonatais Precoces | C110: CT | D110: R01 | E110: CONTINENTE | F110: Continente | G110: I18R01 | H110: 317 | I110: 291 | J110: 293 | K110: 280 | L110: 277 | M110: 219 | N110: 274 | O110: 216 | P110: 172 | Q110: 160 | R110: 154 | S110: 152 | T110: 146 | U110: 151 | V110: 108 | W110: 136 | X110: 128 | Y110: 96 | Z110: 113 | AA110: 108 | AB110: 120 | AC110: 901 | AD110: 864 | AE110: 850 | AF110: 776 | AG110: 770 | AH110: 709 | AI110: 662 | AJ110: 548 | AK110: 486 | AL110: 466 | AM110: 452 | AN110: 449 | AO110: 405 | AP110: 395 | AQ110: 372 | AV110: 1458 | AW110: 1041 | AX110: 711 | AY110: =W110+X110+Y110+Z110+AA110 -> 581 | AZ110: =X110+Y110+Z110+AA110+AB110 -> 565
A111: I18 | B111: Óbitos Neonatais Precoces | C111: RA | D111: R02 | E111: REGIÃO ALENTEJO | F111: Região Alentejo | G111: I18R02 | H111: 8 | I111: 8 | J111: 9 | K111: 8 | L111: 9 | M111: 9 | N111: 10 | O111: 12 | P111: 15 | Q111: 9 | R111: 8 | S111: 7 | T111: 8 | U111: 12 | V111: 4 | W111: 6 | X111: 12 | Y111: 4 | Z111: 4 | AA111: 6 | AB111: 2 | AC111: 25 | AD111: 25 | AE111: 26 | AF111: 26 | AG111: 28 | AH111: 31 | AI111: 37 | AJ111: 36 | AK111: 32 | AL111: 24 | AM111: 23 | AN111: 27 | AO111: 24 | AP111: 22 | AQ111: 22 | AV111: 42 | AW111: 55 | AX111: 39 | AY111: =W111+X111+Y111+Z111+AA111 -> 32 | AZ111: =X111+Y111+Z111+AA111+AB111 -> 28
A112: I18 | B112: Óbitos Neonatais Precoces | C112: A101 | D112: R03 | E112: ALENTEJO CENTRAL | F112: ACeS Alentejo Central | G112: I18R03 | H112: 2 | I112: 5 | J112: 2 | K112: 3 | L112: 2 | M112: 2 | N112: 2 | O112: 4 | P112: 6 | Q112: 3 | R112: 1 | S112: 3 | T112: 1 | U112: 2 | V112: 2 | W112: 1 | X112: 4 | Y112: 1 | Z112: 1 | AA112: 1 | AB112: 0 | AC112: 9 | AD112: 10 | AE112: 7 | AF112: 7 | AG112: 6 | AH112: 8 | AI112: 12 | AJ112: 13 | AK112: 10 | AL112: 7 | AM112: 5 | AN112: 6 | AO112: 5 | AP112: 5 | AQ112: 7 | AV112: 14 | AW112: 17 | AX112: 9 | AY112: 8 | AZ112: 7
A113: I18 | B113: Óbitos Neonatais Precoces | C113: A102 | D113: R04 | E113: ALTO ALENTEJO | F113: ULS Norte Alentejano | G113: I18R04 | H113: 1 | I113: 0 | J113: 3 | K113: 2 | L113: 3 | M113: 2 | N113: 2 | O113: 2 | P113: 2 | Q113: 3 | R113: 2 | S113: 3 | T113: 3 | U113: 2 | V113: 0 | W113: 1 | X113: 2 | Y113: 0 | Z113: 2 | AA113: 2 | AB113: 0 | AC113: 4 | AD113: 5 | AE113: 8 | AF113: 7 | AG113: 7 | AH113: 6 | AI113: 6 | AJ113: 7 | AK113: 7 | AL113: 8 | AM113: 8 | AN113: 8 | AO113: 5 | AP113: 3 | AQ113: 3 | AV113: 9 | AW113: 11 | AX113: 10 | AY113: 7 | AZ113: 6
A114: I18 | B114: Óbitos Neonatais Precoces | C114: A103 | D114: R05 | E114: BAIXO ALENTEJO | F114: ULS Baixo Alentejo | G114: I18R05 | H114: 3 | I114: 2 | J114: 2 | K114: 2 | L114: 4 | M114: 1 | N114: 3 | O114: 3 | P114: 5 | Q114: 1 | R114: 3 | S114: 0 | T114: 2 | U114: 5 | V114: 2 | W114: 3 | X114: 2 | Y114: 2 | Z114: 0 | AA114: 3 | AB114: 1 | AC114: 7 | AD114: 6 | AE114: 8 | AF114: 7 | AG114: 8 | AH114: 7 | AI114: 11 | AJ114: 9 | AK114: 9 | AL114: 4 | AM114: 5 | AN114: 7 | AO114: 9 | AP114: 10 | AQ114: 7 | AV114: 13 | AW114: 13 | AX114: 12 | AY114: 10 | AZ114: 8
A115: I18 | B115: Óbitos Neonatais Precoces | C115: A104 | D115: R06 | E115: ALENTEJO LITORAL | F115: ULS Litoral Alentejano | G115: I18R06 | H115: 2 | I115: 1 | J115: 2 | K115: 1 | L115: 0 | M115: 4 | N115: 3 | O115: 3 | P115: 2 | Q115: 2 | R115: 2 | S115: 1 | T115: 2 | U115: 3 | V115: 0 | W115: 1 | X115: 4 | Y115: 1 | Z115: 1 | AA115: 0 | AB115: 1 | AC115: 5 | AD115: 4 | AE115: 3 | AF115: 5 | AG115: 7 | AH115: 10 | AI115: 8 | AJ115: 7 | AK115: 6 | AL115: 5 | AM115: 5 | AN115: 6 | AO115: 5 | AP115: 4 | AQ115: 5 | AV115: 6 | AW115: 14 | AX115: 8 | AY115: 7 | AZ115: 7
A116: I19 | B116: Taxa de Mortalidade Neonatal Precoce | C116: CT | D116: R01 | E116: CONTINENTE | F116: Continente | G116: I19R01 | H116: 3.057838484 | I116: 2.737561031 | J116: 2.741982275 | K116: 2.559859573 | L116: 2.444448367 | M116: 2.056743583 | N116: 2.532534753 | O116: 2.033285639 | P116: 1.664908188 | Q116: 1.547089538 | R116: 1.544432521 | S116: 1.568222853 | T116: 1.473898866 | U116: 1.600865103 | V116: 1.123443563 | W116: 1.483097056 | X116: 1.500480623 | Y116: 1.221280818 | Z116: 1.442946164 | AA116: 1.328544014 | AB116: 1.445696042 | AC116: 2.843850213 | AD116: 2.678762437 | AE116: 2.57922781 | AF116: 2.357387189 | AG116: 2.347639707 | AH116: 2.209390377 | AI116: 2.083510369 | AJ116: 1.7510169 | AK116: 1.585944485 | AL116: 1.55303308 | AM116: 1.528602107 | AN116: 1.546643886 | AO116: 1.398896081 | AP116: 1.399929826 | AQ116: 1.361943919 | AR116: 1.408384583 | AS116: 1.391274192 | AT116: 1.330758574 | AU116: 1.405553792
A117: I19 | B117: Taxa de Mortalidade Neonatal Precoce | C117: RA | D117: R02 | E117: REGIÃO ALENTEJO | F117: Região Alentejo | G117: I19R02 | H117: 1.821078989 | I117: 1.711962337 | J117: 1.934235977 | K117: 1.706484642 | L117: 1.883633319 | M117: 2.034817997 | N117: 2.201188642 | O117: 2.610398086 | P117: 3.273679616 | Q117: 2.008928571 | R117: 1.950268162 | S117: 1.750437609 | T117: 1.910219675 | U117: 2.971768202 | V117: 0.9650180941 | W117: 1.466992665 | X117: 3.048006096 | Y117: 1.132502831 | Z117: 1.177509567 | AA117: 1.661129568 | AB117: 0.546597431 | AC117: 1.822290254 | AD117: 1.783930355 | AE117: 1.841490191 | AF117: 1.871985024 | AG117: 2.037252619 | AH117: 2.285630023 | AI117: 2.696399942 | AJ117: 2.635624863 | AK117: 2.430872075 | AL117: 1.907638503 | AM117: 1.871592481 | AN117: 2.208588957 | AO117: 1.940021017 | AP117: 1.792552758 | AQ117: 1.807426881 | AR117: 1.90327883 | AS117: 1.840603718 | AT117: 1.328147235 | AU117: 1.124859393
A118: I19 | B118: Taxa de Mortalidade Neonatal Precoce | C118: A101 | D118: R03 | E118: ALENTEJO CENTRAL | F118: ACeS Alentejo Central | G118: I19R03 | H118: 1.34589502 | I118: 3.115264798 | J118: 1.294498382 | K118: 1.913265306 | L118: 1.256281407 | M118: 1.349527665 | N118: 1.305483029 | O118: 2.54614895 | P118: 3.848620911 | Q118: 2.051983584 | R118: 0.683994528 | S118: 2.212389381 | T118: 0.7082152975 | U118: 1.530221882 | V118: 1.515151515 | W118: 0.7331378299 | X118: 3.10318076 | Y118: 0.8680555556 | Z118: 0.9074410163 | AA118: 0.8445945946 | AB118: 0 | AC118: 1.941328732 | AD118: 2.119542179 | AE118: 1.487778959 | AF118: 1.507970702 | AG118: 1.302648719 | AH118: 1.744820065 | AI118: 2.574002574 | AJ118: 2.831010453 | AK118: 2.230649119 | AL118: 1.635514019 | AM118: 1.182033097 | AN118: 1.472392638 | AO118: 1.237930181 | AP118: 1.252818842 | AQ118: 1.761892776 | AR118: 1.576872536 | AS118: 1.693480102 | AT118: 0.872600349 | AU118: 0.5691519636
A119: I19 | B119: Taxa de Mortalidade Neonatal Precoce | C119: A102 | D119: R04 | E119: ALTO ALENTEJO | F119: ULS Norte Alentejano | G119: I19R04 | H119: 0.946969697 | I119: 0 | J119: 2.790697674 | K119: 1.733102253 | L119: 2.615518745 | M119: 1.93236715 | N119: 1.901140684 | O119: 1.97044335 | P119: 2.042900919 | Q119: 3.003003003 | R119: 2.350176263 | S119: 3.740648379 | T119: 3.348214286 | U119: 2.275312856 | V119: 0 | W119: 1.140250855 | X119: 2.43902439 | Y119: 0 | Z119: 2.797202797 | AA119: 2.567394095 | AB119: 0 | AC119: 1.234949058 | AD119: 1.498351813 | AE119: 2.369668246 | AF119: 2.098321343 | AG119: 2.164502165 | AH119: 1.934235977 | AI119: 1.969796454 | AJ119: 2.338790511 | AK119: 2.47437257 | AL119: 3.016591252 | AM119: 3.138485681 | AN119: 3.104384944 | AO119: 1.859427296 | AP119: 1.123595506 | AQ119: 1.148985063 | AR119: 1.204819277 | AS119: 1.718213058 | AT119: 1.749016178 | AU119: 1.797752809
A120: I19 | B120: Taxa de Mortalidade Neonatal Precoce | C120: A103 | D120: R05 | E120: BAIXO ALENTEJO | F120: ULS Baixo Alentejo | G120: I19R05 | H120: 2.707581227 | I120: 1.694915254 | J120: 1.593625498 | K120: 1.76056338 | L120: 3.236245955 | M120: 0.8920606601 | N120: 2.577319588 | O120: 2.546689304 | P120: 4.230118443 | Q120: 0.8347245409 | R120: 2.88184438 | S120: 0 | T120: 1.877934272 | U120: 4.703668862 | V120: 1.839926403 | W120: 2.952755906 | X120: 1.890359168 | Y120: 2.17155266 | Z120: 0 | AA120: 3.164556962 | AB120: 0.9803921569 | AC120: 1.975726785 | AD120: 1.680201624 | AE120: 2.205679625 | AF120: 2.004008016 | AG120: 2.272081795 | AH120: 2.021368755 | AI120: 3.121452894 | AJ120: 2.529510961 | AK120: 2.630809705 | AL120: 1.201201201 | AM120: 1.563966218 | AN120: 2.174588381 | AO120: 2.799377916 | AP120: 3.158559697 | AQ120: 2.214489086 | AR120: 2.337228715 | AS120: 1.371742112 | AT120: 1.781895937 | AU120: 1.376936317
A121: I19 | B121: Taxa de Mortalidade Neonatal Precoce | C121: A104 | D121: R06 | E121: ALENTEJO LITORAL | F121: ULS Litoral Alentejano | G121: I19R06 | H121: 2.69179004 | I121: 1.282051282 | J121: 2.570694087 | K121: 1.204819277 | L121: 0 | M121: 5.095541401 | N121: 3.773584906 | O121: 3.601440576 | P121: 2.320185615 | Q121: 2.436053593 | R121: 2.673796791 | S121: 1.333333333 | T121: 2.45398773 | U121: 3.802281369 | V121: 0 | W121: 1.200480192 | X121: 5.194805195 | Y121: 1.501501502 | Z121: 1.555209953 | AA121: 0 | AB121: 1.470588235 | AC121: 2.172968275 | AD121: 1.675041876 | AE121: 1.244296972 | AF121: 2.067824648 | AG121: 2.937473773 | AH121: 4.144218815 | AI121: 3.212851406 | AJ121: 2.782193959 | AK121: 2.468120115 | AL121: 2.156101768 | AM121: 2.161694769 | AN121: 2.548853016 | AO121: 2.059308072 | AP121: 1.635322976 | AQ121: 2.060156572 | AR121: 2.644336712 | AS121: 2.886002886 | AT121: 0.9950248756 | AU121: 0.9881422925
A122: I20 | B122: Óbitos Pós-Neonatais | C122: CT | D122: R01 | E122: CONTINENTE | F122: Continente | G122: I20R01 | H122: 269 | I122: 239 | J122: 235 | K122: 214 | L122: 229 | M122: 214 | N122: 171 | O122: 151 | P122: 132 | Q122: 131 | R122: 115 | S122: 131 | T122: 118 | U122: 110 | V122: 79 | W122: 70 | X122: 95 | Y122: 79 | Z122: 58 | AA122: 70 | AB122: 76 | AC122: 743 | AD122: 688 | AE122: 678 | AF122: 657 | AG122: 614 | AH122: 536 | AI122: 454 | AJ122: 414 | AK122: 378 | AL122: 377 | AM122: 364 | AN122: 359 | AO122: 307 | AP122: 259 | AQ122: 244 | AV122: 1186 | AW122: 799 | AX122: 553 | AY122: =W122+X122+Y122+Z122+AA122 -> 372 | AZ122: =X122+Y122+Z122+AA122+AB122 -> 378
A123: I20 | B123: Óbitos Pós-Neonatais | C123: RA | D123: R02 | E123: REGIÃO ALENTEJO | F123: Região Alentejo | G123: I20R02 | H123: 10 | I123: 5 | J123: 8 | K123: 7 | L123: 13 | M123: 4 | N123: 6 | O123: 10 | P123: 2 | Q123: 5 | R123: 4 | S123: 7 | T123: 9 | U123: 9 | V123: 4 | W123: 1 | X123: 1 | Y123: 5 | Z123: 2 | AA123: 7 | AB123: 2 | AC123: 23 | AD123: 20 | AE123: 28 | AF123: 24 | AG123: 23 | AH123: 20 | AI123: 18 | AJ123: 17 | AK123: 11 | AL123: 16 | AM123: 20 | AN123: 25 | AO123: 22 | AP123: 14 | AQ123: 6 | AV123: 43 | AW123: 27 | AX123: 33 | AY123: =W123+X123+Y123+Z123+AA123 -> 16 | AZ123: =X123+Y123+Z123+AA123+AB123 -> 17
A124: I20 | B124: Óbitos Pós-Neonatais | C124: A101 | D124: R03 | E124: ALENTEJO CENTRAL | F124: ACeS Alentejo Central | G124: I20R03 | H124: 4 | I124: 4 | J124: 2 | K124: 2 | L124: 2 | M124: 1 | N124: 3 | O124: 3 | P124: 1 | Q124: 0 | R124: 1 | S124: 1 | T124: 0 | U124: 3 | V124: 2 | W124: 0 | X124: 0 | Y124: 2 | Z124: 0 | AA124: 3 | AB124: 0 | AC124: 10 | AD124: 8 | AE124: 6 | AF124: 5 | AG124: 6 | AH124: 7 | AI124: 7 | AJ124: 4 | AK124: 2 | AL124: 2 | AM124: 2 | AN124: 4 | AO124: 5 | AP124: 5 | AQ124: 2 | AV124: 14 | AW124: 8 | AX124: 7 | AY124: 5 | AZ124: 5
A125: I20 | B125: Óbitos Pós-Neonatais | C125: A102 | D125: R04 | E125: ALTO ALENTEJO | F125: ULS Norte Alentejano | G125: I20R04 | H125: 0 | I125: 1 | J125: 2 | K125: 3 | L125: 1 | M125: 0 | N125: 1 | O125: 1 | P125: 0 | Q125: 2 | R125: 1 | S125: 2 | T125: 2 | U125: 1 | V125: 0 | W125: 1 | X125: 1 | Y125: 1 | Z125: 0 | AA125: 0 | AB125: 0 | AC125: 3 | AD125: 6 | AE125: 6 | AF125: 4 | AG125: 2 | AH125: 2 | AI125: 2 | AJ125: 3 | AK125: 3 | AL125: 5 | AM125: 5 | AN125: 5 | AO125: 3 | AP125: 2 | AQ125: 2 | AV125: 7 | AW125: 4 | AX125: 6 | AY125: 3 | AZ125: 2
A126: I20 | B126: Óbitos Pós-Neonatais | C126: A103 | D126: R05 | E126: BAIXO ALENTEJO | F126: ULS Baixo Alentejo | G126: I20R05 | H126: 2 | I126: 0 | J126: 2 | K126: 0 | L126: 6 | M126: 2 | N126: 0 | O126: 2 | P126: 1 | Q126: 1 | R126: 2 | S126: 2 | T126: 6 | U126: 2 | V126: 2 | W126: 0 | X126: 0 | Y126: 2 | Z126: 2 | AA126: 2 | AB126: 2 | AC126: 4 | AD126: 2 | AE126: 8 | AF126: 8 | AG126: 8 | AH126: 4 | AI126: 3 | AJ126: 4 | AK126: 4 | AL126: 5 | AM126: 10 | AN126: 10 | AO126: 10 | AP126: 4 | AQ126: 2 | AV126: 10 | AW126: 6 | AX126: 14 | AY126: 6 | AZ126: 8
A127: I20 | B127: Óbitos Pós-Neonatais | C127: A104 | D127: R06 | E127: ALENTEJO LITORAL | F127: ULS Litoral Alentejano | G127: I20R06 | H127: 4 | I127: 0 | J127: 2 | K127: 2 | L127: 4 | M127: 1 | N127: 2 | O127: 4 | P127: 0 | Q127: 2 | R127: 0 | S127: 2 | T127: 1 | U127: 3 | V127: 0 | W127: 0 | X127: 0 | Y127: 0 | Z127: 0 | AA127: 2 | AB127: 0 | AC127: 6 | AD127: 4 | AE127: 8 | AF127: 7 | AG127: 7 | AH127: 7 | AI127: 6 | AJ127: 6 | AK127: 2 | AL127: 4 | AM127: 3 | AN127: 6 | AO127: 4 | AP127: 3 | AQ127: 0 | AV127: 12 | AW127: 9 | AX127: 6 | AY127: 2 | AZ127: 2
A128: I21 | B128: Taxa de Mortalidade Pós-Neonatal | C128: CT | D128: R01 | E128: CONTINENTE | F128: Continente | G128: I21R01 | H128: 2.594821932 | I128: 2.248374867 | J128: 2.199200801 | K128: 1.956464103 | L128: 2.020861646 | M128: 2.009785967 | N128: 1.580523514 | O128: 1.421417275 | P128: 1.277720237 | Q128: 1.266679559 | R128: 1.15331 | S128: 1.351560485 | T128: 1.19123333 | U128: 1.166193122 | V128: 0.8217781615 | W128: 0.7633587786 | X128: 1.113637962 | Y128: 1.00501234 | Z128: 0.7406272347 | AA128: 0.8610933425 | AB128: 0.9156074935 | AC128: 2.34515062 | AD128: 2.133088607 | AE128: 2.057313476 | AF128: 1.995880648 | AG128: 1.872014 | AH128: 1.67028666 | AI128: 1.42887267 | AJ128: 1.322848534 | AK128: 1.233512378 | AL128: 1.256423758 | AM128: 1.230998157 | AN128: 1.236626181 | AO128: 1.06039777 | AP128: 0.9179286709 | AQ128: 0.8933180542 | AR128: 0.9545717728 | AS128: 0.9577911355 | AT128: 0.8689811511 | AU128: 0.8408591602
A129: I21 | B129: Taxa de Mortalidade Pós-Neonatal | C129: RA | D129: R02 | E129: REGIÃO ALENTEJO | F129: Região Alentejo | G129: I21R02 | H129: 2.276348737 | I129: 1.069976461 | J129: 1.719320868 | K129: 1.493174061 | L129: 2.720803684 | M129: 0.9043635541 | N129: 1.320713185 | O129: 2.175331738 | P129: 0.4364906155 | Q129: 1.116071429 | R129: 0.9751340809 | S129: 1.750437609 | T129: 2.148997135 | U129: 2.228826152 | V129: 0.9650180941 | W129: 0.2444987775 | X129: 0.254000508 | Y129: 1.415628539 | Z129: 0.5887547836 | AA129: 1.937984496 | AB129: 0.546597431 | AC129: 1.676507034 | AD129: 1.427144284 | AE129: 1.983143282 | AF129: 1.727986176 | AG129: 1.673457509 | AH129: 1.474600015 | AI129: 1.311762134 | AJ129: 1.24460063 | AK129: 0.8356122759 | AL129: 1.271759002 | AM129: 1.627471723 | AN129: 2.044989775 | AO129: 1.778352599 | AP129: 1.140715392 | AQ129: 0.492934604 | AR129: 0.6055887187 | AS129: 0.7362414872 | AT129: 1.328147235 | AU129: 1.03112111
A130: I21 | B130: Taxa de Mortalidade Pós-Neonatal | C130: A101 | D130: R03 | E130: ALENTEJO CENTRAL | F130: ACeS Alentejo Central | G130: I21R03 | H130: 2.69179004 | I130: 2.492211838 | J130: 1.294498382 | K130: 1.275510204 | L130: 1.256281407 | M130: 0.6747638327 | N130: 1.958224543 | O130: 1.909611712 | P130: 0.6414368185 | Q130: 0 | R130: 0.683994528 | S130: 0.7374631268 | T130: 0 | U130: 2.295332823 | V130: 1.515151515 | W130: 0 | X130: 0 | Y130: 1.736111111 | Z130: 0 | AA130: 2.533783784 | AB130: 0 | AC130: 2.157031924 | AD130: 1.695633743 | AE130: 1.275239107 | AF130: 1.07712193 | AG130: 1.302648719 | AH130: 1.526717557 | AI130: 1.501501502 | AJ130: 0.8710801394 | AK130: 0.4461298238 | AL130: 0.4672897196 | AM130: 0.4728132388 | AN130: 0.981595092 | AO130: 1.237930181 | AP130: 1.252818842 | AQ130: 0.5033979361 | AR130: 0.5256241787 | AS130: 0.5644933672 | AT130: 1.454333915 | AU130: 0.8537279454
A131: I21 | B131: Taxa de Mortalidade Pós-Neonatal | C131: A102 | D131: R04 | E131: ALTO ALENTEJO | F131: ULS Norte Alentejano | G131: I21R04 | H131: 0 | I131: 0.9025270758 | J131: 1.860465116 | K131: 2.59965338 | L131: 0.8718395815 | M131: 0 | N131: 0.9505703422 | O131: 0.9852216749 | P131: 0 | Q131: 2.002002002 | R131: 1.175088132 | S131: 2.493765586 | T131: 2.232142857 | U131: 1.137656428 | V131: 0 | W131: 1.140250855 | X131: 1.219512195 | Y131: 1.261034048 | Z131: 0 | AA131: 0 | AB131: 0 | AC131: 0.9262117938 | AD131: 1.798022176 | AE131: 1.777251185 | AF131: 1.199040767 | AG131: 0.6184291899 | AH131: 0.6447453256 | AI131: 0.6565988181 | AJ131: 1.002338791 | AK131: 1.060445387 | AL131: 1.885369532 | AM131: 1.96155355 | AN131: 1.94024059 | AO131: 1.115656378 | AP131: 0.7490636704 | AQ131: 0.7659900421 | AR131: 1.204819277 | AS131: 0.8591065292 | AT131: 0.4372540446 | AU131: 0
A132: I21 | B132: Taxa de Mortalidade Pós-Neonatal | C132: A103 | D132: R05 | E132: BAIXO ALENTEJO | F132: ULS Baixo Alentejo | G132: I21R05 | H132: 1.805054152 | I132: 0 | J132: 1.593625498 | K132: 0 | L132: 4.854368932 | M132: 1.78412132 | N132: 0 | O132: 1.697792869 | P132: 0.8460236887 | Q132: 0.8347245409 | R132: 1.921229587 | S132: 1.833180568 | T132: 5.633802817 | U132: 1.881467545 | V132: 1.839926403 | W132: 0 | X132: 0 | Y132: 2.17155266 | Z132: 2.134471718 | AA132: 2.109704641 | AB132: 1.960784314 | AC132: 1.128986734 | AD132: 0.5600672081 | AE132: 2.205679625 | AF132: 2.290294875 | AG132: 2.272081795 | AH132: 1.15506786 | AI132: 0.8513053348 | AJ132: 1.124227094 | AK132: 1.169248758 | AL132: 1.501501502 | AM132: 3.127932437 | AN132: 3.106554831 | AO132: 3.110419907 | AP132: 1.263423879 | AQ132: 0.6327111674 | AR132: 0.6677796327 | AS132: 1.371742112 | AT132: 2.138275125 | AU132: 2.065404475
A133: I21 | B133: Taxa de Mortalidade Pós-Neonatal | C133: A104 | D133: R06 | E133: ALENTEJO LITORAL | F133: ULS Litoral Alentejano | G133: I21R06 | H133: 5.383580081 | I133: 0 | J133: 2.570694087 | K133: 2.409638554 | L133: 4.98132005 | M133: 1.27388535 | N133: 2.51572327 | O133: 4.801920768 | P133: 0 | Q133: 2.436053593 | R133: 0 | S133: 2.666666667 | T133: 1.226993865 | U133: 3.802281369 | V133: 0 | W133: 0 | X133: 0 | Y133: 0 | Z133: 0 | AA133: 2.853067047 | AB133: 0 | AC133: 2.60756193 | AD133: 1.675041876 | AE133: 3.318125259 | AF133: 2.894954508 | AG133: 2.937473773 | AH133: 2.90095317 | AI133: 2.409638554 | AJ133: 2.384737679 | AK133: 0.8227067051 | AL133: 1.724881414 | AM133: 1.297016861 | AN133: 2.548853016 | AO133: 1.647446458 | AP133: 1.226492232 | AQ133: 0 | AR133: 0 | AS133: 0 | AT133: 0.9950248756 | AU133: 0.9881422925
A134: I26 | B134: Nados Vivos + Fetos Mortos 28+s | C134: CT | D134: R01 | E134: CONTINENTE | F134: Continente | G134: I26R01 | H134: 104155 | I134: 106733 | J134: 107273 | K134: 109778 | L134: 113741 | M134: 106833 | N134: 108555 | O134: 106548 | P134: 103576 | Q134: 103703 | R134: 100019 | S134: 97192 | T134: 99305 | U134: 94594 | V134: 96362 | W134: 91909 | X134: 85533 | Y134: 78780 | Z134: 78486 | AA134: 81498 | AB134: 83193 | AC134: 318161 | AD134: 323784 | AE134: 330792 | AF134: 330352 | AG134: 329129 | AH134: 321936 | AI134: 318679 | AJ134: 313827 | AK134: 307298 | AL134: 300914 | AM134: 296516 | AN134: 291091 | AO134: 290261 | AP134: 282866 | AQ134: 273804 | AV134: 541680 | AW134: 529215 | AX134: 487472 | AY134: =W134+X134+Y134+Z134+AA134 -> 416206 | AZ134: =X134+Y134+Z134+AA134+AB134 -> 407490
A135: I26 | B135: Nados Vivos + Fetos Mortos 28+s | C135: RA | D135: R02 | E135: REGIÃO ALENTEJO | F135: Região Alentejo | G135: I26R02 | H135: 4411 | I135: 4696 | J135: 4663 | K135: 4718 | L135: 4808 | M135: 4445 | N135: 4567 | O135: 4615 | P135: 4595 | Q135: 4501 | R135: 4115 | S135: 4020 | T135: 4199 | U135: 4053 | V135: 4162 | W135: 4098 | X135: 3959 | Y135: 3543 | Z135: 3404 | AA135: 3624 | AB135: 3670 | AC135: 13770 | AD135: 14077 | AE135: 14189 | AF135: 13971 | AG135: 13820 | AH135: 13627 | AI135: 13777 | AJ135: 13711 | AK135: 13211 | AL135: 12636 | AM135: 12334 | AN135: 12272 | AO135: 12414 | AP135: 12314 | AQ135: 12220 | AV135: 23296 | AW135: 22723 | AX135: 20549 | AY135: =W135+X135+Y135+Z135+AA135 -> 18628 | AZ135: =X135+Y135+Z135+AA135+AB135 -> 18200
A136: I26 | B136: Nados Vivos + Fetos Mortos 28+s | C136: A101 | D136: R03 | E136: ALENTEJO CENTRAL | F136: ACeS Alentejo Central | G136: I26R03 | H136: 1490 | I136: 1610 | J136: 1549 | K136: 1580 | L136: 1601 | M136: 1491 | N136: 1539 | O136: 1575 | P136: 1566 | Q136: 1469 | R136: 1466 | S136: 1362 | T136: 1415 | U136: 1312 | V136: 1324 | W136: 1369 | X136: 1293 | Y136: 1158 | Z136: 1103 | AA136: 1189 | AB136: 1232 | AC136: 4649 | AD136: 4739 | AE136: 4730 | AF136: 4672 | AG136: 4631 | AH136: 4605 | AI136: 4680 | AJ136: 4610 | AK136: 4501 | AL136: 4297 | AM136: 4243 | AN136: 4089 | AO136: 4051 | AP136: 4005 | AQ136: 3986 | AV136: 7830 | AW136: 7640 | AX136: 6879 | AY136: 6112 | AZ136: 5975
A137: I26 | B137: Nados Vivos + Fetos Mortos 28+s | C137: A102 | D137: R04 | E137: ALTO ALENTEJO | F137: ULS Norte Alentejano | G137: I26R04 | H137: 1061 | I137: 1118 | J137: 1077 | K137: 1164 | L137: 1157 | M137: 1039 | N137: 1057 | O137: 1019 | P137: 980 | Q137: 1001 | R137: 852 | S137: 807 | T137: 902 | U137: 883 | V137: 918 | W137: 877 | X137: 826 | Y137: 795 | Z137: 717 | AA137: 780 | AB137: 733 | AC137: 3256 | AD137: 3359 | AE137: 3398 | AF137: 3360 | AG137: 3253 | AH137: 3115 | AI137: 3056 | AJ137: 3000 | AK137: 2833 | AL137: 2660 | AM137: 2561 | AN137: 2592 | AO137: 2703 | AP137: 2679 | AQ137: 2622 | AV137: 5577 | AW137: 5096 | AX137: 4362 | AY137: 3995 | AZ137: 3851
A138: I26 | B138: Nados Vivos + Fetos Mortos 28+s | C138: A103 | D138: R05 | E138: BAIXO ALENTEJO | F138: ULS Baixo Alentejo | G138: I26R05 | H138: 1114 | I138: 1186 | J138: 1257 | K138: 1139 | L138: 1243 | M138: 1127 | N138: 1171 | O138: 1186 | P138: 1185 | Q138: 1204 | R138: 1045 | S138: 1098 | T138: 1066 | U138: 1065 | V138: 1094 | W138: 1017 | X138: 1067 | Y138: 922 | Z138: 939 | AA138: 952 | AB138: 1023 | AC138: 3557 | AD138: 3582 | AE138: 3639 | AF138: 3509 | AG138: 3541 | AH138: 3484 | AI138: 3542 | AJ138: 3575 | AK138: 3434 | AL138: 3347 | AM138: 3209 | AN138: 3229 | AO138: 3225 | AP138: 3176 | AQ138: 3178 | AV138: 5939 | AW138: 5873 | AX138: 5368 | AY138: 4897 | AZ138: 4903
A139: I26 | B139: Nados Vivos + Fetos Mortos 28+s | C139: A104 | D139: R06 | E139: ALENTEJO LITORAL | F139: ULS Litoral Alentejano | G139: I26R06 | H139: 746 | I139: 782 | J139: 780 | K139: 835 | L139: 807 | M139: 788 | N139: 800 | O139: 835 | P139: 864 | Q139: 827 | R139: 752 | S139: 753 | T139: 816 | U139: 793 | V139: 826 | W139: 835 | X139: 773 | Y139: 668 | Z139: 645 | AA139: 703 | AB139: 682 | AC139: 2308 | AD139: 2397 | AE139: 2422 | AF139: 2430 | AG139: 2395 | AH139: 2423 | AI139: 2499 | AJ139: 2526 | AK139: 2443 | AL139: 2332 | AM139: 2321 | AN139: 2362 | AO139: 2435 | AP139: 2454 | AQ139: 2434 | AV139: 3950 | AW139: 4114 | AX139: 3940 | AY139: 3624 | AZ139: 3471
A140: I22 | B140: Fetos Mortos de 28 ou mais semanas | C140: CT | D140: R01 | E140: CONTINENTE | F140: Continente | G140: I22R01 | H140: 487 | I140: 434 | J140: 416 | K140: 397 | L140: 423 | M140: 354 | N140: 363 | O140: 316 | P140: 267 | Q140: 283 | R140: 306 | S140: 267 | T140: 248 | U140: 270 | V140: 229 | W140: 209 | X140: 227 | Y140: 174 | Z140: 174 | AA140: 206 | AB140: 188 | AC140: 1337 | AD140: 1247 | AE140: 1236 | AF140: 1174 | AG140: 1140 | AH140: 1033 | AI140: 946 | AJ140: 866 | AK140: 856 | AL140: 856 | AM140: 821 | AN140: 785 | AO140: 747 | AP140: 708 | AQ140: 664 | AV140: 2157 | AW140: 1583 | AX140: 1320 | AY140: =W140+X140+Y140+Z140+AA140+AB140 -> 1178 | AZ140: =X140+Y140+Z140+AA140+AB140 -> 969
A141: I22 | B141: Fetos Mortos de 28 ou mais semanas | C141: RA | D141: R02 | E141: REGIÃO ALENTEJO | F141: Região Alentejo | G141: I22R02 | H141: 18 | I141: 23 | J141: 10 | K141: 30 | L141: 30 | M141: 22 | N141: 24 | O141: 18 | P141: 13 | Q141: 21 | R141: 13 | S141: 21 | T141: 11 | U141: 15 | V141: 17 | W141: 8 | X141: 22 | Y141: 11 | Z141: 7 | AA141: 12 | AB141: 11 | AC141: 51 | AD141: 63 | AE141: 70 | AF141: 82 | AG141: 76 | AH141: 64 | AI141: 55 | AJ141: 52 | AK141: 47 | AL141: 55 | AM141: 45 | AN141: 47 | AO141: 43 | AP141: 40 | AQ141: 47 | AV141: 111 | AW141: 98 | AX141: 77 | AY141: =W141+X141+Y141+Z141+AA141+AB141 -> 71 | AZ141: =X141+Y141+Z141+AA141+AB141 -> 63
A142: I22 | B142: Fetos Mortos de 28 ou mais semanas | C142: A101 | D142: R03 | E142: ALENTEJO CENTRAL | F142: ACeS Alentejo Central | G142: I22R03 | H142: 4 | I142: 5 | J142: 4 | K142: 12 | L142: 9 | M142: 9 | N142: 7 | O142: 4 | P142: 7 | Q142: 7 | R142: 4 | S142: 6 | T142: 3 | U142: 5 | V142: 4 | W142: 5 | X142: 4 | Y142: 6 | Z142: 1 | AA142: 5 | AB142: 4 | AC142: 13 | AD142: 21 | AE142: 25 | AF142: 30 | AG142: 25 | AH142: 20 | AI142: 18 | AJ142: 18 | AK142: 18 | AL142: 17 | AM142: 13 | AN142: 14 | AO142: 12 | AP142: 14 | AQ142: 13 | AV142: 34 | AW142: 34 | AX142: 22 | AY142: 25 | AZ142: 20
A143: I22 | B143: Fetos Mortos de 28 ou mais semanas | C143: A102 | D143: R04 | E143: ALTO ALENTEJO | F143: ULS Norte Alentejano | G143: I22R04 | H143: 5 | I143: 10 | J143: 2 | K143: 10 | L143: 10 | M143: 4 | N143: 5 | O143: 4 | P143: 1 | Q143: 2 | R143: 1 | S143: 5 | T143: 6 | U143: 4 | V143: 4 | W143: 0 | X143: 6 | Y143: 2 | Z143: 2 | AA143: 1 | AB143: 2 | AC143: 17 | AD143: 22 | AE143: 22 | AF143: 24 | AG143: 19 | AH143: 13 | AI143: 10 | AJ143: 7 | AK143: 4 | AL143: 8 | AM143: 12 | AN143: 15 | AO143: 14 | AP143: 8 | AQ143: 10 | AV143: 37 | AW143: 16 | AX143: 20 | AY143: 13 | AZ143: 13
A144: I22 | B144: Fetos Mortos de 28 ou mais semanas | C144: A103 | D144: R05 | E144: BAIXO ALENTEJO | F144: ULS Baixo Alentejo | G144: I22R05 | H144: 6 | I144: 6 | J144: 2 | K144: 3 | L144: 7 | M144: 6 | N144: 7 | O144: 8 | P144: 3 | Q144: 6 | R144: 4 | S144: 7 | T144: 1 | U144: 2 | V144: 7 | W144: 1 | X144: 9 | Y144: 1 | Z144: 2 | AA144: 4 | AB144: 3 | AC144: 14 | AD144: 11 | AE144: 12 | AF144: 16 | AG144: 20 | AH144: 21 | AI144: 18 | AJ144: 17 | AK144: 13 | AL144: 17 | AM144: 12 | AN144: 10 | AO144: 10 | AP144: 10 | AQ144: 17 | AV144: 24 | AW144: 30 | AX144: 21 | AY144: 20 | AZ144: 19
A145: I22 | B145: Fetos Mortos de 28 ou mais semanas | C145: A104 | D145: R06 | E145: ALENTEJO LITORAL | F145: ULS Litoral Alentejano | G145: I22R06 | H145: 3 | I145: 2 | J145: 2 | K145: 5 | L145: 4 | M145: 3 | N145: 5 | O145: 2 | P145: 2 | Q145: 6 | R145: 4 | S145: 3 | T145: 1 | U145: 4 | V145: 2 | W145: 2 | X145: 3 | Y145: 2 | Z145: 2 | AA145: 2 | AB145: 2 | AC145: 7 | AD145: 9 | AE145: 11 | AF145: 12 | AG145: 12 | AH145: 10 | AI145: 9 | AJ145: 10 | AK145: 12 | AL145: 13 | AM145: 8 | AN145: 8 | AO145: 7 | AP145: 8 | AQ145: 7 | AV145: 16 | AW145: 18 | AX145: 14 | AY145: 13 | AZ145: 11
A146: I23 | B146: Taxa de Mortalidade Fetal Tardia | C146: CT | D146: R01 | E146: CONTINENTE | F146: Continente | G146: I23R01 | H146: 4.675723681 | I146: 4.066221319 | J146: 3.877956242 | K146: 3.616389441 | L146: 3.718975567 | M146: 3.313582882 | N146: 3.343927042 | O146: 2.965799452 | P146: 2.577817255 | Q146: 2.728947089 | R146: 3.05941871 | S146: 2.747139682 | T146: 2.497356629 | U146: 2.854303656 | V146: 2.376455449 | W146: 2.273988402 | X146: 2.65394643 | Y146: 2.208682407 | Z146: 2.21695589 | AA146: 2.527669391 | AB146: 2.259805512 | AC146: 4.202274949 | AD146: 3.851332987 | AE146: 3.736486977 | AF146: 3.553785054 | AG146: 3.46368749 | AH146: 3.208712291 | AI146: 2.968504357 | AJ146: 2.759482135 | AK146: 2.785569708 | AL146: 2.844666582 | AM146: 2.768821919 | AN146: 2.696751188 | AO146: 2.573545878 | AP146: 2.502960776 | AQ146: 2.428744649 | AR146: 2.380747945 | AS146: 2.368214037 | AT146: 2.32028279 | AU146: 2.335747213
A147: I23 | B147: Taxa de Mortalidade Fetal Tardia | C147: RA | D147: R02 | E147: REGIÃO ALENTEJO | F147: Região Alentejo | G147: I23R02 | H147: 4.080707323 | I147: 4.897785349 | J147: 2.14454214 | K147: 6.358626537 | L147: 6.239600666 | M147: 4.949381327 | N147: 5.255090869 | O147: 3.900325027 | P147: 2.829162133 | Q147: 4.66562986 | R147: 3.159173755 | S147: 5.223880597 | T147: 2.61967135 | U147: 3.70096225 | V147: 4.084574724 | W147: 1.952171791 | X147: 5.556958828 | Y147: 3.10471352 | Z147: 2.05640423 | AA147: 3.311258278 | AB147: 2.997275204 | AC147: 3.703703704 | AD147: 4.47538538 | AE147: 4.933399112 | AF147: 5.869300694 | AG147: 5.499276411 | AH147: 4.696558303 | AI147: 3.992160848 | AJ147: 3.792575305 | AK147: 3.557641359 | AL147: 4.352643242 | AM147: 3.648451435 | AN147: 3.829856584 | AO147: 3.463831158 | AP147: 3.248599042 | AQ147: 3.846468614 | AR147: 3.534482759 | AS147: 3.66770585 | AT147: 2.83795289 | AU147: 2.804262479
A148: I23 | B148: Taxa de Mortalidade Fetal Tardia | C148: A101 | D148: R03 | E148: ALENTEJO CENTRAL | F148: ACeS Alentejo Central | G148: I23R03 | H148: 2.684563758 | I148: 3.105590062 | J148: 2.582311168 | K148: 7.594936709 | L148: 5.621486571 | M148: 6.036217304 | N148: 4.548408057 | O148: 2.53968254 | P148: 4.469987229 | Q148: 4.765146358 | R148: 2.72851296 | S148: 4.405286344 | T148: 2.120141343 | U148: 3.81097561 | V148: 3.021148036 | W148: 3.65230095 | X148: 3.09358082 | Y148: 5.18134715 | Z148: 0.9066183137 | AA148: 4.205214466 | AB148: 3.246753247 | AC148: 2.79630028 | AD148: 4.431314623 | AE148: 5.285412262 | AF148: 6.421232877 | AG148: 5.398402073 | AH148: 4.34310532 | AI148: 3.846153846 | AJ148: 3.904555315 | AK148: 3.999111309 | AL148: 3.956248545 | AM148: 3.063869903 | AN148: 3.423820005 | AO148: 2.962231548 | AP148: 3.495630462 | AQ148: 3.261414952 | AR148: 3.926701571 | AS148: 3.095104108 | AT148: 3.47826087 | AU148: 2.837684449
A149: I23 | B149: Taxa de Mortalidade Fetal Tardia | C149: A102 | D149: R04 | E149: ALTO ALENTEJO | F149: ULS Norte Alentejano | G149: I23R04 | H149: 4.712535344 | I149: 8.944543828 | J149: 1.857010214 | K149: 8.591065292 | L149: 8.643042351 | M149: 3.84985563 | N149: 4.730368969 | O149: 3.925417076 | P149: 1.020408163 | Q149: 1.998001998 | R149: 1.17370892 | S149: 6.195786865 | T149: 6.651884701 | U149: 4.530011325 | V149: 4.357298475 | W149: 0 | X149: 7.263922518 | Y149: 2.51572327 | Z149: 2.789400279 | AA149: 1.282051282 | AB149: 2.72851296 | AC149: 5.221130221 | AD149: 6.549568324 | AE149: 6.474396704 | AF149: 7.142857143 | AG149: 5.840762373 | AH149: 4.173354735 | AI149: 3.272251309 | AJ149: 2.333333333 | AK149: 1.411930815 | AL149: 3.007518797 | AM149: 4.68566966 | AN149: 5.787037037 | AO149: 5.179430263 | AP149: 2.987303958 | AQ149: 3.815337657 | AR149: 3.20256205 | AS149: 4.277159966 | AT149: 2.181500873 | AU149: 2.242152466
A150: I23 | B150: Taxa de Mortalidade Fetal Tardia | C150: A103 | D150: R05 | E150: BAIXO ALENTEJO | F150: ULS Baixo Alentejo | G150: I23R05 | H150: 5.385996409 | I150: 5.059021922 | J150: 1.591089897 | K150: 2.633889377 | L150: 5.631536605 | M150: 5.323868678 | N150: 5.977796755 | O150: 6.745362563 | P150: 2.53164557 | Q150: 4.983388704 | R150: 3.827751196 | S150: 6.375227687 | T150: 0.9380863039 | U150: 1.877934272 | V150: 6.398537477 | W150: 0.9832841691 | X150: 8.434864105 | Y150: 1.084598698 | Z150: 2.129925453 | AA150: 4.201680672 | AB150: 2.93255132 | AC150: 3.93590104 | AD150: 3.070910106 | AE150: 3.297609233 | AF150: 4.559703619 | AG150: 5.648121999 | AH150: 6.027554535 | AI150: 5.081874647 | AJ150: 4.755244755 | AK150: 3.785672685 | AL150: 5.079175381 | AM150: 3.739482705 | AN150: 3.096934035 | AO150: 3.100775194 | AP150: 3.14861461 | AQ150: 5.349276274 | AR150: 3.659347971 | AS150: 4.098360656 | AT150: 2.488446498 | AU150: 3.088538092
A151: I23 | B151: Taxa de Mortalidade Fetal Tardia | C151: A104 | D151: R06 | E151: ALENTEJO LITORAL | F151: ULS Litoral Alentejano | G151: I23R06 | H151: 4.021447721 | I151: 2.557544757 | J151: 2.564102564 | K151: 5.988023952 | L151: 4.956629492 | M151: 3.807106599 | N151: 6.25 | O151: 2.395209581 | P151: 2.314814815 | Q151: 7.255139057 | R151: 5.319148936 | S151: 3.984063745 | T151: 1.225490196 | U151: 5.044136192 | V151: 2.421307506 | W151: 2.395209581 | X151: 3.880983182 | Y151: 2.994011976 | Z151: 3.100775194 | AA151: 2.844950213 | AB151: 2.93255132 | AC151: 3.032928943 | AD151: 3.754693367 | AE151: 4.541701073 | AF151: 4.938271605 | AG151: 5.010438413 | AH151: 4.127115147 | AI151: 3.601440576 | AJ151: 3.958828187 | AK151: 4.911993451 | AL151: 5.574614065 | AM151: 3.446790177 | AN151: 3.386960203 | AO151: 2.874743326 | AP151: 3.2599837 | AQ151: 2.875924404 | AR151: 3.075571178 | AS151: 3.355704698 | AT151: 2.976190476 | AU151: 2.955665025
A152: I24 | B152: Óbitos Perinatais | C152: CT | D152: R01 | E152: CONTINENTE | F152: Continente | G152: I24R01 | H152: 804 | I152: 725 | J152: 709 | K152: 677 | L152: 700 | M152: 573 | N152: 637 | O152: 532 | P152: 439 | Q152: 443 | R152: 460 | S152: 419 | T152: 394 | U152: 421 | V152: 337 | W152: 345 | X152: 355 | Y152: 270 | Z152: 287 | AA152: 314 | AB152: 308 | AC152: 2238 | AD152: 2111 | AE152: 2086 | AF152: 1950 | AG152: 1910 | AH152: 1742 | AI152: 1608 | AJ152: 1414 | AK152: 1342 | AL152: 1322 | AM152: 1273 | AN152: 1234 | AO152: 1152 | AP152: 1103 | AQ152: 1036 | AV152: 3615 | AW152: 2624 | AX152: 2031 | AY152: =W152+X152+Y152+Z152+AA152 -> 1571 | AZ152: =X152+Y152+Z152+AA152+AB152 -> 1534
A153: I24 | B153: Óbitos Perinatais | C153: RA | D153: R02 | E153: REGIÃO ALENTEJO | F153: Região Alentejo | G153: I24R02 | H153: 26 | I153: 31 | J153: 19 | K153: 38 | L153: 39 | M153: 31 | N153: 34 | O153: 30 | P153: 28 | Q153: 30 | R153: 21 | S153: 28 | T153: 19 | U153: 27 | V153: 21 | W153: 14 | X153: 34 | Y153: 15 | Z153: 11 | AA153: 18 | AB153: 13 | AC153: 76 | AD153: 88 | AE153: 96 | AF153: 108 | AG153: 104 | AH153: 95 | AI153: 92 | AJ153: 88 | AK153: 79 | AL153: 79 | AM153: 68 | AN153: 74 | AO153: 67 | AP153: 62 | AQ153: 69 | AV153: 153 | AW153: 153 | AX153: 116 | AY153: =W153+X153+Y153+Z153+AA153 -> 92 | AZ153: =X153+Y153+Z153+AA153+AB153 -> 91
A154: I24 | B154: Óbitos Perinatais | C154: A101 | D154: R03 | E154: ALENTEJO CENTRAL | F154: ACeS Alentejo Central | G154: I24R03 | H154: 6 | I154: 10 | J154: 6 | K154: 15 | L154: 11 | M154: 11 | N154: 9 | O154: 8 | P154: 13 | Q154: 10 | R154: 5 | S154: 9 | T154: 4 | U154: 7 | V154: 6 | W154: 6 | X154: 8 | Y154: 7 | Z154: 2 | AA154: 6 | AB154: 4 | AC154: 22 | AD154: 31 | AE154: 32 | AF154: 37 | AG154: 31 | AH154: 28 | AI154: 30 | AJ154: 31 | AK154: 28 | AL154: 24 | AM154: 18 | AN154: 20 | AO154: 17 | AP154: 19 | AQ154: 20 | AV154: 48 | AW154: 51 | AX154: 31 | AY154: 29 | AZ154: 27
A155: I24 | B155: Óbitos Perinatais | C155: A102 | D155: R04 | E155: ALTO ALENTEJO | F155: ULS Norte Alentejano | G155: I24R04 | H155: 6 | I155: 10 | J155: 5 | K155: 12 | L155: 13 | M155: 6 | N155: 7 | O155: 6 | P155: 3 | Q155: 5 | R155: 3 | S155: 8 | T155: 9 | U155: 6 | V155: 4 | W155: 1 | X155: 8 | Y155: 2 | Z155: 4 | AA155: 3 | AB155: 2 | AC155: 21 | AD155: 27 | AE155: 30 | AF155: 31 | AG155: 26 | AH155: 19 | AI155: 16 | AJ155: 14 | AK155: 11 | AL155: 16 | AM155: 20 | AN155: 23 | AO155: 19 | AP155: 11 | AQ155: 13 | AV155: 46 | AW155: 27 | AX155: 30 | AY155: 18 | AZ155: 19
A156: I24 | B156: Óbitos Perinatais | C156: A103 | D156: R05 | E156: BAIXO ALENTEJO | F156: ULS Baixo Alentejo | G156: I24R05 | H156: 9 | I156: 8 | J156: 4 | K156: 5 | L156: 11 | M156: 7 | N156: 10 | O156: 11 | P156: 8 | Q156: 7 | R156: 7 | S156: 7 | T156: 3 | U156: 7 | V156: 9 | W156: 4 | X156: 11 | Y156: 3 | Z156: 2 | AA156: 7 | AB156: 4 | AC156: 21 | AD156: 17 | AE156: 20 | AF156: 23 | AG156: 28 | AH156: 28 | AI156: 29 | AJ156: 26 | AK156: 22 | AL156: 21 | AM156: 17 | AN156: 17 | AO156: 19 | AP156: 20 | AQ156: 24 | AV156: 37 | AW156: 43 | AX156: 33 | AY156: 27 | AZ156: 27
A157: I24 | B157: Óbitos Perinatais | C157: A104 | D157: R06 | E157: ALENTEJO LITORAL | F157: ULS Litoral Alentejano | G157: I24R06 | H157: 5 | I157: 3 | J157: 4 | K157: 6 | L157: 4 | M157: 7 | N157: 8 | O157: 5 | P157: 4 | Q157: 8 | R157: 6 | S157: 4 | T157: 3 | U157: 7 | V157: 2 | W157: 3 | X157: 7 | Y157: 3 | Z157: 3 | AA157: 2 | AB157: 3 | AC157: 12 | AD157: 13 | AE157: 14 | AF157: 17 | AG157: 19 | AH157: 20 | AI157: 17 | AJ157: 17 | AK157: 18 | AL157: 18 | AM157: 13 | AN157: 14 | AO157: 12 | AP157: 12 | AQ157: 12 | AV157: 22 | AW157: 32 | AX157: 22 | AY157: 18 | AZ157: 18
A158: I25 | B158: Taxa de Mortalidade Perinatal | C158: CT | D158: R01 | E158: CONTINENTE | F158: Continente | G158: I25R01 | H158: 7.719264558 | I158: 6.79265082 | J158: 6.609305231 | K158: 6.166991565 | L158: 6.15433309 | M158: 5.363511275 | N158: 5.867993183 | O158: 4.993054773 | P158: 4.238433614 | Q158: 4.271814702 | R158: 4.599126166 | S158: 4.311054408 | T158: 3.967574644 | U158: 4.450599404 | V158: 3.497229198 | W158: 3.753712912 | X158: 4.150444858 | Y158: 3.427265804 | Z158: 3.656703106 | AA158: 3.852855285 | AB158: 3.702234563 | AC158: 7.034174522 | AD158: 6.519778618 | AE158: 6.306077535 | AF158: 5.902794595 | AG158: 5.803195707 | AH158: 5.411013369 | AI158: 5.045829816 | AJ158: 4.505667135 | AK158: 4.367096434 | AL158: 4.393281801 | AM158: 4.293191598 | AN158: 4.23922416 | AO158: 3.968841835 | AP158: 3.899386633 | AQ158: 3.787380754 | AR158: 3.785779519 | AS158: 3.756193395 | AT158: 3.647953628 | AU158: 3.738017987
A159: I25 | B159: Taxa de Mortalidade Perinatal | C159: RA | D159: R02 | E159: REGIÃO ALENTEJO | F159: Região Alentejo | G159: I25R02 | H159: 5.894355022 | I159: 6.601362862 | J159: 4.074630066 | K159: 8.05426028 | L159: 8.111480865 | M159: 6.974128234 | N159: 7.444712065 | O159: 6.500541712 | P159: 6.093579978 | Q159: 6.665185514 | R159: 5.10328068 | S159: 6.965174129 | T159: 4.524886878 | U159: 6.66173205 | V159: 5.045651129 | W159: 3.416300634 | X159: 8.58802728 | Y159: 4.233700254 | Z159: 3.231492362 | AA159: 4.966887417 | AB159: 3.542234332 | AC159: 5.519244735 | AD159: 6.25133196 | AE159: 6.765804496 | AF159: 7.730298475 | AG159: 7.525325615 | AH159: 6.971453732 | AI159: 6.677796327 | AJ159: 6.418204361 | AK159: 5.979865264 | AL159: 6.251978474 | AM159: 5.513215502 | AN159: 6.029986962 | AO159: 5.39713227 | AP159: 5.035328515 | AQ159: 5.646943285 | AR159: 5.431034483 | AS159: 5.501558775 | AT159: 4.162330905 | AU159: 3.925967471
A160: I25 | B160: Taxa de Mortalidade Perinatal | C160: A101 | D160: R03 | E160: ALENTEJO CENTRAL | F160: ACeS Alentejo Central | G160: I25R03 | H160: 4.026845638 | I160: 6.211180124 | J160: 3.873466753 | K160: 9.493670886 | L160: 6.870705809 | M160: 7.377598927 | N160: 5.847953216 | O160: 5.079365079 | P160: 8.301404853 | Q160: 6.80735194 | R160: 3.410641201 | S160: 6.607929515 | T160: 2.826855124 | U160: 5.335365854 | V160: 4.531722054 | W160: 4.38276114 | X160: 6.18716164 | Y160: 6.044905009 | Z160: 1.813236627 | AA160: 5.046257359 | AB160: 3.246753247 | AC160: 4.732200473 | AD160: 6.541464444 | AE160: 6.765327696 | AF160: 7.919520548 | AG160: 6.694018571 | AH160: 6.080347448 | AI160: 6.41025641 | AJ160: 6.724511931 | AK160: 6.220839813 | AL160: 5.585292064 | AM160: 4.242281405 | AN160: 4.891171436 | AO160: 4.196494693 | AP160: 4.744069913 | AQ160: 5.017561465 | AR160: 5.497382199 | AS160: 4.783342712 | AT160: 4.347826087 | AU160: 3.405221339
A161: I25 | B161: Taxa de Mortalidade Perinatal | C161: A102 | D161: R04 | E161: ALTO ALENTEJO | F161: ULS Norte Alentejano | G161: I25R04 | H161: 5.655042413 | I161: 8.944543828 | J161: 4.642525534 | K161: 10.30927835 | L161: 11.23595506 | M161: 5.774783446 | N161: 6.622516556 | O161: 5.888125613 | P161: 3.06122449 | Q161: 4.995004995 | R161: 3.521126761 | S161: 9.913258984 | T161: 9.977827051 | U161: 6.795016988 | V161: 4.357298475 | W161: 1.140250855 | X161: 9.685230024 | Y161: 2.51572327 | Z161: 5.578800558 | AA161: 3.846153846 | AB161: 2.72851296 | AC161: 6.44963145 | AD161: 8.038106579 | AE161: 8.828722778 | AF161: 9.226190476 | AG161: 7.992622195 | AH161: 6.099518459 | AI161: 5.235602094 | AJ161: 4.666666667 | AK161: 3.882809742 | AL161: 6.015037594 | AM161: 7.809449434 | AN161: 8.87345679 | AO161: 7.029226785 | AP161: 4.107542942 | AQ161: 4.959938955 | AR161: 4.403522818 | AS161: 5.988023952 | AT161: 3.926701571 | AU161: 4.035874439
A162: I25 | B162: Taxa de Mortalidade Perinatal | C162: A103 | D162: R05 | E162: BAIXO ALENTEJO | F162: ULS Baixo Alentejo | G162: I25R05 | H162: 8.078994614 | I162: 6.745362563 | J162: 3.182179793 | K162: 4.389815628 | L162: 8.849557522 | M162: 6.211180124 | N162: 8.53970965 | O162: 9.274873524 | P162: 6.751054852 | Q162: 5.813953488 | R162: 6.698564593 | S162: 6.375227687 | T162: 2.814258912 | U162: 6.572769953 | V162: 8.226691042 | W162: 3.933136676 | X162: 10.30927835 | Y162: 3.253796095 | Z162: 2.129925453 | AA162: 7.352941176 | AB162: 3.910068426 | AC162: 5.90385156 | AD162: 4.745951982 | AE162: 5.496015389 | AF162: 6.554573953 | AG162: 7.907370799 | AH162: 8.03673938 | AI162: 8.187464709 | AJ162: 7.272727273 | AK162: 6.406523005 | AL162: 6.274275471 | AM162: 5.297600499 | AN162: 5.26478786 | AO162: 5.891472868 | AP162: 6.297229219 | AQ162: 7.551919446 | AR162: 5.988023952 | AS162: 5.464480874 | AT162: 4.265908283 | AU162: 4.461221688
A163: I25 | B163: Taxa de Mortalidade Perinatal | C163: A104 | D163: R06 | E163: ALENTEJO LITORAL | F163: ULS Litoral Alentejano | G163: I25R06 | H163: 6.702412869 | I163: 3.836317136 | J163: 5.128205128 | K163: 7.185628743 | L163: 4.956629492 | M163: 8.883248731 | N163: 10 | O163: 5.988023952 | P163: 4.62962963 | Q163: 9.673518742 | R163: 7.978723404 | S163: 5.312084993 | T163: 3.676470588 | U163: 8.827238335 | V163: 2.421307506 | W163: 3.592814371 | X163: 9.055627426 | Y163: 4.491017964 | Z163: 4.651162791 | AA163: 2.844950213 | AB163: 4.398826979 | AC163: 5.199306759 | AD163: 5.423445974 | AE163: 5.780346821 | AF163: 6.995884774 | AG163: 7.933194154 | AH163: 8.254230293 | AI163: 6.802721088 | AJ163: 6.730007918 | AK163: 7.367990176 | AL163: 7.718696398 | AM163: 5.601034037 | AN163: 5.927180356 | AO163: 4.928131417 | AP163: 4.88997555 | AQ163: 4.930156122 | AR163: 5.711775044 | AS163: 6.232023011 | AT163: 3.968253968 | AU163: 3.9408867
H165: 2 | I165: 3 | J165: 4 | K165: 5 | L165: 6 | M165: 7 | N165: 8 | O165: 9 | P165: 10 | Q165: 11 | R165: 12 | S165: 13 | T165: 14 | U165: 15 | V165: 16 | W165: 17 | X165: 18 | Y165: 19 | Z165: 20 | AA165: 21 | AB165: 22 | AC165: 23 | AD165: 24 | AE165: 25 | AF165: 26 | AG165: 27 | AH165: 28 | AI165: 29 | AJ165: 30 | AK165: 31 | AL165: 32 | AM165: 33 | AN165: 34 | AO165: 35 | AP165: 36 | AQ165: 37 | AR165: 38 | AS165: 39 | AT165: 40 | AU165: 41 | AV165: 42 | AW165: 43 | AX165: 44 | AY165: 45 | AZ165: 46

Sheet Id (hidden)
A1: Lista de Variáveis
F3: Consulta de Dados por Indicador ou por Local de Residência | G3: 2 | J3: Cod_IndRes | K3: col_proc | L3: Valor_ConsAnual
J4: =CONCATENATE(J9,J40) -> I20R06 | K4: 22 | L4: =VLOOKUP(Cod_IndRes,BaseAnual,col_proc,FALSE) -> 0
B6: n1 | C6: n2 | D6: n3 | E6: cod_Ind | F6: Indicador | G6: Ind_Abrev | H6: Anual | I6: ContarInd | J6: Id_Indicador
B7: 1 | F7: ----- Selecionar ----- | I7: =COUNTIF(H8:H34,"VERDADEIRO") -> 0 | J7: 20
B8: 2 | C8: 0 | D8: I01 | E8: NB01 | F8: Nados Vivos | G8: Nados Vivos | H8: FALSE | J8: =INDEX(Indicadores,Id_Indicador) -> Óbitos Pós-Neonatais
B9: 3 | C9: 1 | D9: I02 | E9: NT01 | F9: Taxa Bruta de Natalidade | G9: Taxa Bruta de Natalidade | H9: FALSE | J9: =INDEX(cod_I,Id_Indicador) -> I20
B10: 4 | C10: 0 | D10: I03 | E10: NB02 | F10: Nascimentos em Mulheres com Idade Inferior a 20 anos | G10: Nasc. Mulheres < 20 anos | H10: FALSE | J10: =INDEX(NumForm,Id_Indicador) -> 0
B11: 5 | C11: 1 | D11: I04 | E11: NT02 | F11: Proporção de Nascimentos em Mulheres com Idade Inferior a 20 anos | G11: Proporção Nasc. Mulheres < 20 anos | H11: FALSE | J11: =INDEX(Indicadores_Abrev,Id_Indicador) -> Óbitos Pós-Neonatais
B12: 6 | C12: 0 | D12: I05 | E12: NB03 | F12: Nascimentos em Mulheres com Idade igual ou superior a 35 anos | G12: Nasc. Mulheres ≥35 anos | H12: FALSE
B13: 7 | C13: 1 | D13: I06 | E13: NT03 | F13: Proporção de Nascimentos em Mulheres com Idade igual ou superior a 35 anos | G13: Proporção Nasc. Mulheres ≥35 anos | H13: FALSE
B14: 8 | C14: 0 | D14: I07 | E14: NB04 | F14: Nascimentos Pré-termo | G14: Nascimentos Pré-termo | H14: FALSE
B15: 9 | C15: 1 | D15: I08 | E15: NT04 | F15: Proporção de Nascimentos Pré-termo | G15: Proporção de Nascimentos Pré-termo | H15: FALSE
B16: 10 | C16: 0 | D16: I09 | E16: NB05 | F16: Crianças com Baixo Peso à Nascença | G16: Baixo Peso à Nascença | H16: FALSE
B17: 11 | C17: 1 | D17: I10 | E17: NT05 | F17: Proporção de Crianças com Baixo Peso à Nascença | G17: Proporção de Baixo Peso à Nascença | H17: FALSE
B18: 12 | C18: 2 | D18: I11 | E18: NT06 | F18: Índice Sintético de Fecundidade (ISF) | G18: Índice Sintético de Fecundidade (ISF) | H18: FALSE
B19: 13 | C19: 0 | D19: I12 | E19: MB01 | F19: Óbitos | G19: Óbitos | H19: FALSE
B20: 14 | C20: 1 | D20: I13 | E20: MT01 | F20: Taxa Bruta de Mortalidade | G20: Taxa Bruta de Mortalidade | H20: FALSE
B21: 15 | C21: 0 | D21: I14 | E21: MB02 | F21: Óbitos Infantis | G21: Óbitos Infantis | H21: FALSE
B22: 16 | C22: 1 | D22: I15 | E22: MT02 | F22: Taxa de Mortalidade Infantil | G22: Taxa de Mortalidade Infantil | H22: FALSE
B23: 17 | C23: 0 | D23: I16 | E23: MB03 | F23: Óbitos Neonatais | G23: Óbitos Neonatais | H23: FALSE
B24: 18 | C24: 1 | D24: I17 | E24: MT03 | F24: Taxa de Mortalidade Neonatal | G24: Taxa de Mortalidade Neonatal | H24: FALSE
B25: 19 | C25: 0 | D25: I18 | E25: MB04 | F25: Óbitos Neonatais Precoces | G25: Óbitos Neonatais Precoces | H25: FALSE
B26: 20 | C26: 1 | D26: I19 | E26: MT04 | F26: Taxa de Mortalidade Neonatal Precoce | G26: Taxa de Mortalidade Neonatal Precoce | H26: FALSE
B27: 21 | C27: 0 | D27: I20 | E27: MB05 | F27: Óbitos Pós-Neonatais | G27: Óbitos Pós-Neonatais | H27: FALSE
B28: 22 | C28: 1 | D28: I21 | E28: MT05 | F28: Taxa de Mortalidade Pós-Neonatal | G28: Taxa de Mortalidade Pós-Neonatal | H28: FALSE
B29: 23 | C29: 0 | D29: I22 | E29: MB06 | F29: Fetos Mortos de 28 ou mais semanas | G29: Fetos Mortos de 28 ou mais semanas | H29: FALSE
B30: 24 | C30: 1 | D30: I23 | E30: MT06 | F30: Taxa de Mortalidade Fetal Tardia | G30: Taxa de Mortalidade Fetal Tardia | H30: FALSE
B31: 25 | C31: 0 | D31: I24 | E31: MB07 | F31: Óbitos Perinatais | G31: Óbitos Perinatais | H31: FALSE
B32: 26 | C32: 1 | D32: I25 | E32: MT07 | F32: Taxa de Mortalidade Perinatal | G32: Taxa de Mortalidade Perinatal | H32: FALSE
B33: 27 | C33: 0 | D33: I26 | E33: NM01 | F33: Nados Vivos + Fetos Mortos 28+s | G33: Nados Vivos + Fetos Mortos 28+s
B34: 28 | C34: 1 | D34: I27 | E34: PB01 | F34: População Média | G34: População Média
F35: Todos | H35: FALSE
B37: n1 | C37: n2 | D37: n3 | E37: cod_LR | F37: Local_Residencia | G37: Res_Abrev | H37: Anual | I37: ContarRes | J37: Id_Residencia
F38: ----- Selecionar ----- | I38: =COUNTIF(H39:H44,"VERDADEIRO") -> 0 | J38: 6
D39: R01 | E39: CT | F39: Continente | G39: CT | H39: FALSE | J39: =INDEX(Residencia,Id_Residencia) -> ULS Litoral Alentejano
D40: R02 | E40: RA | F40: Região Alentejo | G40: RA | H40: FALSE | J40: =INDEX(cod_R,Id_Residencia) -> R06
D41: R03 | E41: A401 | F41: ACeS Alentejo Central | G41: A401 | H41: FALSE
D42: R04 | E42: A402 | F42: ULS Norte Alentejano | G42: A402 | H42: FALSE
D43: R05 | E43: A403 | F43: ULS Baixo Alentejo | G43: A403 | H43: FALSE
D44: R06 | E44: A404 | F44: ULS Litoral Alentejano | G44: A404 | H44: FALSE
F45: Todos | H45: FALSE
B47: n1 | C47: n2 | D47: n3 | E47: cod_Ano | F47: Ano | G47: Ano_Abrev | I47: ContarAno | J47: Id_Ano | L47: Identificar Colunas (ANO) | N47: Colunas a Formatar
B48: 1 | F48: ----- Selecionar ----- | I48: =COUNTIF(H49:H69,"VERDADEIRO") -> 0 | J48: 21 | L48: 21 | M48: =INDEX(ncol,Id_col) -> W | N48: =ContarAno+1 -> 1 | O48: =INDEX(ncol,N48) -> C
B49: 2 | C49: 1 | D49: A01 | E49: A96 | F49: 1996 | G49: 96 | H49: FALSE | J49: =INDEX(Ano,Id_Ano) -> 2016 | L49: C
B50: 3 | C50: 2 | D50: A02 | E50: A97 | F50: 1997 | G50: 97 | H50: FALSE | J50: =INDEX(cod_A,Id_Ano) -> A21 | L50: D
B51: 4 | C51: 3 | D51: A03 | E51: A98 | F51: 1998 | G51: 98 | H51: FALSE | L51: E
B52: 5 | C52: 4 | D52: A04 | E52: A99 | F52: 1999 | G52: 99 | H52: FALSE | L52: F
B53: 6 | C53: 5 | D53: A05 | E53: A00 | F53: 2000 | G53: 00 | H53: FALSE | L53: G
B54: 7 | C54: 6 | D54: A06 | E54: A01 | F54: 2001 | G54: 01 | H54: FALSE | L54: H
B55: 8 | C55: 7 | D55: A07 | E55: A02 | F55: 2002 | G55: 02 | H55: FALSE | L55: I
B56: 9 | C56: 8 | D56: A08 | E56: A03 | F56: 2003 | G56: 03 | H56: FALSE | L56: J
B57: 10 | C57: 9 | D57: A09 | E57: A04 | F57: 2004 | G57: 04 | H57: FALSE | L57: K
B58: 11 | C58: 10 | D58: A10 | E58: A05 | F58: 2005 | G58: 05 | H58: FALSE | L58: L
B59: 12 | C59: 11 | D59: A11 | E59: A06 | F59: 2006 | G59: 06 | H59: FALSE | L59: M
B60: 13 | C60: 12 | D60: A12 | E60: A07 | F60: 2007 | G60: 07 | H60: FALSE | L60: N
B61: 14 | C61: 13 | D61: A13 | E61: A08 | F61: 2008 | G61: 08 | H61: FALSE | L61: O
B62: 15 | C62: 14 | D62: A14 | E62: A09 | F62: 2009 | G62: 09 | H62: FALSE | L62: P
B63: 16 | C63: 15 | D63: A15 | E63: A10 | F63: 2010 | G63: 10 | H63: FALSE | L63: Q
B64: 17 | C64: 16 | D64: A16 | E64: A11 | F64: 2011 | G64: 11 | H64: FALSE | L64: R
B65: 18 | C65: 17 | D65: A17 | E65: A12 | F65: 2012 | G65: 12 | H65: FALSE | L65: S
B66: 19 | C66: 18 | D66: A18 | E66: A13 | F66: 2013 | G66: 13 | H66: FALSE | L66: T
B67: 20 | C67: 19 | D67: A19 | E67: A14 | F67: 2014 | G67: 14 | H67: FALSE | L67: U
B68: 21 | C68: 20 | D68: A20 | E68: A15 | F68: 2015 | G68: 15 | H68: FALSE | L68: V
B69: 22 | C69: 21 | D69: A21 | E69: A16 | F69: 2016 | G69: 16 | H69: FALSE | L69: W
F70: Todos | H70: FALSE | L70: X
B72: n1 | C72: n2 | D72: n3 | E72: cod_Tri | F72: Triénio | G72: Tri_Abrev
C73: 1 | F73: ----- Selecionar -----
C74: 2 | D74: 1 | E74: T01 | F74: 1996-1998 | G74: 96-98
C75: 3 | D75: 2 | E75: T02 | F75: 1997-1999 | G75: 97-99
C76: 4 | D76: 3 | E76: T03 | F76: 1998-2000 | G76: 98-00
C77: 5 | D77: 4 | E77: T04 | F77: 1999-2001 | G77: 99-01
C78: 6 | D78: 5 | E78: T05 | F78: 2000-2002 | G78: 00-02
C79: 7 | D79: 6 | E79: T06 | F79: 2001-2003 | G79: 01-03
C80: 8 | D80: 7 | E80: T07 | F80: 2002-2004 | G80: 02-04
C81: 9 | D81: 8 | E81: T08 | F81: 2003-2005 | G81: 03-05
C82: 10 | D82: 9 | E82: T09 | F82: 2004-2006 | G82: 04-06
C83: 11 | D83: 10 | E83: T10 | F83: 2005-2007 | G83: 05-07
C84: 12 | D84: 11 | E84: T11 | F84: 2006-2008 | G84: 06-08
C85: 13 | D85: 12 | E85: T12 | F85: 2007-2009 | G85: 07-09
C86: 14 | D86: 13 | E86: T13 | F86: 2008-2010 | G86: 08-10
C87: 15 | D87: 14 | E87: T14 | F87: 2009-2011 | G87: 09-11
C88: 16 | D88: 15 | E88: T15 | F88: 2010-2012 | G88: 10-12
C89: 17 | D89: 16 | E89: T16 | F89: 2011-2013 | G89: 11-13
C90: 18 | D90: 17 | E90: T17 | F90: 2012-2014 | G90: 12-14
C91: 19 | D91: 18 | E91: T18 | F91: 2013-2015 | G91: 13-15
C92: 20 | D92: 19 | E92: T19 | F92: 2014-2016 | G92: 14-16
B94: n1 | C94: n2 | D94: n3 | E94: cod_Qui | F94: Quinquénio | G94: Qui_Abrev
F95: ----- Selecionar -----
D96: 1 | E96: Q01 | F96: 1996-2000 | G96: 96-00
D97: 2 | E97: Q02 | F97: 2001-2005 | G97: 01-05
D98: 3 | E98: Q03 | F98: 2006-2010 | G98: 06-10
D99: 4 | E99: Q04 | F99: 2011-2015 | G99: 11-15
D100: 5 | E100: Q05 | F100: 2012-2016 | G100: 12-16
B102: n1 | C102: n2 | D102: n3 | E102: cod_LR | F102: ACeS_Select
D103: 1 | F103: ----- Selecionar -----
D104: 2 | E104: R03 | F104: ACeS Alentejo Central
D105: 3 | E105: R04 | F105: ULS Norte Alentejano
D106: 4 | E106: R05 | F106: ULS Baixo Alentejo
D107: 5 | E107: R06 | F107: ULS Litoral Alentejano
B109: n1 | C109: n2 | D109: n3 | E109: cod_Ind | F109: Indicador_Select
C110: 1 | F110: ----- Selecionar -----
C111: 2 | D111: A | E111: I02 | F111: Taxa Bruta de Natalidade (Anual) | G111: TAXA BRUTA DE NATALIDADE | H111: (/1000 HABITANTES) | I111: (ANUAL)
C112: 3 | D112: T | E112: I04 | F112: Proporção de Nascimentos em Mulheres com Idade Inferior a 20 anos | G112: PROPORÇÃO DE NASCIMENTOS EM MULHERES COM IDADE INFERIOR A 20 ANOS | H112: (%) | I112: (MÉDIA ANUAL POR TRIÉNIOS)
C113: 4 | D113: T | E113: I06 | F113: Proporção de Nascimentos em Mulheres com Idade igual ou superior a 35 anos | G113: PROPORÇÃO DE NASCIMENTOS EM MULHERES COM IDADE IGUAL OU SUPERIOR A 35 ANOS | H113: (%) | I113: (MÉDIA ANUAL POR TRIÉNIOS)
C114: 5 | D114: T | E114: I08 | F114: Proporção de Nascimentos Pré-termo | G114: PROPORÇÃO DE NASCIMENTOS PRÉ-TERMO | H114: (%) | I114: (MÉDIA ANUAL POR TRIÉNIOS)
C115: 6 | D115: T | E115: I10 | F115: Proporção de Crianças com Baixo Peso à Nascença | G115: PROPORÇÃO DE CRIANÇAS COM BAIXO PESO À NASCENÇA | H115: (%) | I115: (MÉDIA ANUAL POR TRIÉNIOS)
C116: 7 | D116: A | E116: I11 | F116: Índice Sintético de Fecundidade, ISF (Anual) | G116: ÍNDICE SINTÉTICO DE FECUNDIDADE | H116: (ISF) | I116: (ANUAL)
C117: 8 | D117: A | E117: I13 | F117: Taxa Bruta de Mortalidade (Anual) | G117: TAXA BRUTA DE MORTALIDADE | H117: (/1000 HABITANTES) | I117: (ANUAL)
C118: 9 | D118: T | E118: I15 | F118: Taxa de Mortalidade Infantil | G118: TAXA DE MORTALIDADE INFANTIL | H118: (/1000 NADOS VIVOS) | I118: (MÉDIA ANUAL POR TRIÉNIOS)
C119: 10 | D119: T | E119: I17 | F119: Taxa de Mortalidade Neonatal | G119: TAXA DE MORTALIDADE NEONATAL | H119: (/1000 NADOS VIVOS) | I119: (MÉDIA ANUAL POR TRIÉNIOS)
C120: 11 | D120: T | E120: I19 | F120: Taxa de Mortalidade Neonatal Precoce | G120: TAXA DE MORTALIDADE NEONATAL PRECOCE | H120: (/1000 NADOS VIVOS) | I120: (MÉDIA ANUAL POR TRIÉNIOS)
C121: 12 | D121: T | E121: I21 | F121: Taxa de Mortalidade Pós-Neonatal | G121: TAXA DE MORTALIDADE PÓS-NEONATAL | H121: (/1000 NADOS VIVOS) | I121: (MÉDIA ANUAL POR TRIÉNIOS)
C122: 13 | D122: T | E122: I23 | F122: Taxa de Mortalidade Fetal Tardia | G122: TAXA DE MORTALIDADE FETAL TARDIA | H122: (/1000 (NADOS VIVOS + FETOS MORTOS DE 28 OU MAIS SEMANAS)) | I122: (MÉDIA ANUAL POR TRIÉNIOS)
C123: 14 | D123: T | E123: I25 | F123: Taxa de Mortalidade Perinatal | G123: TAXA DE MORTALIDADE PERINATAL | H123: (/1000 (NADOS VIVOS + FETOS MORTOS DE 28 OU MAIS SEMANAS)) | I123: (MÉDIA ANUAL POR TRIÉNIOS)
B125: n1 | C125: n2 | D125: n3 | E125: cod_Ind | F125: RazaoR_Indicador
D126: 1 | F126: ----- Selecionar -----
D127: 2 | E127: I03 | F127: Nascimentos em Mulheres com Idade Inferior a 20 anos | G127: NASCIMENTOS EM MULHERES COM IDADE INFERIOR A 20 ANOS
D128: 3 | E128: I05 | F128: Nascimentos em Mulheres com Idade igual ou superior a 35 anos | G128: NASCIMENTOS EM MULHERES COM IDADE IGUAL OU SUPERIOR A 35 ANOS
D129: 4 | E129: I07 | F129: Nascimentos Pré-termo | G129: NASCIMENTOS PRÉ-TERMO
D130: 5 | E130: I09 | F130: Crianças com Baixo Peso à Nascença | G130: CRIANÇAS COM BAIXO PESO À NASCENÇA
D131: 6 | E131: I14 | F131: Óbitos Infantis | G131: ÓBITOS INFANTIS
D132: 7 | E132: I16 | F132: Óbitos Neonatais | G132: ÓBITOS NEONATAIS
D133: 8 | E133: I18 | F133: Óbitos Neonatais Precoces | G133: ÓBITOS NEONATAIS PRECOCES
D134: 9 | E134: I20 | F134: Óbitos Pós-Neonatais | G134: ÓBITOS PÓS-NEONATAIS
D135: 10 | E135: I22 | F135: Fetos Mortos de 28 ou mais semanas | G135: FETOS MORTOS DE 28 OU MAIS SEMANAS
D136: 11 | E136: I24 | F136: Óbitos Perinatais | G136: ÓBITOS PERINATAIS

Sheet ConsAnual
B2: mort@lidades.infantil
B4: Consulta de Indicadores (Anual)
B7: Selecione Indicador, Local de Residência e Ano. Gere os dados por Indicador ou por Local de Residência.

Sheet DadosAnual
B2: mort@lidades.infantil
B4: Consulta de Indicadores (Anual)

Sheet DefInd
B2: mort@lidades.infantil
B4: Indicadores
B7: INDICADORES DE NATALIDADE
B9: INDICADOR | C9: DEFINIÇÃO
B10: Nados vivos | C10: Número de crianças nascidas vivas.
B11: Taxa bruta de natalidade | C11: Número de nados vivos ocorrido durante um determinado período de tempo, normalmente um ano civil, referido à população média desse período (expressa em número de nados vivos por 1000 habitantes).
B12: Nascimentos em mulheres com idade inferior a 20 anos | C12: Número de nados vivos em mulheres com idade inferior a 20 anos.
B13: Proporção (%) de nascimentos em mulheres com idade inferior a 20 anos | C13: Número de nados vivos em mulheres com idade inferior a 20 anos, durante um determinado período de tempo, referido ao número total de nados vivos.
B14: Nascimentos em mulheres com idade igual ou superior a 35 anos | C14: Número de nados vivos em mulheres com idade igual ou superior a 35 anos.
B15: Proporção (%) de nascimentos em mulheres com idade igual ou superior a 35 anos | C15: Número de nados vivos em mulheres com idade igual ou superior a 35 anos, durante um determinado período de tempo, referido ao número total de nados vivos do mesmo período.
B16: Nascimentos pré-termo | C16: Número de nados vivos com menos de 37 semanas de gestação.
B17: Proporção (%) de nascimentos pré-termo | C17: Número de nados vivos com menos de 37 semanas de gestação, durante um determinado período de tempo, referido ao número total de nados vivos do mesmo período.
B18: Crianças com baixo peso à nascença | C18: Número de nascimentos de crianças com peso inferior a 2500 gramas.
B19: Proporção (%) de crianças com baixo peso à nascença | C19: Número de nascimentos de crianças com peso inferior a 2500 gramas, durante um determinado período de tempo, referido ao número total de nados vivos do mesmo período.
B20: Índice sintético de fecundidade (ISF) | C20: Número médio de crianças vivas nascidas por mulher em idade fértil (dos 15 aos 49 anos de idade), admitindo que as mulheres estariam submetidas às taxas de fecundidade observadas no momento. Valor resultante da soma das taxas de fecundidade por idades, ano a ano ou grupos quinquenais, entre os 15 e os 49 anos, observadas num determinado período (habitualmente um ano civil).
C21: Nota: O número de 2,1 crianças por mulher é considerado o nível mínimo para assegurar a substituição de gerações, nos países mais desenvolvidos.
B23: INDICADORES DE MORTALIDADE
B25: INDICADOR | C25: DEFINIÇÃO
B26: Óbitos | C26: Número de óbitos.
B27: Taxa bruta de mortalidade | C27: Número de óbitos observado durante um determinado período de tempo, normalmente um ano civil, referido à população média desse período (expressa em número de óbitos por 1000 habitantes).
B28: Óbitos infantis | C28: Número de óbitos de crianças com menos de 1 ano de idade.
B29: Taxa de mortalidade infantil | C29: Número de óbitos de crianças com menos de 1 ano de idade observado durante um determinado período de tempo, referido ao número de nados vivos do mesmo período (habitualmente expressa em número de óbitos de crianças com menos de 1 ano por 1000 nados vivos).
B30: Óbitos neonatais | C30: Número de óbitos de crianças com menos de 28 dias de idade.
B31: Taxa de mortalidade neonatal | C31: Número de óbitos de crianças com menos de 28 dias de idade observado durante um determinado período de tempo, referido ao número de nados vivos do mesmo período (expressa em número de óbitos de crianças com menos de 28 dias de idade por 1000 nados vivos).
B32: Óbitos neonatais precoces | C32: Número de óbitos de crianças com menos de 7 dias de idade.
B33: Taxa de mortalidade neonatal precoce | C33: Número de óbitos de crianças com menos de 7 dias de idade observado durante um determinado período de tempo, referido ao número de nados vivos do mesmo período (expressa em número de óbitos de crianças com menos de 7 dias de idade por 1000 nados vivos).
B34: Óbitos pós-neonatais | C34: Número de óbitos de crianças com 28 ou mais dias de idade e menos de um ano de idade.
B35: Taxa de mortalidade pós-neonatal | C35: Número de óbitos de crianças com 28 ou mais dias de idade e menos de um ano de idade observado durante um determinado período de tempo, referido ao número de nados vivos do mesmo período (expressa em número de óbitos de crianças com mais de 27 dias e menos de um ano de idade por 1000 nados vivos).
B36: Fetos mortos de 28 ou mais semanas | C36: Número de fetos mortos de 28 ou mais semanas.
B37: Taxa de mortalidade fetal tardia | C37: Número de fetos mortos de 28 ou mais semanas observado durante um determinado período de tempo, referido ao número de nados vivos e fetos mortos de 28 ou mais semanas do mesmo período (expressa em número de fetos mortos de 28 ou mais semanas por 1000 nados vivos e fetos mortos de 28 ou mais semanas).
B38: Óbitos perinatais | C38: Número de óbitos fetais de 28 ou mais semanas de gestação e óbitos de nados vivos com menos de 7 dias de idade.
B39: Taxa de mortalidade perinatal | C39: Número de óbitos fetais de 28 ou mais semanas de gestação e óbitos de nados vivos com menos de 7 dias de idade observado durante um determinado período de tempo, referido ao número de nados vivos e fetos mortos de 28 ou mais semanas do mesmo período (habitualmente expressa em número de óbitos fetais de 28 ou mais semanas e óbitos de nados vivos com menos de 7 dias de idade por 1000 nados vivos e fetos mortos de 28 ou mais semanas)

Sheet AnACeS
B2: mort@lidades.infantil
B4: Análise por ACeS
B6: Selecione o ACeS:
C8: =AnACeS_base!D1 -> 
C10: TAXA BRUTA DE NATALIDADE (/1000 HABITANTES), 1996-2016 (ANUAL) | K10: TAXA BRUTA DE MORTALIDADE (/1000 HABITANTES), 1996-2016 (ANUAL)
C27: NATALIDADE
C29: Local de residência | D29: 96-98 | E29: 97-99 | F29: 98-00 | G29: 99-01 | H29: 00-02 | I29: 01-03 | J29: 02-04 | K29: 03-05 | L29: 04-06 | M29: 05-07 | N29: 06-08 | O29: 07-09 | P29: 08-10 | Q29: 09-11 | R29: 10-12 | S29: 11-13 | T29: 12-14 | U29: 13-15 | V29: 14-16
C31: PROPORÇÃO (%) DE NASCIMENTOS EM MULHERES COM IDADE INFERIOR A 20 ANOS
C32: Continente | D32: =AnACeS_base!F15 -> 6.600510062 | E32: =AnACeS_base!G15 -> 6.339737767 | F32: =AnACeS_base!H15 -> 6.157071939 | G32: =AnACeS_base!I15 -> 5.999793425 | H32: =AnACeS_base!J15 -> 5.838610441 | I32: =AnACeS_base!K15 -> 5.574270107 | J32: =AnACeS_base!L15 -> 5.323966979 | K32: =AnACeS_base!M15 -> 5.047913318 | L32: =AnACeS_base!N15 -> 4.792097689 | M32: =AnACeS_base!O15 -> 4.59577815 | N32: =AnACeS_base!P15 -> 4.375792624 | O32: =AnACeS_base!Q15 -> 4.281000048 | P32: =AnACeS_base!R15 -> 4.070614893 | Q32: =AnACeS_base!S15 -> 3.892868155 | R32: =AnACeS_base!T15 -> 3.700679874 | S32: =AnACeS_base!U15 -> 3.508833701 | T32: =AnACeS_base!V15 -> 3.269700773 | U32: =AnACeS_base!W15 -> 2.931447043 | V32: =AnACeS_base!X15 -> 2.646233239
C33: Região Alentejo | D33: =AnACeS_base!F16 -> 10.34331948 | E33: =AnACeS_base!G16 -> 9.64035964 | F33: =AnACeS_base!H16 -> 9.023301934 | G33: =AnACeS_base!I16 -> 8.841529268 | H33: =AnACeS_base!J16 -> 8.636495925 | I33: =AnACeS_base!K16 -> 8.331490083 | J33: =AnACeS_base!L16 -> 7.863285235 | K33: =AnACeS_base!M16 -> 7.226004832 | L33: =AnACeS_base!N16 -> 6.700091158 | M33: =AnACeS_base!O16 -> 6.422382958 | N33: =AnACeS_base!P16 -> 5.980958581 | O33: =AnACeS_base!Q16 -> 5.644171779 | P33: =AnACeS_base!R16 -> 5.343141217 | Q33: =AnACeS_base!S16 -> 5.36136234 | R33: =AnACeS_base!T16 -> 5.30726257 | S33: =AnACeS_base!U16 -> 5.138852842 | T33: =AnACeS_base!V16 -> 5.070863243 | U33: =AnACeS_base!W16 -> 4.790816811 | V33: =AnACeS_base!X16 -> 4.508811399
C34: =AnACeS_base!D1 ->  | D34: =AnACeS_base!F17 ->  | E34: =AnACeS_base!G17 ->  | F34: =AnACeS_base!H17 ->  | G34: =AnACeS_base!I17 ->  | H34: =AnACeS_base!J17 ->  | I34: =AnACeS_base!K17 ->  | J34: =AnACeS_base!L17 ->  | K34: =AnACeS_base!M17 ->  | L34: =AnACeS_base!N17 ->  | M34: =AnACeS_base!O17 ->  | N34: =AnACeS_base!P17 ->  | O34: =AnACeS_base!Q17 ->  | P34: =AnACeS_base!R17 ->  | Q34: =AnACeS_base!S17 ->  | R34: =AnACeS_base!T17 ->  | S34: =AnACeS_base!U17 ->  | T34: =AnACeS_base!V17 ->  | U34: =AnACeS_base!W17 ->  | V34: =AnACeS_base!X17 -> 
C36: PROPORÇÃO (%) DE NASCIMENTOS EM MULHERES COM IDADE IGUAL OU SUPERIOR A 35 ANOS
C37: Continente | D37: =AnACeS_base!F18 -> 11.02852057 | E37: =AnACeS_base!G18 -> 11.79864636 | F37: =AnACeS_base!H18 -> 12.54202624 | G37: =AnACeS_base!I18 -> 13.28612483 | H37: =AnACeS_base!J18 -> 13.84558628 | I37: =AnACeS_base!K18 -> 14.45888633 | J37: =AnACeS_base!L18 -> 15.03841276 | K37: =AnACeS_base!M18 -> 15.7112228 | L37: =AnACeS_base!N18 -> 16.51927608 | M37: =AnACeS_base!O18 -> 17.42429797 | N37: =AnACeS_base!P18 -> 18.40139333 | O37: =AnACeS_base!Q18 -> 19.43259871 | P37: =AnACeS_base!R18 -> 20.60556657 | Q37: =AnACeS_base!S18 -> 22.21032971 | R37: =AnACeS_base!T18 -> 23.64986326 | S37: =AnACeS_base!U18 -> 25.16039936 | T37: =AnACeS_base!V18 -> 26.66952903 | U37: =AnACeS_base!W18 -> 28.31787079 | V37: =AnACeS_base!X18 -> 30.03227415
C38: Região Alentejo | D38: =AnACeS_base!F19 -> 9.803921569 | E38: =AnACeS_base!G19 -> 10.46810333 | F38: =AnACeS_base!H19 -> 11.43848714 | G38: =AnACeS_base!I19 -> 12.36950104 | H38: =AnACeS_base!J19 -> 12.64551804 | I38: =AnACeS_base!K19 -> 13.01334513 | J38: =AnACeS_base!L19 -> 13.48928728 | K38: =AnACeS_base!M19 -> 14.27630134 | L38: =AnACeS_base!N19 -> 14.89668794 | M38: =AnACeS_base!O19 -> 15.33264446 | N38: =AnACeS_base!P19 -> 16.42932704 | O38: =AnACeS_base!Q19 -> 17.26789366 | P38: =AnACeS_base!R19 -> 18.46253334 | Q38: =AnACeS_base!S19 -> 19.62030473 | R38: =AnACeS_base!T19 -> 21.03187644 | S38: =AnACeS_base!U19 -> 22.37217752 | T38: =AnACeS_base!V19 -> 23.24682496 | U38: =AnACeS_base!W19 -> 24.50431648 | V38: =AnACeS_base!X19 -> 26.32170979
C39: =AnACeS_base!D1 ->  | D39: =AnACeS_base!F20 ->  | E39: =AnACeS_base!G20 ->  | F39: =AnACeS_base!H20 ->  | G39: =AnACeS_base!I20 ->  | H39: =AnACeS_base!J20 ->  | I39: =AnACeS_base!K20 ->  | J39: =AnACeS_base!L20 ->  | K39: =AnACeS_base!M20 ->  | L39: =AnACeS_base!N20 ->  | M39: =AnACeS_base!O20 ->  | N39: =AnACeS_base!P20 ->  | O39: =AnACeS_base!Q20 ->  | P39: =AnACeS_base!R20 ->  | Q39: =AnACeS_base!S20 ->  | R39: =AnACeS_base!T20 ->  | S39: =AnACeS_base!U20 ->  | T39: =AnACeS_base!V20 ->  | U39: =AnACeS_base!W20 ->  | V39: =AnACeS_base!X20 -> 
C41: PROPORÇÃO (%) DE NASCIMENTOS PRÉ-TERMO
C42: Continente | H42: =AnACeS_base!J21 -> 6.027031394 | I42: =AnACeS_base!K21 -> 6.353633341 | J42: =AnACeS_base!L21 -> 6.734585328 | K42: =AnACeS_base!M21 -> 6.7775218 | L42: =AnACeS_base!N21 -> 7.102159626 | M42: =AnACeS_base!O21 -> 7.836818215 | N42: =AnACeS_base!P21 -> 8.66534774 | O42: =AnACeS_base!Q21 -> 8.960200616 | P42: =AnACeS_base!R21 -> 8.518759024 | Q42: =AnACeS_base!S21 -> 8.020711873 | R42: =AnACeS_base!T21 -> 7.695715368 | S42: =AnACeS_base!U21 -> 7.74337668 | T42: =AnACeS_base!V21 -> 7.851410265 | U42: =AnACeS_base!W21 -> 7.917383821 | V42: =AnACeS_base!X21 -> 7.897481132
C43: Região Alentejo | H43: =AnACeS_base!J22 -> 6.257275902 | I43: =AnACeS_base!K22 -> 6.436629064 | J43: =AnACeS_base!L22 -> 6.711849585 | K43: =AnACeS_base!M22 -> 6.852624643 | L43: =AnACeS_base!N22 -> 7.072318444 | M43: =AnACeS_base!O22 -> 8.115412129 | N43: =AnACeS_base!P22 -> 8.56863862 | O43: =AnACeS_base!Q22 -> 8.801635992 | P43: =AnACeS_base!R22 -> 8.115754587 | Q43: =AnACeS_base!S22 -> 7.463537847 | R43: =AnACeS_base!T22 -> 7.090042721 | S43: =AnACeS_base!U22 -> 6.946967731 | T43: =AnACeS_base!V22 -> 7.086324314 | U43: =AnACeS_base!W22 -> 7.295323024 | V43: =AnACeS_base!X22 -> 7.292838395
C44: =AnACeS_base!D1 ->  | H44: =AnACeS_base!J23 ->  | I44: =AnACeS_base!K23 ->  | J44: =AnACeS_base!L23 ->  | K44: =AnACeS_base!M23 ->  | L44: =AnACeS_base!N23 ->  | M44: =AnACeS_base!O23 ->  | N44: =AnACeS_base!P23 ->  | O44: =AnACeS_base!Q23 ->  | P44: =AnACeS_base!R23 ->  | Q44: =AnACeS_base!S23 ->  | R44: =AnACeS_base!T23 ->  | S44: =AnACeS_base!U23 ->  | T44: =AnACeS_base!V23 ->  | U44: =AnACeS_base!W23 ->  | V44: =AnACeS_base!X23 -> 
C45: PROPORÇÃO (%) DE BAIXO PESO À NASCENÇA
C46: Continente | D46: =AnACeS_base!F24 -> 6.524442593 | E46: =AnACeS_base!G24 -> 6.882311177 | F46: =AnACeS_base!H24 -> 7.071939215 | G46: =AnACeS_base!I24 -> 7.231042172 | H46: =AnACeS_base!J24 -> 7.199326807 | I46: =AnACeS_base!K24 -> 7.305634413 | J46: =AnACeS_base!L24 -> 7.443041799 | K46: =AnACeS_base!M24 -> 7.506047079 | L46: =AnACeS_base!N24 -> 7.562931974 | M46: =AnACeS_base!O24 -> 7.648188017 | N46: =AnACeS_base!P24 -> 7.714029659 | O46: =AnACeS_base!Q24 -> 7.918196661 | P46: =AnACeS_base!R24 -> 8.082165284 | Q46: =AnACeS_base!S24 -> 8.325861134 | R46: =AnACeS_base!T24 -> 8.440391156 | S46: =AnACeS_base!U24 -> 8.555153905 | T46: =AnACeS_base!V24 -> 8.667184094 | U46: =AnACeS_base!W24 -> 8.787624365 | V46: =AnACeS_base!X24 -> 8.761834887
C47: Região Alentejo | D47: =AnACeS_base!F25 -> 6.837233034 | E47: =AnACeS_base!G25 -> 7.321250178 | F47: =AnACeS_base!H25 -> 7.613853672 | G47: =AnACeS_base!I25 -> 7.76873785 | H47: =AnACeS_base!J25 -> 7.530558789 | I47: =AnACeS_base!K25 -> 7.358254074 | J47: =AnACeS_base!L25 -> 7.535344702 | K47: =AnACeS_base!M25 -> 7.701881543 | L47: =AnACeS_base!N25 -> 8.21178973 | M47: =AnACeS_base!O25 -> 8.194897067 | N47: =AnACeS_base!P25 -> 8.503539751 | O47: =AnACeS_base!Q25 -> 8.433537832 | P47: =AnACeS_base!R25 -> 8.85942931 | Q47: =AnACeS_base!S25 -> 8.82424835 | R47: =AnACeS_base!T25 -> 8.708511337 | S47: =AnACeS_base!U25 -> 8.599359806 | T47: =AnACeS_base!V25 -> 8.521995214 | U47: =AnACeS_base!W25 -> 8.822692344 | V47: =AnACeS_base!X25 -> 8.830146232
C48: =AnACeS_base!D1 ->  | D48: =AnACeS_base!F26 ->  | E48: =AnACeS_base!G26 ->  | F48: =AnACeS_base!H26 ->  | G48: =AnACeS_base!I26 ->  | H48: =AnACeS_base!J26 ->  | I48: =AnACeS_base!K26 ->  | J48: =AnACeS_base!L26 ->  | K48: =AnACeS_base!M26 ->  | L48: =AnACeS_base!N26 ->  | M48: =AnACeS_base!O26 ->  | N48: =AnACeS_base!P26 ->  | O48: =AnACeS_base!Q26 ->  | P48: =AnACeS_base!R26 ->  | Q48: =AnACeS_base!S26 ->  | R48: =AnACeS_base!T26 ->  | S48: =AnACeS_base!U26 ->  | T48: =AnACeS_base!V26 ->  | U48: =AnACeS_base!W26 ->  | V48: =AnACeS_base!X26 -> 
C50: Fonte: INE
C52: PROPORÇÃO (%) DE NASCIMENTOS EM MULHERES COM IDADE INFERIOR A 20 ANOS, 1996-2016 (MÉDIA ANUAL POR TRIÉNIOS) | K52: PROPORÇÃO (%) DE NASCIMENTOS EM MULHERES COM IDADE IGUAL OU SUPERIOR A 35 ANOS, 1996-2016 (MÉDIA ANUAL POR TRIÉNIOS)
C68: PROPORÇÃO (%) DE NASCIMENTOS PRÉ-TERMO, 1996-2016 (MÉDIA ANUAL POR TRIÉNIOS) | K68: PROPORÇÃO (%) DE BAIXO PESO À NASCENÇA, 1996-2016 (MÉDIA ANUAL POR TRIÉNIOS)
C87: MORTALIDADE INFANTIL E COMPONENTES
C89: Local de residência | D89: 96-98 | E89: 97-99 | F89: 98-00 | G89: 99-01 | H89: 00-02 | I89: 01-03 | J89: 02-04 | K89: 03-05 | L89: 04-06 | M89: 05-07 | N89: 06-08 | O89: 07-09 | P89: 08-10 | Q89: 09-11 | R89: 10-12 | S89: 11-13 | T89: 12-14 | U89: 13-15 | V89: 14-16
C91: TAXA DE MORTALIDADE INFANTIL
C92: Continente | D92: =AnACeS_base!F27 -> 6.221119612 | E92: =AnACeS_base!G27 -> 5.828788635 | F92: =AnACeS_base!H27 -> 5.501341198 | G92: =AnACeS_base!I27 -> 5.173492761 | H92: =AnACeS_base!J27 -> 5.015412102 | I92: =AnACeS_base!K27 -> 4.611985553 | J92: =AnACeS_base!L27 -> 4.261439636 | K92: =AnACeS_base!M27 -> 3.748070846 | L92: =AnACeS_base!N27 -> 3.481898695 | M92: =AnACeS_base!O27 -> 3.359350526 | N92: =AnACeS_base!P27 -> 3.310843944 | O92: =AnACeS_base!Q27 -> 3.413639401 | P92: =AnACeS_base!R27 -> 3.101749829 | Q92: =AnACeS_base!S27 -> 3.044404356 | R92: =AnACeS_base!T27 -> 2.943556211 | S92: =AnACeS_base!U27 -> 3.106270441 | T92: =AnACeS_base!V27 -> 2.988968888 | U92: =AnACeS_base!W27 -> 2.829436212 | V92: =AnACeS_base!X27 -> 2.955372637
C93: Região Alentejo | D93: =AnACeS_base!F28 -> 4.956629492 | E93: =AnACeS_base!G28 -> 4.56686171 | F93: =AnACeS_base!H28 -> 4.603725476 | G93: =AnACeS_base!I28 -> 4.31996544 | H93: =AnACeS_base!J28 -> 4.583818393 | I93: =AnACeS_base!K28 -> 4.644990046 | J93: =AnACeS_base!L28 -> 4.882670165 | K93: =AnACeS_base!M28 -> 4.465919906 | L93: =AnACeS_base!N28 -> 3.798237618 | M93: =AnACeS_base!O28 -> 3.65630713 | N93: =AnACeS_base!P28 -> 3.824558548 | O93: =AnACeS_base!Q28 -> 4.662576687 | P93: =AnACeS_base!R28 -> 4.041710452 | Q93: =AnACeS_base!S28 -> 3.340666504 | R93: =AnACeS_base!T28 -> 2.628984555 | S93: =AnACeS_base!U28 -> 2.854918246 | T93: =AnACeS_base!V28 -> 3.036996135 | U93: =AnACeS_base!W28 -> 3.035765108 | V93: =AnACeS_base!X28 -> 2.530933633
C94: =AnACeS_base!D1 ->  | D94: =AnACeS_base!F29 ->  | E94: =AnACeS_base!G29 ->  | F94: =AnACeS_base!H29 ->  | G94: =AnACeS_base!I29 ->  | H94: =AnACeS_base!J29 ->  | I94: =AnACeS_base!K29 ->  | J94: =AnACeS_base!L29 ->  | K94: =AnACeS_base!M29 ->  | L94: =AnACeS_base!N29 ->  | M94: =AnACeS_base!O29 ->  | N94: =AnACeS_base!P29 ->  | O94: =AnACeS_base!Q29 ->  | P94: =AnACeS_base!R29 ->  | Q94: =AnACeS_base!S29 ->  | R94: =AnACeS_base!T29 ->  | S94: =AnACeS_base!U29 ->  | T94: =AnACeS_base!V29 ->  | U94: =AnACeS_base!W29 ->  | V94: =AnACeS_base!X29 -> 
C96: TAXA DE MORTALIDADE NEONATAL
C97: Continente | D97: =AnACeS_base!F30 -> 3.875968992 | E97: =AnACeS_base!G30 -> 3.695700028 | F97: =AnACeS_base!H30 -> 3.444027722 | G97: =AnACeS_base!I30 -> 3.177612113 | H97: =AnACeS_base!J30 -> 3.143398102 | I97: =AnACeS_base!K30 -> 2.941698893 | J97: =AnACeS_base!L30 -> 2.832566967 | K97: =AnACeS_base!M30 -> 2.425222312 | L97: =AnACeS_base!N30 -> 2.248386318 | M97: =AnACeS_base!O30 -> 2.102926767 | N97: =AnACeS_base!P30 -> 2.079845787 | O97: =AnACeS_base!Q30 -> 2.177013221 | P97: =AnACeS_base!R30 -> 2.041352059 | Q97: =AnACeS_base!S30 -> 2.126475686 | R97: =AnACeS_base!T30 -> 2.050238157 | S97: =AnACeS_base!U30 -> 2.151698668 | T97: =AnACeS_base!V30 -> 2.031177753 | U97: =AnACeS_base!W30 -> 1.960455061 | V97: =AnACeS_base!X30 -> 2.114513476
C98: Região Alentejo | D98: =AnACeS_base!F31 -> 3.280122458 | E98: =AnACeS_base!G31 -> 3.139717425 | F98: =AnACeS_base!H31 -> 2.620582194 | G98: =AnACeS_base!I31 -> 2.591979264 | H98: =AnACeS_base!J31 -> 2.910360885 | I98: =AnACeS_base!K31 -> 3.170390032 | J98: =AnACeS_base!L31 -> 3.570908031 | K98: =AnACeS_base!M31 -> 3.221319277 | L98: =AnACeS_base!N31 -> 2.962625342 | M98: =AnACeS_base!O31 -> 2.384548128 | N98: =AnACeS_base!P31 -> 2.197086826 | O98: =AnACeS_base!Q31 -> 2.617586912 | P98: =AnACeS_base!R31 -> 2.263357853 | Q98: =AnACeS_base!S31 -> 2.199951112 | R98: =AnACeS_base!T31 -> 2.136049951 | S98: =AnACeS_base!U31 -> 2.249329527 | T98: =AnACeS_base!V31 -> 2.300754648 | U98: =AnACeS_base!W31 -> 1.707617873 | V98: =AnACeS_base!X31 -> 1.499812523
C99: =AnACeS_base!D1 ->  | D99: =AnACeS_base!F32 ->  | E99: =AnACeS_base!G32 ->  | F99: =AnACeS_base!H32 ->  | G99: =AnACeS_base!I32 ->  | H99: =AnACeS_base!J32 ->  | I99: =AnACeS_base!K32 ->  | J99: =AnACeS_base!L32 ->  | K99: =AnACeS_base!M32 ->  | L99: =AnACeS_base!N32 ->  | M99: =AnACeS_base!O32 ->  | N99: =AnACeS_base!P32 ->  | O99: =AnACeS_base!Q32 ->  | P99: =AnACeS_base!R32 ->  | Q99: =AnACeS_base!S32 ->  | R99: =AnACeS_base!T32 ->  | S99: =AnACeS_base!U32 ->  | T99: =AnACeS_base!V32 ->  | U99: =AnACeS_base!W32 ->  | V99: =AnACeS_base!X32 -> 
C101: TAXA DE MORTALIDADE NEONATAL PRECOCE
C102: Continente | D102: =AnACeS_base!F33 -> 2.843850213 | E102: =AnACeS_base!G33 -> 2.678762437 | F102: =AnACeS_base!H33 -> 2.57922781 | G102: =AnACeS_base!I33 -> 2.357387189 | H102: =AnACeS_base!J33 -> 2.347639707 | I102: =AnACeS_base!K33 -> 2.209390377 | J102: =AnACeS_base!L33 -> 2.083510369 | K102: =AnACeS_base!M33 -> 1.7510169 | L102: =AnACeS_base!N33 -> 1.585944485 | M102: =AnACeS_base!O33 -> 1.55303308 | N102: =AnACeS_base!P33 -> 1.528602107 | O102: =AnACeS_base!Q33 -> 1.546643886 | P102: =AnACeS_base!R33 -> 1.398896081 | Q102: =AnACeS_base!S33 -> 1.399929826 | R102: =AnACeS_base!T33 -> 1.361943919 | S102: =AnACeS_base!U33 -> 1.408384583 | T102: =AnACeS_base!V33 -> 1.391274192 | U102: =AnACeS_base!W33 -> 1.330758574 | V102: =AnACeS_base!X33 -> 1.405553792
C103: Região Alentejo | D103: =AnACeS_base!F34 -> 1.822290254 | E103: =AnACeS_base!G34 -> 1.783930355 | F103: =AnACeS_base!H34 -> 1.841490191 | G103: =AnACeS_base!I34 -> 1.871985024 | H103: =AnACeS_base!J34 -> 2.037252619 | I103: =AnACeS_base!K34 -> 2.285630023 | J103: =AnACeS_base!L34 -> 2.696399942 | K103: =AnACeS_base!M34 -> 2.635624863 | L103: =AnACeS_base!N34 -> 2.430872075 | M103: =AnACeS_base!O34 -> 1.907638503 | N103: =AnACeS_base!P34 -> 1.871592481 | O103: =AnACeS_base!Q34 -> 2.208588957 | P103: =AnACeS_base!R34 -> 1.940021017 | Q103: =AnACeS_base!S34 -> 1.792552758 | R103: =AnACeS_base!T34 -> 1.807426881 | S103: =AnACeS_base!U34 -> 1.90327883 | T103: =AnACeS_base!V34 -> 1.840603718 | U103: =AnACeS_base!W34 -> 1.328147235 | V103: =AnACeS_base!X34 -> 1.124859393
C104: =AnACeS_base!D1 ->  | D104: =AnACeS_base!F35 ->  | E104: =AnACeS_base!G35 ->  | F104: =AnACeS_base!H35 ->  | G104: =AnACeS_base!I35 ->  | H104: =AnACeS_base!J35 ->  | I104: =AnACeS_base!K35 ->  | J104: =AnACeS_base!L35 ->  | K104: =AnACeS_base!M35 ->  | L104: =AnACeS_base!N35 ->  | M104: =AnACeS_base!O35 ->  | N104: =AnACeS_base!P35 ->  | O104: =AnACeS_base!Q35 ->  | P104: =AnACeS_base!R35 ->  | Q104: =AnACeS_base!S35 ->  | R104: =AnACeS_base!T35 ->  | S104: =AnACeS_base!U35 ->  | T104: =AnACeS_base!V35 ->  | U104: =AnACeS_base!W35 ->  | V104: =AnACeS_base!X35 -> 
C106: TAXA DE MORTALIDADE PÓS-NEONATAL
C107: Continente | D107: =AnACeS_base!F36 -> 2.34515062 | E107: =AnACeS_base!G36 -> 2.133088607 | F107: =AnACeS_base!H36 -> 2.057313476 | G107: =AnACeS_base!I36 -> 1.995880648 | H107: =AnACeS_base!J36 -> 1.872014 | I107: =AnACeS_base!K36 -> 1.67028666 | J107: =AnACeS_base!L36 -> 1.42887267 | K107: =AnACeS_base!M36 -> 1.322848534 | L107: =AnACeS_base!N36 -> 1.233512378 | M107: =AnACeS_base!O36 -> 1.256423758 | N107: =AnACeS_base!P36 -> 1.230998157 | O107: =AnACeS_base!Q36 -> 1.236626181 | P107: =AnACeS_base!R36 -> 1.06039777 | Q107: =AnACeS_base!S36 -> 0.9179286709 | R107: =AnACeS_base!T36 -> 0.8933180542 | S107: =AnACeS_base!U36 -> 0.9545717728 | T107: =AnACeS_base!V36 -> 0.9577911355 | U107: =AnACeS_base!W36 -> 0.8689811511 | V107: =AnACeS_base!X36 -> 0.8408591602
C108: Região Alentejo | D108: =AnACeS_base!F37 -> 1.676507034 | E108: =AnACeS_base!G37 -> 1.427144284 | F108: =AnACeS_base!H37 -> 1.983143282 | G108: =AnACeS_base!I37 -> 1.727986176 | H108: =AnACeS_base!J37 -> 1.673457509 | I108: =AnACeS_base!K37 -> 1.474600015 | J108: =AnACeS_base!L37 -> 1.311762134 | K108: =AnACeS_base!M37 -> 1.24460063 | L108: =AnACeS_base!N37 -> 0.8356122759 | M108: =AnACeS_base!O37 -> 1.271759002 | N108: =AnACeS_base!P37 -> 1.627471723 | O108: =AnACeS_base!Q37 -> 2.044989775 | P108: =AnACeS_base!R37 -> 1.778352599 | Q108: =AnACeS_base!S37 -> 1.140715392 | R108: =AnACeS_base!T37 -> 0.492934604 | S108: =AnACeS_base!U37 -> 0.6055887187 | T108: =AnACeS_base!V37 -> 0.7362414872 | U108: =AnACeS_base!W37 -> 1.328147235 | V108: =AnACeS_base!X37 -> 1.03112111
C109: =AnACeS_base!D1 ->  | D109: =AnACeS_base!F38 ->  | E109: =AnACeS_base!G38 ->  | F109: =AnACeS_base!H38 ->  | G109: =AnACeS_base!I38 ->  | H109: =AnACeS_base!J38 ->  | I109: =AnACeS_base!K38 ->  | J109: =AnACeS_base!L38 ->  | K109: =AnACeS_base!M38 ->  | L109: =AnACeS_base!N38 ->  | M109: =AnACeS_base!O38 ->  | N109: =AnACeS_base!P38 ->  | O109: =AnACeS_base!Q38 ->  | P109: =AnACeS_base!R38 ->  | Q109: =AnACeS_base!S38 ->  | R109: =AnACeS_base!T38 ->  | S109: =AnACeS_base!U38 ->  | T109: =AnACeS_base!V38 ->  | U109: =AnACeS_base!W38 ->  | V109: =AnACeS_base!X38 -> 
C111: TAXA DE MORTALIDADE FETAL TARDIA
C112: Continente | D112: =AnACeS_base!F39 -> 4.202274949 | E112: =AnACeS_base!G39 -> 3.851332987 | F112: =AnACeS_base!H39 -> 3.736486977 | G112: =AnACeS_base!I39 -> 3.553785054 | H112: =AnACeS_base!J39 -> 3.46368749 | I112: =AnACeS_base!K39 -> 3.208712291 | J112: =AnACeS_base!L39 -> 2.968504357 | K112: =AnACeS_base!M39 -> 2.759482135 | L112: =AnACeS_base!N39 -> 2.785569708 | M112: =AnACeS_base!O39 -> 2.844666582 | N112: =AnACeS_base!P39 -> 2.768821919 | O112: =AnACeS_base!Q39 -> 2.696751188 | P112: =AnACeS_base!R39 -> 2.573545878 | Q112: =AnACeS_base!S39 -> 2.502960776 | R112: =AnACeS_base!T39 -> 2.428744649 | S112: =AnACeS_base!U39 -> 2.380747945 | T112: =AnACeS_base!V39 -> 2.368214037 | U112: =AnACeS_base!W39 -> 2.32028279 | V112: =AnACeS_base!X39 -> 2.335747213
C113: Região Alentejo | D113: =AnACeS_base!F40 -> 3.703703704 | E113: =AnACeS_base!G40 -> 4.47538538 | F113: =AnACeS_base!H40 -> 4.933399112 | G113: =AnACeS_base!I40 -> 5.869300694 | H113: =AnACeS_base!J40 -> 5.499276411 | I113: =AnACeS_base!K40 -> 4.696558303 | J113: =AnACeS_base!L40 -> 3.992160848 | K113: =AnACeS_base!M40 -> 3.792575305 | L113: =AnACeS_base!N40 -> 3.557641359 | M113: =AnACeS_base!O40 -> 4.352643242 | N113: =AnACeS_base!P40 -> 3.648451435 | O113: =AnACeS_base!Q40 -> 3.829856584 | P113: =AnACeS_base!R40 -> 3.463831158 | Q113: =AnACeS_base!S40 -> 3.248599042 | R113: =AnACeS_base!T40 -> 3.846468614 | S113: =AnACeS_base!U40 -> 3.534482759 | T113: =AnACeS_base!V40 -> 3.66770585 | U113: =AnACeS_base!W40 -> 2.83795289 | V113: =AnACeS_base!X40 -> 2.804262479
C114: =AnACeS_base!D1 ->  | D114: =AnACeS_base!F41 ->  | E114: =AnACeS_base!G41 ->  | F114: =AnACeS_base!H41 ->  | G114: =AnACeS_base!I41 ->  | H114: =AnACeS_base!J41 ->  | I114: =AnACeS_base!K41 ->  | J114: =AnACeS_base!L41 ->  | K114: =AnACeS_base!M41 ->  | L114: =AnACeS_base!N41 ->  | M114: =AnACeS_base!O41 ->  | N114: =AnACeS_base!P41 ->  | O114: =AnACeS_base!Q41 ->  | P114: =AnACeS_base!R41 ->  | Q114: =AnACeS_base!S41 ->  | R114: =AnACeS_base!T41 ->  | S114: =AnACeS_base!U41 ->  | T114: =AnACeS_base!V41 ->  | U114: =AnACeS_base!W41 ->  | V114: =AnACeS_base!X41 -> 
C116: TAXA DE MORTALIDADE PERINATAL
C117: Continente | D117: =AnACeS_base!F42 -> 7.034174522 | E117: =AnACeS_base!G42 -> 6.519778618 | F117: =AnACeS_base!H42 -> 6.306077535 | G117: =AnACeS_base!I42 -> 5.902794595 | H117: =AnACeS_base!J42 -> 5.803195707 | I117: =AnACeS_base!K42 -> 5.411013369 | J117: =AnACeS_base!L42 -> 5.045829816 | K117: =AnACeS_base!M42 -> 4.505667135 | L117: =AnACeS_base!N42 -> 4.367096434 | M117: =AnACeS_base!O42 -> 4.393281801 | N117: =AnACeS_base!P42 -> 4.293191598 | O117: =AnACeS_base!Q42 -> 4.23922416 | P117: =AnACeS_base!R42 -> 3.968841835 | Q117: =AnACeS_base!S42 -> 3.899386633 | R117: =AnACeS_base!T42 -> 3.787380754 | S117: =AnACeS_base!U42 -> 3.785779519 | T117: =AnACeS_base!V42 -> 3.756193395 | U117: =AnACeS_base!W42 -> 3.647953628 | V117: =AnACeS_base!X42 -> 3.738017987
C118: Região Alentejo | D118: =AnACeS_base!F43 -> 5.519244735 | E118: =AnACeS_base!G43 -> 6.25133196 | F118: =AnACeS_base!H43 -> 6.765804496 | G118: =AnACeS_base!I43 -> 7.730298475 | H118: =AnACeS_base!J43 -> 7.525325615 | I118: =AnACeS_base!K43 -> 6.971453732 | J118: =AnACeS_base!L43 -> 6.677796327 | K118: =AnACeS_base!M43 -> 6.418204361 | L118: =AnACeS_base!N43 -> 5.979865264 | M118: =AnACeS_base!O43 -> 6.251978474 | N118: =AnACeS_base!P43 -> 5.513215502 | O118: =AnACeS_base!Q43 -> 6.029986962 | P118: =AnACeS_base!R43 -> 5.39713227 | Q118: =AnACeS_base!S43 -> 5.035328515 | R118: =AnACeS_base!T43 -> 5.646943285 | S118: =AnACeS_base!U43 -> 5.431034483 | T118: =AnACeS_base!V43 -> 5.501558775 | U118: =AnACeS_base!W43 -> 4.162330905 | V118: =AnACeS_base!X43 -> 3.925967471
C119: =AnACeS_base!D1 ->  | D119: =AnACeS_base!F44 ->  | E119: =AnACeS_base!G44 ->  | F119: =AnACeS_base!H44 ->  | G119: =AnACeS_base!I44 ->  | H119: =AnACeS_base!J44 ->  | I119: =AnACeS_base!K44 ->  | J119: =AnACeS_base!L44 ->  | K119: =AnACeS_base!M44 ->  | L119: =AnACeS_base!N44 ->  | M119: =AnACeS_base!O44 ->  | N119: =AnACeS_base!P44 ->  | O119: =AnACeS_base!Q44 ->  | P119: =AnACeS_base!R44 ->  | Q119: =AnACeS_base!S44 ->  | R119: =AnACeS_base!T44 ->  | S119: =AnACeS_base!U44 ->  | T119: =AnACeS_base!V44 ->  | U119: =AnACeS_base!W44 ->  | V119: =AnACeS_base!X44 -> 
C121: Fonte: INE
C123: TAXA DE MORTALIDADE INFANTIL (/1000 NADOS VIVOS), 1996-2016 (MÉDIA ANUAL POR TRIÉNIOS) | K123: TAXA DE MORTALIDADE NEONATAL (/1000 NADOS VIVOS), 1996-2016 (MÉDIA ANUAL POR TRIÉNIOS)
C138: TAXA DE MORTALIDADE NEONATAL PRECOCE (/1000 NADOS VIVOS), 1996-2016 (MÉDIA ANUAL POR TRIÉNIOS) | K138: TAXA DE MORTALIDADE PÓS-NEONATAL (/1000 NADOS VIVOS), 1996-2016 (MÉDIA ANUAL POR TRIÉNIOS)
C153: TAXA DE MORTALIDADE FETAL TARDIA (/1000 (NV+FM 28+ SEM)), 1996-2016 (MÉDIA ANUAL POR TRIÉNIOS) | K153: TAXA DE MORTALIDADE PERINATAL (/1000 (NV+FM 28+ SEM)), 1996-2016 (MÉDIA ANUAL POR TRIÉNIOS)

Sheet AnACeS_base (hidden)
B1: AnACeS_Select | C1: 1 | D1: =IF(AnACeS_Select=1,"",VLOOKUP(AnACeS_Select,AnACeS_tab,3,FALSE)) -> 
F2: 2 | G2: 3 | H2: 4 | I2: 5 | J2: 6 | K2: 7 | L2: 8 | M2: 9 | N2: 10 | O2: 11 | P2: 12 | Q2: 13 | R2: 14 | S2: 15 | T2: 16 | U2: 17 | V2: 18 | W2: 19 | X2: 20 | Y2: 21 | Z2: 22
A3: Icod | B3: Indicador | C3: Rcod | D3: Local_Residencia | E3: cod_IndRes | F3: 1996 | G3: 1997 | H3: 1998 | I3: 1999 | J3: 2000 | K3: 2001 | L3: 2002 | M3: 2003 | N3: 2004 | O3: 2005 | P3: 2006 | Q3: 2007 | R3: 2008 | S3: 2009 | T3: 2010 | U3: 2011 | V3: 2012 | W3: 2013 | X3: 2014 | Y3: 2015 | Z3: 2016
A4: I02 | B4: Taxa Bruta de Natalidade | C4: R01 | D4: Continente | E4: I02R01 | F4: =IF(AnACeS_base!$C4="","",VLOOKUP($E4,BaseAnual,F2,FALSE)) -> 10.82112606 | G4: =IF(AnACeS_base!$C4="","",VLOOKUP($E4,BaseAnual,G2,FALSE)) -> 11.0427446 | H4: =IF(AnACeS_base!$C4="","",VLOOKUP($E4,BaseAnual,H2,FALSE)) -> 11.04162456 | I4: =IF(AnACeS_base!$C4="","",VLOOKUP($E4,BaseAnual,I2,FALSE)) -> 11.2361305 | J4: =IF(AnACeS_base!$C4="","",VLOOKUP($E4,BaseAnual,J2,FALSE)) -> 11.55676574 | K4: =IF(AnACeS_base!$C4="","",VLOOKUP($E4,BaseAnual,K2,FALSE)) -> 10.78303843 | L4: =IF(AnACeS_base!$C4="","",VLOOKUP($E4,BaseAnual,L2,FALSE)) -> 10.89867093 | M4: =IF(AnACeS_base!$C4="","",VLOOKUP($E4,BaseAnual,M2,FALSE)) -> 10.66304781 | N4: =IF(AnACeS_base!$C4="","",VLOOKUP($E4,BaseAnual,N2,FALSE)) -> 10.34689941 | O4: =IF(AnACeS_base!$C4="","",VLOOKUP($E4,BaseAnual,O2,FALSE)) -> 10.34091059 | P4: =IF(AnACeS_base!$C4="","",VLOOKUP($E4,BaseAnual,P2,FALSE)) -> 9.954337808 | Q4: =IF(AnACeS_base!$C4="","",VLOOKUP($E4,BaseAnual,Q2,FALSE)) -> 9.659003542 | R4: =IF(AnACeS_base!$C4="","",VLOOKUP($E4,BaseAnual,R2,FALSE)) -> 9.859004796 | S4: =IF(AnACeS_base!$C4="","",VLOOKUP($E4,BaseAnual,S2,FALSE)) -> 9.380306468 | T4: =IF(AnACeS_base!$C4="","",VLOOKUP($E4,BaseAnual,T2,FALSE)) -> 9.556979288 | U4: =IF(AnACeS_base!$C4="","",VLOOKUP($E4,BaseAnual,U2,FALSE)) -> 9.129389281 | V4: =IF(AnACeS_base!$C4="","",VLOOKUP($E4,BaseAnual,V2,FALSE)) -> 8.527352358 | W4: =IF(AnACeS_base!$C4="","",VLOOKUP($E4,BaseAnual,W2,FALSE)) -> 7.902007706 | X4: =IF(AnACeS_base!$C4="","",VLOOKUP($E4,BaseAnual,X2,FALSE)) -> 7.914967665 | Y4: =IF(AnACeS_base!$C4="","",VLOOKUP($E4,BaseAnual,Y2,FALSE)) -> 8.24925847 | Z4: =IF(AnACeS_base!$C4="","",VLOOKUP($E4,BaseAnual,Z2,FALSE)) -> 8.448967797
A5: I02 | B5: Taxa Bruta de Natalidade | C5: R02 | D5: Região Alentejo | E5: I02R02 | F5: =IF(AnACeS_base!$C5="","",VLOOKUP($E5,BaseAnual,F2,FALSE)) -> 8.118924783 | G5: =IF(AnACeS_base!$C5="","",VLOOKUP($E5,BaseAnual,G2,FALSE)) -> 8.665032431 | H5: =IF(AnACeS_base!$C5="","",VLOOKUP($E5,BaseAnual,H2,FALSE)) -> 8.651038524 | I5: =IF(AnACeS_base!$C5="","",VLOOKUP($E5,BaseAnual,I2,FALSE)) -> 8.737620694 | J5: =IF(AnACeS_base!$C5="","",VLOOKUP($E5,BaseAnual,J2,FALSE)) -> 8.9186301 | K5: =IF(AnACeS_base!$C5="","",VLOOKUP($E5,BaseAnual,K2,FALSE)) -> 8.266493973 | L5: =IF(AnACeS_base!$C5="","",VLOOKUP($E5,BaseAnual,L2,FALSE)) -> 8.511555143 | M5: =IF(AnACeS_base!$C5="","",VLOOKUP($E5,BaseAnual,M2,FALSE)) -> 8.64595049 | N5: =IF(AnACeS_base!$C5="","",VLOOKUP($E5,BaseAnual,N2,FALSE)) -> 8.654222995 | O5: =IF(AnACeS_base!$C5="","",VLOOKUP($E5,BaseAnual,O2,FALSE)) -> 8.500497127 | P5: =IF(AnACeS_base!$C5="","",VLOOKUP($E5,BaseAnual,P2,FALSE)) -> 7.822004584 | Q5: =IF(AnACeS_base!$C5="","",VLOOKUP($E5,BaseAnual,Q2,FALSE)) -> 7.661242428 | R5: =IF(AnACeS_base!$C5="","",VLOOKUP($E5,BaseAnual,R2,FALSE)) -> 8.068174922 | S5: =IF(AnACeS_base!$C5="","",VLOOKUP($E5,BaseAnual,S2,FALSE)) -> 7.826491452 | T5: =IF(AnACeS_base!$C5="","",VLOOKUP($E5,BaseAnual,T2,FALSE)) -> 8.084878546 | U5: =IF(AnACeS_base!$C5="","",VLOOKUP($E5,BaseAnual,U2,FALSE)) -> 8.037534697 | V5: =IF(AnACeS_base!$C5="","",VLOOKUP($E5,BaseAnual,V2,FALSE)) -> 7.807286735 | W5: =IF(AnACeS_base!$C5="","",VLOOKUP($E5,BaseAnual,W2,FALSE)) -> 7.072246239 | X5: =IF(AnACeS_base!$C5="","",VLOOKUP($E5,BaseAnual,X2,FALSE)) -> 6.884622283 | Y5: =IF(AnACeS_base!$C5="","",VLOOKUP($E5,BaseAnual,Y2,FALSE)) -> 7.42649833 | Z5: =IF(AnACeS_base!$C5="","",VLOOKUP($E5,BaseAnual,Z2,FALSE)) -> 7.614247529
A6: I02 | B6: Taxa Bruta de Natalidade | C6: =IF(AnACeS_Select=1,"",VLOOKUP(AnACeS_Select,AnACeS_tab,2,FALSE)) ->  | D6: =IF(AnACeS_Select=1,"",VLOOKUP(AnACeS_Select,AnACeS_tab,3,FALSE)) ->  | E6: =IF(C6="","",CONCATENATE(A6,C6)) ->  | F6: =IF(AnACeS_base!$C6="","",VLOOKUP($E6,BaseAnual,F2,FALSE)) ->  | G6: =IF(AnACeS_base!$C6="","",VLOOKUP($E6,BaseAnual,G2,FALSE)) ->  | H6: =IF(AnACeS_base!$C6="","",VLOOKUP($E6,BaseAnual,H2,FALSE)) ->  | I6: =IF(AnACeS_base!$C6="","",VLOOKUP($E6,BaseAnual,I2,FALSE)) ->  | J6: =IF(AnACeS_base!$C6="","",VLOOKUP($E6,BaseAnual,J2,FALSE)) ->  | K6: =IF(AnACeS_base!$C6="","",VLOOKUP($E6,BaseAnual,K2,FALSE)) ->  | L6: =IF(AnACeS_base!$C6="","",VLOOKUP($E6,BaseAnual,L2,FALSE)) ->  | M6: =IF(AnACeS_base!$C6="","",VLOOKUP($E6,BaseAnual,M2,FALSE)) ->  | N6: =IF(AnACeS_base!$C6="","",VLOOKUP($E6,BaseAnual,N2,FALSE)) ->  | O6: =IF(AnACeS_base!$C6="","",VLOOKUP($E6,BaseAnual,O2,FALSE)) ->  | P6: =IF(AnACeS_base!$C6="","",VLOOKUP($E6,BaseAnual,P2,FALSE)) ->  | Q6: =IF(AnACeS_base!$C6="","",VLOOKUP($E6,BaseAnual,Q2,FALSE)) ->  | R6: =IF(AnACeS_base!$C6="","",VLOOKUP($E6,BaseAnual,R2,FALSE)) ->  | S6: =IF(AnACeS_base!$C6="","",VLOOKUP($E6,BaseAnual,S2,FALSE)) ->  | T6: =IF(AnACeS_base!$C6="","",VLOOKUP($E6,BaseAnual,T2,FALSE)) ->  | U6: =IF(AnACeS_base!$C6="","",VLOOKUP($E6,BaseAnual,U2,FALSE)) ->  | V6: =IF(AnACeS_base!$C6="","",VLOOKUP($E6,BaseAnual,V2,FALSE)) ->  | W6: =IF(AnACeS_base!$C6="","",VLOOKUP($E6,BaseAnual,$W$2,FALSE)) ->  | X6: =IF(AnACeS_base!$C6="","",VLOOKUP($E6,BaseAnual,$X$2,FALSE)) ->  | Y6: =IF(AnACeS_base!$C6="","",VLOOKUP($E6,BaseAnual,$Y$2,FALSE)) ->  | Z6: =IF(AnACeS_base!$C6="","",VLOOKUP($E6,BaseAnual,$Z$2,FALSE)) -> 
A7: I13 | B7: Taxa Bruta de Mortalidade | C7: R01 | D7: Continente | E7: I13R01 | F7: =IF(AnACeS_base!$C7="","",VLOOKUP($E7,BaseAnual,F2,FALSE)) -> 10.59127577 | G7: =IF(AnACeS_base!$C7="","",VLOOKUP($E7,BaseAnual,G2,FALSE)) -> 10.32137546 | H7: =IF(AnACeS_base!$C7="","",VLOOKUP($E7,BaseAnual,H2,FALSE)) -> 10.42029616 | I7: =IF(AnACeS_base!$C7="","",VLOOKUP($E7,BaseAnual,I2,FALSE)) -> 10.54623141 | J7: =IF(AnACeS_base!$C7="","",VLOOKUP($E7,BaseAnual,J2,FALSE)) -> 10.20066773 | K7: =IF(AnACeS_base!$C7="","",VLOOKUP($E7,BaseAnual,K2,FALSE)) -> 10.09714244 | L7: =IF(AnACeS_base!$C7="","",VLOOKUP($E7,BaseAnual,L2,FALSE)) -> 10.1621 | M7: =IF(AnACeS_base!$C7="","",VLOOKUP($E7,BaseAnual,M2,FALSE)) -> 10.37085589 | N7: =IF(AnACeS_base!$C7="","",VLOOKUP($E7,BaseAnual,N2,FALSE)) -> 9.709613976 | O7: =IF(AnACeS_base!$C7="","",VLOOKUP($E7,BaseAnual,O2,FALSE)) -> 10.23122214 | P7: =IF(AnACeS_base!$C7="","",VLOOKUP($E7,BaseAnual,P2,FALSE)) -> 9.687292853 | Q7: =IF(AnACeS_base!$C7="","",VLOOKUP($E7,BaseAnual,Q2,FALSE)) -> 9.832701176 | R7: =IF(AnACeS_base!$C7="","",VLOOKUP($E7,BaseAnual,R2,FALSE)) -> 9.893242635 | S7: =IF(AnACeS_base!$C7="","",VLOOKUP($E7,BaseAnual,S2,FALSE)) -> 9.878638978 | T7: =IF(AnACeS_base!$C7="","",VLOOKUP($E7,BaseAnual,T2,FALSE)) -> 10.02462339 | U7: =IF(AnACeS_base!$C7="","",VLOOKUP($E7,BaseAnual,U2,FALSE)) -> 9.752816061 | V7: =IF(AnACeS_base!$C7="","",VLOOKUP($E7,BaseAnual,V2,FALSE)) -> 10.27688605 | W7: =IF(AnACeS_base!$C7="","",VLOOKUP($E7,BaseAnual,W2,FALSE)) -> 10.21904935 | X7: =IF(AnACeS_base!$C7="","",VLOOKUP($E7,BaseAnual,X2,FALSE)) -> 10.08038525 | Y7: =IF(AnACeS_base!$C7="","",VLOOKUP($E7,BaseAnual,Y2,FALSE)) -> 10.51442537 | Z7: =IF(AnACeS_base!$C7="","",VLOOKUP($E7,BaseAnual,Z2,FALSE)) -> 10.73992519
A8: I13 | B8: Taxa Bruta de Mortalidade | C8: R02 | D8: Região Alentejo | E8: I13R02 | F8: =IF(AnACeS_base!$C$8="","",VLOOKUP($E$8,BaseAnual,F2,FALSE)) -> 14.72791068 | G8: =IF(AnACeS_base!$C$8="","",VLOOKUP($E$8,BaseAnual,G2,FALSE)) -> 14.18335824 | H8: =IF(AnACeS_base!$C$8="","",VLOOKUP($E$8,BaseAnual,H2,FALSE)) -> 14.57271437 | I8: =IF(AnACeS_base!$C$8="","",VLOOKUP($E$8,BaseAnual,I2,FALSE)) -> 14.70373073 | J8: =IF(AnACeS_base!$C$8="","",VLOOKUP($E$8,BaseAnual,J2,FALSE)) -> 14.09285418 | K8: =IF(AnACeS_base!$C$8="","",VLOOKUP($E$8,BaseAnual,K2,FALSE)) -> 13.9332382 | L8: =IF(AnACeS_base!$C$8="","",VLOOKUP($E$8,BaseAnual,L2,FALSE)) -> 14.18654976 | M8: =IF(AnACeS_base!$C$8="","",VLOOKUP($E$8,BaseAnual,M2,FALSE)) -> 14.97477873 | N8: =IF(AnACeS_base!$C$8="","",VLOOKUP($E$8,BaseAnual,N2,FALSE)) -> 13.36097195 | O8: =IF(AnACeS_base!$C$8="","",VLOOKUP($E$8,BaseAnual,O2,FALSE)) -> 14.97833132 | P8: =IF(AnACeS_base!$C$8="","",VLOOKUP($E$8,BaseAnual,P2,FALSE)) -> 13.50258763 | Q8: =IF(AnACeS_base!$C$8="","",VLOOKUP($E$8,BaseAnual,Q2,FALSE)) -> 13.92970585 | R8: =IF(AnACeS_base!$C$8="","",VLOOKUP($E$8,BaseAnual,R2,FALSE)) -> 14.52194426 | S8: =IF(AnACeS_base!$C$8="","",VLOOKUP($E$8,BaseAnual,S2,FALSE)) -> 14.30011242 | T8: =IF(AnACeS_base!$C$8="","",VLOOKUP($E$8,BaseAnual,T2,FALSE)) -> 14.56643498 | U8: =IF(AnACeS_base!$C$8="","",VLOOKUP($E$8,BaseAnual,U2,FALSE)) -> 14.18261318 | V8: =IF(AnACeS_base!$C$8="","",VLOOKUP($E$8,BaseAnual,V2,FALSE)) -> 14.85704654 | W8: =IF(AnACeS_base!$C$8="","",VLOOKUP($E$8,BaseAnual,W2,FALSE)) -> 14.28866058 | X8: =IF(AnACeS_base!$C$8="","",VLOOKUP($E$8,BaseAnual,X2,FALSE)) -> 14.15228655 | Y8: =IF(AnACeS_base!$C$8="","",VLOOKUP($E$8,BaseAnual,Y2,FALSE)) -> 15.3464517 | Z8: =IF(AnACeS_base!$C$8="","",VLOOKUP($E$8,BaseAnual,Z2,FALSE)) -> 15.36583869
A9: I13 | B9: Taxa Bruta de Mortalidade | C9: =IF(AnACeS_Select=1,"",VLOOKUP(AnACeS_Select,AnACeS_tab,2,FALSE)) ->  | D9: =IF(AnACeS_Select=1,"",VLOOKUP(AnACeS_Select,AnACeS_tab,3,FALSE)) ->  | E9: =IF(C6="","",CONCATENATE(A9,C9)) ->  | F9: =IF(AnACeS_base!$C9="","",VLOOKUP($E9,BaseAnual,F2,FALSE)) ->  | G9: =IF(AnACeS_base!$C9="","",VLOOKUP($E9,BaseAnual,G2,FALSE)) ->  | H9: =IF(AnACeS_base!$C9="","",VLOOKUP($E9,BaseAnual,H2,FALSE)) ->  | I9: =IF(AnACeS_base!$C9="","",VLOOKUP($E9,BaseAnual,I2,FALSE)) ->  | J9: =IF(AnACeS_base!$C9="","",VLOOKUP($E9,BaseAnual,J2,FALSE)) ->  | K9: =IF(AnACeS_base!$C9="","",VLOOKUP($E9,BaseAnual,K2,FALSE)) ->  | L9: =IF(AnACeS_base!$C9="","",VLOOKUP($E9,BaseAnual,L2,FALSE)) ->  | M9: =IF(AnACeS_base!$C9="","",VLOOKUP($E9,BaseAnual,M2,FALSE)) ->  | N9: =IF(AnACeS_base!$C9="","",VLOOKUP($E9,BaseAnual,N2,FALSE)) ->  | O9: =IF(AnACeS_base!$C9="","",VLOOKUP($E9,BaseAnual,O2,FALSE)) ->  | P9: =IF(AnACeS_base!$C9="","",VLOOKUP($E9,BaseAnual,P2,FALSE)) ->  | Q9: =IF(AnACeS_base!$C9="","",VLOOKUP($E9,BaseAnual,Q2,FALSE)) ->  | R9: =IF(AnACeS_base!$C9="","",VLOOKUP($E9,BaseAnual,R2,FALSE)) ->  | S9: =IF(AnACeS_base!$C9="","",VLOOKUP($E9,BaseAnual,S2,FALSE)) ->  | T9: =IF(AnACeS_base!$C9="","",VLOOKUP($E9,BaseAnual,T2,FALSE)) ->  | U9: =IF(AnACeS_base!$C9="","",VLOOKUP($E9,BaseAnual,U2,FALSE)) ->  | V9: =IF(AnACeS_base!$C9="","",VLOOKUP($E9,BaseAnual,V2,FALSE)) ->  | W9: =IF(AnACeS_base!$C9="","",VLOOKUP($E9,BaseAnual,$W$2,FALSE)) ->  | X9: =IF(AnACeS_base!$C9="","",VLOOKUP($E9,BaseAnual,$X$2,FALSE)) ->  | Y9: =IF(AnACeS_base!$C9="","",VLOOKUP($E9,BaseAnual,$Y$2,FALSE)) ->  | Z9: =IF(AnACeS_base!$C9="","",VLOOKUP($E9,BaseAnual,$Z$2,FALSE)) -> 
A10: I11 | B10: Índice sintético de fecundidade (ISF) | C10: R01 | D10: Continente | E10: I11R01 | F10: =IF(AnACeS_base!$C10="","",VLOOKUP($E10,BaseAnual,F2,FALSE)) -> 1.432737641 | G10: =IF(AnACeS_base!$C10="","",VLOOKUP($E10,BaseAnual,G2,FALSE)) -> 1.461101304 | H10: =IF(AnACeS_base!$C10="","",VLOOKUP($E10,BaseAnual,H2,FALSE)) -> 1.463702153 | I10: =IF(AnACeS_base!$C10="","",VLOOKUP($E10,BaseAnual,I2,FALSE)) -> 1.493889655 | J10: =IF(AnACeS_base!$C10="","",VLOOKUP($E10,BaseAnual,J2,FALSE)) -> 1.542609788 | K10: =IF(AnACeS_base!$C10="","",VLOOKUP($E10,BaseAnual,K2,FALSE)) -> 1.444220492 | L10: =IF(AnACeS_base!$C10="","",VLOOKUP($E10,BaseAnual,L2,FALSE)) -> 1.462444437 | M10: =IF(AnACeS_base!$C10="","",VLOOKUP($E10,BaseAnual,M2,FALSE)) -> 1.435101915 | N10: =IF(AnACeS_base!$C10="","",VLOOKUP($E10,BaseAnual,N2,FALSE)) -> 1.40233609 | O10: =IF(AnACeS_base!$C10="","",VLOOKUP($E10,BaseAnual,O2,FALSE)) -> 1.413564814 | P10: =IF(AnACeS_base!$C10="","",VLOOKUP($E10,BaseAnual,P2,FALSE)) -> 1.374262117 | Q10: =IF(AnACeS_base!$C10="","",VLOOKUP($E10,BaseAnual,Q2,FALSE)) -> 1.350231688 | R10: =IF(AnACeS_base!$C10="","",VLOOKUP($E10,BaseAnual,R2,FALSE)) -> 1.382780926 | S10: =IF(AnACeS_base!$C10="","",VLOOKUP($E10,BaseAnual,S2,FALSE)) -> 1.347474588 | T10: =IF(AnACeS_base!$C10="","",VLOOKUP($E10,BaseAnual,T2,FALSE)) -> 1.39423694 | U10: =IF(AnACeS_base!$C10="","",VLOOKUP($E10,BaseAnual,U2,FALSE)) -> 1.349875407 | V10: =IF(AnACeS_base!$C10="","",VLOOKUP($E10,BaseAnual,V2,FALSE)) -> 1.287706236 | W10: =IF(AnACeS_base!$C10="","",VLOOKUP($E10,BaseAnual,W2,FALSE)) -> 1.214643884 | X10: =IF(AnACeS_base!$C10="","",VLOOKUP($E10,BaseAnual,X2,FALSE)) -> 1.248732197 | Y10: =IF(AnACeS_base!$C10="","",VLOOKUP($E10,BaseAnual,Y2,FALSE)) -> 1.309224162 | Z10: =IF(AnACeS_base!$C10="","",VLOOKUP($E10,BaseAnual,Z2,FALSE)) -> 1.367141457
A11: I11 | B11: Índice sintético de fecundidade (ISF) | C11: R02 | D11: Região Alentejo | E11: I11R02 | F11: =IF(AnACeS_base!$C11="","",VLOOKUP($E11,BaseAnual,F2,FALSE)) -> 1.285959615 | G11: =IF(AnACeS_base!$C11="","",VLOOKUP($E11,BaseAnual,G2,FALSE)) -> 1.372540747 | H11: =IF(AnACeS_base!$C11="","",VLOOKUP($E11,BaseAnual,H2,FALSE)) -> 1.373741706 | I11: =IF(AnACeS_base!$C11="","",VLOOKUP($E11,BaseAnual,I2,FALSE)) -> 1.392873606 | J11: =IF(AnACeS_base!$C11="","",VLOOKUP($E11,BaseAnual,J2,FALSE)) -> 1.427098235 | K11: =IF(AnACeS_base!$C11="","",VLOOKUP($E11,BaseAnual,K2,FALSE)) -> 1.323747173 | L11: =IF(AnACeS_base!$C11="","",VLOOKUP($E11,BaseAnual,L2,FALSE)) -> 1.35772972 | M11: =IF(AnACeS_base!$C11="","",VLOOKUP($E11,BaseAnual,M2,FALSE)) -> 1.376289363 | N11: =IF(AnACeS_base!$C11="","",VLOOKUP($E11,BaseAnual,N2,FALSE)) -> 1.379975525 | O11: =IF(AnACeS_base!$C11="","",VLOOKUP($E11,BaseAnual,O2,FALSE)) -> 1.36056295 | P11: =IF(AnACeS_base!$C11="","",VLOOKUP($E11,BaseAnual,P2,FALSE)) -> 1.257385165 | Q11: =IF(AnACeS_base!$C11="","",VLOOKUP($E11,BaseAnual,Q2,FALSE)) -> 1.241071836 | R11: =IF(AnACeS_base!$C11="","",VLOOKUP($E11,BaseAnual,R2,FALSE)) -> 1.301894776 | S11: =IF(AnACeS_base!$C11="","",VLOOKUP($E11,BaseAnual,S2,FALSE)) -> 1.29066709 | T11: =IF(AnACeS_base!$C11="","",VLOOKUP($E11,BaseAnual,T2,FALSE)) -> 1.352616715 | U11: =IF(AnACeS_base!$C11="","",VLOOKUP($E11,BaseAnual,U2,FALSE)) -> 1.361277305 | V11: =IF(AnACeS_base!$C11="","",VLOOKUP($E11,BaseAnual,V2,FALSE)) -> 1.341117222 | W11: =IF(AnACeS_base!$C11="","",VLOOKUP($E11,BaseAnual,W2,FALSE)) -> 1.230931478 | X11: =IF(AnACeS_base!$C11="","",VLOOKUP($E11,BaseAnual,X2,FALSE)) -> 1.265618299 | Y11: =IF(AnACeS_base!$C11="","",VLOOKUP($E11,BaseAnual,Y2,FALSE)) -> 1.32904414 | Z11: =IF(AnACeS_base!$C11="","",VLOOKUP($E11,BaseAnual,Z2,FALSE)) -> 1.387503262
A12: I11 | B12: Índice sintético de fecundidade (ISF) | C12: =IF(AnACeS_Select=1,"",VLOOKUP(AnACeS_Select,AnACeS_tab,2,FALSE)) ->  | D12: =IF(AnACeS_Select=1,"",VLOOKUP(AnACeS_Select,AnACeS_tab,3,FALSE)) ->  | E12: =IF(C12="","",CONCATENATE(A12,C12)) ->  | F12: =IF(AnACeS_base!$C12="","",VLOOKUP($E12,BaseAnual,F2,FALSE)) ->  | G12: =IF(AnACeS_base!$C12="","",VLOOKUP($E12,BaseAnual,G2,FALSE)) ->  | H12: =IF(AnACeS_base!$C12="","",VLOOKUP($E12,BaseAnual,H2,FALSE)) ->  | I12: =IF(AnACeS_base!$C12="","",VLOOKUP($E12,BaseAnual,I2,FALSE)) ->  | J12: =IF(AnACeS_base!$C12="","",VLOOKUP($E12,BaseAnual,J2,FALSE)) ->  | K12: =IF(AnACeS_base!$C12="","",VLOOKUP($E12,BaseAnual,K2,FALSE)) ->  | L12: =IF(AnACeS_base!$C12="","",VLOOKUP($E12,BaseAnual,L2,FALSE)) ->  | M12: =IF(AnACeS_base!$C12="","",VLOOKUP($E12,BaseAnual,M2,FALSE)) ->  | N12: =IF(AnACeS_base!$C12="","",VLOOKUP($E12,BaseAnual,N2,FALSE)) ->  | O12: =IF(AnACeS_base!$C12="","",VLOOKUP($E12,BaseAnual,O2,FALSE)) ->  | P12: =IF(AnACeS_base!$C12="","",VLOOKUP($E12,BaseAnual,P2,FALSE)) ->  | Q12: =IF(AnACeS_base!$C12="","",VLOOKUP($E12,BaseAnual,Q2,FALSE)) ->  | R12: =IF(AnACeS_base!$C12="","",VLOOKUP($E12,BaseAnual,R2,FALSE)) ->  | S12: =IF(AnACeS_base!$C12="","",VLOOKUP($E12,BaseAnual,S2,FALSE)) ->  | T12: =IF(AnACeS_base!$C12="","",VLOOKUP($E12,BaseAnual,T2,FALSE)) ->  | U12: =IF(AnACeS_base!$C12="","",VLOOKUP($E12,BaseAnual,U2,FALSE)) ->  | V12: =IF(AnACeS_base!$C12="","",VLOOKUP($E12,BaseAnual,V2,FALSE)) ->  | W12: =IF(AnACeS_base!$C12="","",VLOOKUP($E12,BaseAnual,$W$2,FALSE)) ->  | X12: =IF(AnACeS_base!$C12="","",VLOOKUP($E12,BaseAnual,$X$2,FALSE)) ->  | Y12: =IF(AnACeS_base!$C12="","",VLOOKUP($E12,BaseAnual,$Y$2,FALSE)) ->  | Z12: =IF(AnACeS_base!$C12="","",VLOOKUP($E12,BaseAnual,$Z$2,FALSE)) -> 
F13: 23 | G13: 24 | H13: 25 | I13: 26 | J13: 27 | K13: 28 | L13: 29 | M13: 30 | N13: 31 | O13: 32 | P13: 33 | Q13: 34 | R13: 35 | S13: 36 | T13: 37 | U13: 38 | V13: 39 | W13: 40 | X13: 41
A14: Icod | B14: Indicador | C14: Rcod | D14: Local_Residencia | E14: cod_IndRes | F14: 96-98 | G14: 97-99 | H14: 98-00 | I14: 99-01 | J14: 00-02 | K14: 01-03 | L14: 02-04 | M14: 03-05 | N14: 04-06 | O14: 05-07 | P14: 06-08 | Q14: 07-09 | R14: 08-10 | S14: 09-11 | T14: 10-12 | U14: 11-13 | V14: 12-14 | W14: 13-15 | X14: 14-16
A15: I04 | B15: Proporção de Nascimentos em Mulheres com Idade Inferior a 20 anos | C15: R01 | D15: Continente | E15: I04R01 | F15: =IF(AnACeS_base!$C15="","",VLOOKUP($E15,BaseTrienal,F13,FALSE)) -> 6.600510062 | G15: =IF(AnACeS_base!$C15="","",VLOOKUP($E15,BaseTrienal,G13,FALSE)) -> 6.339737767 | H15: =IF(AnACeS_base!$C15="","",VLOOKUP($E15,BaseTrienal,H13,FALSE)) -> 6.157071939 | I15: =IF(AnACeS_base!$C15="","",VLOOKUP($E15,BaseTrienal,I13,FALSE)) -> 5.999793425 | J15: =IF(AnACeS_base!$C15="","",VLOOKUP($E15,BaseTrienal,J13,FALSE)) -> 5.838610441 | K15: =IF(AnACeS_base!$C15="","",VLOOKUP($E15,BaseTrienal,K13,FALSE)) -> 5.574270107 | L15: =IF(AnACeS_base!$C15="","",VLOOKUP($E15,BaseTrienal,L13,FALSE)) -> 5.323966979 | M15: =IF(AnACeS_base!$C15="","",VLOOKUP($E15,BaseTrienal,M13,FALSE)) -> 5.047913318 | N15: =IF(AnACeS_base!$C15="","",VLOOKUP($E15,BaseTrienal,N13,FALSE)) -> 4.792097689 | O15: =IF(AnACeS_base!$C15="","",VLOOKUP($E15,BaseTrienal,O13,FALSE)) -> 4.59577815 | P15: =IF(AnACeS_base!$C15="","",VLOOKUP($E15,BaseTrienal,P13,FALSE)) -> 4.375792624 | Q15: =IF(AnACeS_base!$C15="","",VLOOKUP($E15,BaseTrienal,Q13,FALSE)) -> 4.281000048 | R15: =IF(AnACeS_base!$C15="","",VLOOKUP($E15,BaseTrienal,R13,FALSE)) -> 4.070614893 | S15: =IF(AnACeS_base!$C15="","",VLOOKUP($E15,BaseTrienal,S13,FALSE)) -> 3.892868155 | T15: =IF(AnACeS_base!$C15="","",VLOOKUP($E15,BaseTrienal,T13,FALSE)) -> 3.700679874 | U15: =IF(AnACeS_base!$C15="","",VLOOKUP($E15,BaseTrienal,U13,FALSE)) -> 3.508833701 | V15: =IF(AnACeS_base!$C15="","",VLOOKUP($E15,BaseTrienal,V13,FALSE)) -> 3.269700773 | W15: =IF(AnACeS_base!$C15="","",VLOOKUP($E15,BaseTrienal,W13,FALSE)) -> 2.931447043 | X15: =IF(AnACeS_base!$C15="","",VLOOKUP($E15,BaseTrienal,X13,FALSE)) -> 2.646233239
A16: I04 | B16: Proporção de Nascimentos em Mulheres com Idade Inferior a 20 anos | C16: R02 | D16: Região Alentejo | E16: I04R02 | F16: =IF(AnACeS_base!$C16="","",VLOOKUP($E16,BaseTrienal,F13,FALSE)) -> 10.34331948 | G16: =IF(AnACeS_base!$C16="","",VLOOKUP($E16,BaseTrienal,G13,FALSE)) -> 9.64035964 | H16: =IF(AnACeS_base!$C16="","",VLOOKUP($E16,BaseTrienal,H13,FALSE)) -> 9.023301934 | I16: =IF(AnACeS_base!$C16="","",VLOOKUP($E16,BaseTrienal,I13,FALSE)) -> 8.841529268 | J16: =IF(AnACeS_base!$C16="","",VLOOKUP($E16,BaseTrienal,J13,FALSE)) -> 8.636495925 | K16: =IF(AnACeS_base!$C16="","",VLOOKUP($E16,BaseTrienal,K13,FALSE)) -> 8.331490083 | L16: =IF(AnACeS_base!$C16="","",VLOOKUP($E16,BaseTrienal,L13,FALSE)) -> 7.863285235 | M16: =IF(AnACeS_base!$C16="","",VLOOKUP($E16,BaseTrienal,M13,FALSE)) -> 7.226004832 | N16: =IF(AnACeS_base!$C16="","",VLOOKUP($E16,BaseTrienal,N13,FALSE)) -> 6.700091158 | O16: =IF(AnACeS_base!$C16="","",VLOOKUP($E16,BaseTrienal,O13,FALSE)) -> 6.422382958 | P16: =IF(AnACeS_base!$C16="","",VLOOKUP($E16,BaseTrienal,P13,FALSE)) -> 5.980958581 | Q16: =IF(AnACeS_base!$C16="","",VLOOKUP($E16,BaseTrienal,Q13,FALSE)) -> 5.644171779 | R16: =IF(AnACeS_base!$C16="","",VLOOKUP($E16,BaseTrienal,R13,FALSE)) -> 5.343141217 | S16: =IF(AnACeS_base!$C16="","",VLOOKUP($E16,BaseTrienal,S13,FALSE)) -> 5.36136234 | T16: =IF(AnACeS_base!$C16="","",VLOOKUP($E16,BaseTrienal,T13,FALSE)) -> 5.30726257 | U16: =IF(AnACeS_base!$C16="","",VLOOKUP($E16,BaseTrienal,U13,FALSE)) -> 5.138852842 | V16: =IF(AnACeS_base!$C16="","",VLOOKUP($E16,BaseTrienal,V13,FALSE)) -> 5.070863243 | W16: =IF(AnACeS_base!$C16="","",VLOOKUP($E16,BaseTrienal,W13,FALSE)) -> 4.790816811 | X16: =IF(AnACeS_base!$C16="","",VLOOKUP($E16,BaseTrienal,X13,FALSE)) -> 4.508811399
A17: I04 | B17: Proporção de Nascimentos em Mulheres com Idade Inferior a 20 anos | C17: =IF(AnACeS_Select=1,"",VLOOKUP(AnACeS_Select,AnACeS_tab,2,FALSE)) ->  | D17: =IF(AnACeS_Select=1,"",VLOOKUP(AnACeS_Select,AnACeS_tab,3,FALSE)) ->  | E17: =IF(C17="","",CONCATENATE(A17,C17)) ->  | F17: =IF(AnACeS_base!$C17="","",VLOOKUP($E17,BaseTrienal,F13,FALSE)) ->  | G17: =IF(AnACeS_base!$C17="","",VLOOKUP($E17,BaseTrienal,G13,FALSE)) ->  | H17: =IF(AnACeS_base!$C17="","",VLOOKUP($E17,BaseTrienal,H13,FALSE)) ->  | I17: =IF(AnACeS_base!$C17="","",VLOOKUP($E17,BaseTrienal,I13,FALSE)) ->  | J17: =IF(AnACeS_base!$C17="","",VLOOKUP($E17,BaseTrienal,J13,FALSE)) ->  | K17: =IF(AnACeS_base!$C17="","",VLOOKUP($E17,BaseTrienal,K13,FALSE)) ->  | L17: =IF(AnACeS_base!$C17="","",VLOOKUP($E17,BaseTrienal,L13,FALSE)) ->  | M17: =IF(AnACeS_base!$C17="","",VLOOKUP($E17,BaseTrienal,M13,FALSE)) ->  | N17: =IF(AnACeS_base!$C17="","",VLOOKUP($E17,BaseTrienal,N13,FALSE)) ->  | O17: =IF(AnACeS_base!$C17="","",VLOOKUP($E17,BaseTrienal,O13,FALSE)) ->  | P17: =IF(AnACeS_base!$C17="","",VLOOKUP($E17,BaseTrienal,P13,FALSE)) ->  | Q17: =IF(AnACeS_base!$C17="","",VLOOKUP($E17,BaseTrienal,Q13,FALSE)) ->  | R17: =IF(AnACeS_base!$C17="","",VLOOKUP($E17,BaseTrienal,R13,FALSE)) ->  | S17: =IF(AnACeS_base!$C17="","",VLOOKUP($E17,BaseTrienal,S13,FALSE)) ->  | T17: =IF(AnACeS_base!$C17="","",VLOOKUP($E17,BaseTrienal,T13,FALSE)) ->  | U17: =IF(AnACeS_base!$C17="","",VLOOKUP($E17,BaseTrienal,$U$13,FALSE)) ->  | V17: =IF(AnACeS_base!$C17="","",VLOOKUP($E17,BaseTrienal,$V$13,FALSE)) ->  | W17: =IF(AnACeS_base!$C17="","",VLOOKUP($E17,BaseTrienal,$W$13,FALSE)) ->  | X17: =IF(AnACeS_base!$C17="","",VLOOKUP($E17,BaseTrienal,$X$13,FALSE)) -> 
A18: I06 | B18: Proporção de Nascimentos em Mulheres com Idade igual ou superior a 35 anos | C18: R01 | D18: Continente | E18: I06R01 | F18: =IF(AnACeS_base!$C18="","",VLOOKUP($E18,BaseTrienal,F13,FALSE)) -> 11.02852057 | G18: =IF(AnACeS_base!$C18="","",VLOOKUP($E18,BaseTrienal,G13,FALSE)) -> 11.79864636 | H18: =IF(AnACeS_base!$C18="","",VLOOKUP($E18,BaseTrienal,H13,FALSE)) -> 12.54202624 | I18: =IF(AnACeS_base!$C18="","",VLOOKUP($E18,BaseTrienal,I13,FALSE)) -> 13.28612483 | J18: =IF(AnACeS_base!$C18="","",VLOOKUP($E18,BaseTrienal,J13,FALSE)) -> 13.84558628 | K18: =IF(AnACeS_base!$C18="","",VLOOKUP($E18,BaseTrienal,K13,FALSE)) -> 14.45888633 | L18: =IF(AnACeS_base!$C18="","",VLOOKUP($E18,BaseTrienal,L13,FALSE)) -> 15.03841276 | M18: =IF(AnACeS_base!$C18="","",VLOOKUP($E18,BaseTrienal,M13,FALSE)) -> 15.7112228 | N18: =IF(AnACeS_base!$C18="","",VLOOKUP($E18,BaseTrienal,N13,FALSE)) -> 16.51927608 | O18: =IF(AnACeS_base!$C18="","",VLOOKUP($E18,BaseTrienal,O13,FALSE)) -> 17.42429797 | P18: =IF(AnACeS_base!$C18="","",VLOOKUP($E18,BaseTrienal,P13,FALSE)) -> 18.40139333 | Q18: =IF(AnACeS_base!$C18="","",VLOOKUP($E18,BaseTrienal,Q13,FALSE)) -> 19.43259871 | R18: =IF(AnACeS_base!$C18="","",VLOOKUP($E18,BaseTrienal,R13,FALSE)) -> 20.60556657 | S18: =IF(AnACeS_base!$C18="","",VLOOKUP($E18,BaseTrienal,S13,FALSE)) -> 22.21032971 | T18: =IF(AnACeS_base!$C18="","",VLOOKUP($E18,BaseTrienal,T13,FALSE)) -> 23.64986326 | U18: =IF(AnACeS_base!$C18="","",VLOOKUP($E18,BaseTrienal,U13,FALSE)) -> 25.16039936 | V18: =IF(AnACeS_base!$C18="","",VLOOKUP($E18,BaseTrienal,V13,FALSE)) -> 26.66952903 | W18: =IF(AnACeS_base!$C18="","",VLOOKUP($E18,BaseTrienal,W13,FALSE)) -> 28.31787079 | X18: =IF(AnACeS_base!$C18="","",VLOOKUP($E18,BaseTrienal,X13,FALSE)) -> 30.03227415
A19: I06 | B19: Proporção de Nascimentos em Mulheres com Idade igual ou superior a 35 anos | C19: R02 | D19: Região Alentejo | E19: I06R02 | F19: =IF(AnACeS_base!$C19="","",VLOOKUP($E19,BaseTrienal,F13,FALSE)) -> 9.803921569 | G19: =IF(AnACeS_base!$C19="","",VLOOKUP($E19,BaseTrienal,G13,FALSE)) -> 10.46810333 | H19: =IF(AnACeS_base!$C19="","",VLOOKUP($E19,BaseTrienal,H13,FALSE)) -> 11.43848714 | I19: =IF(AnACeS_base!$C19="","",VLOOKUP($E19,BaseTrienal,I13,FALSE)) -> 12.36950104 | J19: =IF(AnACeS_base!$C19="","",VLOOKUP($E19,BaseTrienal,J13,FALSE)) -> 12.64551804 | K19: =IF(AnACeS_base!$C19="","",VLOOKUP($E19,BaseTrienal,K13,FALSE)) -> 13.01334513 | L19: =IF(AnACeS_base!$C19="","",VLOOKUP($E19,BaseTrienal,L13,FALSE)) -> 13.48928728 | M19: =IF(AnACeS_base!$C19="","",VLOOKUP($E19,BaseTrienal,M13,FALSE)) -> 14.27630134 | N19: =IF(AnACeS_base!$C19="","",VLOOKUP($E19,BaseTrienal,N13,FALSE)) -> 14.89668794 | O19: =IF(AnACeS_base!$C19="","",VLOOKUP($E19,BaseTrienal,O13,FALSE)) -> 15.33264446 | P19: =IF(AnACeS_base!$C19="","",VLOOKUP($E19,BaseTrienal,P13,FALSE)) -> 16.42932704 | Q19: =IF(AnACeS_base!$C19="","",VLOOKUP($E19,BaseTrienal,Q13,FALSE)) -> 17.26789366 | R19: =IF(AnACeS_base!$C19="","",VLOOKUP($E19,BaseTrienal,R13,FALSE)) -> 18.46253334 | S19: =IF(AnACeS_base!$C19="","",VLOOKUP($E19,BaseTrienal,S13,FALSE)) -> 19.62030473 | T19: =IF(AnACeS_base!$C19="","",VLOOKUP($E19,BaseTrienal,T13,FALSE)) -> 21.03187644 | U19: =IF(AnACeS_base!$C19="","",VLOOKUP($E19,BaseTrienal,U13,FALSE)) -> 22.37217752 | V19: =IF(AnACeS_base!$C19="","",VLOOKUP($E19,BaseTrienal,V13,FALSE)) -> 23.24682496 | W19: =IF(AnACeS_base!$C19="","",VLOOKUP($E19,BaseTrienal,W13,FALSE)) -> 24.50431648 | X19: =IF(AnACeS_base!$C19="","",VLOOKUP($E19,BaseTrienal,X13,FALSE)) -> 26.32170979
A20: I06 | B20: Proporção de Nascimentos em Mulheres com Idade igual ou superior a 35 anos | C20: =IF(AnACeS_Select=1,"",VLOOKUP(AnACeS_Select,AnACeS_tab,2,FALSE)) ->  | D20: =IF(AnACeS_Select=1,"",VLOOKUP(AnACeS_Select,AnACeS_tab,3,FALSE)) ->  | E20: =IF(C20="","",CONCATENATE(A20,C20)) ->  | F20: =IF(AnACeS_base!$C20="","",VLOOKUP($E20,BaseTrienal,F13,FALSE)) ->  | G20: =IF(AnACeS_base!$C20="","",VLOOKUP($E20,BaseTrienal,G13,FALSE)) ->  | H20: =IF(AnACeS_base!$C20="","",VLOOKUP($E20,BaseTrienal,H13,FALSE)) ->  | I20: =IF(AnACeS_base!$C20="","",VLOOKUP($E20,BaseTrienal,I13,FALSE)) ->  | J20: =IF(AnACeS_base!$C20="","",VLOOKUP($E20,BaseTrienal,J13,FALSE)) ->  | K20: =IF(AnACeS_base!$C20="","",VLOOKUP($E20,BaseTrienal,K13,FALSE)) ->  | L20: =IF(AnACeS_base!$C20="","",VLOOKUP($E20,BaseTrienal,L13,FALSE)) ->  | M20: =IF(AnACeS_base!$C20="","",VLOOKUP($E20,BaseTrienal,M13,FALSE)) ->  | N20: =IF(AnACeS_base!$C20="","",VLOOKUP($E20,BaseTrienal,N13,FALSE)) ->  | O20: =IF(AnACeS_base!$C20="","",VLOOKUP($E20,BaseTrienal,O13,FALSE)) ->  | P20: =IF(AnACeS_base!$C20="","",VLOOKUP($E20,BaseTrienal,P13,FALSE)) ->  | Q20: =IF(AnACeS_base!$C20="","",VLOOKUP($E20,BaseTrienal,Q13,FALSE)) ->  | R20: =IF(AnACeS_base!$C20="","",VLOOKUP($E20,BaseTrienal,R13,FALSE)) ->  | S20: =IF(AnACeS_base!$C20="","",VLOOKUP($E20,BaseTrienal,S13,FALSE)) ->  | T20: =IF(AnACeS_base!$C20="","",VLOOKUP($E20,BaseTrienal,T13,FALSE)) ->  | U20: =IF(AnACeS_base!$C20="","",VLOOKUP($E20,BaseTrienal,$U$13,FALSE)) ->  | V20: =IF(AnACeS_base!$C20="","",VLOOKUP($E20,BaseTrienal,$V$13,FALSE)) ->  | W20: =IF(AnACeS_base!$C20="","",VLOOKUP($E20,BaseTrienal,$W$13,FALSE)) ->  | X20: =IF(AnACeS_base!$C20="","",VLOOKUP($E20,BaseTrienal,$X$13,FALSE)) -> 
A21: I08 | B21: Proporção nascimentos pré-termo | C21: R01 | D21: Continente | E21: I08R01 | F21: na | G21: na | H21: na | I21: na | J21: =IF(AnACeS_base!$C21="","",VLOOKUP($E21,BaseTrienal,J13,FALSE)) -> 6.027031394 | K21: =IF(AnACeS_base!$C21="","",VLOOKUP($E21,BaseTrienal,K13,FALSE)) -> 6.353633341 | L21: =IF(AnACeS_base!$C21="","",VLOOKUP($E21,BaseTrienal,L13,FALSE)) -> 6.734585328 | M21: =IF(AnACeS_base!$C21="","",VLOOKUP($E21,BaseTrienal,M13,FALSE)) -> 6.7775218 | N21: =IF(AnACeS_base!$C21="","",VLOOKUP($E21,BaseTrienal,N13,FALSE)) -> 7.102159626 | O21: =IF(AnACeS_base!$C21="","",VLOOKUP($E21,BaseTrienal,O13,FALSE)) -> 7.836818215 | P21: =IF(AnACeS_base!$C21="","",VLOOKUP($E21,BaseTrienal,P13,FALSE)) -> 8.66534774 | Q21: =IF(AnACeS_base!$C21="","",VLOOKUP($E21,BaseTrienal,Q13,FALSE)) -> 8.960200616 | R21: =IF(AnACeS_base!$C21="","",VLOOKUP($E21,BaseTrienal,R13,FALSE)) -> 8.518759024 | S21: =IF(AnACeS_base!$C21="","",VLOOKUP($E21,BaseTrienal,S13,FALSE)) -> 8.020711873 | T21: =IF(AnACeS_base!$C21="","",VLOOKUP($E21,BaseTrienal,T13,FALSE)) -> 7.695715368 | U21: =IF(AnACeS_base!$C21="","",VLOOKUP($E21,BaseTrienal,U13,FALSE)) -> 7.74337668 | V21: =IF(AnACeS_base!$C21="","",VLOOKUP($E21,BaseTrienal,V13,FALSE)) -> 7.851410265 | W21: =IF(AnACeS_base!$C21="","",VLOOKUP($E21,BaseTrienal,W13,FALSE)) -> 7.917383821 | X21: =IF(AnACeS_base!$C21="","",VLOOKUP($E21,BaseTrienal,X13,FALSE)) -> 7.897481132
A22: I08 | B22: Proporção nascimentos pré-termo | C22: R02 | D22: Região Alentejo | E22: I08R02 | F22: na | G22: na | H22: na | I22: na | J22: =IF(AnACeS_base!$C22="","",VLOOKUP($E22,BaseTrienal,J13,FALSE)) -> 6.257275902 | K22: =IF(AnACeS_base!$C22="","",VLOOKUP($E22,BaseTrienal,K13,FALSE)) -> 6.436629064 | L22: =IF(AnACeS_base!$C22="","",VLOOKUP($E22,BaseTrienal,L13,FALSE)) -> 6.711849585 | M22: =IF(AnACeS_base!$C22="","",VLOOKUP($E22,BaseTrienal,M13,FALSE)) -> 6.852624643 | N22: =IF(AnACeS_base!$C22="","",VLOOKUP($E22,BaseTrienal,N13,FALSE)) -> 7.072318444 | O22: =IF(AnACeS_base!$C22="","",VLOOKUP($E22,BaseTrienal,O13,FALSE)) -> 8.115412129 | P22: =IF(AnACeS_base!$C22="","",VLOOKUP($E22,BaseTrienal,P13,FALSE)) -> 8.56863862 | Q22: =IF(AnACeS_base!$C22="","",VLOOKUP($E22,BaseTrienal,Q13,FALSE)) -> 8.801635992 | R22: =IF(AnACeS_base!$C22="","",VLOOKUP($E22,BaseTrienal,R13,FALSE)) -> 8.115754587 | S22: =IF(AnACeS_base!$C22="","",VLOOKUP($E22,BaseTrienal,S13,FALSE)) -> 7.463537847 | T22: =IF(AnACeS_base!$C22="","",VLOOKUP($E22,BaseTrienal,T13,FALSE)) -> 7.090042721 | U22: =IF(AnACeS_base!$C22="","",VLOOKUP($E22,BaseTrienal,U13,FALSE)) -> 6.946967731 | V22: =IF(AnACeS_base!$C22="","",VLOOKUP($E22,BaseTrienal,V13,FALSE)) -> 7.086324314 | W22: =IF(AnACeS_base!$C22="","",VLOOKUP($E22,BaseTrienal,W13,FALSE)) -> 7.295323024 | X22: =IF(AnACeS_base!$C22="","",VLOOKUP($E22,BaseTrienal,X13,FALSE)) -> 7.292838395
A23: I08 | B23: Proporção nascimentos pré-termo | C23: =IF(AnACeS_Select=1,"",VLOOKUP(AnACeS_Select,AnACeS_tab,2,FALSE)) ->  | D23: =IF(AnACeS_Select=1,"",VLOOKUP(AnACeS_Select,AnACeS_tab,3,FALSE)) ->  | E23: =IF(C23="","",CONCATENATE(A23,C23)) ->  | F23: =IF(AnACeS_base!$C23="","",VLOOKUP($E23,BaseTrienal,F13,FALSE)) ->  | G23: =IF(AnACeS_base!$C23="","",VLOOKUP($E23,BaseTrienal,G13,FALSE)) ->  | H23: =IF(AnACeS_base!$C23="","",VLOOKUP($E23,BaseTrienal,H13,FALSE)) ->  | I23: =IF(AnACeS_base!$C23="","",VLOOKUP($E23,BaseTrienal,I13,FALSE)) ->  | J23: =IF(AnACeS_base!$C23="","",VLOOKUP($E23,BaseTrienal,J13,FALSE)) ->  | K23: =IF(AnACeS_base!$C23="","",VLOOKUP($E23,BaseTrienal,K13,FALSE)) ->  | L23: =IF(AnACeS_base!$C23="","",VLOOKUP($E23,BaseTrienal,L13,FALSE)) ->  | M23: =IF(AnACeS_base!$C23="","",VLOOKUP($E23,BaseTrienal,M13,FALSE)) ->  | N23: =IF(AnACeS_base!$C23="","",VLOOKUP($E23,BaseTrienal,N13,FALSE)) ->  | O23: =IF(AnACeS_base!$C23="","",VLOOKUP($E23,BaseTrienal,O13,FALSE)) ->  | P23: =IF(AnACeS_base!$C23="","",VLOOKUP($E23,BaseTrienal,P13,FALSE)) ->  | Q23: =IF(AnACeS_base!$C23="","",VLOOKUP($E23,BaseTrienal,Q13,FALSE)) ->  | R23: =IF(AnACeS_base!$C23="","",VLOOKUP($E23,BaseTrienal,R13,FALSE)) ->  | S23: =IF(AnACeS_base!$C23="","",VLOOKUP($E23,BaseTrienal,S13,FALSE)) ->  | T23: =IF(AnACeS_base!$C23="","",VLOOKUP($E23,BaseTrienal,T13,FALSE)) ->  | U23: =IF(AnACeS_base!$C23="","",VLOOKUP($E23,BaseTrienal,$U$13,FALSE)) ->  | V23: =IF(AnACeS_base!$C23="","",VLOOKUP($E23,BaseTrienal,$V$13,FALSE)) ->  | W23: =IF(AnACeS_base!$C23="","",VLOOKUP($E23,BaseTrienal,$W$13,FALSE)) ->  | X23: =IF(AnACeS_base!$C23="","",VLOOKUP($E23,BaseTrienal,$X$13,FALSE)) -> 
A24: I10 | B24: Proporção de Baixo Peso à Nascença | C24: R01 | D24: Continente | E24: I10R01 | F24: =IF(AnACeS_base!$C24="","",VLOOKUP($E24,BaseTrienal,F13,FALSE)) -> 6.524442593 | G24: =IF(AnACeS_base!$C24="","",VLOOKUP($E24,BaseTrienal,G13,FALSE)) -> 6.882311177 | H24: =IF(AnACeS_base!$C24="","",VLOOKUP($E24,BaseTrienal,H13,FALSE)) -> 7.071939215 | I24: =IF(AnACeS_base!$C24="","",VLOOKUP($E24,BaseTrienal,I13,FALSE)) -> 7.231042172 | J24: =IF(AnACeS_base!$C24="","",VLOOKUP($E24,BaseTrienal,J13,FALSE)) -> 7.199326807 | K24: =IF(AnACeS_base!$C24="","",VLOOKUP($E24,BaseTrienal,K13,FALSE)) -> 7.305634413 | L24: =IF(AnACeS_base!$C24="","",VLOOKUP($E24,BaseTrienal,L13,FALSE)) -> 7.443041799 | M24: =IF(AnACeS_base!$C24="","",VLOOKUP($E24,BaseTrienal,M13,FALSE)) -> 7.506047079 | N24: =IF(AnACeS_base!$C24="","",VLOOKUP($E24,BaseTrienal,N13,FALSE)) -> 7.562931974 | O24: =IF(AnACeS_base!$C24="","",VLOOKUP($E24,BaseTrienal,O13,FALSE)) -> 7.648188017 | P24: =IF(AnACeS_base!$C24="","",VLOOKUP($E24,BaseTrienal,P13,FALSE)) -> 7.714029659 | Q24: =IF(AnACeS_base!$C24="","",VLOOKUP($E24,BaseTrienal,Q13,FALSE)) -> 7.918196661 | R24: =IF(AnACeS_base!$C24="","",VLOOKUP($E24,BaseTrienal,R13,FALSE)) -> 8.082165284 | S24: =IF(AnACeS_base!$C24="","",VLOOKUP($E24,BaseTrienal,S13,FALSE)) -> 8.325861134 | T24: =IF(AnACeS_base!$C24="","",VLOOKUP($E24,BaseTrienal,T13,FALSE)) -> 8.440391156 | U24: =IF(AnACeS_base!$C24="","",VLOOKUP($E24,BaseTrienal,U13,FALSE)) -> 8.555153905 | V24: =IF(AnACeS_base!$C24="","",VLOOKUP($E24,BaseTrienal,V13,FALSE)) -> 8.667184094 | W24: =IF(AnACeS_base!$C24="","",VLOOKUP($E24,BaseTrienal,W13,FALSE)) -> 8.787624365 | X24: =IF(AnACeS_base!$C24="","",VLOOKUP($E24,BaseTrienal,X13,FALSE)) -> 8.761834887
A25: I10 | B25: Proporção de Baixo Peso à Nascença | C25: R02 | D25: Região Alentejo | E25: I10R02 | F25: =IF(AnACeS_base!$C25="","",VLOOKUP($E25,BaseTrienal,F13,FALSE)) -> 6.837233034 | G25: =IF(AnACeS_base!$C25="","",VLOOKUP($E25,BaseTrienal,G13,FALSE)) -> 7.321250178 | H25: =IF(AnACeS_base!$C25="","",VLOOKUP($E25,BaseTrienal,H13,FALSE)) -> 7.613853672 | I25: =IF(AnACeS_base!$C25="","",VLOOKUP($E25,BaseTrienal,I13,FALSE)) -> 7.76873785 | J25: =IF(AnACeS_base!$C25="","",VLOOKUP($E25,BaseTrienal,J13,FALSE)) -> 7.530558789 | K25: =IF(AnACeS_base!$C25="","",VLOOKUP($E25,BaseTrienal,K13,FALSE)) -> 7.358254074 | L25: =IF(AnACeS_base!$C25="","",VLOOKUP($E25,BaseTrienal,L13,FALSE)) -> 7.535344702 | M25: =IF(AnACeS_base!$C25="","",VLOOKUP($E25,BaseTrienal,M13,FALSE)) -> 7.701881543 | N25: =IF(AnACeS_base!$C25="","",VLOOKUP($E25,BaseTrienal,N13,FALSE)) -> 8.21178973 | O25: =IF(AnACeS_base!$C25="","",VLOOKUP($E25,BaseTrienal,O13,FALSE)) -> 8.194897067 | P25: =IF(AnACeS_base!$C25="","",VLOOKUP($E25,BaseTrienal,P13,FALSE)) -> 8.503539751 | Q25: =IF(AnACeS_base!$C25="","",VLOOKUP($E25,BaseTrienal,Q13,FALSE)) -> 8.433537832 | R25: =IF(AnACeS_base!$C25="","",VLOOKUP($E25,BaseTrienal,R13,FALSE)) -> 8.85942931 | S25: =IF(AnACeS_base!$C25="","",VLOOKUP($E25,BaseTrienal,S13,FALSE)) -> 8.82424835 | T25: =IF(AnACeS_base!$C25="","",VLOOKUP($E25,BaseTrienal,T13,FALSE)) -> 8.708511337 | U25: =IF(AnACeS_base!$C25="","",VLOOKUP($E25,BaseTrienal,U13,FALSE)) -> 8.599359806 | V25: =IF(AnACeS_base!$C25="","",VLOOKUP($E25,BaseTrienal,V13,FALSE)) -> 8.521995214 | W25: =IF(AnACeS_base!$C25="","",VLOOKUP($E25,BaseTrienal,W13,FALSE)) -> 8.822692344 | X25: =IF(AnACeS_base!$C25="","",VLOOKUP($E25,BaseTrienal,X13,FALSE)) -> 8.830146232
A26: I10 | B26: Proporção de Baixo Peso à Nascença | C26: =IF(AnACeS_Select=1,"",VLOOKUP(AnACeS_Select,AnACeS_tab,2,FALSE)) ->  | D26: =IF(AnACeS_Select=1,"",VLOOKUP(AnACeS_Select,AnACeS_tab,3,FALSE)) ->  | E26: =IF(C26="","",CONCATENATE(A26,C26)) ->  | F26: =IF(AnACeS_base!$C26="","",VLOOKUP($E26,BaseTrienal,F13,FALSE)) ->  | G26: =IF(AnACeS_base!$C26="","",VLOOKUP($E26,BaseTrienal,G13,FALSE)) ->  | H26: =IF(AnACeS_base!$C26="","",VLOOKUP($E26,BaseTrienal,H13,FALSE)) ->  | I26: =IF(AnACeS_base!$C26="","",VLOOKUP($E26,BaseTrienal,I13,FALSE)) ->  | J26: =IF(AnACeS_base!$C26="","",VLOOKUP($E26,BaseTrienal,J13,FALSE)) ->  | K26: =IF(AnACeS_base!$C26="","",VLOOKUP($E26,BaseTrienal,K13,FALSE)) ->  | L26: =IF(AnACeS_base!$C26="","",VLOOKUP($E26,BaseTrienal,L13,FALSE)) ->  | M26: =IF(AnACeS_base!$C26="","",VLOOKUP($E26,BaseTrienal,M13,FALSE)) ->  | N26: =IF(AnACeS_base!$C26="","",VLOOKUP($E26,BaseTrienal,N13,FALSE)) ->  | O26: =IF(AnACeS_base!$C26="","",VLOOKUP($E26,BaseTrienal,O13,FALSE)) ->  | P26: =IF(AnACeS_base!$C26="","",VLOOKUP($E26,BaseTrienal,P13,FALSE)) ->  | Q26: =IF(AnACeS_base!$C26="","",VLOOKUP($E26,BaseTrienal,Q13,FALSE)) ->  | R26: =IF(AnACeS_base!$C26="","",VLOOKUP($E26,BaseTrienal,R13,FALSE)) ->  | S26: =IF(AnACeS_base!$C26="","",VLOOKUP($E26,BaseTrienal,S13,FALSE)) ->  | T26: =IF(AnACeS_base!$C26="","",VLOOKUP($E26,BaseTrienal,T13,FALSE)) ->  | U26: =IF(AnACeS_base!$C26="","",VLOOKUP($E26,BaseTrienal,$U$13,FALSE)) ->  | V26: =IF(AnACeS_base!$C26="","",VLOOKUP($E26,BaseTrienal,$V$13,FALSE)) ->  | W26: =IF(AnACeS_base!$C26="","",VLOOKUP($E26,BaseTrienal,$W$13,FALSE)) ->  | X26: =IF(AnACeS_base!$C26="","",VLOOKUP($E26,BaseTrienal,$X$13,FALSE)) -> 
A27: I15 | B27: Taxa de Mortalidade Infantil | C27: R01 | D27: Continente | E27: I15R01 | F27: =IF(AnACeS_base!$C27="","",VLOOKUP($E27,BaseTrienal,F13,FALSE)) -> 6.221119612 | G27: =IF(AnACeS_base!$C27="","",VLOOKUP($E27,BaseTrienal,G13,FALSE)) -> 5.828788635 | H27: =IF(AnACeS_base!$C27="","",VLOOKUP($E27,BaseTrienal,H13,FALSE)) -> 5.501341198 | I27: =IF(AnACeS_base!$C27="","",VLOOKUP($E27,BaseTrienal,I13,FALSE)) -> 5.173492761 | J27: =IF(AnACeS_base!$C27="","",VLOOKUP($E27,BaseTrienal,J13,FALSE)) -> 5.015412102 | K27: =IF(AnACeS_base!$C27="","",VLOOKUP($E27,BaseTrienal,K13,FALSE)) -> 4.611985553 | L27: =IF(AnACeS_base!$C27="","",VLOOKUP($E27,BaseTrienal,L13,FALSE)) -> 4.261439636 | M27: =IF(AnACeS_base!$C27="","",VLOOKUP($E27,BaseTrienal,M13,FALSE)) -> 3.748070846 | N27: =IF(AnACeS_base!$C27="","",VLOOKUP($E27,BaseTrienal,N13,FALSE)) -> 3.481898695 | O27: =IF(AnACeS_base!$C27="","",VLOOKUP($E27,BaseTrienal,O13,FALSE)) -> 3.359350526 | P27: =IF(AnACeS_base!$C27="","",VLOOKUP($E27,BaseTrienal,P13,FALSE)) -> 3.310843944 | Q27: =IF(AnACeS_base!$C27="","",VLOOKUP($E27,BaseTrienal,Q13,FALSE)) -> 3.413639401 | R27: =IF(AnACeS_base!$C27="","",VLOOKUP($E27,BaseTrienal,R13,FALSE)) -> 3.101749829 | S27: =IF(AnACeS_base!$C27="","",VLOOKUP($E27,BaseTrienal,S13,FALSE)) -> 3.044404356 | T27: =IF(AnACeS_base!$C27="","",VLOOKUP($E27,BaseTrienal,T13,FALSE)) -> 2.943556211 | U27: =IF(AnACeS_base!$C27="","",VLOOKUP($E27,BaseTrienal,U13,FALSE)) -> 3.106270441 | V27: =IF(AnACeS_base!$C27="","",VLOOKUP($E27,BaseTrienal,V13,FALSE)) -> 2.988968888 | W27: =IF(AnACeS_base!$C27="","",VLOOKUP($E27,BaseTrienal,W13,FALSE)) -> 2.829436212 | X27: =IF(AnACeS_base!$C27="","",VLOOKUP($E27,BaseTrienal,X13,FALSE)) -> 2.955372637
A28: I15 | B28: Taxa de Mortalidade Infantil | C28: R02 | D28: Região Alentejo | E28: I15R02 | F28: =IF(AnACeS_base!$C28="","",VLOOKUP($E28,BaseTrienal,F13,FALSE)) -> 4.956629492 | G28: =IF(AnACeS_base!$C28="","",VLOOKUP($E28,BaseTrienal,G13,FALSE)) -> 4.56686171 | H28: =IF(AnACeS_base!$C28="","",VLOOKUP($E28,BaseTrienal,H13,FALSE)) -> 4.603725476 | I28: =IF(AnACeS_base!$C28="","",VLOOKUP($E28,BaseTrienal,I13,FALSE)) -> 4.31996544 | J28: =IF(AnACeS_base!$C28="","",VLOOKUP($E28,BaseTrienal,J13,FALSE)) -> 4.583818393 | K28: =IF(AnACeS_base!$C28="","",VLOOKUP($E28,BaseTrienal,K13,FALSE)) -> 4.644990046 | L28: =IF(AnACeS_base!$C28="","",VLOOKUP($E28,BaseTrienal,L13,FALSE)) -> 4.882670165 | M28: =IF(AnACeS_base!$C28="","",VLOOKUP($E28,BaseTrienal,M13,FALSE)) -> 4.465919906 | N28: =IF(AnACeS_base!$C28="","",VLOOKUP($E28,BaseTrienal,N13,FALSE)) -> 3.798237618 | O28: =IF(AnACeS_base!$C28="","",VLOOKUP($E28,BaseTrienal,O13,FALSE)) -> 3.65630713 | P28: =IF(AnACeS_base!$C28="","",VLOOKUP($E28,BaseTrienal,P13,FALSE)) -> 3.824558548 | Q28: =IF(AnACeS_base!$C28="","",VLOOKUP($E28,BaseTrienal,Q13,FALSE)) -> 4.662576687 | R28: =IF(AnACeS_base!$C28="","",VLOOKUP($E28,BaseTrienal,R13,FALSE)) -> 4.041710452 | S28: =IF(AnACeS_base!$C28="","",VLOOKUP($E28,BaseTrienal,S13,FALSE)) -> 3.340666504 | T28: =IF(AnACeS_base!$C28="","",VLOOKUP($E28,BaseTrienal,T13,FALSE)) -> 2.628984555 | U28: =IF(AnACeS_base!$C28="","",VLOOKUP($E28,BaseTrienal,U13,FALSE)) -> 2.854918246 | V28: =IF(AnACeS_base!$C28="","",VLOOKUP($E28,BaseTrienal,V13,FALSE)) -> 3.036996135 | W28: =IF(AnACeS_base!$C28="","",VLOOKUP($E28,BaseTrienal,W13,FALSE)) -> 3.035765108 | X28: =IF(AnACeS_base!$C28="","",VLOOKUP($E28,BaseTrienal,X13,FALSE)) -> 2.530933633
A29: I15 | B29: Taxa de Mortalidade Infantil | C29: =IF(AnACeS_Select=1,"",VLOOKUP(AnACeS_Select,AnACeS_tab,2,FALSE)) ->  | D29: =IF(AnACeS_Select=1,"",VLOOKUP(AnACeS_Select,AnACeS_tab,3,FALSE)) ->  | E29: =IF(C29="","",CONCATENATE(A29,C29)) ->  | F29: =IF(AnACeS_base!$C29="","",VLOOKUP($E29,BaseTrienal,F13,FALSE)) ->  | G29: =IF(AnACeS_base!$C29="","",VLOOKUP($E29,BaseTrienal,G13,FALSE)) ->  | H29: =IF(AnACeS_base!$C29="","",VLOOKUP($E29,BaseTrienal,H13,FALSE)) ->  | I29: =IF(AnACeS_base!$C29="","",VLOOKUP($E29,BaseTrienal,I13,FALSE)) ->  | J29: =IF(AnACeS_base!$C29="","",VLOOKUP($E29,BaseTrienal,J13,FALSE)) ->  | K29: =IF(AnACeS_base!$C29="","",VLOOKUP($E29,BaseTrienal,K13,FALSE)) ->  | L29: =IF(AnACeS_base!$C29="","",VLOOKUP($E29,BaseTrienal,L13,FALSE)) ->  | M29: =IF(AnACeS_base!$C29="","",VLOOKUP($E29,BaseTrienal,M13,FALSE)) ->  | N29: =IF(AnACeS_base!$C29="","",VLOOKUP($E29,BaseTrienal,N13,FALSE)) ->  | O29: =IF(AnACeS_base!$C29="","",VLOOKUP($E29,BaseTrienal,O13,FALSE)) ->  | P29: =IF(AnACeS_base!$C29="","",VLOOKUP($E29,BaseTrienal,P13,FALSE)) ->  | Q29: =IF(AnACeS_base!$C29="","",VLOOKUP($E29,BaseTrienal,Q13,FALSE)) ->  | R29: =IF(AnACeS_base!$C29="","",VLOOKUP($E29,BaseTrienal,R13,FALSE)) ->  | S29: =IF(AnACeS_base!$C29="","",VLOOKUP($E29,BaseTrienal,S13,FALSE)) ->  | T29: =IF(AnACeS_base!$C29="","",VLOOKUP($E29,BaseTrienal,T13,FALSE)) ->  | U29: =IF(AnACeS_base!$C29="","",VLOOKUP($E29,BaseTrienal,$U$13,FALSE)) ->  | V29: =IF(AnACeS_base!$C29="","",VLOOKUP($E29,BaseTrienal,$V$13,FALSE)) ->  | W29: =IF(AnACeS_base!$C29="","",VLOOKUP($E29,BaseTrienal,$W$13,FALSE)) ->  | X29: =IF(AnACeS_base!$C29="","",VLOOKUP($E29,BaseTrienal,$X$13,FALSE)) -> 
A30: I17 | B30: Taxa de Mortalidade Neonatal | C30: R01 | D30: Continente | E30: I17R01 | F30: =IF(AnACeS_base!$C30="","",VLOOKUP($E30,BaseTrienal,F13,FALSE)) -> 3.875968992 | G30: =IF(AnACeS_base!$C30="","",VLOOKUP($E30,BaseTrienal,G13,FALSE)) -> 3.695700028 | H30: =IF(AnACeS_base!$C30="","",VLOOKUP($E30,BaseTrienal,H13,FALSE)) -> 3.444027722 | I30: =IF(AnACeS_base!$C30="","",VLOOKUP($E30,BaseTrienal,I13,FALSE)) -> 3.177612113 | J30: =IF(AnACeS_base!$C30="","",VLOOKUP($E30,BaseTrienal,J13,FALSE)) -> 3.143398102 | K30: =IF(AnACeS_base!$C30="","",VLOOKUP($E30,BaseTrienal,K13,FALSE)) -> 2.941698893 | L30: =IF(AnACeS_base!$C30="","",VLOOKUP($E30,BaseTrienal,L13,FALSE)) -> 2.832566967 | M30: =IF(AnACeS_base!$C30="","",VLOOKUP($E30,BaseTrienal,M13,FALSE)) -> 2.425222312 | N30: =IF(AnACeS_base!$C30="","",VLOOKUP($E30,BaseTrienal,N13,FALSE)) -> 2.248386318 | O30: =IF(AnACeS_base!$C30="","",VLOOKUP($E30,BaseTrienal,O13,FALSE)) -> 2.102926767 | P30: =IF(AnACeS_base!$C30="","",VLOOKUP($E30,BaseTrienal,P13,FALSE)) -> 2.079845787 | Q30: =IF(AnACeS_base!$C30="","",VLOOKUP($E30,BaseTrienal,Q13,FALSE)) -> 2.177013221 | R30: =IF(AnACeS_base!$C30="","",VLOOKUP($E30,BaseTrienal,R13,FALSE)) -> 2.041352059 | S30: =IF(AnACeS_base!$C30="","",VLOOKUP($E30,BaseTrienal,S13,FALSE)) -> 2.126475686 | T30: =IF(AnACeS_base!$C30="","",VLOOKUP($E30,BaseTrienal,T13,FALSE)) -> 2.050238157 | U30: =IF(AnACeS_base!$C30="","",VLOOKUP($E30,BaseTrienal,U13,FALSE)) -> 2.151698668 | V30: =IF(AnACeS_base!$C30="","",VLOOKUP($E30,BaseTrienal,V13,FALSE)) -> 2.031177753 | W30: =IF(AnACeS_base!$C30="","",VLOOKUP($E30,BaseTrienal,W13,FALSE)) -> 1.960455061 | X30: =IF(AnACeS_base!$C30="","",VLOOKUP($E30,BaseTrienal,X13,FALSE)) -> 2.114513476
A31: I17 | B31: Taxa de Mortalidade Neonatal | C31: R02 | D31: Região Alentejo | E31: I17R02 | F31: =IF(AnACeS_base!$C31="","",VLOOKUP($E31,BaseTrienal,F13,FALSE)) -> 3.280122458 | G31: =IF(AnACeS_base!$C31="","",VLOOKUP($E31,BaseTrienal,G13,FALSE)) -> 3.139717425 | H31: =IF(AnACeS_base!$C31="","",VLOOKUP($E31,BaseTrienal,H13,FALSE)) -> 2.620582194 | I31: =IF(AnACeS_base!$C31="","",VLOOKUP($E31,BaseTrienal,I13,FALSE)) -> 2.591979264 | J31: =IF(AnACeS_base!$C31="","",VLOOKUP($E31,BaseTrienal,J13,FALSE)) -> 2.910360885 | K31: =IF(AnACeS_base!$C31="","",VLOOKUP($E31,BaseTrienal,K13,FALSE)) -> 3.170390032 | L31: =IF(AnACeS_base!$C31="","",VLOOKUP($E31,BaseTrienal,L13,FALSE)) -> 3.570908031 | M31: =IF(AnACeS_base!$C31="","",VLOOKUP($E31,BaseTrienal,M13,FALSE)) -> 3.221319277 | N31: =IF(AnACeS_base!$C31="","",VLOOKUP($E31,BaseTrienal,N13,FALSE)) -> 2.962625342 | O31: =IF(AnACeS_base!$C31="","",VLOOKUP($E31,BaseTrienal,O13,FALSE)) -> 2.384548128 | P31: =IF(AnACeS_base!$C31="","",VLOOKUP($E31,BaseTrienal,P13,FALSE)) -> 2.197086826 | Q31: =IF(AnACeS_base!$C31="","",VLOOKUP($E31,BaseTrienal,Q13,FALSE)) -> 2.617586912 | R31: =IF(AnACeS_base!$C31="","",VLOOKUP($E31,BaseTrienal,R13,FALSE)) -> 2.263357853 | S31: =IF(AnACeS_base!$C31="","",VLOOKUP($E31,BaseTrienal,S13,FALSE)) -> 2.199951112 | T31: =IF(AnACeS_base!$C31="","",VLOOKUP($E31,BaseTrienal,T13,FALSE)) -> 2.136049951 | U31: =IF(AnACeS_base!$C31="","",VLOOKUP($E31,BaseTrienal,U13,FALSE)) -> 2.249329527 | V31: =IF(AnACeS_base!$C31="","",VLOOKUP($E31,BaseTrienal,V13,FALSE)) -> 2.300754648 | W31: =IF(AnACeS_base!$C31="","",VLOOKUP($E31,BaseTrienal,W13,FALSE)) -> 1.707617873 | X31: =IF(AnACeS_base!$C31="","",VLOOKUP($E31,BaseTrienal,X13,FALSE)) -> 1.499812523
A32: I17 | B32: Taxa de Mortalidade Neonatal | C32: =IF(AnACeS_Select=1,"",VLOOKUP(AnACeS_Select,AnACeS_tab,2,FALSE)) ->  | D32: =IF(AnACeS_Select=1,"",VLOOKUP(AnACeS_Select,AnACeS_tab,3,FALSE)) ->  | E32: =IF(C32="","",CONCATENATE(A32,C32)) ->  | F32: =IF(AnACeS_base!$C32="","",VLOOKUP($E32,BaseTrienal,F13,FALSE)) ->  | G32: =IF(AnACeS_base!$C32="","",VLOOKUP($E32,BaseTrienal,G13,FALSE)) ->  | H32: =IF(AnACeS_base!$C32="","",VLOOKUP($E32,BaseTrienal,H13,FALSE)) ->  | I32: =IF(AnACeS_base!$C32="","",VLOOKUP($E32,BaseTrienal,I13,FALSE)) ->  | J32: =IF(AnACeS_base!$C32="","",VLOOKUP($E32,BaseTrienal,J13,FALSE)) ->  | K32: =IF(AnACeS_base!$C32="","",VLOOKUP($E32,BaseTrienal,K13,FALSE)) ->  | L32: =IF(AnACeS_base!$C32="","",VLOOKUP($E32,BaseTrienal,L13,FALSE)) ->  | M32: =IF(AnACeS_base!$C32="","",VLOOKUP($E32,BaseTrienal,M13,FALSE)) ->  | N32: =IF(AnACeS_base!$C32="","",VLOOKUP($E32,BaseTrienal,N13,FALSE)) ->  | O32: =IF(AnACeS_base!$C32="","",VLOOKUP($E32,BaseTrienal,O13,FALSE)) ->  | P32: =IF(AnACeS_base!$C32="","",VLOOKUP($E32,BaseTrienal,P13,FALSE)) ->  | Q32: =IF(AnACeS_base!$C32="","",VLOOKUP($E32,BaseTrienal,Q13,FALSE)) ->  | R32: =IF(AnACeS_base!$C32="","",VLOOKUP($E32,BaseTrienal,R13,FALSE)) ->  | S32: =IF(AnACeS_base!$C32="","",VLOOKUP($E32,BaseTrienal,S13,FALSE)) ->  | T32: =IF(AnACeS_base!$C32="","",VLOOKUP($E32,BaseTrienal,T13,FALSE)) ->  | U32: =IF(AnACeS_base!$C32="","",VLOOKUP($E32,BaseTrienal,$U$13,FALSE)) ->  | V32: =IF(AnACeS_base!$C32="","",VLOOKUP($E32,BaseTrienal,$V$13,FALSE)) ->  | W32: =IF(AnACeS_base!$C32="","",VLOOKUP($E32,BaseTrienal,$W$13,FALSE)) ->  | X32: =IF(AnACeS_base!$C32="","",VLOOKUP($E32,BaseTrienal,$X$13,FALSE)) -> 
A33: I19 | B33: Taxa de Mortalidade Neonatal Precoce | C33: R01 | D33: Continente | E33: I19R01 | F33: =IF(AnACeS_base!$C33="","",VLOOKUP($E33,BaseTrienal,F13,FALSE)) -> 2.843850213 | G33: =IF(AnACeS_base!$C33="","",VLOOKUP($E33,BaseTrienal,G13,FALSE)) -> 2.678762437 | H33: =IF(AnACeS_base!$C33="","",VLOOKUP($E33,BaseTrienal,H13,FALSE)) -> 2.57922781 | I33: =IF(AnACeS_base!$C33="","",VLOOKUP($E33,BaseTrienal,I13,FALSE)) -> 2.357387189 | J33: =IF(AnACeS_base!$C33="","",VLOOKUP($E33,BaseTrienal,J13,FALSE)) -> 2.347639707 | K33: =IF(AnACeS_base!$C33="","",VLOOKUP($E33,BaseTrienal,K13,FALSE)) -> 2.209390377 | L33: =IF(AnACeS_base!$C33="","",VLOOKUP($E33,BaseTrienal,L13,FALSE)) -> 2.083510369 | M33: =IF(AnACeS_base!$C33="","",VLOOKUP($E33,BaseTrienal,M13,FALSE)) -> 1.7510169 | N33: =IF(AnACeS_base!$C33="","",VLOOKUP($E33,BaseTrienal,N13,FALSE)) -> 1.585944485 | O33: =IF(AnACeS_base!$C33="","",VLOOKUP($E33,BaseTrienal,O13,FALSE)) -> 1.55303308 | P33: =IF(AnACeS_base!$C33="","",VLOOKUP($E33,BaseTrienal,P13,FALSE)) -> 1.528602107 | Q33: =IF(AnACeS_base!$C33="","",VLOOKUP($E33,BaseTrienal,Q13,FALSE)) -> 1.546643886 | R33: =IF(AnACeS_base!$C33="","",VLOOKUP($E33,BaseTrienal,R13,FALSE)) -> 1.398896081 | S33: =IF(AnACeS_base!$C33="","",VLOOKUP($E33,BaseTrienal,S13,FALSE)) -> 1.399929826 | T33: =IF(AnACeS_base!$C33="","",VLOOKUP($E33,BaseTrienal,T13,FALSE)) -> 1.361943919 | U33: =IF(AnACeS_base!$C33="","",VLOOKUP($E33,BaseTrienal,U13,FALSE)) -> 1.408384583 | V33: =IF(AnACeS_base!$C33="","",VLOOKUP($E33,BaseTrienal,V13,FALSE)) -> 1.391274192 | W33: =IF(AnACeS_base!$C33="","",VLOOKUP($E33,BaseTrienal,W13,FALSE)) -> 1.330758574 | X33: =IF(AnACeS_base!$C33="","",VLOOKUP($E33,BaseTrienal,X13,FALSE)) -> 1.405553792
A34: I19 | B34: Taxa de Mortalidade Neonatal Precoce | C34: R02 | D34: Região Alentejo | E34: I19R02 | F34: =IF(AnACeS_base!$C34="","",VLOOKUP($E34,BaseTrienal,F13,FALSE)) -> 1.822290254 | G34: =IF(AnACeS_base!$C34="","",VLOOKUP($E34,BaseTrienal,G13,FALSE)) -> 1.783930355 | H34: =IF(AnACeS_base!$C34="","",VLOOKUP($E34,BaseTrienal,H13,FALSE)) -> 1.841490191 | I34: =IF(AnACeS_base!$C34="","",VLOOKUP($E34,BaseTrienal,I13,FALSE)) -> 1.871985024 | J34: =IF(AnACeS_base!$C34="","",VLOOKUP($E34,BaseTrienal,J13,FALSE)) -> 2.037252619 | K34: =IF(AnACeS_base!$C34="","",VLOOKUP($E34,BaseTrienal,K13,FALSE)) -> 2.285630023 | L34: =IF(AnACeS_base!$C34="","",VLOOKUP($E34,BaseTrienal,L13,FALSE)) -> 2.696399942 | M34: =IF(AnACeS_base!$C34="","",VLOOKUP($E34,BaseTrienal,M13,FALSE)) -> 2.635624863 | N34: =IF(AnACeS_base!$C34="","",VLOOKUP($E34,BaseTrienal,N13,FALSE)) -> 2.430872075 | O34: =IF(AnACeS_base!$C34="","",VLOOKUP($E34,BaseTrienal,O13,FALSE)) -> 1.907638503 | P34: =IF(AnACeS_base!$C34="","",VLOOKUP($E34,BaseTrienal,P13,FALSE)) -> 1.871592481 | Q34: =IF(AnACeS_base!$C34="","",VLOOKUP($E34,BaseTrienal,Q13,FALSE)) -> 2.208588957 | R34: =IF(AnACeS_base!$C34="","",VLOOKUP($E34,BaseTrienal,R13,FALSE)) -> 1.940021017 | S34: =IF(AnACeS_base!$C34="","",VLOOKUP($E34,BaseTrienal,S13,FALSE)) -> 1.792552758 | T34: =IF(AnACeS_base!$C34="","",VLOOKUP($E34,BaseTrienal,T13,FALSE)) -> 1.807426881 | U34: =IF(AnACeS_base!$C34="","",VLOOKUP($E34,BaseTrienal,U13,FALSE)) -> 1.90327883 | V34: =IF(AnACeS_base!$C34="","",VLOOKUP($E34,BaseTrienal,V13,FALSE)) -> 1.840603718 | W34: =IF(AnACeS_base!$C34="","",VLOOKUP($E34,BaseTrienal,W13,FALSE)) -> 1.328147235 | X34: =IF(AnACeS_base!$C34="","",VLOOKUP($E34,BaseTrienal,X13,FALSE)) -> 1.124859393
A35: I19 | B35: Taxa de Mortalidade Neonatal Precoce | C35: =IF(AnACeS_Select=1,"",VLOOKUP(AnACeS_Select,AnACeS_tab,2,FALSE)) ->  | D35: =IF(AnACeS_Select=1,"",VLOOKUP(AnACeS_Select,AnACeS_tab,3,FALSE)) ->  | E35: =IF(C35="","",CONCATENATE(A35,C35)) ->  | F35: =IF(AnACeS_base!$C35="","",VLOOKUP($E35,BaseTrienal,F13,FALSE)) ->  | G35: =IF(AnACeS_base!$C35="","",VLOOKUP($E35,BaseTrienal,G13,FALSE)) ->  | H35: =IF(AnACeS_base!$C35="","",VLOOKUP($E35,BaseTrienal,H13,FALSE)) ->  | I35: =IF(AnACeS_base!$C35="","",VLOOKUP($E35,BaseTrienal,I13,FALSE)) ->  | J35: =IF(AnACeS_base!$C35="","",VLOOKUP($E35,BaseTrienal,J13,FALSE)) ->  | K35: =IF(AnACeS_base!$C35="","",VLOOKUP($E35,BaseTrienal,K13,FALSE)) ->  | L35: =IF(AnACeS_base!$C35="","",VLOOKUP($E35,BaseTrienal,L13,FALSE)) ->  | M35: =IF(AnACeS_base!$C35="","",VLOOKUP($E35,BaseTrienal,M13,FALSE)) ->  | N35: =IF(AnACeS_base!$C35="","",VLOOKUP($E35,BaseTrienal,N13,FALSE)) ->  | O35: =IF(AnACeS_base!$C35="","",VLOOKUP($E35,BaseTrienal,O13,FALSE)) ->  | P35: =IF(AnACeS_base!$C35="","",VLOOKUP($E35,BaseTrienal,P13,FALSE)) ->  | Q35: =IF(AnACeS_base!$C35="","",VLOOKUP($E35,BaseTrienal,Q13,FALSE)) ->  | R35: =IF(AnACeS_base!$C35="","",VLOOKUP($E35,BaseTrienal,R13,FALSE)) ->  | S35: =IF(AnACeS_base!$C35="","",VLOOKUP($E35,BaseTrienal,S13,FALSE)) ->  | T35: =IF(AnACeS_base!$C35="","",VLOOKUP($E35,BaseTrienal,T13,FALSE)) ->  | U35: =IF(AnACeS_base!$C35="","",VLOOKUP($E35,BaseTrienal,$U$13,FALSE)) ->  | V35: =IF(AnACeS_base!$C35="","",VLOOKUP($E35,BaseTrienal,$V$13,FALSE)) ->  | W35: =IF(AnACeS_base!$C35="","",VLOOKUP($E35,BaseTrienal,$W$13,FALSE)) ->  | X35: =IF(AnACeS_base!$C35="","",VLOOKUP($E35,BaseTrienal,$X$13,FALSE)) -> 
A36: I21 | B36: Taxa de Mortalidade Pós-Neonatal | C36: R01 | D36: Continente | E36: I21R01 | F36: =IF(AnACeS_base!$C36="","",VLOOKUP($E36,BaseTrienal,F13,FALSE)) -> 2.34515062 | G36: =IF(AnACeS_base!$C36="","",VLOOKUP($E36,BaseTrienal,G13,FALSE)) -> 2.133088607 | H36: =IF(AnACeS_base!$C36="","",VLOOKUP($E36,BaseTrienal,H13,FALSE)) -> 2.057313476 | I36: =IF(AnACeS_base!$C36="","",VLOOKUP($E36,BaseTrienal,I13,FALSE)) -> 1.995880648 | J36: =IF(AnACeS_base!$C36="","",VLOOKUP($E36,BaseTrienal,J13,FALSE)) -> 1.872014 | K36: =IF(AnACeS_base!$C36="","",VLOOKUP($E36,BaseTrienal,K13,FALSE)) -> 1.67028666 | L36: =IF(AnACeS_base!$C36="","",VLOOKUP($E36,BaseTrienal,L13,FALSE)) -> 1.42887267 | M36: =IF(AnACeS_base!$C36="","",VLOOKUP($E36,BaseTrienal,M13,FALSE)) -> 1.322848534 | N36: =IF(AnACeS_base!$C36="","",VLOOKUP($E36,BaseTrienal,N13,FALSE)) -> 1.233512378 | O36: =IF(AnACeS_base!$C36="","",VLOOKUP($E36,BaseTrienal,O13,FALSE)) -> 1.256423758 | P36: =IF(AnACeS_base!$C36="","",VLOOKUP($E36,BaseTrienal,P13,FALSE)) -> 1.230998157 | Q36: =IF(AnACeS_base!$C36="","",VLOOKUP($E36,BaseTrienal,Q13,FALSE)) -> 1.236626181 | R36: =IF(AnACeS_base!$C36="","",VLOOKUP($E36,BaseTrienal,R13,FALSE)) -> 1.06039777 | S36: =IF(AnACeS_base!$C36="","",VLOOKUP($E36,BaseTrienal,S13,FALSE)) -> 0.9179286709 | T36: =IF(AnACeS_base!$C36="","",VLOOKUP($E36,BaseTrienal,T13,FALSE)) -> 0.8933180542 | U36: =IF(AnACeS_base!$C36="","",VLOOKUP($E36,BaseTrienal,U13,FALSE)) -> 0.9545717728 | V36: =IF(AnACeS_base!$C36="","",VLOOKUP($E36,BaseTrienal,V13,FALSE)) -> 0.9577911355 | W36: =IF(AnACeS_base!$C36="","",VLOOKUP($E36,BaseTrienal,W13,FALSE)) -> 0.8689811511 | X36: =IF(AnACeS_base!$C36="","",VLOOKUP($E36,BaseTrienal,X13,FALSE)) -> 0.8408591602
A37: I21 | B37: Taxa de Mortalidade Pós-Neonatal | C37: R02 | D37: Região Alentejo | E37: I21R02 | F37: =IF(AnACeS_base!$C37="","",VLOOKUP($E37,BaseTrienal,F13,FALSE)) -> 1.676507034 | G37: =IF(AnACeS_base!$C37="","",VLOOKUP($E37,BaseTrienal,G13,FALSE)) -> 1.427144284 | H37: =IF(AnACeS_base!$C37="","",VLOOKUP($E37,BaseTrienal,H13,FALSE)) -> 1.983143282 | I37: =IF(AnACeS_base!$C37="","",VLOOKUP($E37,BaseTrienal,I13,FALSE)) -> 1.727986176 | J37: =IF(AnACeS_base!$C37="","",VLOOKUP($E37,BaseTrienal,J13,FALSE)) -> 1.673457509 | K37: =IF(AnACeS_base!$C37="","",VLOOKUP($E37,BaseTrienal,K13,FALSE)) -> 1.474600015 | L37: =IF(AnACeS_base!$C37="","",VLOOKUP($E37,BaseTrienal,L13,FALSE)) -> 1.311762134 | M37: =IF(AnACeS_base!$C37="","",VLOOKUP($E37,BaseTrienal,M13,FALSE)) -> 1.24460063 | N37: =IF(AnACeS_base!$C37="","",VLOOKUP($E37,BaseTrienal,N13,FALSE)) -> 0.8356122759 | O37: =IF(AnACeS_base!$C37="","",VLOOKUP($E37,BaseTrienal,O13,FALSE)) -> 1.271759002 | P37: =IF(AnACeS_base!$C37="","",VLOOKUP($E37,BaseTrienal,P13,FALSE)) -> 1.627471723 | Q37: =IF(AnACeS_base!$C37="","",VLOOKUP($E37,BaseTrienal,Q13,FALSE)) -> 2.044989775 | R37: =IF(AnACeS_base!$C37="","",VLOOKUP($E37,BaseTrienal,R13,FALSE)) -> 1.778352599 | S37: =IF(AnACeS_base!$C37="","",VLOOKUP($E37,BaseTrienal,S13,FALSE)) -> 1.140715392 | T37: =IF(AnACeS_base!$C37="","",VLOOKUP($E37,BaseTrienal,T13,FALSE)) -> 0.492934604 | U37: =IF(AnACeS_base!$C37="","",VLOOKUP($E37,BaseTrienal,U13,FALSE)) -> 0.6055887187 | V37: =IF(AnACeS_base!$C37="","",VLOOKUP($E37,BaseTrienal,V13,FALSE)) -> 0.7362414872 | W37: =IF(AnACeS_base!$C37="","",VLOOKUP($E37,BaseTrienal,W13,FALSE)) -> 1.328147235 | X37: =IF(AnACeS_base!$C37="","",VLOOKUP($E37,BaseTrienal,X13,FALSE)) -> 1.03112111
A38: I21 | B38: Taxa de Mortalidade Pós-Neonatal | C38: =IF(AnACeS_Select=1,"",VLOOKUP(AnACeS_Select,AnACeS_tab,2,FALSE)) ->  | D38: =IF(AnACeS_Select=1,"",VLOOKUP(AnACeS_Select,AnACeS_tab,3,FALSE)) ->  | E38: =IF(C38="","",CONCATENATE(A38,C38)) ->  | F38: =IF(AnACeS_base!$C38="","",VLOOKUP($E38,BaseTrienal,F13,FALSE)) ->  | G38: =IF(AnACeS_base!$C38="","",VLOOKUP($E38,BaseTrienal,G13,FALSE)) ->  | H38: =IF(AnACeS_base!$C38="","",VLOOKUP($E38,BaseTrienal,H13,FALSE)) ->  | I38: =IF(AnACeS_base!$C38="","",VLOOKUP($E38,BaseTrienal,I13,FALSE)) ->  | J38: =IF(AnACeS_base!$C38="","",VLOOKUP($E38,BaseTrienal,J13,FALSE)) ->  | K38: =IF(AnACeS_base!$C38="","",VLOOKUP($E38,BaseTrienal,K13,FALSE)) ->  | L38: =IF(AnACeS_base!$C38="","",VLOOKUP($E38,BaseTrienal,L13,FALSE)) ->  | M38: =IF(AnACeS_base!$C38="","",VLOOKUP($E38,BaseTrienal,M13,FALSE)) ->  | N38: =IF(AnACeS_base!$C38="","",VLOOKUP($E38,BaseTrienal,N13,FALSE)) ->  | O38: =IF(AnACeS_base!$C38="","",VLOOKUP($E38,BaseTrienal,O13,FALSE)) ->  | P38: =IF(AnACeS_base!$C38="","",VLOOKUP($E38,BaseTrienal,P13,FALSE)) ->  | Q38: =IF(AnACeS_base!$C38="","",VLOOKUP($E38,BaseTrienal,Q13,FALSE)) ->  | R38: =IF(AnACeS_base!$C38="","",VLOOKUP($E38,BaseTrienal,R13,FALSE)) ->  | S38: =IF(AnACeS_base!$C38="","",VLOOKUP($E38,BaseTrienal,S13,FALSE)) ->  | T38: =IF(AnACeS_base!$C38="","",VLOOKUP($E38,BaseTrienal,T13,FALSE)) ->  | U38: =IF(AnACeS_base!$C38="","",VLOOKUP($E38,BaseTrienal,$U$13,FALSE)) ->  | V38: =IF(AnACeS_base!$C38="","",VLOOKUP($E38,BaseTrienal,$V$13,FALSE)) ->  | W38: =IF(AnACeS_base!$C38="","",VLOOKUP($E38,BaseTrienal,$W$13,FALSE)) ->  | X38: =IF(AnACeS_base!$C38="","",VLOOKUP($E38,BaseTrienal,$X$13,FALSE)) -> 
A39: I23 | B39: Taxa de Mortalidade Fetal Tardia | C39: R01 | D39: Continente | E39: I23R01 | F39: =IF(AnACeS_base!$C39="","",VLOOKUP($E39,BaseTrienal,F13,FALSE)) -> 4.202274949 | G39: =IF(AnACeS_base!$C39="","",VLOOKUP($E39,BaseTrienal,G13,FALSE)) -> 3.851332987 | H39: =IF(AnACeS_base!$C39="","",VLOOKUP($E39,BaseTrienal,H13,FALSE)) -> 3.736486977 | I39: =IF(AnACeS_base!$C39="","",VLOOKUP($E39,BaseTrienal,I13,FALSE)) -> 3.553785054 | J39: =IF(AnACeS_base!$C39="","",VLOOKUP($E39,BaseTrienal,J13,FALSE)) -> 3.46368749 | K39: =IF(AnACeS_base!$C39="","",VLOOKUP($E39,BaseTrienal,K13,FALSE)) -> 3.208712291 | L39: =IF(AnACeS_base!$C39="","",VLOOKUP($E39,BaseTrienal,L13,FALSE)) -> 2.968504357 | M39: =IF(AnACeS_base!$C39="","",VLOOKUP($E39,BaseTrienal,M13,FALSE)) -> 2.759482135 | N39: =IF(AnACeS_base!$C39="","",VLOOKUP($E39,BaseTrienal,N13,FALSE)) -> 2.785569708 | O39: =IF(AnACeS_base!$C39="","",VLOOKUP($E39,BaseTrienal,O13,FALSE)) -> 2.844666582 | P39: =IF(AnACeS_base!$C39="","",VLOOKUP($E39,BaseTrienal,P13,FALSE)) -> 2.768821919 | Q39: =IF(AnACeS_base!$C39="","",VLOOKUP($E39,BaseTrienal,Q13,FALSE)) -> 2.696751188 | R39: =IF(AnACeS_base!$C39="","",VLOOKUP($E39,BaseTrienal,R13,FALSE)) -> 2.573545878 | S39: =IF(AnACeS_base!$C39="","",VLOOKUP($E39,BaseTrienal,S13,FALSE)) -> 2.502960776 | T39: =IF(AnACeS_base!$C39="","",VLOOKUP($E39,BaseTrienal,T13,FALSE)) -> 2.428744649 | U39: =IF(AnACeS_base!$C39="","",VLOOKUP($E39,BaseTrienal,U13,FALSE)) -> 2.380747945 | V39: =IF(AnACeS_base!$C39="","",VLOOKUP($E39,BaseTrienal,V13,FALSE)) -> 2.368214037 | W39: =IF(AnACeS_base!$C39="","",VLOOKUP($E39,BaseTrienal,W13,FALSE)) -> 2.32028279 | X39: =IF(AnACeS_base!$C39="","",VLOOKUP($E39,BaseTrienal,X13,FALSE)) -> 2.335747213
A40: I23 | B40: Taxa de Mortalidade Fetal Tardia | C40: R02 | D40: Região Alentejo | E40: I23R02 | F40: =IF(AnACeS_base!$C40="","",VLOOKUP($E40,BaseTrienal,F13,FALSE)) -> 3.703703704 | G40: =IF(AnACeS_base!$C40="","",VLOOKUP($E40,BaseTrienal,G13,FALSE)) -> 4.47538538 | H40: =IF(AnACeS_base!$C40="","",VLOOKUP($E40,BaseTrienal,H13,FALSE)) -> 4.933399112 | I40: =IF(AnACeS_base!$C40="","",VLOOKUP($E40,BaseTrienal,I13,FALSE)) -> 5.869300694 | J40: =IF(AnACeS_base!$C40="","",VLOOKUP($E40,BaseTrienal,J13,FALSE)) -> 5.499276411 | K40: =IF(AnACeS_base!$C40="","",VLOOKUP($E40,BaseTrienal,K13,FALSE)) -> 4.696558303 | L40: =IF(AnACeS_base!$C40="","",VLOOKUP($E40,BaseTrienal,L13,FALSE)) -> 3.992160848 | M40: =IF(AnACeS_base!$C40="","",VLOOKUP($E40,BaseTrienal,M13,FALSE)) -> 3.792575305 | N40: =IF(AnACeS_base!$C40="","",VLOOKUP($E40,BaseTrienal,N13,FALSE)) -> 3.557641359 | O40: =IF(AnACeS_base!$C40="","",VLOOKUP($E40,BaseTrienal,O13,FALSE)) -> 4.352643242 | P40: =IF(AnACeS_base!$C40="","",VLOOKUP($E40,BaseTrienal,P13,FALSE)) -> 3.648451435 | Q40: =IF(AnACeS_base!$C40="","",VLOOKUP($E40,BaseTrienal,Q13,FALSE)) -> 3.829856584 | R40: =IF(AnACeS_base!$C40="","",VLOOKUP($E40,BaseTrienal,R13,FALSE)) -> 3.463831158 | S40: =IF(AnACeS_base!$C40="","",VLOOKUP($E40,BaseTrienal,S13,FALSE)) -> 3.248599042 | T40: =IF(AnACeS_base!$C40="","",VLOOKUP($E40,BaseTrienal,T13,FALSE)) -> 3.846468614 | U40: =IF(AnACeS_base!$C40="","",VLOOKUP($E40,BaseTrienal,U13,FALSE)) -> 3.534482759 | V40: =IF(AnACeS_base!$C40="","",VLOOKUP($E40,BaseTrienal,V13,FALSE)) -> 3.66770585 | W40: =IF(AnACeS_base!$C40="","",VLOOKUP($E40,BaseTrienal,W13,FALSE)) -> 2.83795289 | X40: =IF(AnACeS_base!$C40="","",VLOOKUP($E40,BaseTrienal,X13,FALSE)) -> 2.804262479
A41: I23 | B41: Taxa de Mortalidade Fetal Tardia | C41: =IF(AnACeS_Select=1,"",VLOOKUP(AnACeS_Select,AnACeS_tab,2,FALSE)) ->  | D41: =IF(AnACeS_Select=1,"",VLOOKUP(AnACeS_Select,AnACeS_tab,3,FALSE)) ->  | E41: =IF(C41="","",CONCATENATE(A41,C41)) ->  | F41: =IF(AnACeS_base!$C41="","",VLOOKUP($E41,BaseTrienal,F13,FALSE)) ->  | G41: =IF(AnACeS_base!$C41="","",VLOOKUP($E41,BaseTrienal,G13,FALSE)) ->  | H41: =IF(AnACeS_base!$C41="","",VLOOKUP($E41,BaseTrienal,H13,FALSE)) ->  | I41: =IF(AnACeS_base!$C41="","",VLOOKUP($E41,BaseTrienal,I13,FALSE)) ->  | J41: =IF(AnACeS_base!$C41="","",VLOOKUP($E41,BaseTrienal,J13,FALSE)) ->  | K41: =IF(AnACeS_base!$C41="","",VLOOKUP($E41,BaseTrienal,K13,FALSE)) ->  | L41: =IF(AnACeS_base!$C41="","",VLOOKUP($E41,BaseTrienal,L13,FALSE)) ->  | M41: =IF(AnACeS_base!$C41="","",VLOOKUP($E41,BaseTrienal,M13,FALSE)) ->  | N41: =IF(AnACeS_base!$C41="","",VLOOKUP($E41,BaseTrienal,N13,FALSE)) ->  | O41: =IF(AnACeS_base!$C41="","",VLOOKUP($E41,BaseTrienal,O13,FALSE)) ->  | P41: =IF(AnACeS_base!$C41="","",VLOOKUP($E41,BaseTrienal,P13,FALSE)) ->  | Q41: =IF(AnACeS_base!$C41="","",VLOOKUP($E41,BaseTrienal,Q13,FALSE)) ->  | R41: =IF(AnACeS_base!$C41="","",VLOOKUP($E41,BaseTrienal,R13,FALSE)) ->  | S41: =IF(AnACeS_base!$C41="","",VLOOKUP($E41,BaseTrienal,S13,FALSE)) ->  | T41: =IF(AnACeS_base!$C41="","",VLOOKUP($E41,BaseTrienal,T13,FALSE)) ->  | U41: =IF(AnACeS_base!$C41="","",VLOOKUP($E41,BaseTrienal,$U$13,FALSE)) ->  | V41: =IF(AnACeS_base!$C41="","",VLOOKUP($E41,BaseTrienal,$V$13,FALSE)) ->  | W41: =IF(AnACeS_base!$C41="","",VLOOKUP($E41,BaseTrienal,$W$13,FALSE)) ->  | X41: =IF(AnACeS_base!$C41="","",VLOOKUP($E41,BaseTrienal,$X$13,FALSE)) -> 
A42: I25 | B42: Taxa de Mortalidade Perinatal | C42: R01 | D42: Continente | E42: I25R01 | F42: =IF(AnACeS_base!$C42="","",VLOOKUP($E42,BaseTrienal,F13,FALSE)) -> 7.034174522 | G42: =IF(AnACeS_base!$C42="","",VLOOKUP($E42,BaseTrienal,G13,FALSE)) -> 6.519778618 | H42: =IF(AnACeS_base!$C42="","",VLOOKUP($E42,BaseTrienal,H13,FALSE)) -> 6.306077535 | I42: =IF(AnACeS_base!$C42="","",VLOOKUP($E42,BaseTrienal,I13,FALSE)) -> 5.902794595 | J42: =IF(AnACeS_base!$C42="","",VLOOKUP($E42,BaseTrienal,J13,FALSE)) -> 5.803195707 | K42: =IF(AnACeS_base!$C42="","",VLOOKUP($E42,BaseTrienal,K13,FALSE)) -> 5.411013369 | L42: =IF(AnACeS_base!$C42="","",VLOOKUP($E42,BaseTrienal,L13,FALSE)) -> 5.045829816 | M42: =IF(AnACeS_base!$C42="","",VLOOKUP($E42,BaseTrienal,M13,FALSE)) -> 4.505667135 | N42: =IF(AnACeS_base!$C42="","",VLOOKUP($E42,BaseTrienal,N13,FALSE)) -> 4.367096434 | O42: =IF(AnACeS_base!$C42="","",VLOOKUP($E42,BaseTrienal,O13,FALSE)) -> 4.393281801 | P42: =IF(AnACeS_base!$C42="","",VLOOKUP($E42,BaseTrienal,P13,FALSE)) -> 4.293191598 | Q42: =IF(AnACeS_base!$C42="","",VLOOKUP($E42,BaseTrienal,Q13,FALSE)) -> 4.23922416 | R42: =IF(AnACeS_base!$C42="","",VLOOKUP($E42,BaseTrienal,R13,FALSE)) -> 3.968841835 | S42: =IF(AnACeS_base!$C42="","",VLOOKUP($E42,BaseTrienal,S13,FALSE)) -> 3.899386633 | T42: =IF(AnACeS_base!$C42="","",VLOOKUP($E42,BaseTrienal,T13,FALSE)) -> 3.787380754 | U42: =IF(AnACeS_base!$C42="","",VLOOKUP($E42,BaseTrienal,U13,FALSE)) -> 3.785779519 | V42: =IF(AnACeS_base!$C42="","",VLOOKUP($E42,BaseTrienal,V13,FALSE)) -> 3.756193395 | W42: =IF(AnACeS_base!$C42="","",VLOOKUP($E42,BaseTrienal,W13,FALSE)) -> 3.647953628 | X42: =IF(AnACeS_base!$C42="","",VLOOKUP($E42,BaseTrienal,X13,FALSE)) -> 3.738017987
A43: I25 | B43: Taxa de Mortalidade Perinatal | C43: R02 | D43: Região Alentejo | E43: I25R02 | F43: =IF(AnACeS_base!$C43="","",VLOOKUP($E43,BaseTrienal,F13,FALSE)) -> 5.519244735 | G43: =IF(AnACeS_base!$C43="","",VLOOKUP($E43,BaseTrienal,G13,FALSE)) -> 6.25133196 | H43: =IF(AnACeS_base!$C43="","",VLOOKUP($E43,BaseTrienal,H13,FALSE)) -> 6.765804496 | I43: =IF(AnACeS_base!$C43="","",VLOOKUP($E43,BaseTrienal,I13,FALSE)) -> 7.730298475 | J43: =IF(AnACeS_base!$C43="","",VLOOKUP($E43,BaseTrienal,J13,FALSE)) -> 7.525325615 | K43: =IF(AnACeS_base!$C43="","",VLOOKUP($E43,BaseTrienal,K13,FALSE)) -> 6.971453732 | L43: =IF(AnACeS_base!$C43="","",VLOOKUP($E43,BaseTrienal,L13,FALSE)) -> 6.677796327 | M43: =IF(AnACeS_base!$C43="","",VLOOKUP($E43,BaseTrienal,M13,FALSE)) -> 6.418204361 | N43: =IF(AnACeS_base!$C43="","",VLOOKUP($E43,BaseTrienal,N13,FALSE)) -> 5.979865264 | O43: =IF(AnACeS_base!$C43="","",VLOOKUP($E43,BaseTrienal,O13,FALSE)) -> 6.251978474 | P43: =IF(AnACeS_base!$C43="","",VLOOKUP($E43,BaseTrienal,P13,FALSE)) -> 5.513215502 | Q43: =IF(AnACeS_base!$C43="","",VLOOKUP($E43,BaseTrienal,Q13,FALSE)) -> 6.029986962 | R43: =IF(AnACeS_base!$C43="","",VLOOKUP($E43,BaseTrienal,R13,FALSE)) -> 5.39713227 | S43: =IF(AnACeS_base!$C43="","",VLOOKUP($E43,BaseTrienal,S13,FALSE)) -> 5.035328515 | T43: =IF(AnACeS_base!$C43="","",VLOOKUP($E43,BaseTrienal,T13,FALSE)) -> 5.646943285 | U43: =IF(AnACeS_base!$C43="","",VLOOKUP($E43,BaseTrienal,U13,FALSE)) -> 5.431034483 | V43: =IF(AnACeS_base!$C43="","",VLOOKUP($E43,BaseTrienal,V13,FALSE)) -> 5.501558775 | W43: =IF(AnACeS_base!$C43="","",VLOOKUP($E43,BaseTrienal,W13,FALSE)) -> 4.162330905 | X43: =IF(AnACeS_base!$C43="","",VLOOKUP($E43,BaseTrienal,X13,FALSE)) -> 3.925967471
A44: I25 | B44: Taxa de Mortalidade Perinatal | C44: =IF(AnACeS_Select=1,"",VLOOKUP(AnACeS_Select,AnACeS_tab,2,FALSE)) ->  | D44: =IF(AnACeS_Select=1,"",VLOOKUP(AnACeS_Select,AnACeS_tab,3,FALSE)) ->  | E44: =IF(C44="","",CONCATENATE(A44,C44)) ->  | F44: =IF(AnACeS_base!$C44="","",VLOOKUP($E44,BaseTrienal,F13,FALSE)) ->  | G44: =IF(AnACeS_base!$C44="","",VLOOKUP($E44,BaseTrienal,G13,FALSE)) ->  | H44: =IF(AnACeS_base!$C44="","",VLOOKUP($E44,BaseTrienal,H13,FALSE)) ->  | I44: =IF(AnACeS_base!$C44="","",VLOOKUP($E44,BaseTrienal,I13,FALSE)) ->  | J44: =IF(AnACeS_base!$C44="","",VLOOKUP($E44,BaseTrienal,J13,FALSE)) ->  | K44: =IF(AnACeS_base!$C44="","",VLOOKUP($E44,BaseTrienal,K13,FALSE)) ->  | L44: =IF(AnACeS_base!$C44="","",VLOOKUP($E44,BaseTrienal,L13,FALSE)) ->  | M44: =IF(AnACeS_base!$C44="","",VLOOKUP($E44,BaseTrienal,M13,FALSE)) ->  | N44: =IF(AnACeS_base!$C44="","",VLOOKUP($E44,BaseTrienal,N13,FALSE)) ->  | O44: =IF(AnACeS_base!$C44="","",VLOOKUP($E44,BaseTrienal,O13,FALSE)) ->  | P44: =IF(AnACeS_base!$C44="","",VLOOKUP($E44,BaseTrienal,P13,FALSE)) ->  | Q44: =IF(AnACeS_base!$C44="","",VLOOKUP($E44,BaseTrienal,Q13,FALSE)) ->  | R44: =IF(AnACeS_base!$C44="","",VLOOKUP($E44,BaseTrienal,R13,FALSE)) ->  | S44: =IF(AnACeS_base!$C44="","",VLOOKUP($E44,BaseTrienal,S13,FALSE)) ->  | T44: =IF(AnACeS_base!$C44="","",VLOOKUP($E44,BaseTrienal,T13,FALSE)) ->  | U44: =IF(AnACeS_base!$C44="","",VLOOKUP($E44,BaseTrienal,$U$13,FALSE)) ->  | V44: =IF(AnACeS_base!$C44="","",VLOOKUP($E44,BaseTrienal,$V$13,FALSE)) ->  | W44: =IF(AnACeS_base!$C44="","",VLOOKUP($E44,BaseTrienal,$W$13,FALSE)) ->  | X44: =IF(AnACeS_base!$C44="","",VLOOKUP($E44,BaseTrienal,$X$13,FALSE)) -> 

Sheet AnIndT
B2: mort@lidades.infantil
B4: Análise por Indicador
B6: Selecione o Indicador | I6: Selecione o ACeS
B9: =IF(AnInd_baseT!E1="A","",AnInd_baseT!D1) -> Proporção de Crianças com Baixo Peso à Nascença
B11: =AnInd_baseT!B55 -> PROPORÇÃO DE CRIANÇAS COM BAIXO PESO À NASCENÇA (%), 1996-2014 (MÉDIA ANUAL POR TRIÉNIOS)
C12: 96-98 | D12: 97-99 | E12: 98-00 | F12: 99-01 | G12: 00-02 | I12: 01-03 | J12: 02-04 | K12: 03-05 | L12: 04-06 | M12: 05-07 | N12: 06-08 | O12: 07-09 | P12: 08-10 | Q12: 09-11 | R12: 10-12 | S12: 11-13 | T12: 12-14 | U12: 13-15 | V12: 14-16
B13: =AnInd_baseT!B4 -> Continente | C13: =AnInd_baseT!F4 -> 6.524442593 | D13: =AnInd_baseT!G4 -> 6.882311177 | E13: =AnInd_baseT!H4 -> 7.071939215 | F13: =AnInd_baseT!I4 -> 7.231042172 | G13: =AnInd_baseT!J4 -> 7.199326807 | I13: =AnInd_baseT!K4 -> 7.305634413 | J13: =AnInd_baseT!L4 -> 7.443041799 | K13: =AnInd_baseT!M4 -> 7.506047079 | L13: =AnInd_baseT!N4 -> 7.562931974 | M13: =AnInd_baseT!O4 -> 7.648188017 | N13: =AnInd_baseT!P4 -> 7.714029659 | O13: =AnInd_baseT!Q4 -> 7.918196661 | P13: =AnInd_baseT!R4 -> 8.082165284 | Q13: =AnInd_baseT!S4 -> 8.325861134 | R13: =AnInd_baseT!T4 -> 8.440391156 | S13: =AnInd_baseT!U4 -> 8.555153905 | T13: =AnInd_baseT!V4 -> 8.667184094 | U13: =AnInd_baseT!W4 -> 8.787624365 | V13: =AnInd_baseT!X4 -> 8.761834887
B14: =AnInd_baseT!B5 -> Região Alentejo | C14: =AnInd_baseT!F5 -> 6.837233034 | D14: =AnInd_baseT!G5 -> 7.321250178 | E14: =AnInd_baseT!H5 -> 7.613853672 | F14: =AnInd_baseT!I5 -> 7.76873785 | G14: =AnInd_baseT!J5 -> 7.530558789 | I14: =AnInd_baseT!K5 -> 7.358254074 | J14: =AnInd_baseT!L5 -> 7.535344702 | K14: =AnInd_baseT!M5 -> 7.701881543 | L14: =AnInd_baseT!N5 -> 8.21178973 | M14: =AnInd_baseT!O5 -> 8.194897067 | N14: =AnInd_baseT!P5 -> 8.503539751 | O14: =AnInd_baseT!Q5 -> 8.433537832 | P14: =AnInd_baseT!R5 -> 8.85942931 | Q14: =AnInd_baseT!S5 -> 8.82424835 | R14: =AnInd_baseT!T5 -> 8.708511337 | S14: =AnInd_baseT!U5 -> 8.599359806 | T14: =AnInd_baseT!V5 -> 8.521995214 | U14: =AnInd_baseT!W5 -> 8.822692344 | V14: =AnInd_baseT!X5 -> 8.830146232
B15: =IF(AnInd_codACeS="","",AnInd_baseT!D11) -> ULS Norte Alentejano | C15: =IF(AnInd_codACeS="","",AnInd_baseT!F11) -> 7.625810435 | D15: =IF(AnInd_codACeS="","",AnInd_baseT!G11) -> 8.151033863 | E15: =IF(AnInd_codACeS="","",AnInd_baseT!H11) -> 8.293838863 | F15: =IF(AnInd_codACeS="","",AnInd_baseT!I11) -> 8.273381295 | G15: =IF(AnInd_codACeS="","",AnInd_baseT!J11) -> 7.575757576 | I15: =IF(AnInd_codACeS="","",AnInd_baseT!K11) -> 7.221147647 | J15: =IF(AnInd_codACeS="","",AnInd_baseT!L11) -> 6.730137886 | K15: =IF(AnInd_codACeS="","",AnInd_baseT!M11) -> 7.183427999 | L15: =IF(AnInd_codACeS="","",AnInd_baseT!N11) -> 7.635206787 | M15: =IF(AnInd_codACeS="","",AnInd_baseT!O11) -> 7.956259427 | N15: =IF(AnInd_codACeS="","",AnInd_baseT!P11) -> 7.532365634 | O15: =IF(AnInd_codACeS="","",AnInd_baseT!Q11) -> 7.489328677 | P15: =IF(AnInd_codACeS="","",AnInd_baseT!R11) -> 7.883971737 | Q15: =IF(AnInd_codACeS="","",AnInd_baseT!S11) -> 8.426966292 | R15: =IF(AnInd_codACeS="","",AnInd_baseT!T11) -> 8.119494447 | S15: =IF(AnInd_codACeS="","",AnInd_baseT!U11) -> 8.554216867 | T15: =IF(AnInd_codACeS="","",AnInd_baseT!V11) -> 8.333333333 | U15: =IF(AnInd_codACeS="","",AnInd_baseT!W11) -> 8.13292523 | V15: =IF(AnInd_codACeS="","",AnInd_baseT!X11) -> 7.370786517
B36: Selecione o Triénio
B38: =AnInd_baseT!B56 -> PROPORÇÃO DE CRIANÇAS COM BAIXO PESO À NASCENÇA (%), MÉDIA ANUAL NO TRIÉNIO 2014-2016
H39: =IF($B35="","",IF(E35<$G$85,1,IF(E35<$G$86,2,IF(E35<$G$87,3,4)))) -> 
G59: Legenda
G60: =AnInd_baseT!B57 -> PROPORÇÃO DE CRIANÇAS COM BAIXO PESO À NASCENÇA (%), 2014-2016
H61: =AnInd_baseT!J30 -> 7.37
H62: =AnInd_baseT!J31 -> 8.43
H63: =AnInd_baseT!J32 -> 9.19
H64: =AnInd_baseT!J33 -> 9.87

Sheet AnIndA
B2: mort@lidades.infantil
B4: Análise por Indicador
B6: Selecione o Indicador | J6: Selecione o ACeS
B9: =IF(AnInd_baseT!E1="T","",AnInd_baseT!D1) -> 
B11: =AnInd_baseA!B55 -> 
C12: 1996 | D12: 1997 | E12: 1998 | F12: 1999 | G12: 2000 | H12: 2001 | J12: 2002 | K12: 2003 | L12: 2004 | M12: 2005 | N12: 2006 | O12: 2007 | P12: 2008 | Q12: 2009 | R12: 2010 | S12: 2011 | T12: 2012 | U12: 2013 | V12: 2014 | W12: 2015 | X12: 2016
B13: =AnInd_baseA!B4 -> Continente | C13: =AnInd_baseA!F4 ->  | D13: =AnInd_baseA!G4 ->  | E13: =AnInd_baseA!H4 ->  | F13: =AnInd_baseA!I4 ->  | G13: =AnInd_baseA!J4 ->  | H13: =AnInd_baseA!K4 ->  | J13: =AnInd_baseA!L4 ->  | K13: =AnInd_baseA!M4 ->  | L13: =AnInd_baseA!N4 ->  | M13: =AnInd_baseA!O4 ->  | N13: =AnInd_baseA!P4 ->  | O13: =AnInd_baseA!Q4 ->  | P13: =AnInd_baseA!R4 ->  | Q13: =AnInd_baseA!S4 ->  | R13: =AnInd_baseA!T4 ->  | S13: =AnInd_baseA!U4 ->  | T13: =AnInd_baseA!V4 ->  | U13: =AnInd_baseA!W4 ->  | V13: =AnInd_baseA!X4 ->  | W13: =AnInd_baseA!Y4 ->  | X13: =AnInd_baseA!Z4 -> 
B14: =AnInd_baseA!B5 -> Região Alentejo | C14: =AnInd_baseA!F5 ->  | D14: =AnInd_baseA!G5 ->  | E14: =AnInd_baseA!H5 ->  | F14: =AnInd_baseA!I5 ->  | G14: =AnInd_baseA!J5 ->  | H14: =AnInd_baseA!K5 ->  | J14: =AnInd_baseA!L5 ->  | K14: =AnInd_baseA!M5 ->  | L14: =AnInd_baseA!N5 ->  | M14: =AnInd_baseA!O5 ->  | N14: =AnInd_baseA!P5 ->  | O14: =AnInd_baseA!Q5 ->  | P14: =AnInd_baseA!R5 ->  | Q14: =AnInd_baseA!S5 ->  | R14: =AnInd_baseA!T5 ->  | S14: =AnInd_baseA!U5 ->  | T14: =AnInd_baseA!V5 ->  | U14: =AnInd_baseA!W5 ->  | V14: =AnInd_baseA!X5 ->  | W14: =AnInd_baseA!Y5 ->  | X14: =AnInd_baseA!Z5 -> 
B15: =AnInd_baseA!D11 -> ULS Norte Alentejano | C15: =AnInd_baseA!F11 ->  | D15: =AnInd_baseA!G11 ->  | E15: =AnInd_baseA!H11 ->  | F15: =AnInd_baseA!I11 ->  | G15: =AnInd_baseA!J11 ->  | H15: =AnInd_baseA!K11 ->  | J15: =AnInd_baseA!L11 ->  | K15: =AnInd_baseA!M11 ->  | L15: =AnInd_baseA!N11 ->  | M15: =AnInd_baseA!O11 ->  | N15: =AnInd_baseA!P11 ->  | O15: =AnInd_baseA!Q11 ->  | P15: =AnInd_baseA!R11 ->  | Q15: =AnInd_baseA!S11 ->  | R15: =AnInd_baseA!T11 ->  | S15: =AnInd_baseA!U11 ->  | T15: =AnInd_baseA!V11 ->  | U15: =AnInd_baseA!W11 ->  | V15: =AnInd_baseA!X11 ->  | W15: =AnInd_baseA!Y11 ->  | X15: =AnInd_baseA!Z11 -> 
B36: Selecione o Ano
B38: =AnInd_baseA!B56 -> 
H59: Legenda
H60: =AnInd_baseA!B56 -> 
I61: =AnInd_baseA!K31 -> 
I62: =AnInd_baseA!K32 -> 
I63: =AnInd_baseA!K33 -> 
I64: =AnInd_baseA!K34 -> 

Sheet AnInd_baseT (hidden)
A1: 6 | B1: AnInd_Select | C1: =IF(AnInd_Select=1,"",VLOOKUP(AnInd_Select,AnInd_tab,3,FALSE)) -> I10 | D1: =IF(AnInd_Select=1,"",VLOOKUP(AnInd_Select,AnInd_tab,4,FALSE)) -> Proporção de Crianças com Baixo Peso à Nascença | E1: =IF(AnInd_Select=1,"",VLOOKUP(AnInd_Select,AnInd_tab,2,FALSE)) -> T
D2: =IF(AnInd_Select=1,"",VLOOKUP(AnInd_Select,AnInd_tabLeg,5,FALSE)) -> PROPORÇÃO DE CRIANÇAS COM BAIXO PESO À NASCENÇA | E2: =IF(AnInd_Select=1,"",VLOOKUP(AnInd_Select,AnInd_tabLeg,6,FALSE)) -> (%) | F2: =IF(AnInd_Select=1,"",VLOOKUP(AnInd_Select,AnInd_tabLeg,7,FALSE)) -> (MÉDIA ANUAL POR TRIÉNIOS)
A3: Rcod | B3: Local_Residencia | C3: Icod | D3: Indicador | E3: cod_IndRes | F3: 96-98 | G3: 97-99 | H3: 98-00 | I3: 99-01 | J3: 00-02 | K3: 01-03 | L3: 02-04 | M3: 03-05 | N3: 04-06 | O3: 05-07 | P3: 06-08 | Q3: 07-09 | R3: 08-10 | S3: 09-11 | T3: 10-12 | U3: 11-13 | V3: 12-14 | W3: 13-15 | X3: 14-16
A4: =Id!D39 -> R01 | B4: =Id!F39 -> Continente | C4: =IF(TipoAn="T",$C$1,"") -> I10 | D4: =IF(TipoAn="T",$D$1,"") -> Proporção de Crianças com Baixo Peso à Nascença | E4: =IF(C4="","",CONCATENATE(C4,A4)) -> I10R01 | F4: =IF($C$4="","",VLOOKUP($E4,BaseTrienal,F$10,FALSE)) -> 6.524442593 | G4: 6.882311177 | H4: 7.071939215 | I4: 7.231042172 | J4: 7.199326807 | K4: 7.305634413 | L4: 7.443041799 | M4: 7.506047079 | N4: 7.562931974 | O4: 7.648188017 | P4: 7.714029659 | Q4: 7.918196661 | R4: 8.082165284 | S4: 8.325861134 | T4: 8.440391156 | U4: 8.555153905 | V4: 8.667184094 | W4: 8.787624365 | X4: 8.761834887
A5: =Id!D40 -> R02 | B5: =Id!F40 -> Região Alentejo | C5: I10 | D5: Proporção de Crianças com Baixo Peso à Nascença | E5: =IF(C5="","",CONCATENATE(C5,A5)) -> I10R02 | F5: =IF($C$5="","",VLOOKUP($E5,BaseTrienal,F$10,FALSE)) -> 6.837233034 | G5: 7.321250178 | H5: 7.613853672 | I5: 7.76873785 | J5: 7.530558789 | K5: 7.358254074 | L5: 7.535344702 | M5: 7.701881543 | N5: 8.21178973 | O5: 8.194897067 | P5: 8.503539751 | Q5: 8.433537832 | R5: 8.85942931 | S5: 8.82424835 | T5: 8.708511337 | U5: 8.599359806 | V5: 8.521995214 | W5: 8.822692344 | X5: 8.830146232
A6: =Id!D41 -> R03 | B6: =Id!F41 -> ACeS Alentejo Central | C6: I10 | D6: Proporção de Crianças com Baixo Peso à Nascença | E6: I10R03 | F6: =IF($C$6="","",VLOOKUP($E6,BaseTrienal,F$10,FALSE)) -> 6.622088007 | G6: 7.397202204 | H6: 7.311370882 | I6: 7.71219302 | J6: 7.577073383 | K6: 8.047982552 | L6: 8.344058344 | M6: 8.427700348 | N6: 8.788757528 | O6: 8.504672897 | P6: 9.007092199 | Q6: 8.711656442 | R6: 9.012131716 | S6: 8.81984465 | T6: 9.338031714 | U6: 8.804204993 | V6: 9.144792549 | W6: 9.045956952 | X6: 9.874786568
A7: =Id!D42 -> R04 | B7: =Id!F42 -> ULS Norte Alentejano | C7: I10 | D7: Proporção de Crianças com Baixo Peso à Nascença | E7: I10R04 | F7: =IF($C$7="","",VLOOKUP($E7,BaseTrienal,F$10,FALSE)) -> 7.625810435 | G7: 8.151033863 | H7: 8.293838863 | I7: 8.273381295 | J7: 7.575757576 | K7: 7.221147647 | L7: 6.730137886 | M7: 7.183427999 | N7: 7.635206787 | O7: 7.956259427 | P7: 7.532365634 | Q7: 7.489328677 | R7: 7.883971737 | S7: 8.426966292 | T7: 8.119494447 | U7: 8.554216867 | V7: 8.333333333 | W7: 8.13292523 | X7: 7.370786517
A8: =Id!D43 -> R05 | B8: =Id!F43 -> ULS Baixo Alentejo | C8: I10 | D8: Proporção de Crianças com Baixo Peso à Nascença | E8: I10R05 | F8: =IF($C$8="","",VLOOKUP($E8,BaseTrienal,F$10,FALSE)) -> 6.209427039 | G8: 6.776813218 | H8: 7.692307692 | I8: 7.729745205 | J8: 7.242260721 | K8: 6.295119838 | L8: 6.668558456 | M8: 6.913996627 | N8: 7.424729611 | O8: 7.657657658 | P8: 8.38285893 | Q8: 8.946877912 | R8: 9.67340591 | S8: 9.191408718 | T8: 8.509965201 | U8: 8.280467446 | V8: 7.750342936 | W8: 8.23235923 | X8: 8.43373494
A9: =Id!D44 -> R06 | B9: =Id!F44 -> ULS Litoral Alentejano | C9: I10 | D9: Proporção de Crianças com Baixo Peso à Nascença | E9: I10R06 | F9: =IF($C$9="","",VLOOKUP($E9,BaseTrienal,F$10,FALSE)) -> 7.127335941 | G9: 6.825795645 | H9: 7.133969307 | I9: 7.23738627 | J9: 7.805287453 | K9: 7.749689184 | L9: 8.232931727 | M9: 8.108108108 | N9: 8.92636775 | O9: 8.667529107 | P9: 8.819714656 | Q9: 8.283772302 | R9: 8.607907743 | S9: 8.789860998 | T9: 8.570251339 | U9: 8.72631115 | V9: 8.754208754 | W9: 10.04975124 | X9: 9.18972332
F10: 23 | G10: 24 | H10: 25 | I10: 26 | J10: 27 | K10: 28 | L10: 29 | M10: 30 | N10: 31 | O10: 32 | P10: 33 | Q10: 34 | R10: 35 | S10: 36 | T10: 37 | U10: 38 | V10: 39 | W10: 40 | X10: 41
A11: 3 | B11: AnInd_ACeS | C11: =IF(AnInd_ACeS=1,"",VLOOKUP(AnInd_ACeS,AnACeS_tab,2,FALSE)) -> R04 | D11: =IF(AnInd_ACeS=1,"",VLOOKUP(AnInd_ACeS,AnACeS_tab,3,FALSE)) -> ULS Norte Alentejano | E11: =IF(AnInd_codACeS="","",VLOOKUP(AnInd_codACeS,AnInd_TabTrienios,5,FALSE)) -> I10R04 | F11: =IF(AnInd_codACeS="","",VLOOKUP(AnInd_codACeS,AnInd_TabTrienios,6,FALSE)) -> 7.625810435 | G11: =IF(AnInd_codACeS="","",VLOOKUP(AnInd_codACeS,AnInd_TabTrienios,7,FALSE)) -> 8.151033863 | H11: =IF(AnInd_codACeS="","",VLOOKUP(AnInd_codACeS,AnInd_TabTrienios,8,FALSE)) -> 8.293838863 | I11: =IF(AnInd_codACeS="","",VLOOKUP(AnInd_codACeS,AnInd_TabTrienios,9,FALSE)) -> 8.273381295 | J11: =IF(AnInd_codACeS="","",VLOOKUP(AnInd_codACeS,AnInd_TabTrienios,10,FALSE)) -> 7.575757576 | K11: =IF(AnInd_codACeS="","",VLOOKUP(AnInd_codACeS,AnInd_TabTrienios,11,FALSE)) -> 7.221147647 | L11: =IF(AnInd_codACeS="","",VLOOKUP(AnInd_codACeS,AnInd_TabTrienios,12,FALSE)) -> 6.730137886 | M11: =IF(AnInd_codACeS="","",VLOOKUP(AnInd_codACeS,AnInd_TabTrienios,13,FALSE)) -> 7.183427999 | N11: =IF(AnInd_codACeS="","",VLOOKUP(AnInd_codACeS,AnInd_TabTrienios,14,FALSE)) -> 7.635206787 | O11: =IF(AnInd_codACeS="","",VLOOKUP(AnInd_codACeS,AnInd_TabTrienios,15,FALSE)) -> 7.956259427 | P11: =IF(AnInd_codACeS="","",VLOOKUP(AnInd_codACeS,AnInd_TabTrienios,16,FALSE)) -> 7.532365634 | Q11: =IF(AnInd_codACeS="","",VLOOKUP(AnInd_codACeS,AnInd_TabTrienios,17,FALSE)) -> 7.489328677 | R11: =IF(AnInd_codACeS="","",VLOOKUP(AnInd_codACeS,AnInd_TabTrienios,18,FALSE)) -> 7.883971737 | S11: =IF(AnInd_codACeS="","",VLOOKUP(AnInd_codACeS,AnInd_TabTrienios,19,FALSE)) -> 8.426966292 | T11: =IF(AnInd_codACeS="","",VLOOKUP(AnInd_codACeS,AnInd_TabTrienios,20,FALSE)) -> 8.119494447 | U11: =IF(AnInd_codACeS="","",VLOOKUP(AnInd_codACeS,AnInd_TabTrienios,21,FALSE)) -> 8.554216867 | V11: =IF(AnInd_codACeS="","",VLOOKUP(AnInd_codACeS,AnInd_TabTrienios,22,FALSE)) -> 8.333333333 | W11: =IF(AnInd_codACeS="","",VLOOKUP(AnInd_codACeS,AnInd_TabTrienios,23,FALSE)) -> 8.13292523 | X11: =IF(AnInd_codACeS="","",VLOOKUP(AnInd_codACeS,AnInd_TabTrienios,24,FALSE)) -> 7.370786517
A13: 19 | B13: AnInd_Trienio | C13: =VLOOKUP(AnInd_TrienioSelect,AnIdTrienios,3,FALSE) -> 2014-2016 | D13: =VLOOKUP(AnInd_TrienioSelect,AnIdTrienios,4,FALSE) -> 14-16
A15: 1 | B15: =IF(E15="","",IF(E15<>0,RANK(E15,$E$15:$E$20,0),RANK(E15,$E$15:$E$20,0)+COUNTIF($E14:E$15,0))) -> 4 | C15: =Id!E39 -> CT | D15: =Id!F39 -> Continente | E15: =IF(OR($D$13="",HLOOKUP($D$13,$F$3:$X$9,A15+1,FALSE)="na"),"",HLOOKUP($D$13,$F$3:$X$9,A15+1,FALSE)) -> 8.761834887 | G15: OrdCT | H15: =IF(B15="","",B15) -> 4
A16: 2 | B16: =IF(E16="","",IF(E16<>0,RANK(E16,$E$15:$E$20,0),RANK(E16,$E$15:$E$20,0)+COUNTIF($E$15:E15,0))) -> 3 | C16: =Id!E40 -> RA | D16: =Id!F40 -> Região Alentejo | E16: =IF(OR($D$13="",HLOOKUP($D$13,$F$3:$X$9,A16+1,FALSE)="na"),"",HLOOKUP($D$13,$F$3:$X$9,A16+1,FALSE)) -> 8.830146232 | G16: OrdRN | H16: =IF(B16="","",B16) -> 3
A17: 3 | B17: =IF(E17="","",IF(E17<>0,RANK(E17,$E$15:$E$20,0),RANK(E17,$E$15:$E$20,0)+COUNTIF($E$15:E16,0))) -> 1 | C17: =Id!E41 -> A401 | D17: =Id!F41 -> ACeS Alentejo Central | E17: 9.874786568 | G17: OrdACeS | H17: =VLOOKUP(AnInd_ACeS+1,A15:B20,2,FALSE) -> 6 | K17: =IF($B17="","",IF(AND($B17<$B$15,$B17<$B$16),$B17,IF(AND($B17<$B$15,$B17>$B$16),$B17-1,IF(AND($B17<$B$16,$B17>$B$15),$B17-1,$B17-2)))) -> 1 | L17: =IF($B17="","",IF(E17<$G$31,1,IF(E17<$G$32,2,IF(E17<$G$33,3,4)))) -> 4
A18: 4 | B18: =IF(E18="","",IF(E18<>0,RANK(E18,$E$15:$E$20,0),RANK(E18,$E$15:$E$20,0)+COUNTIF($E$15:E17,0))) -> 6 | C18: =Id!E42 -> A402 | D18: =Id!F42 -> ULS Norte Alentejano | E18: 7.370786517 | K18: =IF($B18="","",IF(AND($B18<$B$15,$B18<$B$16),$B18,IF(AND($B18<$B$15,$B18>$B$16),$B18-1,IF(AND($B18<$B$16,$B18>$B$15),$B18-1,$B18-2)))) -> 4 | L18: =IF($B18="","",IF(E18<$G$31,1,IF(E18<$G$32,2,IF(E18<$G$33,3,4)))) -> 1
A19: 5 | B19: =IF(E19="","",IF(E19<>0,RANK(E19,$E$15:$E$20,0),RANK(E19,$E$15:$E$20,0)+COUNTIF($E$15:E18,0))) -> 5 | C19: =Id!E43 -> A403 | D19: =Id!F43 -> ULS Baixo Alentejo | E19: 8.43373494 | G19: Zeros | H19: =COUNTIF(E15:E20,0) -> 0 | K19: 3 | L19: =IF($B19="","",IF(E19<$G$31,1,IF(E19<$G$32,2,IF(E19<$G$33,3,4)))) -> 2
A20: 6 | B20: =IF(E20="","",IF(E20<>0,RANK(E20,$E$15:$E$20,0),RANK(E20,$E$15:$E$20,0)+COUNTIF($E$15:E19,0))) -> 2 | C20: =Id!E44 -> A404 | D20: =Id!F44 -> ULS Litoral Alentejano | E20: 9.18972332 | K20: 2 | L20: =IF($B20="","",IF(E20<$G$31,1,IF(E20<$G$32,2,IF(E20<$G$33,3,4)))) -> 3
A22: =IF(E15="","",VLOOKUP($A15,$B$15:$E$20,2,FALSE)) -> A401 | B22: =IF(E15="","",VLOOKUP($A15,$B$15:$E$20,3,FALSE)) -> ACeS Alentejo Central | C22: =IF(E15="","",VLOOKUP($A15,$B$15:$E$20,4,FALSE)) -> 9.874786568 | D22: =IF(A22="","",CONCATENATE(B22," (",A22,")")) -> ACeS Alentejo Central (A401)
A23: A404 | B23: ULS Litoral Alentejano | C23: 9.18972332 | D23: =IF(A23="","",CONCATENATE(B23," (",A23,")")) -> ULS Litoral Alentejano (A404)
A24: RA | B24: Região Alentejo | C24: 8.830146232 | D24: Região Alentejo (RA)
A25: CT | B25: Continente | C25: 8.761834887 | D25: Continente (CT)
A26: A403 | B26: ULS Baixo Alentejo | C26: 8.43373494 | D26: ULS Baixo Alentejo (A403)
A27: A402 | B27: ULS Norte Alentejano | C27: 7.370786517 | D27: ULS Norte Alentejano (A402)
A29: Ord | B29: Nº | C29: ACeS | G29: 0 | H29: 0 | I29: classe0
A30: =IF(D30="","",RANK(D30,$D$30:$D$51,1)) -> 4 | B30: 2 | C30: A401 | D30: =IF(E17="","",E17) -> 9.874786568 | G30: =IF($D$30="","",VLOOKUP(1,$A$30:$D$33,4,FALSE)) -> 7.370786517 | I30: classe1 | J30: =IF(G30="","",ROUND(G30,2)) -> 7.37
A31: 1 | B31: 3 | C31: A402 | D31: =IF(E18="","",E18) -> 7.370786517 | G31: =IF($D$30="","",VLOOKUP(2,$A$30:$D$33,4,FALSE)) -> 8.43373494 | I31: classe2 | J31: =IF(G31="","",ROUND(G31,2)) -> 8.43
A32: 2 | B32: 4 | C32: A403 | D32: =IF(E19="","",E19) -> 8.43373494 | G32: =IF($D$30="","",VLOOKUP(3,$A$30:$D$33,4,FALSE)) -> 9.18972332 | I32: classe3 | J32: 9.19
A33: 3 | B33: 5 | C33: A404 | D33: =IF(E20="","",E20) -> 9.18972332 | G33: =IF($D$30="","",VLOOKUP(4,$A$30:$D$33,4,FALSE)) -> 9.874786568 | I33: classe4 | J33: 9.87
F35: ACeS Activo | G35: A402 | H35: ACeSAct
F36: Valor | G36: =IF(D30="",0,VLOOKUP(ACeSAct,DadosMapear,2,FALSE)) -> 7.370786517 | H36: ACeSActValor
F37: Código | G37: =VLOOKUP(ACeSActValor,classeValores,3,TRUE) -> classe1 | H37: ACeSActCod
B52: ACeS_Select | C52: =IF(AnInd_codACeS="","",VLOOKUP(AnInd_codACeS,Id!$D$39:$G$44,4,FALSE)) -> A402
B54: Legenda
B55: =IF(TipoAn="T",D2 & " " & E2 & ", 1996-2014 " & F2,"") -> PROPORÇÃO DE CRIANÇAS COM BAIXO PESO À NASCENÇA (%), 1996-2014 (MÉDIA ANUAL POR TRIÉNIOS)
B56: =IF(TipoAn="T",D2 & " " & E2 & ", MÉDIA ANUAL NO TRIÉNIO " & C13,"") -> PROPORÇÃO DE CRIANÇAS COM BAIXO PESO À NASCENÇA (%), MÉDIA ANUAL NO TRIÉNIO 2014-2016
B57: =IF(TipoAn="T",D2 & " " & E2 & ", " & C13,"") -> PROPORÇÃO DE CRIANÇAS COM BAIXO PESO À NASCENÇA (%), 2014-2016

Sheet AnInd_baseA (hidden)
A3: Rcod | B3: Local_Residencia | C3: Icod | D3: Indicador | E3: cod_IndRes | F3: 1996 | G3: 1997 | H3: 1998 | I3: 1999 | J3: 2000 | K3: 2001 | L3: 2002 | M3: 2003 | N3: 2004 | O3: 2005 | P3: 2006 | Q3: 2007 | R3: 2008 | S3: 2009 | T3: 2010 | U3: 2011 | V3: 2012 | W3: 2013 | X3: 2014 | Y3: 2015 | Z3: 2016
A4: =Id!D39 -> R01 | B4: =Id!F39 -> Continente | C4: =IF(TipoAn="A",AnInd_baseT!$C$1,"") ->  | D4: =IF(TipoAn="A",AnInd_baseT!$D$1,"") ->  | E4: =IF(C4="","",CONCATENATE(C4,A4)) ->  | F4: =IF($C$4="","",VLOOKUP($E4,BaseAnual,F$10,FALSE)) -> 
A5: =Id!D40 -> R02 | B5: =Id!F40 -> Região Alentejo | C5: =IF(TipoAn="A",AnInd_baseT!$C$1,"") ->  | D5: =IF(TipoAn="A",AnInd_baseT!$D$1,"") ->  | E5: =IF(C5="","",CONCATENATE(C5,A5)) ->  | F5: =IF($C$5="","",VLOOKUP($E5,BaseAnual,F$10,FALSE)) -> 
A6: =Id!D41 -> R03 | B6: =Id!F41 -> ACeS Alentejo Central | C6: =IF(TipoAn="A",AnInd_baseT!$C$1,"") ->  | D6: =IF(TipoAn="A",AnInd_baseT!$D$1,"") ->  | F6: =IF($C$6="","",VLOOKUP($E6,BaseAnual,F$10,FALSE)) -> 
A7: =Id!D42 -> R04 | B7: =Id!F42 -> ULS Norte Alentejano | C7: =IF(TipoAn="A",AnInd_baseT!$C$1,"") ->  | D7: =IF(TipoAn="A",AnInd_baseT!$D$1,"") ->  | F7: =IF($C$7="","",VLOOKUP($E7,BaseAnual,F$10,FALSE)) -> 
A8: =Id!D43 -> R05 | B8: =Id!F43 -> ULS Baixo Alentejo | C8: =IF(TipoAn="A",AnInd_baseT!$C$1,"") ->  | D8: =IF(TipoAn="A",AnInd_baseT!$D$1,"") ->  | F8: =IF($C$8="","",VLOOKUP($E8,BaseAnual,F$10,FALSE)) -> 
A9: =Id!D44 -> R06 | B9: =Id!F44 -> ULS Litoral Alentejano | C9: =IF(TipoAn="A",AnInd_baseT!$C$1,"") ->  | D9: =IF(TipoAn="A",AnInd_baseT!$D$1,"") ->  | F9: =IF($C$9="","",VLOOKUP($E9,BaseAnual,F$10,FALSE)) -> 
F10: 2 | G10: 3 | H10: 4 | I10: 5 | J10: 6 | K10: 7 | L10: 8 | M10: 9 | N10: 10 | O10: 11 | P10: 12 | Q10: 13 | R10: 14 | S10: 15 | T10: 16 | U10: 17 | V10: 18 | W10: 19 | X10: 20 | Y10: 21 | Z10: 22
A11: 3 | B11: =AnInd_baseT!B11 -> AnInd_ACeS | C11: =AnInd_codACeS -> R04 | D11: =AnInd_baseT!D11 -> ULS Norte Alentejano | E11: =IF(AnInd_codACeS="","",VLOOKUP(AnInd_codACeS,AnInd_TabAnual,5,FALSE)) ->  | F11: =IF(AnInd_codACeS="","",VLOOKUP(AnInd_codACeS,AnInd_TabAnual,6,FALSE)) ->  | G11: =IF(AnInd_codACeS="","",VLOOKUP(AnInd_codACeS,AnInd_TabAnual,7,FALSE)) ->  | H11: =IF(AnInd_codACeS="","",VLOOKUP(AnInd_codACeS,AnInd_TabAnual,8,FALSE)) ->  | I11: =IF(AnInd_codACeS="","",VLOOKUP(AnInd_codACeS,AnInd_TabAnual,9,FALSE)) ->  | J11: =IF(AnInd_codACeS="","",VLOOKUP(AnInd_codACeS,AnInd_TabAnual,10,FALSE)) ->  | K11: =IF(AnInd_codACeS="","",VLOOKUP(AnInd_codACeS,AnInd_TabAnual,11,FALSE)) ->  | L11: =IF(AnInd_codACeS="","",VLOOKUP(AnInd_codACeS,AnInd_TabAnual,12,FALSE)) ->  | M11: =IF(AnInd_codACeS="","",VLOOKUP(AnInd_codACeS,AnInd_TabAnual,13,FALSE)) ->  | N11: =IF(AnInd_codACeS="","",VLOOKUP(AnInd_codACeS,AnInd_TabAnual,14,FALSE)) ->  | O11: =IF(AnInd_codACeS="","",VLOOKUP(AnInd_codACeS,AnInd_TabAnual,15,FALSE)) ->  | P11: =IF(AnInd_codACeS="","",VLOOKUP(AnInd_codACeS,AnInd_TabAnual,16,FALSE)) ->  | Q11: =IF(AnInd_codACeS="","",VLOOKUP(AnInd_codACeS,AnInd_TabAnual,17,FALSE)) ->  | R11: =IF(AnInd_codACeS="","",VLOOKUP(AnInd_codACeS,AnInd_TabAnual,18,FALSE)) ->  | S11: =IF(AnInd_codACeS="","",VLOOKUP(AnInd_codACeS,AnInd_TabAnual,19,FALSE)) ->  | T11: =IF(AnInd_codACeS="","",VLOOKUP(AnInd_codACeS,AnInd_TabAnual,20,FALSE)) ->  | U11: =IF(AnInd_codACeS="","",VLOOKUP(AnInd_codACeS,AnInd_TabAnual,21,FALSE)) ->  | V11: =IF(AnInd_codACeS="","",VLOOKUP(AnInd_codACeS,AnInd_TabAnual,22,FALSE)) ->  | W11: =IF(AnInd_codACeS="","",VLOOKUP(AnInd_codACeS,AnInd_TabAnual,23,FALSE)) ->  | X11: =IF(AnInd_codACeS="","",VLOOKUP(AnInd_codACeS,AnInd_TabAnual,24,FALSE)) ->  | Y11: =IF(AnInd_codACeS="","",VLOOKUP(AnInd_codACeS,AnInd_TabAnual,24,FALSE)) ->  | Z11: =IF(AnInd_codACeS="","",VLOOKUP(AnInd_codACeS,AnInd_TabAnual,25,FALSE)) -> 
A13: 21 | B13: AnInd_Ano | C13: =VLOOKUP(AnInd_AnoSelect,AnIdAnos,4,FALSE) -> 2016 | D13: =VLOOKUP(AnInd_AnoSelect,AnIdAnos,5,FALSE) -> 16
A15: 1 | B15: =IF(E15="","",RANK(E15,$E$15:$E$20,0)) ->  | C15: =Id!E39 -> CT | D15: =Id!F39 -> Continente | E15: =IF($C$4="","",HLOOKUP($C$13,$F$3:$Z$9,A15+1,FALSE)) ->  | G15: OrdCTA | H15: =IF(B15="","",B15) -> 
A16: 2 | C16: =Id!E40 -> RA | D16: =Id!F40 -> Região Alentejo | E16: =IF($C$4="","",HLOOKUP($C$13,$F$3:$Z$9,A16+1,FALSE)) ->  | G16: OrdRNA | H16: =IF(B16="","",B16) -> 
A17: 3 | C17: =Id!E41 -> A401 | D17: =Id!F41 -> ACeS Alentejo Central | E17: =IF($C$4="","",HLOOKUP($C$13,$F$3:$Z$9,A17+1,FALSE)) ->  | G17: OrdACeSA | H17: =VLOOKUP(AnInd_ACeS+1,A15:B20,2,FALSE) ->  | K17: =IF($B17="","",IF(AND($B17<$B$15,$B17<$B$16),$B17,IF(AND($B17<$B$15,$B17>$B$16),$B17-1,IF(AND($B17<$B$16,$B17>$B$15),$B17-1,$B17-2)))) ->  | L17: =IF($B17="","",IF(E17<$G$32,1,IF(E17<$G$33,2,IF(E17<$G$34,3,4)))) -> 
A18: 4 | C18: =Id!E42 -> A402 | D18: =Id!F42 -> ULS Norte Alentejano | K18: =IF($B18="","",IF(AND($B18<$B$15,$B18<$B$16),$B18,IF(AND($B18<$B$15,$B18>$B$16),$B18-1,IF(AND($B18<$B$16,$B18>$B$15),$B18-1,$B18-2)))) ->  | L18: =IF($B18="","",IF(E18<$G$32,1,IF(E18<$G$33,2,IF(E18<$G$34,3,4)))) -> 
A19: 5 | C19: =Id!E43 -> A403 | D19: =Id!F43 -> ULS Baixo Alentejo | L19: =IF($B19="","",IF(E19<$G$32,1,IF(E19<$G$33,2,IF(E19<$G$34,3,4)))) -> 
A20: 6 | C20: =Id!E44 -> A404 | D20: =Id!F44 -> ULS Litoral Alentejano | L20: =IF($B20="","",IF(E20<$G$32,1,IF(E20<$G$33,2,IF(E20<$G$34,3,4)))) -> 
A22: =IF(E15="","",VLOOKUP($A15,$B$15:$E$20,2,FALSE)) ->  | B22: =IF(E15="","",VLOOKUP($A15,$B$15:$E$20,3,FALSE)) ->  | C22: =IF(E15="","",VLOOKUP($A15,$B$15:$E$20,4,FALSE)) ->  | D22: =IF(A22="","",CONCATENATE(B22," (",A22,")")) -> 
D23: =IF(A23="","",CONCATENATE(B23," (",A23,")")) -> 
A29: Ord | B29: Nº | C29: ACeS
A30: =IF(D30="","",RANK(D30,$D$30:$D$51,1)) ->  | B30: 2 | C30: A401 | D30: =IF(E17="","",E17) ->  | G30: 0 | H30: 0 | I30: classeA0
B31: 3 | C31: A402 | D31: =IF(E18="","",E18) ->  | G31: =IF($D$30="","",VLOOKUP(1,$A$30:$D$33,4,FALSE)) ->  | I31: classeA1 | K31: =IF(G31="","",ROUND(G31,2)) -> 
B32: 4 | C32: A403 | D32: =IF(E19="","",E19) ->  | G32: =IF($D$30="","",VLOOKUP(2,$A$30:$D$33,4,FALSE)) ->  | I32: classeA2 | K32: =IF(G32="","",ROUND(G32,2)) -> 
B33: 5 | C33: A404 | D33: =IF(E20="","",E20) ->  | G33: =IF($D$30="","",VLOOKUP(3,$A$30:$D$33,4,FALSE)) ->  | I33: classeA3
G34: =IF($D$30="","",VLOOKUP(4,$A$30:$D$33,4,FALSE)) ->  | I34: classeA4
F36: ACeS Activo | G36: A401 | H36: ACeSActA
F37: Valor | G37: =IF(D30="",0,VLOOKUP(ACeSActA,DadosMapearA,2,FALSE)) -> 0 | H37: ACeSActValorA
F38: Código | G38: =VLOOKUP(ACeSActValorA,classeValoresA,3,TRUE) -> classeA0 | H38: ACeSActCodA
B52: ACeS_Select | C52: =IF(AnInd_codACeS="","",VLOOKUP(AnInd_codACeS,Id!$D$39:$G$44,4,FALSE)) -> A402
B54: Legenda
B55: =IF(TipoAn="A",AnInd_baseT!D2 & " " & AnInd_baseT!E2 & ", 1996-2015 " & AnInd_baseT!F2,"") -> 
B56: =IF(TipoAn="A",AnInd_baseT!D2 & " " & AnInd_baseT!E2 & ", " & C13,"") -> 

Sheet AnR
B2: mort@lidades.infantil
B4: Análise da Razão R por Indicador
B6: Selecione o Indicador | G6: Selecione a Referência
B8: Selecione o ACeS | D8: Selecione o Quinquénio
B11: =AnR_base!D1 -> Nascimentos Pré-termo
B13: =AnR_base!B73 -> NASCIMENTOS PRÉ-TERMO, QUINQUÉNIO 1996-2000
C14: O | D14: E | E14: R | F14: =AnR_base!D36 -> I.C. (95%)
B15: =AnR_base!B29 -> Região Alentejo | C15: =IF(AnR_base!F29=0,"",AnR_base!F29) -> 
B16: =AnR_base!L41 ->  | C16: =AnR_base!F41 ->  | D16: =AnR_base!G41 ->  | E16: =AnR_base!H41 ->  | F16: =AnR_base!K41 ->  | G16: =AnR_base!D41 -> 
B17: =AnR_base!L42 ->  | C17: =AnR_base!F42 ->  | D17: =AnR_base!G42 ->  | E17: =AnR_base!H42 ->  | F17: =AnR_base!K42 ->  | G17: =AnR_base!D42 -> 
B18: =AnR_base!L43 ->  | C18: =AnR_base!F43 ->  | D18: =AnR_base!G43 ->  | E18: =AnR_base!H43 ->  | F18: =AnR_base!K43 ->  | G18: =AnR_base!D43 -> 
B19: =AnR_base!L44 ->  | C19: =AnR_base!F44 ->  | D19: =AnR_base!G44 ->  | E19: =AnR_base!H44 ->  | F19: =AnR_base!K44 ->  | G19: =AnR_base!D44 -> 
B21: =AnR_base!B75 -> Comparação com Região Alentejo, R=100
I33: Legenda
I34: =AnR_base!B73 -> NASCIMENTOS PRÉ-TERMO, QUINQUÉNIO 1996-2000
I35: =AnR_base!B74 -> Comparação com Região Alentejo, I.C. (95%)
J36: R diminuída e significativa
J37: R diminuída, mas não significativa
J38: R aumentada, mas não significativa
J39: R aumentadada e significativa

Sheet AnR_base (hidden)
A1: 4 | B1: AnR_IndSelect | C1: =IF(AnR_IndSelect=1,"",VLOOKUP(AnR_IndSelect,AnR_tabId,2,FALSE)) -> I07 | D1: =IF(AnR_IndSelect=1,"",VLOOKUP(AnR_IndSelect,AnR_tabId,3,FALSE)) -> Nascimentos Pré-termo
D2: =IF(AnR_IndSelect=1,"",VLOOKUP(AnR_IndSelect,AnR_tabIdLeg,4,FALSE)) -> NASCIMENTOS PRÉ-TERMO
A3: Rcod | B3: Local_Residencia | C3: Icod | D3: Indicador | E3: cod_IndRes | F3: 96-00 | G3: 01-05 | H3: 06-10 | I3: 11-15 | J3: 12-16
A4: =Id!D39 -> R01 | B4: =Id!F39 -> Continente | C4: =IF($C$1="","",$C$1) -> I07 | D4: =IF($C$1="","",$D$1) -> Nascimentos Pré-termo | E4: =IF(C4="","",CONCATENATE(C4,A4)) -> I07R01 | F4: =IF(C4="","",VLOOKUP($E4,BaseQuinquenal,40,FALSE)) -> 0 | G4: =IF(C4="","",VLOOKUP($E4,BaseQuinquenal,41,FALSE)) -> 0 | H4: =IF(C4="","",VLOOKUP($E4,BaseQuinquenal,42,FALSE)) -> 0 | I4: =IF(C4="","",VLOOKUP($E4,BaseQuinquenal,43,FALSE)) -> 34253 | J4: =IF(C4="","",VLOOKUP($E4,BaseQuinquenal,44,FALSE)) -> 41364
A5: =Id!D40 -> R02 | B5: =Id!F40 -> Região Alentejo | C5: =IF($C$1="","",$C$1) -> I07 | D5: =IF($C$1="","",$D$1) -> Nascimentos Pré-termo | E5: =IF(C5="","",CONCATENATE(C5,A5)) -> I07R02 | F5: 0 | G5: =IF(C5="","",VLOOKUP($E5,BaseQuinquenal,41,FALSE)) -> 0 | H5: =IF(C5="","",VLOOKUP($E5,BaseQuinquenal,42,FALSE)) -> 0 | I5: =IF(C5="","",VLOOKUP($E5,BaseQuinquenal,43,FALSE)) -> 1501 | J5: 1703
A6: =Id!D41 -> R03 | B6: =Id!F41 -> ACeS Alentejo Central | C6: I07 | D6: Nascimentos Pré-termo | E6: I07R03 | F6: 0 | G6: 0 | H6: 0 | I6: 525 | J6: 550
A7: =Id!D42 -> R04 | B7: =Id!F42 -> ULS Norte Alentejano | C7: I07 | D7: Nascimentos Pré-termo | E7: I07R04 | F7: 0 | G7: 0 | H7: 0 | I7: 307 | J7: 329
A8: =Id!D43 -> R05 | B8: =Id!F43 -> ULS Baixo Alentejo | C8: I07 | D8: Nascimentos Pré-termo | E8: I07R05 | F8: 0 | G8: 0 | H8: 0 | I8: 399 | J8: 479
A9: =Id!D44 -> R06 | B9: =Id!F44 -> ULS Litoral Alentejano | C9: I07 | D9: Nascimentos Pré-termo | E9: I07R06 | F9: 0 | G9: 0 | H9: 0 | I9: 270 | J9: 345
A11: =IF(C1="","",IF(OR(C1="I22",C1="I24"),1,2)) -> 2 | B11: Denominador | C11: =IF(A11="","",IF(A11=1,"I26","I01")) -> I01 | D11: =IF(A11="","",VLOOKUP(AnR_codDenom,Id!$D$7:$G$34,3,FALSE)) -> Nados Vivos
A13: Rcod | B13: Local_Residencia | C13: Icod | D13: Indicador | E13: cod_IndRes | F13: 96-00 | G13: 01-05 | H13: 06-10 | I13: 11-15 | J13: 12-16 | K13: Quinq_Select
A14: =Id!D39 -> R01 | B14: =Id!F39 -> Continente | C14: =IF($C$11="","",$C$11) -> I01 | D14: =IF($A$11="","",AnR_IndDenom) -> Nados Vivos | E14: =IF(C14="","",CONCATENATE(C14,A14)) -> I01R01 | F14: =IF(C14="","",VLOOKUP($E14,BaseQuinquenal,40,FALSE)) -> 0 | G14: =IF($C14="","",VLOOKUP($E14,BaseQuinquenal,41,FALSE)) -> 0 | H14: =IF($C14="","",VLOOKUP($E14,BaseQuinquenal,42,FALSE)) -> 539523 | I14: =IF($C14="","",VLOOKUP($E14,BaseQuinquenal,43,FALSE)) -> 527632 | J14: =IF($C14="","",VLOOKUP($E14,BaseQuinquenal,44,FALSE)) -> 486152 | K14: =IF(AnRComp_codACeS="","",HLOOKUP($D$23,$F$13:$J$19,2,FALSE)) -> 0
A15: =Id!D40 -> R02 | B15: =Id!F40 -> Região Alentejo | C15: =IF($C$11="","",$C$11) -> I01 | D15: Nados Vivos | E15: =IF(C15="","",CONCATENATE(C15,A15)) -> I01R02 | F15: =IF(C15="","",VLOOKUP($E15,BaseQuinquenal,40,FALSE)) -> 0 | G15: 0 | H15: 23185 | I15: 22625 | J15: 20472 | K15: =IF(AnRComp_codACeS="","",HLOOKUP($D$23,$F$13:$J$19,3,FALSE)) -> 0
A16: =Id!D41 -> R03 | B16: =Id!F41 -> ACeS Alentejo Central | C16: =IF($C$11="","",$C$11) -> I01 | D16: Nados Vivos | E16: I01R03 | F16: =IF(C16="","",VLOOKUP($E16,BaseQuinquenal,40,FALSE)) -> 0 | G16: 0 | H16: 7796 | I16: 7606 | J16: 6857 | K16: =IF(AnRComp_codACeS="","",HLOOKUP($D$23,$F$13:$J$19,4,FALSE)) -> 0
A17: =Id!D42 -> R04 | B17: =Id!F42 -> ULS Norte Alentejano | C17: =IF($C$11="","",$C$11) -> I01 | D17: Nados Vivos | E17: I01R04 | F17: =IF($C$17="","",VLOOKUP($E17,BaseQuinquenal,40,FALSE)) -> 0 | G17: 0 | H17: 5540 | I17: 5080 | J17: 4342 | K17: =IF(AnRComp_codACeS="","",HLOOKUP($D$23,$F$13:$J$19,5,FALSE)) -> 0
A18: =Id!D43 -> R05 | B18: =Id!F43 -> ULS Baixo Alentejo | C18: I01 | D18: Nados Vivos | E18: I01R05 | F18: =IF($C$18="","",VLOOKUP($E18,BaseQuinquenal,40,FALSE)) -> 0 | G18: 0 | H18: 5915 | I18: 5843 | J18: 5347 | K18: =IF(AnRComp_codACeS="","",HLOOKUP($D$23,$F$13:$J$19,6,FALSE)) -> 0
A19: =Id!D44 -> R06 | B19: =Id!F44 -> ULS Litoral Alentejano | C19: I01 | D19: Nados Vivos | E19: I01R06 | F19: =IF($C$19="","",VLOOKUP($E19,BaseQuinquenal,40,FALSE)) -> 0 | G19: 0 | H19: 3934 | I19: 4096 | J19: 3926 | K19: =IF(AnRComp_codACeS="","",HLOOKUP($D$23,$F$13:$J$19,7,FALSE)) -> 0
A21: 3 | B21: AnR_ACeS | C21: =IF(AnR_ACeS=1,"",VLOOKUP(AnR_ACeS,AnACeS_tab,2,FALSE)) -> R04 | D21: =IF(AnR_ACeS=1,"",VLOOKUP(AnR_ACeS,AnACeS_tab,3,FALSE)) -> ULS Norte Alentejano | E21: =IF(AnR_CodACeS="","",VLOOKUP(AnR_CodACeS,AnR_TabQuinq,5,FALSE)) -> I07R04 | F21: =IF(AnR_CodACeS="","",VLOOKUP(AnR_CodACeS,AnR_TabQuinq,6,FALSE)) -> 0 | G21: =IF(AnR_CodACeS="","",VLOOKUP(AnR_CodACeS,AnR_TabQuinq,7,FALSE)) -> 0 | H21: =IF(AnR_CodACeS="","",VLOOKUP(AnR_CodACeS,AnR_TabQuinq,8,FALSE)) -> 0
A23: 1 | B23: AnR_Quinquenio | C23: =VLOOKUP(AnR_Quinquenio,AnR_IdQuinq,3,FALSE) -> 1996-2000 | D23: =VLOOKUP(AnR_Quinquenio,AnR_IdQuinq,4,FALSE) -> 96-00
F24: 96-00 | G24: 01-05 | H24: 06-10 | I24: 11-15 | J24: 12-16 | K24: Quinq_Select
A25: 2 | B25: AnR_Comparador | C25: =IF(AnRComparador=1,A4,A5) -> R02 | D25: =IF(AnRComparador=1,B4,B5) -> Região Alentejo | E25: =IF(AnRComp_codACeS="","",VLOOKUP(AnRComp_codACeS,AnR_TabQuinq,5,FALSE)) -> I07R02 | F25: =IF(AnRComp_codACeS="","",VLOOKUP(AnRComp_codACeS,AnR_TabQuinq,6,FALSE)) -> 0 | G25: =IF(AnRComp_codACeS="","",VLOOKUP(AnRComp_codACeS,AnR_TabQuinq,7,FALSE)) -> 0 | H25: =IF(AnRComp_codACeS="","",VLOOKUP(AnRComp_codACeS,AnR_TabQuinq,8,FALSE)) -> 0 | I25: =IF(AnRComp_codACeS="","",VLOOKUP(AnRComp_codACeS,AnR_TabQuinq,9,FALSE)) -> 1501 | J25: =IF(AnRComp_codACeS="","",VLOOKUP(AnRComp_codACeS,AnR_TabQuinq,10,FALSE)) -> 1703 | K25: =IF(AnRComp_codACeS="","",HLOOKUP($D$23,$F$24:$J$26,2,FALSE)) -> 0
C26: =IF(AnRComparador=1,A14,A15) -> R02 | D26: =IF(AnRComparador=1,B14,B15) -> Região Alentejo | E26: =IF(AnRComp_codACeS="","",VLOOKUP(AnRComp_codACeS,AnR_TabDenom,5,FALSE)) -> I01R02 | F26: =IF(AnRComp_codACeS="","",VLOOKUP(AnRComp_codACeS,AnR_TabDenom,6,FALSE)) -> 0 | G26: =IF(AnRComp_codACeS="","",VLOOKUP(AnRComp_codACeS,AnR_TabDenom,7,FALSE)) -> 0 | H26: =IF(AnRComp_codACeS="","",VLOOKUP(AnRComp_codACeS,AnR_TabDenom,8,FALSE)) -> 23185 | I26: =IF(AnRComp_codACeS="","",VLOOKUP(AnRComp_codACeS,AnR_TabDenom,9,FALSE)) -> 22625 | J26: =IF(AnRComp_codACeS="","",VLOOKUP(AnRComp_codACeS,AnR_TabDenom,10,FALSE)) -> 20472 | K26: =IF(AnRComp_codACeS="","",HLOOKUP($D$23,$F$24:$J$26,3,FALSE)) -> 0
A28: Rcod | B28: Local_Residencia | C28: Icod | D28: Indicador | E28: cod_IndRes | F28: O | G28: E | H28: R | I28: IC_min | K28: Ic_max
A29: =AnRComp_codACeS -> R02 | B29: =D25 -> Região Alentejo | C29: =IF($C$4="","",C5) -> I07 | D29: Nascimentos Pré-termo | E29: =IF(C29="","",CONCATENATE(C29,A29)) -> I07R02 | F29: =IF(E29="","",K25) -> 0 | R29: Map
A30: =A6 -> R03 | B30: ACeS Alentejo Central | C30: I07 | D30: Nascimentos Pré-termo | E30: =IF(C30="","",CONCATENATE(C30,A30)) -> I07R03 | F30: =IF(OR(E30="",$F$29=0),"",HLOOKUP($D$23,$E$3:$J$9,4,FALSE)) ->  | G30: =IF(OR(E30="",$F$29=0),"",$K$25/$K$26*$K16) ->  | H30: =IF(OR(E30="",$F$29=0),"",F30/G30) ->  | I30: =IF(OR(E30="",$F$29=0),"",IF(F30>100,(1-1/(9*F30)-$B$38/(3*SQRT(F30)))^3*F30/G30,IF(F30>0,CHIINV($B$37,2*F30)/2/G30,0))) ->  | K30: =IF(OR(E30="",$F$29=0),"",IF(F30>100,(1-1/(9*(F30+1))+$B$38/(3*SQRT(F30+1)))^3*(F30+1)/G30,IF(F30>0,CHIINV($B$36,2*(F30+1))/2/G30,CHIINV($B$36,2)/2/G30))) ->  | M30: 1 | N30: =IF(OR(E30="",$F$29=0),"",RANK(H30,$H$30:$H$33,0)) ->  | O30: =IF(E30="","",Id!E41) -> A401 | P30: =IF(C30="","",B30) -> ACeS Alentejo Central | Q30: =IF(OR(E30="",$F$29=0),"",E30) ->  | R30: =IF(H30="","",IF(AND(H30<1,K30<1),2,IF(AND(H30>1,I30>1),-2,IF(AND(H30<1,K30>1),1,-1)))) -> 
A31: R04 | B31: ULS Norte Alentejano | C31: I07 | D31: Nascimentos Pré-termo | E31: I07R04 | F31: =IF(OR(E31="",$F$29=0),"",HLOOKUP($D$23,$E$3:$J$9,5,FALSE)) ->  | G31: =IF(OR(E31="",$F$29=0),"",$K$25/$K$26*$K17) ->  | H31: =IF(OR(E31="",$F$29=0),"",F31/G31) ->  | I31: =IF(OR(E31="",$F$29=0),"",IF(F31>100,(1-1/(9*F31)-$B$38/(3*SQRT(F31)))^3*F31/G31,IF(F31>0,CHIINV($B$37,2*F31)/2/G31,0))) ->  | K31: =IF(OR(E31="",$F$29=0),"",IF(F31>100,(1-1/(9*(F31+1))+$B$38/(3*SQRT(F31+1)))^3*(F31+1)/G31,IF(F31>0,CHIINV($B$36,2*(F31+1))/2/G31,CHIINV($B$36,2)/2/G31))) ->  | M31: 2 | N31: =IF(OR(E31="",$F$29=0),"",RANK(H31,$H$30:$H$33,0)) ->  | O31: =IF(E31="","",Id!E42) -> A402 | P31: =IF(C31="","",B31) -> ULS Norte Alentejano | Q31: =IF(OR(E31="",$F$29=0),"",E31) ->  | R31: =IF(H31="","",IF(AND(H31<1,K31<1),2,IF(AND(H31>1,I31>1),-2,IF(AND(H31<1,K31>1),1,-1)))) -> 
A32: R05 | B32: ULS Baixo Alentejo | C32: I07 | D32: Nascimentos Pré-termo | E32: I07R05 | F32: =IF(OR(E32="",$F$29=0),"",HLOOKUP($D$23,$E$3:$J$9,6,FALSE)) ->  | G32: =IF(OR(E32="",$F$29=0),"",$K$25/$K$26*$K18) ->  | I32: =IF(OR(E32="",$F$29=0),"",IF(F32>100,(1-1/(9*F32)-$B$38/(3*SQRT(F32)))^3*F32/G32,IF(F32>0,CHIINV($B$37,2*F32)/2/G32,0))) ->  | K32: =IF(OR(E32="",$F$29=0),"",IF(F32>100,(1-1/(9*(F32+1))+$B$38/(3*SQRT(F32+1)))^3*(F32+1)/G32,IF(F32>0,CHIINV($B$36,2*(F32+1))/2/G32,CHIINV($B$36,2)/2/G32))) ->  | M32: 3 | N32: =IF(OR(E32="",$F$29=0),"",RANK(H32,$H$30:$H$33,0)) ->  | O32: =IF(E32="","",Id!E43) -> A403 | P32: ULS Baixo Alentejo
A33: R06 | B33: ULS Litoral Alentejano | C33: I07 | D33: Nascimentos Pré-termo | E33: I07R06 | F33: =IF(OR(E33="",$F$29=0),"",HLOOKUP($D$23,$E$3:$J$9,7,FALSE)) ->  | G33: =IF(OR(E33="",$F$29=0),"",$K$25/$K$26*$K19) ->  | I33: =IF(OR(E33="",$F$29=0),"",IF(F33>100,(1-1/(9*F33)-$B$38/(3*SQRT(F33)))^3*F33/G33,IF(F33>0,CHIINV($B$37,2*F33)/2/G33,0))) ->  | K33: =IF(OR(E33="",$F$29=0),"",IF(F33>100,(1-1/(9*(F33+1))+$B$38/(3*SQRT(F33+1)))^3*(F33+1)/G33,IF(F33>0,CHIINV($B$36,2*(F33+1))/2/G33,CHIINV($B$36,2)/2/G33))) ->  | M33: 4 | N33: =IF(OR(E33="",$F$29=0),"",RANK(H33,$H$30:$H$33,0)) ->  | O33: =IF(E33="","",Id!E44) -> A404 | P33: ULS Litoral Alentejano
A35: 2 | B35: =VLOOKUP(A35,E35:I37,2,FALSE) -> 0.95 | D35: Intervalos de Confiança | E35: 1 | F35: 0.9 | G35: 0.05 | H35: 0.95 | I35: =NORMSINV(H35) -> 1.644853627
B36: =VLOOKUP(A35,E35:I37,3,FALSE) -> 0.025 | D36: ="I.C. (" & B35*100 & "%)" -> I.C. (95%) | E36: 2 | F36: 0.95 | G36: 0.025 | H36: 0.975 | I36: =NORMSINV(H36) -> 1.959963985
B37: =VLOOKUP(A35,E35:I37,4,FALSE) -> 0.975 | E37: 3 | F37: 0.98 | G37: 0.01 | H37: 0.99 | I37: =NORMSINV(H37) -> 2.326347874
B38: =VLOOKUP(A35,E35:I37,5,FALSE) -> 1.959963985
E40: Map | F40: O | G40: E | H40: R | I40: IC_min | J40: Ic_max
A41: =IF(OR(E30="",$F$29=0),"",VLOOKUP(M30,$N$30:$Q$33,2,FALSE)) ->  | B41: =IF(OR(E30="",$F$29=0),"",VLOOKUP(M30,$N$30:$Q$33,3,FALSE)) ->  | C41: =IF(OR(E30="",$F$29=0),"",VLOOKUP(M30,$N$30:$Q$33,4,FALSE)) ->  | D41: =IF($E$21="","",IF(C41=$E$21,E41,"")) ->  | E41: =IF(OR(E30="",$F$29=0),"",VLOOKUP(M30,$N$30:$R$33,5,FALSE)) ->  | F41: =IF($A41="","",VLOOKUP($C41,$E$30:$K$33,2,FALSE)) ->  | G41: =IF($A41="","",VLOOKUP($C41,$E$30:$K$33,3,FALSE)) ->  | H41: =IF($A41="","",VLOOKUP($C41,$E$30:$K$33,4,FALSE)*100) ->  | I41: =IF($A41="","",VLOOKUP($C41,$E$30:$K$33,5,FALSE)*100) ->  | J41: =IF($A41="","",VLOOKUP($C41,$E$30:$K$33,6,FALSE)*100) ->  | K41: =IF(A41="","",CONCATENATE("(",FIXED(I41,1)," - ",FIXED(J41,1),")")) ->  | L41: =IF(A41="","",CONCATENATE(B41," (",A41,")")) -> 
A42: =IF(OR(E31="",$F$29=0),"",VLOOKUP(M31,$N$30:$Q$33,2,FALSE)) ->  | B42: =IF(OR(E31="",$F$29=0),"",VLOOKUP(M31,$N$30:$Q$33,3,FALSE)) ->  | C42: =IF(OR(E31="",$F$29=0),"",VLOOKUP(M31,$N$30:$Q$33,4,FALSE)) ->  | D42: =IF($E$21="","",IF(C42=$E$21,E42,"")) ->  | E42: =IF(OR(E31="",$F$29=0),"",VLOOKUP(M31,$N$30:$R$33,5,FALSE)) ->  | F42: =IF($A42="","",VLOOKUP($C42,$E$30:$K$33,2,FALSE)) ->  | G42: =IF($A42="","",VLOOKUP($C42,$E$30:$K$33,3,FALSE)) ->  | H42: =IF($A42="","",VLOOKUP($C42,$E$30:$K$33,4,FALSE)*100) ->  | I42: =IF($A42="","",VLOOKUP($C42,$E$30:$K$33,5,FALSE)*100) ->  | J42: =IF($A42="","",VLOOKUP($C42,$E$30:$K$33,6,FALSE)*100) ->  | K42: =IF(A42="","",CONCATENATE("(",FIXED(I42,1)," - ",FIXED(J42,1),")")) ->  | L42: =IF(A42="","",CONCATENATE(B42," (",A42,")")) -> 
A43: =IF(OR(E32="",$F$29=0),"",VLOOKUP(M32,$N$30:$Q$33,2,FALSE)) ->  | B43: =IF(OR(E32="",$F$29=0),"",VLOOKUP(M32,$N$30:$Q$33,3,FALSE)) ->  | C43: =IF(OR(E32="",$F$29=0),"",VLOOKUP(M32,$N$30:$Q$33,4,FALSE)) ->  | E43: =IF(OR(E32="",$F$29=0),"",VLOOKUP(M32,$N$30:$R$33,5,FALSE)) ->  | F43: =IF($A43="","",VLOOKUP($C43,$E$30:$K$33,2,FALSE)) ->  | G43: =IF($A43="","",VLOOKUP($C43,$E$30:$K$33,3,FALSE)) ->  | H43: =IF($A43="","",VLOOKUP($C43,$E$30:$K$33,4,FALSE)*100) ->  | I43: =IF($A43="","",VLOOKUP($C43,$E$30:$K$33,5,FALSE)*100) ->  | J43: =IF($A43="","",VLOOKUP($C43,$E$30:$K$33,6,FALSE)*100) ->  | K43: =IF(A43="","",CONCATENATE("(",FIXED(I43,1)," - ",FIXED(J43,1),")")) ->  | L43: =IF(A43="","",CONCATENATE(B43," (",A43,")")) -> 
A44: =IF(OR(E33="",$F$29=0),"",VLOOKUP(M33,$N$30:$Q$33,2,FALSE)) ->  | B44: =IF(OR(E33="",$F$29=0),"",VLOOKUP(M33,$N$30:$Q$33,3,FALSE)) ->  | C44: =IF(OR(E33="",$F$29=0),"",VLOOKUP(M33,$N$30:$Q$33,4,FALSE)) ->  | E44: =IF(OR(E33="",$F$29=0),"",VLOOKUP(M33,$N$30:$R$33,5,FALSE)) ->  | F44: =IF($A44="","",VLOOKUP($C44,$E$30:$K$33,2,FALSE)) ->  | G44: =IF($A44="","",VLOOKUP($C44,$E$30:$K$33,3,FALSE)) ->  | H44: =IF($A44="","",VLOOKUP($C44,$E$30:$K$33,4,FALSE)*100) ->  | I44: =IF($A44="","",VLOOKUP($C44,$E$30:$K$33,5,FALSE)*100) ->  | J44: =IF($A44="","",VLOOKUP($C44,$E$30:$K$33,6,FALSE)*100) ->  | K44: =IF(A44="","",CONCATENATE("(",FIXED(I44,1)," - ",FIXED(J44,1),")")) ->  | L44: =IF(A44="","",CONCATENATE(B44," (",A44,")")) -> 
A46: Mapear
C47: ACeS
C48: A401 | D48: =IF(R30="","",R30) ->  | G48: 0 | H48: classeR0
C49: A402 | D49: =IF(R31="","",R31) ->  | G49: 2 | H49: classeR1
C50: A403 | D50: =IF(R32="","",R32) ->  | G50: 1 | H50: classeR2
C51: A404 | D51: =IF(R33="","",R33) ->  | G51: -1 | H51: classeR3
G52: -2 | H52: classeR4
F54: ACeS Activo | G54: A402 | H54: ACeSActR
F55: Valor | G55: =IF(D48="",0,VLOOKUP(ACeSActR,DadosMapearR,2,FALSE)) -> 0 | H55: ACeSActValorR
F56: Código | G56: =VLOOKUP(ACeSActValorR,classeValoresR,2,FALSE) -> classeR0 | H56: ACeSActCodR
B70: AnR_ACeS_Select | C70: =IF(AnR_CodACeS="","",VLOOKUP(AnR_CodACeS,Id!$D$39:$G$44,4,FALSE)) -> A402
B72: Legenda
B73: =IF(AnR_IndSelect=1,"",D2 & ", QUINQUÉNIO " & C23) -> NASCIMENTOS PRÉ-TERMO, QUINQUÉNIO 1996-2000
B74: =IF(AnR_IndSelect=1,"","Comparação com " & D25 & ", " & D36) -> Comparação com Região Alentejo, I.C. (95%)
B75: =IF(AnR_IndSelect=1,"","Comparação com " & D25 & ", R=100") -> Comparação com Região Alentejo, R=100
